Workbook

Sheet Notes

Sheet Utilisation profile chart

Sheet Forecast Ch1

Sheet Asset data
D1: 3
F2: Unit | J2: 2
F3: Cost | G3: Capacity | H3: MD growth | I3: Utilisation Threshold | L3: Capacity (MVA)
F4: per MVA | G4: factor | H4: per annum | I4: mean | J4: SD | K4: Aug
A5: ID | B5: ID | C5: ID | D5: segment group | E5: network segment | F5: $ ('000) | H5: (%) | I5: (%) | J5: (%) | K5: Meth | L5: =0 -> 0 | M5: =L5+1 -> 1 | N5: =M5+1 -> 2 | O5: 3 | P5: 4 | Q5: 5 | R5: 6 | S5: 7 | T5: 8 | U5: 9 | V5: 10 | W5: 11 | X5: 12 | Y5: 13 | Z5: 14 | AA5: 15 | AB5: 16 | AC5: 17 | AD5: 18 | AE5: 19 | AF5: 20 | AG5: 21 | AH5: 22 | AI5: 23 | AJ5: 24 | AK5: 25 | AL5: 26 | AM5: 27 | AN5: 28 | AO5: 29 | AP5: 30 | AQ5: 31 | AR5: 32 | AS5: 33 | AT5: 34 | AU5: 35 | AV5: 36 | AW5: 37 | AX5: 38 | AY5: 39 | AZ5: 40 | BA5: 41 | BB5: 42 | BC5: 43 | BD5: 44 | BE5: 45 | BF5: 46 | BG5: 47 | BH5: 48 | BI5: 49 | BJ5: 50 | BK5: 51 | BL5: 52 | BM5: 53 | BN5: 54 | BO5: 55 | BP5: 56 | BQ5: 57 | BR5: 58 | BS5: 59 | BT5: 60 | BU5: 61 | BV5: 62 | BW5: 63 | BX5: 64 | BY5: 65 | BZ5: =BY5+1 -> 66 | CA5: 67 | CB5: 68 | CC5: 69 | CD5: 70 | CE5: 71 | CF5: 72 | CG5: 73 | CH5: 74 | CI5: 75 | CJ5: 76 | CK5: 77 | CL5: 78 | CM5: 79 | CN5: 80 | CO5: 81 | CP5: 82 | CQ5: 83 | CR5: 84 | CS5: 85 | CT5: 86 | CU5: 87 | CV5: 88 | CW5: 89 | CX5: 90 | CY5: 91 | CZ5: 92 | DA5: 93 | DB5: 94 | DC5: 95 | DD5: 96 | DE5: 97 | DF5: 98 | DG5: 99 | DH5: 100 | DI5: 101 | DJ5: 102 | DK5: 103 | DL5: 104 | DM5: 105 | DN5: 106 | DO5: 107 | DP5: 108 | DQ5: 109 | DR5: 110 | DS5: 111 | DT5: 112 | DU5: 113 | DV5: 114 | DW5: 115 | DX5: 116 | DY5: 117 | DZ5: 118 | EA5: 119 | EB5: 120 | EC5: 121 | ED5: 122 | EE5: 123 | EF5: 124 | EG5: 125 | EH5: 126 | EI5: 127 | EJ5: 128 | EK5: 129 | EL5: =EK5+1 -> 130 | EM5: 131 | EN5: 132 | EO5: 133 | EP5: 134 | EQ5: 135 | ER5: 136 | ES5: 137 | ET5: 138 | EU5: 139 | EV5: 140 | EW5: 141 | EX5: 142 | EY5: 143 | EZ5: 144 | FA5: 145 | FB5: 146 | FC5: 147 | FD5: 148 | FE5: 149 | FF5: 150 | FG5: 151
D21: =IF(A21>0,VLOOKUP(A21,IDtable,2),"") -> 
A22: 1 | D22: Subtransmission Lines | E22: Subtrans <0% Growth | F22: 71.77100115 | G22: 1.714055188 | H22: 0.001 | I22: 113.4064225 | J22: 16.74315781 | K22: 1 | L22: 0 | M22: 0 | N22: 0 | O22: 0 | P22: 0 | Q22: 85.73651497 | R22: 0 | S22: 0 | T22: 0 | U22: 0 | V22: 0 | W22: 0 | X22: 0 | Y22: 0 | Z22: 0 | AA22: 0 | AB22: 0 | AC22: 0 | AD22: 0 | AE22: 0 | AF22: 0 | AG22: 0 | AH22: 0 | AI22: 0 | AJ22: 0 | AK22: 0 | AL22: 104.0269715 | AM22: 0 | AN22: 119.4595442 | AO22: 0 | AP22: 0 | AQ22: 0 | AR22: 0 | AS22: 0 | AT22: 0 | AU22: 102.883818 | AV22: 0 | AW22: 0 | AX22: 0 | AY22: 164.6141088 | AZ22: 0 | BA22: 0 | BB22: 0 | BC22: 135.4636937 | BD22: 0 | BE22: 104.5985483 | BF22: 0 | BG22: 0 | BH22: 0 | BI22: 0 | BJ22: 0 | BK22: 0 | BL22: 102.883818 | BM22: 31.43672216 | BN22: 0 | BO22: 0 | BP22: 74.30497964 | BQ22: 29.72199186 | BR22: 0 | BS22: 0 | BT22: 0 | BU22: 0 | BV22: 0 | BW22: 0 | BX22: 0 | BY22: 0 | BZ22: 0 | CA22: 0 | CB22: 0 | CC22: 0 | CD22: 0 | CE22: 0 | CF22: 0 | CG22: 0 | CH22: 98.31120384 | CI22: 35.43775952 | CJ22: 17.71887976 | CK22: 104.5985483 | CL22: 91.45228264 | CM22: 0 | CN22: 101.7406644 | CO22: 0 | CP22: 0 | CQ22: 0 | CR22: 0 | CS22: 0 | CT22: 0 | CU22: 0 | CV22: 0 | CW22: 0 | CX22: 0 | CY22: 0 | CZ22: 0 | DA22: 0 | DB22: 0 | DC22: 0 | DD22: 0 | DE22: 0 | DF22: 0 | DG22: 0 | DH22: 0 | DI22: 0 | DJ22: 0 | DK22: 0 | DL22: 0 | DM22: 0 | DN22: 0 | DO22: 0 | DP22: 0 | DQ22: 0 | DR22: 0 | DS22: 0 | DT22: 0 | DU22: 0 | DV22: 0 | DW22: 0 | DX22: 0 | DY22: 0 | DZ22: 0 | EA22: 0 | EB22: 0 | EC22: 0 | ED22: 0 | EE22: 0 | EF22: 0 | EG22: 0 | EH22: 0 | EI22: 0 | EJ22: 0 | EK22: 0 | EL22: 0 | EM22: 0 | EN22: 0 | EO22: 0 | EP22: 0 | EQ22: 0 | ER22: 0 | ES22: 0 | ET22: 0 | EU22: 0 | EV22: 0 | EW22: 0 | EX22: 0 | EY22: 0 | EZ22: 0 | FA22: 0 | FB22: 0 | FC22: 0 | FD22: 0 | FE22: 0 | FF22: 0 | FG22: 0
A23: 1 | D23: Subtransmission Lines | E23: Subtrans 0-2% Growth | F23: 71.77100115 | G23: 1.714055188 | H23: 0.9648235245 | I23: 113.4064225 | J23: 16.74315781 | K23: 1 | L23: 0 | M23: 0 | N23: 0 | O23: 0 | P23: 0 | Q23: 0 | R23: 0 | S23: 0 | T23: 0 | U23: 0 | V23: 0 | W23: 0 | X23: 0 | Y23: 0 | Z23: 0 | AA23: 0 | AB23: 0 | AC23: 0 | AD23: 0 | AE23: 104.5985483 | AF23: 0 | AG23: 109.7427392 | AH23: 0 | AI23: 0 | AJ23: 0 | AK23: 174.9024905 | AL23: 0 | AM23: 0 | AN23: 0 | AO23: 0 | AP23: 0 | AQ23: 0 | AR23: 0 | AS23: 0 | AT23: 158.8983411 | AU23: 101.7406644 | AV23: 0 | AW23: 0 | AX23: 0 | AY23: 116.6016604 | AZ23: 0 | BA23: 0 | BB23: 32.57987569 | BC23: 0 | BD23: 0 | BE23: 0 | BF23: 0 | BG23: 0 | BH23: 0 | BI23: 0 | BJ23: 0 | BK23: 0 | BL23: 135.4636937 | BM23: 48.58402515 | BN23: 0 | BO23: 0 | BP23: 49.15560192 | BQ23: 216.6275945 | BR23: 31.43672216 | BS23: 0 | BT23: 0 | BU23: 0 | BV23: 160.0414946 | BW23: 0 | BX23: 64.01659785 | BY23: 0 | BZ23: 104.0269715 | CA23: 0 | CB23: 0 | CC23: 109.7427392 | CD23: 0 | CE23: 0 | CF23: 62.87344431 | CG23: 0 | CH23: 0 | CI23: 57.15767665 | CJ23: 0 | CK23: 310.9377609 | CL23: 114.8869301 | CM23: 0 | CN23: 0 | CO23: 0 | CP23: 0 | CQ23: 0 | CR23: 0 | CS23: 0 | CT23: 49.72717869 | CU23: 91.45228264 | CV23: 0 | CW23: 0 | CX23: 0 | CY23: 56.58609988 | CZ23: 83.45020791 | DA23: 0 | DB23: 0 | DC23: 80.0207473 | DD23: 0 | DE23: 0 | DF23: 0 | DG23: 0 | DH23: 0 | DI23: 0 | DJ23: 0 | DK23: 0 | DL23: 0 | DM23: 0 | DN23: 0 | DO23: 0 | DP23: 0 | DQ23: 0 | DR23: 0 | DS23: 0 | DT23: 0 | DU23: 0 | DV23: 0 | DW23: 0 | DX23: 0 | DY23: 0 | DZ23: 0 | EA23: 0 | EB23: 0 | EC23: 0 | ED23: 0 | EE23: 0 | EF23: 0 | EG23: 0 | EH23: 0 | EI23: 0 | EJ23: 0 | EK23: 64.01659785 | EL23: 0 | EM23: 0 | EN23: 0 | EO23: 0 | EP23: 0 | EQ23: 0 | ER23: 0 | ES23: 20.00518683 | ET23: 0 | EU23: 0 | EV23: 0 | EW23: 0 | EX23: 0 | EY23: 0 | EZ23: 0 | FA23: 0 | FB23: 0 | FC23: 0 | FD23: 0 | FE23: 0 | FF23: 0 | FG23: 28.00726156
A24: 1 | D24: Subtransmission Lines | E24: Subtrans 2-4.5% Growth | F24: 71.77100115 | G24: 1.714055188 | H24: 3.611001517 | I24: 113.4064225 | J24: 16.74315781 | K24: 1 | L24: 0 | M24: 0 | N24: 0 | O24: 0 | P24: 0 | Q24: 0 | R24: 0 | S24: 0 | T24: 0 | U24: 0 | V24: 0 | W24: 0 | X24: 0 | Y24: 0 | Z24: 0 | AA24: 0 | AB24: 0 | AC24: 0 | AD24: 117.7448139 | AE24: 0 | AF24: 0 | AG24: 0 | AH24: 0 | AI24: 0 | AJ24: 0 | AK24: 0 | AL24: 0 | AM24: 0 | AN24: 0 | AO24: 104.0269715 | AP24: 38.29564336 | AQ24: 0 | AR24: 0 | AS24: 0 | AT24: 135.4636937 | AU24: 0 | AV24: 104.5985483 | AW24: 0 | AX24: 0 | AY24: 0 | AZ24: 0 | BA24: 0 | BB24: 0 | BC24: 0 | BD24: 97.1680503 | BE24: 104.0269715 | BF24: 0 | BG24: 0 | BH24: 0 | BI24: 0 | BJ24: 0 | BK24: 0 | BL24: 0 | BM24: 0 | BN24: 0 | BO24: 0 | BP24: 0 | BQ24: 0 | BR24: 0 | BS24: 0 | BT24: 0 | BU24: 0 | BV24: 0 | BW24: 0 | BX24: 0 | BY24: 0 | BZ24: 135.4636937 | CA24: 270.9273874 | CB24: 104.0269715 | CC24: 179.4751047 | CD24: 0 | CE24: 0 | CF24: 0 | CG24: 121.7458513 | CH24: 148.0383826 | CI24: 0 | CJ24: 104.0269715 | CK24: 0 | CL24: 0 | CM24: 135.4636937 | CN24: 54.87136958 | CO24: 184.6192956 | CP24: 0 | CQ24: 49.15560192 | CR24: 0 | CS24: 116.6016604 | CT24: 0 | CU24: 74.30497964 | CV24: 0 | CW24: 74.30497964 | CX24: 0 | CY24: 160.0414946 | CZ24: 0 | DA24: 0 | DB24: 0 | DC24: 0 | DD24: 0 | DE24: 0 | DF24: 0 | DG24: 0 | DH24: 0 | DI24: 38.86722012 | DJ24: 0 | DK24: 0 | DL24: 0 | DM24: 0 | DN24: 0 | DO24: 101.7406644 | DP24: 0 | DQ24: 0 | DR24: 0 | DS24: 0 | DT24: 0 | DU24: 0 | DV24: 0 | DW24: 0 | DX24: 0 | DY24: 0 | DZ24: 26.29253126 | EA24: 78.87759378 | EB24: 0 | EC24: 0 | ED24: 0 | EE24: 0 | EF24: 0 | EG24: 0 | EH24: 0 | EI24: 0 | EJ24: 0 | EK24: 0 | EL24: 0 | EM24: 0 | EN24: 0 | EO24: 0 | EP24: 0 | EQ24: 0 | ER24: 0 | ES24: 0 | ET24: 0 | EU24: 78.87759378 | EV24: 0 | EW24: 0 | EX24: 0 | EY24: 0 | EZ24: 0 | FA24: 0 | FB24: 0 | FC24: 0 | FD24: 0 | FE24: 0 | FF24: 0 | FG24: 0
A25: 1 | D25: Subtransmission Lines | E25: Subtrans 4.5% Growth | F25: 71.77100115 | G25: 1.714055188 | H25: 5.137296123 | I25: 113.4064225 | J25: 16.74315781 | K25: 1 | L25: 0 | M25: 0 | N25: 0 | O25: 0 | P25: 0 | Q25: 0 | R25: 0 | S25: 0 | T25: 0 | U25: 0 | V25: 0 | W25: 0 | X25: 0 | Y25: 0 | Z25: 0 | AA25: 0 | AB25: 0 | AC25: 0 | AD25: 0 | AE25: 0 | AF25: 0 | AG25: 0 | AH25: 0 | AI25: 0 | AJ25: 0 | AK25: 0 | AL25: 0 | AM25: 0 | AN25: 0 | AO25: 0 | AP25: 0 | AQ25: 0 | AR25: 0 | AS25: 0 | AT25: 0 | AU25: 135.4636937 | AV25: 0 | AW25: 0 | AX25: 0 | AY25: 0 | AZ25: 65.15975138 | BA25: 0 | BB25: 0 | BC25: 0 | BD25: 0 | BE25: 0 | BF25: 104.0269715 | BG25: 0 | BH25: 0 | BI25: 0 | BJ25: 0 | BK25: 0 | BL25: 0 | BM25: 0 | BN25: 0 | BO25: 0 | BP25: 0 | BQ25: 0 | BR25: 0 | BS25: 0 | BT25: 0 | BU25: 0 | BV25: 0 | BW25: 40.01037365 | BX25: 0 | BY25: 117.1732371 | BZ25: 0 | CA25: 0 | CB25: 0 | CC25: 0 | CD25: 0 | CE25: 0 | CF25: 0 | CG25: 0 | CH25: 0 | CI25: 0 | CJ25: 0 | CK25: 0 | CL25: 0 | CM25: 0 | CN25: 117.1732371 | CO25: 252.6369308 | CP25: 0 | CQ25: 148.0383826 | CR25: 120.031121 | CS25: 0 | CT25: 0 | CU25: 116.6016604 | CV25: 0 | CW25: 0 | CX25: 0 | CY25: 0 | CZ25: 0 | DA25: 0 | DB25: 94.31016647 | DC25: 32.57987569 | DD25: 38.86722012 | DE25: 0 | DF25: 0 | DG25: 0 | DH25: 0 | DI25: 0 | DJ25: 0 | DK25: 0 | DL25: 0 | DM25: 0 | DN25: 0 | DO25: 38.29564336 | DP25: 0 | DQ25: 0 | DR25: 0 | DS25: 0 | DT25: 0 | DU25: 0 | DV25: 0 | DW25: 0 | DX25: 0 | DY25: 0 | DZ25: 0 | EA25: 0 | EB25: 0 | EC25: 0 | ED25: 0 | EE25: 0 | EF25: 0 | EG25: 0 | EH25: 0 | EI25: 0 | EJ25: 0 | EK25: 0 | EL25: 0 | EM25: 0 | EN25: 0 | EO25: 0 | EP25: 0 | EQ25: 78.87759378 | ER25: 0 | ES25: 0 | ET25: 78.87759378 | EU25: 0 | EV25: 0 | EW25: 0 | EX25: 0 | EY25: 0 | EZ25: 0 | FA25: 0 | FB25: 0 | FC25: 0 | FD25: 0 | FE25: 0 | FF25: 0 | FG25: 78.30601701
A28: 2 | D28: HV Feeders | E28: HV Feeders - Rural Short | F28: 141.9963454 | G28: 2.320675105 | H28: 1.770229008 | I28: 86.13333333 | J28: 12.09398457 | K28: 1 | L28: 0 | M28: 49.81118315 | N28: 0 | O28: 40.08311979 | P28: 0 | Q28: 11.45231994 | R28: 0 | S28: 0 | T28: 0 | U28: 9.162548772 | V28: 0 | W28: 9.162548772 | X28: 0 | Y28: 15.99375716 | Z28: 0 | AA28: 0 | AB28: 9.162548772 | AC28: 11.47241173 | AD28: 0 | AE28: 0 | AF28: 31.92169638 | AG28: 18.72346923 | AH28: 0 | AI28: 0 | AJ28: 17.17847991 | AK28: 0 | AL28: 15.13812406 | AM28: 0 | AN28: 0 | AO28: 12.15033642 | AP28: 0 | AQ28: 0 | AR28: 0 | AS28: 6.318521346 | AT28: 11.25486615 | AU28: 0 | AV28: 0 | AW28: 11.61028297 | AX28: 17.17847991 | AY28: 0 | AZ28: 0 | BA28: 0 | BB28: 0 | BC28: 0 | BD28: 28.27226533 | BE28: 15.93486743 | BF28: 0 | BG28: 12.83449648 | BH28: 22.16678624 | BI28: 0 | BJ28: 37.33158388 | BK28: 39.56350455 | BL28: 0 | BM28: 0 | BN28: 0 | BO28: 36.25355545 | BP28: 14.41412682 | BQ28: 23.79318194 | BR28: 25.33470716 | BS28: 30.7633008 | BT28: 9.162548772 | BU28: 4.73889101 | BV28: 3.983716857 | BW28: 14.41412682 | BX28: 35.67851459 | BY28: 79.80164288 | BZ28: 0 | CA28: 49.79386264 | CB28: 10.85995856 | CC28: 48.11117528 | CD28: 38.76676118 | CE28: 32.04640404 | CF28: 37.45126859 | CG28: 0 | CH28: 40.24108282 | CI28: 8.639469428 | CJ28: 11.14133022 | CK28: 12.24213511 | CL28: 22.70718609 | CM28: 71.69651113 | CN28: 33.09342875 | CO28: 0 | CP28: 11.25486615 | CQ28: 10.0701434 | CR28: 42.51180143 | CS28: 13.87779729 | CT28: 21.91737092 | CU28: 23.06260291 | CV28: 0 | CW28: 58.50988872 | CX28: 0 | CY28: 29.21103687 | CZ28: 0 | DA28: 10.75603552 | DB28: 0 | DC28: 38.73298618 | DD28: 7.898151683 | DE28: 0 | DF28: 11.40209047 | DG28: 15.96154101 | DH28: 0 | DI28: 0 | DJ28: 0 | DK28: 0 | DL28: 0 | DM28: 0 | DN28: 0 | DO28: 0 | DP28: 21.32500954 | DQ28: 0 | DR28: 11.35359304 | DS28: 0 | DT28: 8.095605475 | DU28: 0 | DV28: 0 | DW28: 0 | DX28: 6.910882722 | DY28: 11.45231994 | DZ28: 0 | EA28: 0 | EB28: 0 | EC28: 0 | ED28: 0 | EE28: 0 | EF28: 0 | EG28: 0 | EH28: 0 | EI28: 0 | EJ28: 0 | EK28: 9.082874435 | EL28: 0 | EM28: 0 | EN28: 0 | EO28: 0 | EP28: 0 | EQ28: 0 | ER28: 0 | ES28: 0 | ET28: 0 | EU28: 0 | EV28: 0 | EW28: 0 | EX28: 0 | EY28: 0 | EZ28: 0 | FA28: 0 | FB28: 0 | FC28: 0 | FD28: 0 | FE28: 0 | FF28: 0 | FG28: 0
A29: 2 | D29: HV Feeders | E29: HV Feeders - Rural Long | F29: 103.3734112 | G29: 0.7115987461 | H29: 1.032843137 | I29: 107 | J29: 12.09398457 | K29: 1 | L29: 0 | M29: 0 | N29: 0 | O29: 0 | P29: 0 | Q29: 11.45231994 | R29: 0 | S29: 0 | T29: 0 | U29: 0 | V29: 0 | W29: 17.77084129 | X29: 0 | Y29: 0 | Z29: 7.794228634 | AA29: 0 | AB29: 0 | AC29: 0 | AD29: 7.898151683 | AE29: 16.38935756 | AF29: 0 | AG29: 0 | AH29: 0 | AI29: 0 | AJ29: 0 | AK29: 0 | AL29: 0 | AM29: 0 | AN29: 10.66250477 | AO29: 0 | AP29: 28.55805372 | AQ29: 9.162548772 | AR29: 0 | AS29: 27.68683216 | AT29: 23.50392946 | AU29: 0 | AV29: 6.9715045 | AW29: 0 | AX29: 0 | AY29: 22.66734892 | AZ29: 18.24542321 | BA29: 11.35359304 | BB29: 14.41412682 | BC29: 6.9715045 | BD29: 40.32006434 | BE29: 0 | BF29: 0 | BG29: 0 | BH29: 9.162548772 | BI29: 14.41412682 | BJ29: 0 | BK29: 0 | BL29: 9.082874435 | BM29: 36.37618465 | BN29: 0 | BO29: 0 | BP29: 24.61867736 | BQ29: 22.10962856 | BR29: 18.24542321 | BS29: 17.67211439 | BT29: 0 | BU29: 12.8587452 | BV29: 10.66250477 | BW29: 14.41412682 | BX29: 9.162548772 | BY29: 0 | BZ29: 23.29954746 | CA29: 22.70718609 | CB29: 7.898151683 | CC29: 22.8234067 | CD29: 31.77100796 | CE29: 9.162548772 | CF29: 18.067888 | CG29: 0 | CH29: 21.84670325 | CI29: 7.898151683 | CJ29: 7.898151683 | CK29: 17.83146306 | CL29: 7.898151683 | CM29: 31.5200338 | CN29: 17.93919662 | CO29: 18.1259117 | CP29: 12.15033642 | CQ29: 0 | CR29: 0 | CS29: 33.47257468 | CT29: 0 | CU29: 0 | CV29: 7.898151683 | CW29: 21.96179802 | CX29: 11.99185377 | CY29: 22.261183 | CZ29: 0 | DA29: 4.510260303 | DB29: 0 | DC29: 31.29296194 | DD29: 0 | DE29: 0 | DF29: 8.102706883 | DG29: 0 | DH29: 0 | DI29: 0 | DJ29: 19.15301783 | DK29: 9.082874435 | DL29: 11.25486615 | DM29: 10.66250477 | DN29: 7.898151683 | DO29: 6.121067554 | DP29: 0 | DQ29: 11.35359304 | DR29: 4.73889101 | DS29: 0 | DT29: 0 | DU29: 8.166619558 | DV29: 0 | DW29: 0 | DX29: 20.33774058 | DY29: 0 | DZ29: 0 | EA29: 0 | EB29: 0 | EC29: 0 | ED29: 0 | EE29: 0 | EF29: 0 | EG29: 0 | EH29: 0 | EI29: 0 | EJ29: 0 | EK29: 0 | EL29: 0 | EM29: 0 | EN29: 0 | EO29: 0 | EP29: 0 | EQ29: 0 | ER29: 0 | ES29: 0 | ET29: 0 | EU29: 0 | EV29: 0 | EW29: 0 | EX29: 0 | EY29: 0 | EZ29: 0 | FA29: 0 | FB29: 0 | FC29: 0 | FD29: 0 | FE29: 0 | FF29: 0 | FG29: 0
A30: 2 | D30: HV Feeders | E30: HV Feeders - Urban | F30: 108.1319748 | G30: 0.6413301663 | H30: 1.515432099 | I30: 74.705 | J30: 12.09398457 | K30: 1 | L30: 0 | M30: 0 | N30: 0 | O30: 0 | P30: 19.35047162 | Q30: 0 | R30: 0 | S30: 48.96854043 | T30: 0 | U30: 0 | V30: 0 | W30: 0 | X30: 16.14704365 | Y30: 0 | Z30: 11.25486615 | AA30: 5.975575286 | AB30: 10.0701434 | AC30: 0 | AD30: 6.9715045 | AE30: 0 | AF30: 20.92057568 | AG30: 11.64977373 | AH30: 0 | AI30: 59.6310452 | AJ30: 0 | AK30: 14.41412682 | AL30: 11.45231994 | AM30: 0 | AN30: 0 | AO30: 45.7017194 | AP30: 0 | AQ30: 0 | AR30: 0 | AS30: 34.15604193 | AT30: 0 | AU30: 80.82008876 | AV30: 19.6804273 | AW30: 14.41412682 | AX30: 46.52375072 | AY30: 0 | AZ30: 23.19735647 | BA30: 32.57987569 | BB30: 0 | BC30: 0 | BD30: 0 | BE30: 33.42165238 | BF30: 34.15950603 | BG30: 40.01730186 | BH30: 50.29442532 | BI30: 0 | BJ30: 0 | BK30: 0 | BL30: 64.16053127 | BM30: 40.34552549 | BN30: 46.23856855 | BO30: 79.03694245 | BP30: 11.35359304 | BQ30: 19.80773304 | BR30: 32.39541228 | BS30: 98.88555189 | BT30: 49.79819277 | BU30: 11.45231994 | BV30: 29.22316123 | BW30: 36.33149774 | BX30: 48.95503044 | BY30: 32.04727007 | BZ30: 23.89190884 | CA30: 10.75603552 | CB30: 49.49110016 | CC30: 106.5488375 | CD30: 63.37833713 | CE30: 40.43368687 | CF30: 23.90230114 | CG30: 22.80591298 | CH30: 19.39896904 | CI30: 12.67653345 | CJ30: 63.32663541 | CK30: 25.66899297 | CL30: 41.82071316 | CM30: 48.29823677 | CN30: 0 | CO30: 0 | CP30: 33.36449471 | CQ30: 9.675235811 | CR30: 37.43723898 | CS30: 11.45231994 | CT30: 24.8791778 | CU30: 39.92896727 | CV30: 42.2551115 | CW30: 11.80773677 | CX30: 7.898151683 | CY30: 0 | CZ30: 0 | DA30: 12.04468132 | DB30: 12.63704269 | DC30: 0 | DD30: 12.00519056 | DE30: 7.898151683 | DF30: 0 | DG30: 7.898151683 | DH30: 9.937641508 | DI30: 0 | DJ30: 0 | DK30: 11.25486615 | DL30: 0 | DM30: 8.8464495 | DN30: 0 | DO30: 0 | DP30: 0 | DQ30: 0 | DR30: 0 | DS30: 0 | DT30: 0 | DU30: 0 | DV30: 0 | DW30: 0 | DX30: 0 | DY30: 0 | DZ30: 0 | EA30: 0 | EB30: 0 | EC30: 0 | ED30: 0 | EE30: 0 | EF30: 0 | EG30: 0 | EH30: 0 | EI30: 0 | EJ30: 0 | EK30: 0 | EL30: 0 | EM30: 0 | EN30: 0 | EO30: 0 | EP30: 0 | EQ30: 0 | ER30: 0 | ES30: 0 | ET30: 0 | EU30: 0 | EV30: 0 | EW30: 0 | EX30: 0 | EY30: 0 | EZ30: 0 | FA30: 0 | FB30: 0 | FC30: 0 | FD30: 0 | FE30: 0 | FF30: 0 | FG30: 6.040527191
D31: =IF(A31>0,VLOOKUP(A31,IDtable,2),"") -> 
A33: 3 | D33: Zone Substation | E33: ZSS Urban | F33: 231.8643595 | G33: 0.4733200425 | H33: 3.374609894 | I33: 82.92685702 | J33: 30.49999288 | K33: 1 | L33: 0 | M33: 0 | N33: 0 | O33: 0 | P33: 0 | Q33: 30 | R33: 0 | S33: 0 | T33: 0 | U33: 0 | V33: 0 | W33: 0 | X33: 0 | Y33: 0 | Z33: 0 | AA33: 0 | AB33: 0 | AC33: 0 | AD33: 0 | AE33: 0 | AF33: 0 | AG33: 0 | AH33: 0 | AI33: 0 | AJ33: 0 | AK33: 0 | AL33: 0 | AM33: 0 | AN33: 0 | AO33: 0 | AP33: 0 | AQ33: 0 | AR33: 0 | AS33: 42 | AT33: 0 | AU33: 0 | AV33: 0 | AW33: 0 | AX33: 37.6 | AY33: 0 | AZ33: 32.5 | BA33: 0 | BB33: 34.3 | BC33: 0 | BD33: 0 | BE33: 0 | BF33: 0 | BG33: 0 | BH33: 0 | BI33: 0 | BJ33: 0 | BK33: 0 | BL33: 0 | BM33: 0 | BN33: 77.8 | BO33: 34.2 | BP33: 0 | BQ33: 0 | BR33: 0 | BS33: 0 | BT33: 0 | BU33: 87.1 | BV33: 0 | BW33: 65.1 | BX33: 0 | BY33: 0 | BZ33: 96.4 | CA33: 0 | CB33: 0 | CC33: 0 | CD33: 0 | CE33: 89.7 | CF33: 0 | CG33: 47.6 | CH33: 0 | CI33: 38.5 | CJ33: 0 | CK33: 79.7 | CL33: 0 | CM33: 0 | CN33: 0 | CO33: 0 | CP33: 0 | CQ33: 0 | CR33: 0 | CS33: 77.9 | CT33: 0 | CU33: 0 | CV33: 0 | CW33: 0 | CX33: 0 | CY33: 0 | CZ33: 0 | DA33: 0 | DB33: 156 | DC33: 82.8 | DD33: 36.7 | DE33: 0 | DF33: 0 | DG33: 0 | DH33: 0 | DI33: 0 | DJ33: 0 | DK33: 0 | DL33: 0 | DM33: 0 | DN33: 0 | DO33: 0 | DP33: 0 | DQ33: 0 | DR33: 0 | DS33: 0 | DT33: 0 | DU33: 0 | DV33: 0 | DW33: 0 | DX33: 0 | DY33: 0 | DZ33: 0 | EA33: 0 | EB33: 0 | EC33: 0 | ED33: 0 | EE33: 0 | EF33: 0 | EG33: 0 | EH33: 0 | EI33: 0 | EJ33: 0 | EK33: 0 | EL33: 0 | EM33: 0 | EN33: 0 | EO33: 0 | EP33: 0 | EQ33: 0 | ER33: 0 | ES33: 0 | ET33: 0 | EU33: 0 | EV33: 0 | EW33: 0 | EX33: 0 | EY33: 0 | EZ33: 0 | FA33: 0 | FB33: 0 | FC33: 0 | FD33: 0 | FE33: 0 | FF33: 0 | FG33: 0
A34: 3 | D34: Zone Substation | E34: ZSS Rural | F34: 231.8643595 | G34: 0.4733200425 | H34: 2.83359782 | I34: 79.32171007 | J34: 30.49999288 | K34: 1 | L34: 0 | M34: 0 | N34: 0 | O34: 0 | P34: 0 | Q34: 0 | R34: 0 | S34: 0 | T34: 36.9 | U34: 0 | V34: 0 | W34: 0 | X34: 0 | Y34: 0 | Z34: 0 | AA34: 0 | AB34: 0 | AC34: 0 | AD34: 0 | AE34: 0 | AF34: 0 | AG34: 0 | AH34: 0 | AI34: 0 | AJ34: 0 | AK34: 0 | AL34: 0 | AM34: 0 | AN34: 0 | AO34: 0 | AP34: 49.5 | AQ34: 0 | AR34: 36.6 | AS34: 0 | AT34: 15.2 | AU34: 43 | AV34: 0 | AW34: 0 | AX34: 17.2 | AY34: 0 | AZ34: 0 | BA34: 87.2 | BB34: 0 | BC34: 0 | BD34: 0 | BE34: 38.3 | BF34: 47.2 | BG34: 0 | BH34: 0 | BI34: 0 | BJ34: 0 | BK34: 0 | BL34: 0 | BM34: 0 | BN34: 15.2 | BO34: 46.2 | BP34: 50.4 | BQ34: 15 | BR34: 0 | BS34: 0 | BT34: 0 | BU34: 0 | BV34: 22.1 | BW34: 0 | BX34: 0 | BY34: 0 | BZ34: 0 | CA34: 37 | CB34: 18.5 | CC34: 0 | CD34: 0 | CE34: 0 | CF34: 0 | CG34: 76 | CH34: 33.8 | CI34: 30.5 | CJ34: 0 | CK34: 0 | CL34: 0 | CM34: 58.8 | CN34: 34.2 | CO34: 0 | CP34: 0 | CQ34: 58.2 | CR34: 0 | CS34: 0 | CT34: 0 | CU34: 36.4 | CV34: 32.7 | CW34: 0 | CX34: 94.2 | CY34: 0 | CZ34: 0 | DA34: 16.4 | DB34: 53.8 | DC34: 0 | DD34: 0 | DE34: 0 | DF34: 0 | DG34: 39.7 | DH34: 0 | DI34: 0 | DJ34: 0 | DK34: 0 | DL34: 19.1 | DM34: 0 | DN34: 0 | DO34: 0 | DP34: 0 | DQ34: 18.8 | DR34: 0 | DS34: 0 | DT34: 0 | DU34: 0 | DV34: 0 | DW34: 0 | DX34: 0 | DY34: 0 | DZ34: 0 | EA34: 0 | EB34: 0 | EC34: 34.8 | ED34: 0 | EE34: 0 | EF34: 0 | EG34: 0 | EH34: 0 | EI34: 0 | EJ34: 0 | EK34: 0 | EL34: 0 | EM34: 0 | EN34: 0 | EO34: 0 | EP34: 0 | EQ34: 0 | ER34: 0 | ES34: 0 | ET34: 0 | EU34: 0 | EV34: 0 | EW34: 0 | EX34: 0 | EY34: 0 | EZ34: 20.4 | FA34: 0 | FB34: 0 | FC34: 0 | FD34: 0 | FE34: 0 | FF34: 0 | FG34: 0
A37: 4 | D37: Distribution Substations and LV Feeders | E37: DB Substations and LV | F37: 109 | G37: 1 | H37: 1.471265823 | I37: 137 | J37: 20 | K37: 1 | L37: 4.787404829 | M37: 4.787404829 | N37: 4.787404829 | O37: 4.787404829 | P37: 4.787404829 | Q37: 4.787404829 | R37: 4.787404829 | S37: 4.787404829 | T37: 4.787404829 | U37: 4.787404829 | V37: 4.787404829 | W37: 4.787404829 | X37: 4.787404829 | Y37: 4.787404829 | Z37: 4.787404829 | AA37: 4.787404829 | AB37: 4.787404829 | AC37: 4.787404829 | AD37: 4.787404829 | AE37: 4.787404829 | AF37: 20.90793787 | AG37: 20.90793787 | AH37: 20.90793787 | AI37: 20.90793787 | AJ37: 20.90793787 | AK37: 20.90793787 | AL37: 20.90793787 | AM37: 20.90793787 | AN37: 20.90793787 | AO37: 20.90793787 | AP37: 20.90793787 | AQ37: 20.90793787 | AR37: 20.90793787 | AS37: 20.90793787 | AT37: 20.90793787 | AU37: 20.90793787 | AV37: 20.90793787 | AW37: 20.90793787 | AX37: 20.90793787 | AY37: 20.90793787 | AZ37: 33.29037541 | BA37: 33.29037541 | BB37: 33.29037541 | BC37: 33.29037541 | BD37: 33.29037541 | BE37: 33.29037541 | BF37: 33.29037541 | BG37: 33.29037541 | BH37: 33.29037541 | BI37: 33.29037541 | BJ37: 33.29037541 | BK37: 33.29037541 | BL37: 33.29037541 | BM37: 33.29037541 | BN37: 33.29037541 | BO37: 33.29037541 | BP37: 33.29037541 | BQ37: 33.29037541 | BR37: 33.29037541 | BS37: 33.29037541 | BT37: 36.14021042 | BU37: 36.14021042 | BV37: 36.14021042 | BW37: 36.14021042 | BX37: 36.14021042 | BY37: 36.14021042 | BZ37: 36.14021042 | CA37: 36.14021042 | CB37: 36.14021042 | CC37: 36.14021042 | CD37: 36.14021042 | CE37: 36.14021042 | CF37: 36.14021042 | CG37: 36.14021042 | CH37: 36.14021042 | CI37: 36.14021042 | CJ37: 36.14021042 | CK37: 36.14021042 | CL37: 36.14021042 | CM37: 36.14021042 | CN37: 26.96858194 | CO37: 26.96858194 | CP37: 26.96858194 | CQ37: 26.96858194 | CR37: 26.96858194 | CS37: 26.96858194 | CT37: 26.96858194 | CU37: 26.96858194 | CV37: 26.96858194 | CW37: 26.96858194 | CX37: 26.96858194 | CY37: 26.96858194 | CZ37: 26.96858194 | DA37: 26.96858194 | DB37: 26.96858194 | DC37: 26.96858194 | DD37: 26.96858194 | DE37: 26.96858194 | DF37: 26.96858194 | DG37: 26.96858194 | DH37: 15.3499534 | DI37: 15.3499534 | DJ37: 15.3499534 | DK37: 15.3499534 | DL37: 15.3499534 | DM37: 15.3499534 | DN37: 15.3499534 | DO37: 15.3499534 | DP37: 15.3499534 | DQ37: 15.3499534 | DR37: 15.3499534 | DS37: 15.3499534 | DT37: 15.3499534 | DU37: 15.3499534 | DV37: 15.3499534 | DW37: 15.3499534 | DX37: 15.3499534 | DY37: 15.3499534 | DZ37: 15.3499534 | EA37: 15.3499534 | EB37: 7.40693791 | EC37: 7.40693791 | ED37: 7.40693791 | EE37: 7.40693791 | EF37: 7.40693791 | EG37: 7.40693791 | EH37: 7.40693791 | EI37: 7.40693791 | EJ37: 7.40693791 | EK37: 7.40693791 | EL37: 7.40693791 | EM37: 7.40693791 | EN37: 7.40693791 | EO37: 7.40693791 | EP37: 7.40693791 | EQ37: 7.40693791 | ER37: 7.40693791 | ES37: 7.40693791 | ET37: 7.40693791 | EU37: 7.40693791 | EV37: 4.278861442 | EW37: 4.278861442 | EX37: 4.278861442 | EY37: 4.278861442 | EZ37: 4.278861442 | FA37: 4.278861442 | FB37: 4.278861442 | FC37: 4.278861442 | FD37: 4.278861442 | FE37: 4.278861442 | FF37: 4.278861442 | FG37: 119.8713735
D56: =IF(A56>0,VLOOKUP(A56,IDtable,2),"") -> 
D60: =IF(A60>0,VLOOKUP(A60,IDtable,2),"") -> 
D62: =IF(A62>0,VLOOKUP(A62,IDtable,2),"") -> 
D85: =IF(A85>0,VLOOKUP(A85,IDtable,2),"") -> 
D149: =IF(A149>0,VLOOKUP(A149,IDtable,2),"") -> 

Sheet Utilisation profile summary
A1: Asset calcs | R1: Remaining utilisation | W1: AC ($ millions) | AB1: AC (%)
R2: very heavy | S2: heavy | T2: moderate | U2: light | V2: new | W2: =R2 -> very heavy | X2: =S2 -> heavy | Y2: moderate | Z2: light | AA2: new | AB2: very heavy | AC2: heavy | AD2: moderate | AE2: light | AF2: new
H3: (AC) | M3: WARU | O3: WAUth | Q3: WAU | R3: > | S3: > | T3: > | U3: > | V3: <=0.2 | W3: =R3 -> > | X3: > | Y3: > | Z3: > | AA3: <=0.2 | AB3: > | AC3: > | AD3: > | AE3: > | AF3: <=0.2
F4: Capacity | G4: Unit | H4: Aug cost | I4: prop total | J4: Rank | K4: prop cat | L4: AC / unit | M4: (% Util) | O4: (% Util) | Q4: % Uth | R4: =W4 -> 1 | S4: =X4 -> 0.85 | T4: =Y4 -> 0.5 | U4: =Z4 -> 0.2 | W4: 1 | X4: 0.85 | Y4: 0.5 | Z4: 0.2 | AA4: 0 | AB4: 1 | AC4: 0.85 | AD4: 0.5 | AE4: 0.2 | AF4: 0 | AG4: Uth | AH4: Uth | AI4: Uth
G5: Cost | H5: $ millions | I5: % | J5: total | K5: % | L5: $ ('000) | AG5: max | AH5: min
A6: 1 | D6: =VLOOKUP(A6,IDtable,2) -> Subtransmission Lines | F6: =SUMIF($A$21:$A$205,$A6,F$21:F$205) -> 8837.148387 | H6: =SUMIF($A$21:$A$205,$A6,H$21:H$205)/1000 -> 634.2509871 | I6: =H6/($H$18) -> 0.3061577657 | J6: =RANK(I6,I$6:I$17) -> 1 | L6: =H6*1000/(F6+0.001) -> 71.77099303 | M6: =SUMIF($A$21:$A$205,$A6,N$21:N$205)/(H6*1000+0.000001) -> 45.93076127 | O6: =SUMIF($A$21:$A$205,$A6,P$21:P$205)/(H6*1000+0.000001) -> 113.4064225 | Q6: =(O6-M6)/(O6+0.000001) -> 0.5949897647 | R6: =$O6-R$4*$O6 -> 0 | S6: =$O6-S$4*$O6 -> 17.01096338 | T6: =$O6-T$4*$O6 -> 56.70321126 | U6: =$O6-U$4*$O6 -> 90.72513802 | V6: =$O6-V$4*$O6 -> 113.4064225 | W6: =SUMIF($A$21:$A$205,$A6,W$21:W$205)/1000 -> 38.19207483 | X6: 15.62962461 | Y6: 369.4088441 | Z6: 181.0328961 | AA6: 29.98754748 | AB6: =IF($H6=0,0,W6/$H6) -> 0.06021602742 | AC6: =IF($H6=0,0,X6/$H6) -> 0.02464264924 | AD6: =IF($H6=0,0,Y6/$H6) -> 0.5824332191 | AE6: =IF($H6=0,0,Z6/$H6) -> 0.2854278507 | AF6: =IF($H6=0,0,AA6/$H6) -> 0.04728025354 | AG6: =MAX(IF($A$21:$A$205=$A6,$O$21:$O$205)) -> 113.4064225 | AH6: =MIN(IF($A$21:$A$205=$A6,$O$21:$O$205)) -> 113.4064225 | AI6: =IF(H6=0,0,SUMIF($A$21:$A$205,$A6,$AJ$21:$AJ$205)/(H6*1000)) -> 0
A7: 2 | D7: HV Feeders | F7: =SUMIF($A$21:$A$205,$A7,F$21:F$205) -> 4673.5571 | H7: =SUMIF($A$21:$A$205,$A7,H$21:H$205)/1000 -> 551.7724947 | I7: =H7/($H$18) -> 0.2663447713 | J7: 2 | L7: 118.0626158 | M7: 24.0684395 | O7: 85.26209284 | Q7: 0.7177122984 | R7: =$O7-R$4*$O7 -> 0 | S7: 12.78931393 | T7: 42.63104642 | U7: 68.20967427 | V7: 85.26209284 | W7: 99.77076716 | X7: 99.99353093 | Y7: 226.7884592 | Z7: 87.96689804 | AA7: 37.2528393 | AB7: =IF($H7=0,0,W7/$H7) -> 0.1808186673 | AC7: =IF($H7=0,0,X7/$H7) -> 0.1812223913 | AD7: =IF($H7=0,0,Y7/$H7) -> 0.411018058 | AE7: =IF($H7=0,0,Z7/$H7) -> 0.1594260295 | AF7: =IF($H7=0,0,AA7/$H7) -> 0.06751485378 | AG7: =MAX(IF($A$21:$A$205=$A7,$O$21:$O$205)) -> 107 | AH7: =MIN(IF($A$21:$A$205=$A7,$O$21:$O$205)) -> 74.705 | AI7: =IF(H7=0,0,SUMIF($A$21:$A$205,$A7,$AJ$21:$AJ$205)/(H7*1000)) -> 0
A8: 3 | D8: Zone Substation | F8: 2379.2 | H8: 551.6516841 | I8: 0.2662864551 | J8: 3 | L8: 231.864262 | M8: 11.86663584 | O8: 81.05806594 | Q8: 0.8536032589 | R8: 0 | S8: 12.15870989 | T8: 40.52903297 | U8: 64.84645275 | V8: 81.05806594 | W8: 201.9306707 | X8: 104.6403854 | Y8: 166.1308136 | Z8: 63.43808875 | AA8: 15.51172565 | AB8: 0.3660474109 | AC8: 0.1896856086 | AD8: 0.3011516476 | AE8: 0.1149966375 | AF8: 0.02811869536 | AG8: =MAX(IF($A$21:$A$205=$A8,$O$21:$O$205)) -> 82.92685702 | AH8: =MIN(IF($A$21:$A$205=$A8,$O$21:$O$205)) -> 79.32171007 | AI8: 0
A9: 4 | D9: Distribution Substations and LV Feeders | F9: 3063.966885 | H9: 333.9723905 | I9: 0.1612110079 | J9: 4 | L9: 108.9999644 | M9: 63.90223607 | O9: 137 | Q9: 0.5335603168 | R9: 0 | S9: 20.55 | T9: 68.5 | U9: 109.6 | V9: 137 | W9: 20.61840328 | X9: 20.41763563 | Y9: 128.8939397 | Z9: 137.6531128 | AA9: 26.38929912 | AB9: 0.06173684971 | AC9: 0.06113569927 | AD9: 0.3859419022 | AE9: 0.4121691395 | AF9: 0.07901640937 | AG9: =MAX(IF($A$21:$A$205=$A9,$O$21:$O$205)) -> 137 | AH9: =MIN(IF($A$21:$A$205=$A9,$O$21:$O$205)) -> 137 | AI9: 0
A10: 5 | D10: 0 | F10: 0 | H10: 0 | I10: 0 | J10: 5 | L10: 0 | M10: 0 | O10: 0 | Q10: 0 | R10: 0 | S10: 0 | T10: 0 | U10: 0 | V10: 0 | W10: 0 | X10: 0 | Y10: 0 | Z10: 0 | AA10: 0 | AB10: 0 | AC10: 0 | AD10: 0 | AE10: 0 | AF10: 0 | AG10: =MAX(IF($A$21:$A$205=$A10,$O$21:$O$205)) -> 0 | AH10: =MIN(IF($A$21:$A$205=$A10,$O$21:$O$205)) -> 0 | AI10: 0
A11: 6 | D11: 0 | F11: 0 | H11: 0 | I11: 0 | J11: 5 | L11: 0 | M11: 0 | O11: 0 | Q11: 0 | R11: 0 | S11: 0 | T11: 0 | U11: 0 | V11: 0 | W11: 0 | X11: 0 | Y11: 0 | Z11: 0 | AA11: 0 | AB11: 0 | AC11: 0 | AD11: 0 | AE11: 0 | AF11: 0 | AG11: =MAX(IF($A$21:$A$205=$A11,$O$21:$O$205)) -> 0 | AH11: =MIN(IF($A$21:$A$205=$A11,$O$21:$O$205)) -> 0 | AI11: 0
A12: 7 | D12: 0 | F12: 0 | H12: 0 | I12: 0 | J12: 5 | L12: 0 | M12: 0 | O12: 0 | Q12: 0 | R12: 0 | S12: 0 | T12: 0 | U12: 0 | V12: 0 | W12: 0 | X12: 0 | Y12: 0 | Z12: 0 | AA12: 0 | AB12: 0 | AC12: 0 | AD12: 0 | AE12: 0 | AF12: 0 | AG12: =MAX(IF($A$21:$A$205=$A12,$O$21:$O$205)) -> 0 | AH12: =MIN(IF($A$21:$A$205=$A12,$O$21:$O$205)) -> 0 | AI12: 0
A13: 8 | D13: 0 | F13: 0 | H13: 0 | I13: 0 | J13: 5 | L13: 0 | M13: 0 | O13: 0 | Q13: 0 | R13: 0 | S13: 0 | T13: 0 | U13: 0 | V13: 0 | W13: 0 | X13: 0 | Y13: 0 | Z13: 0 | AA13: 0 | AB13: 0 | AC13: 0 | AD13: 0 | AE13: 0 | AF13: 0 | AG13: =MAX(IF($A$21:$A$205=$A13,$O$21:$O$205)) -> 0 | AH13: =MIN(IF($A$21:$A$205=$A13,$O$21:$O$205)) -> 0 | AI13: 0
A14: 9 | D14: =VLOOKUP(A14,IDtable,2) -> 0 | F14: =SUMIF($A$21:$A$205,$A14,F$21:F$205) -> 0 | H14: =SUMIF($A$21:$A$205,$A14,H$21:H$205)/1000 -> 0 | I14: =H14/($H$18) -> 0 | J14: 5 | L14: 0 | M14: 0 | O14: 0 | Q14: 0 | R14: =$O14-R$4*$O14 -> 0 | S14: 0 | T14: 0 | U14: 0 | V14: 0 | W14: 0 | X14: 0 | Y14: 0 | Z14: 0 | AA14: 0 | AB14: 0 | AC14: 0 | AD14: 0 | AE14: 0 | AF14: 0 | AG14: =MAX(IF($A$21:$A$205=$A14,$O$21:$O$205)) -> 0 | AH14: =MIN(IF($A$21:$A$205=$A14,$O$21:$O$205)) -> 0 | AI14: 0
A15: 10 | D15: =VLOOKUP(A15,IDtable,2) -> 0 | F15: =SUMIF($A$21:$A$205,$A15,F$21:F$205) -> 0 | H15: =SUMIF($A$21:$A$205,$A15,H$21:H$205)/1000 -> 0 | I15: =H15/($H$18) -> 0 | J15: 5 | L15: 0 | M15: 0 | O15: 0 | Q15: 0 | R15: 0 | S15: 0 | T15: 0 | U15: 0 | V15: 0 | W15: 0 | X15: 0 | Y15: 0 | Z15: 0 | AA15: 0 | AB15: 0 | AC15: 0 | AD15: 0 | AE15: 0 | AF15: 0 | AG15: =MAX(IF($A$21:$A$205=$A15,$O$21:$O$205)) -> 0 | AH15: =MIN(IF($A$21:$A$205=$A15,$O$21:$O$205)) -> 0 | AI15: 0
A16: 11 | D16: =VLOOKUP(A16,IDtable,2) -> 0 | F16: =SUMIF($A$21:$A$205,$A16,F$21:F$205) -> 0 | H16: =SUMIF($A$21:$A$205,$A16,H$21:H$205)/1000 -> 0 | I16: =H16/($H$18) -> 0 | J16: 5 | L16: 0 | M16: 0 | O16: 0 | Q16: 0 | R16: 0 | S16: 0 | T16: 0 | U16: 0 | V16: 0 | W16: 0 | X16: 0 | Y16: 0 | Z16: 0 | AA16: 0 | AB16: 0 | AC16: 0 | AD16: 0 | AE16: 0 | AF16: 0 | AG16: =MAX(IF($A$21:$A$205=$A16,$O$21:$O$205)) -> 0 | AH16: =MIN(IF($A$21:$A$205=$A16,$O$21:$O$205)) -> 0 | AI16: 0
A17: 12 | D17: =VLOOKUP(A17,IDtable,2) -> 0 | F17: =SUMIF($A$21:$A$205,$A17,F$21:F$205) -> 0 | H17: =SUMIF($A$21:$A$205,$A17,H$21:H$205)/1000 -> 0 | I17: =H17/($H$18) -> 0 | J17: =RANK(I17,I$6:I$17) -> 5 | L17: =H17*1000/(F17+0.001) -> 0 | M17: =SUMIF($A$21:$A$205,$A17,N$21:N$205)/(H17*1000+0.000001) -> 0 | O17: =SUMIF($A$21:$A$205,$A17,P$21:P$205)/(H17*1000+0.000001) -> 0 | Q17: =(O17-M17)/(O17+0.000001) -> 0 | R17: 0 | S17: 0 | T17: 0 | U17: 0 | V17: 0 | W17: 0 | X17: 0 | Y17: 0 | Z17: 0 | AA17: 0 | AB17: 0 | AC17: 0 | AD17: 0 | AE17: 0 | AF17: 0 | AG17: =MAX(IF($A$21:$A$205=$A17,$O$21:$O$205)) -> 0 | AH17: =MIN(IF($A$21:$A$205=$A17,$O$21:$O$205)) -> 0 | AI17: 0
D18: Total | F18: =SUM(F6:F17) -> 18953.87237 | H18: =SUM(H6:H17) -> 2071.647556 | L18: 109.29943 | M18: =SUMPRODUCT(M6:M17,$H6:$H17)/$H18 -> 33.93423054 | O18: =SUMPRODUCT(O6:O17,$H6:$H17)/$H18 -> 101.0999427 | Q18: =SUMPRODUCT(Q6:Q17,$H6:$H17)/$H18 -> 0.6866384373 | W18: =SUM(W6:W17) -> 360.5119159 | X18: =SUM(X6:X17) -> 240.6811766 | Y18: =SUM(Y6:Y17) -> 891.2220566 | Z18: =SUM(Z6:Z17) -> 470.0909956 | AA18: =SUM(AA6:AA17) -> 109.1414116 | AB18: =W18/$H18 -> 0.1740218382 | AC18: =X18/$H18 -> 0.1161786308 | AD18: =Y18/$H18 -> 0.4301996514 | AE18: =Z18/$H18 -> 0.2269164918 | AF18: =AA18/$H18 -> 0.05268338778
D20: segment
A21: ='Asset data'!A21 -> 0 | B21: ='Asset data'!B21 -> 0 | C21: ='Asset data'!C21 -> 0 | D21: ='Asset data'!E21 -> 0 | E21: =IF(A21>0,VLOOKUP(A21,IDtable,2),0) -> 0 | F21: =IF(A21>0,SUM('Asset data'!L21:FG21),0) -> 0 | G21: =IF(A21>0,'Asset data'!F21,0) -> 0 | H21: =IF(A21>0,F21*G21,0) -> 0 | I21: =H21/$H$18/1000 -> 0 | J21: =IF(RANK(0,I$21:I$205)=RANK(I21,I$21:I$205),0,RANK(I21,I$21:I$205)) -> 0 | K21: =IF(A21>0,H21/(VLOOKUP(A21,$A$6:$H$17,8)*1000),0) -> 0 | L21: =IF($A21>0,H21/F21,0) -> 0 | M21: =IF($A21>0,SUMPRODUCT('Utilisation profile'!$F21:$FA21,'Asset data'!$L21:$FG21)/F21-0.5,0) -> 0 | N21: =IF($A21>0,M21*H21,0) -> 0 | O21: =IF($A21>0,'Asset data'!I21,0) -> 0 | P21: =IF($A21>0,H21*O21,0) -> 0 | Q21: =IF($A21>0,(O21-M21)/O21,0) -> 0 | R21: =IF($A21>0,$O21-R$4*$O21,0) -> 0 | S21: 0 | T21: 0 | U21: 0 | W21: =IF($A21>0,SUMIF('Utilisation profile'!$F21:$FA21,"<" & R21+0.5,'Asset data'!$L21:$FG21)*$G21,0) -> 0 | X21: =IF($A21>0,SUMIF('Utilisation profile'!$F21:$FA21,"<" & S21+0.5,'Asset data'!$L21:$FG21)*G21-W21,0) -> 0 | Y21: =IF($A21>0,SUMIF('Utilisation profile'!$F21:$FA21,"<" & T21+0.5,'Asset data'!$L21:$FG21)*G21-X21-W21,0) -> 0 | Z21: =IF($A21>0,SUMIF('Utilisation profile'!$F21:$FA21,"<" & U21+0.5,'Asset data'!$L21:$FG21)*G21-Y21-X21-W21,0) -> 0 | AA21: =IF($A21>0,H21-Z21-Y21-X21-W21,0) -> 0 | AB21: =IF($A21>0,W21/$H21,0) -> 0 | AC21: 0 | AD21: 0 | AE21: 0 | AF21: 0 | AI21: =IF($A21>0,'aug forecast'!K21,0) -> 0
A22: ='Asset data'!A22 -> 1 | B22: ='Asset data'!B22 -> 0 | C22: ='Asset data'!C22 -> 0 | D22: ='Asset data'!E22 -> Subtrans <0% Growth | E22: Subtransmission Lines | F22: =IF(A22>0,SUM('Asset data'!L22:FG22),0) -> 1504.39005 | G22: =IF(A22>0,'Asset data'!F22,0) -> 71.77100115 | H22: =IF(A22>0,F22*G22,0) -> 107971.58 | I22: =H22/$H$18/1000 -> 0.0521187012 | J22: =IF(RANK(0,I$21:I$205)=RANK(I22,I$21:I$205),0,RANK(I22,I$21:I$205)) -> 9 | K22: =IF(A22>0,H22/(VLOOKUP(A22,$A$6:$H$17,8)*1000),0) -> 0.1702347843 | L22: =IF($A22>0,H22/F22,0) -> 71.77100115 | M22: =IF($A22>0,SUMPRODUCT('Utilisation profile'!$F22:$FA22,'Asset data'!$L22:$FG22)/F22-0.5,0) -> 62.97264438 | N22: =IF($A22>0,M22*H22,0) -> 6799255.909 | O22: =IF($A22>0,'Asset data'!I22,0) -> 113.4064225 | P22: =IF($A22>0,H22*O22,0) -> 12244670.62 | Q22: =IF($A22>0,(O22-M22)/O22,0) -> 0.4447171247 | R22: 0 | S22: 17.01096338 | T22: 56.70321126 | U22: 90.72513802 | W22: =IF($A22>0,SUMIF('Utilisation profile'!$F22:$FA22,"<" & R22+0.5,'Asset data'!$L22:$FG22)*$G22,0) -> 0 | X22: =IF($A22>0,SUMIF('Utilisation profile'!$F22:$FA22,"<" & S22+0.5,'Asset data'!$L22:$FG22)*G22-W22,0) -> 0 | Y22: =IF($A22>0,SUMIF('Utilisation profile'!$F22:$FA22,"<" & T22+0.5,'Asset data'!$L22:$FG22)*G22-X22-W22,0) -> 39709.91239 | Z22: =IF($A22>0,SUMIF('Utilisation profile'!$F22:$FA22,"<" & U22+0.5,'Asset data'!$L22:$FG22)*G22-Y22-X22-W22,0) -> 62108.27208 | AA22: =IF($A22>0,H22-Z22-Y22-X22-W22,0) -> 6153.395515 | AB22: 0 | AC22: 0 | AD22: 0.367781155 | AE22: 0.5752279636 | AF22: 0.05699088145 | AI22: =IF($A22>0,'aug forecast'!K22,0) -> 113.4064225
A23: ='Asset data'!A23 -> 1 | B23: ='Asset data'!B23 -> 0 | C23: ='Asset data'!C23 -> 0 | D23: ='Asset data'!E23 -> Subtrans 0-2% Growth | E23: Subtransmission Lines | F23: =IF(A23>0,SUM('Asset data'!L23:FG23),0) -> 2737.281135 | G23: =IF(A23>0,'Asset data'!F23,0) -> 71.77100115 | H23: =IF(A23>0,F23*G23,0) -> 196457.4075 | I23: =H23/$H$18/1000 -> 0.09483148178 | J23: =IF(RANK(0,I$21:I$205)=RANK(I23,I$21:I$205),0,RANK(I23,I$21:I$205)) -> 7 | K23: =IF(A23>0,H23/(VLOOKUP(A23,$A$6:$H$17,8)*1000),0) -> 0.3097471056 | L23: =IF($A23>0,H23/F23,0) -> 71.77100115 | M23: =IF($A23>0,SUMPRODUCT('Utilisation profile'!$F23:$FA23,'Asset data'!$L23:$FG23)/F23-0.5,0) -> 51.07005638 | N23: =IF($A23>0,M23*H23,0) -> 10033090.88 | O23: =IF($A23>0,'Asset data'!I23,0) -> 113.4064225 | P23: =IF($A23>0,H23*O23,0) -> 22279531.76 | Q23: =IF($A23>0,(O23-M23)/O23,0) -> 0.5496722739 | R23: 0 | S23: 17.01096338 | T23: 56.70321126 | U23: 90.72513802 | W23: =IF($A23>0,SUMIF('Utilisation profile'!$F23:$FA23,"<" & R23+0.5,'Asset data'!$L23:$FG23)*$G23,0) -> 8040.436807 | X23: =IF($A23>0,SUMIF('Utilisation profile'!$F23:$FA23,"<" & S23+0.5,'Asset data'!$L23:$FG23)*G23-W23,0) -> 0 | Y23: =IF($A23>0,SUMIF('Utilisation profile'!$F23:$FA23,"<" & T23+0.5,'Asset data'!$L23:$FG23)*G23-X23-W23,0) -> 117858.0354 | Z23: =IF($A23>0,SUMIF('Utilisation profile'!$F23:$FA23,"<" & U23+0.5,'Asset data'!$L23:$FG23)*G23-Y23-X23-W23,0) -> 55175.44646 | AA23: =IF($A23>0,H23-Z23-Y23-X23-W23,0) -> 15383.48879 | AB23: =IF($A23>0,W23/$H23,0) -> 0.04092712466 | AC23: =IF($A23>0,X23/$H23,0) -> 0 | AD23: =IF($A23>0,Y23/$H23,0) -> 0.5999164752 | AE23: =IF($A23>0,Z23/$H23,0) -> 0.2808519524 | AF23: =IF($A23>0,AA23/$H23,0) -> 0.07830444771 | AI23: =IF($A23>0,'aug forecast'!K23,0) -> 113.4064225
A24: ='Asset data'!A24 -> 1 | B24: ='Asset data'!B24 -> 0 | C24: ='Asset data'!C24 -> 0 | D24: ='Asset data'!E24 -> Subtrans 2-4.5% Growth | E24: Subtransmission Lines | F24: =IF(A24>0,SUM('Asset data'!L24:FG24),0) -> 2939.047734 | G24: =IF(A24>0,'Asset data'!F24,0) -> 71.77100115 | H24: 210938.3983 | I24: 0.101821566 | J24: 6 | K24: 0.3325787465 | L24: 71.77100115 | M24: =IF($A24>0,SUMPRODUCT('Utilisation profile'!$F24:$FA24,'Asset data'!$L24:$FG24)/F24-0.5,0) -> 41.77829638 | N24: 8812646.922 | O24: =IF($A24>0,'Asset data'!I24,0) -> 113.4064225 | P24: 23921769.12 | Q24: 0.6316055524 | R24: 0 | S24: 17.01096338 | T24: 56.70321126 | U24: 90.72513802 | W24: =IF($A24>0,SUMIF('Utilisation profile'!$F24:$FA24,"<" & R24+0.5,'Asset data'!$L24:$FG24)*$G24,0) -> 13209.28904 | X24: =IF($A24>0,SUMIF('Utilisation profile'!$F24:$FA24,"<" & S24+0.5,'Asset data'!$L24:$FG24)*G24-W24,0) -> 10091.56864 | Y24: =IF($A24>0,SUMIF('Utilisation profile'!$F24:$FA24,"<" & T24+0.5,'Asset data'!$L24:$FG24)*G24-X24-W24,0) -> 137302.7653 | Z24: =IF($A24>0,SUMIF('Utilisation profile'!$F24:$FA24,"<" & U24+0.5,'Asset data'!$L24:$FG24)*G24-Y24-X24-W24,0) -> 41884.11215 | AA24: 8450.663174 | AB24: 0.06262154803 | AC24: 0.04784130687 | AD24: 0.6509140413 | AE24: 0.1985608713 | AF24: 0.04006223259 | AI24: =IF($A24>0,'aug forecast'!K24,0) -> 113.4064225
A25: ='Asset data'!A25 -> 1 | B25: ='Asset data'!B25 -> 0 | C25: ='Asset data'!C25 -> 0 | D25: ='Asset data'!E25 -> Subtrans 4.5% Growth | E25: Subtransmission Lines | F25: =IF(A25>0,SUM('Asset data'!L25:FG25),0) -> 1656.429469 | G25: =IF(A25>0,'Asset data'!F25,0) -> 71.77100115 | H25: 118883.6014 | I25: 0.05738601675 | J25: 8 | K25: 0.1874393636 | L25: 71.77100115 | M25: =IF($A25>0,SUMPRODUCT('Utilisation profile'!$F25:$FA25,'Asset data'!$L25:$FG25)/F25-0.5,0) -> 29.32815735 | N25: 3486636.967 | O25: =IF($A25>0,'Asset data'!I25,0) -> 113.4064225 | P25: 13482163.93 | Q25: 0.7413889205 | R25: 0 | S25: 17.01096338 | T25: 56.70321126 | U25: 90.72513802 | W25: =IF($A25>0,SUMIF('Utilisation profile'!$F25:$FA25,"<" & R25+0.5,'Asset data'!$L25:$FG25)*$G25,0) -> 16942.34899 | X25: =IF($A25>0,SUMIF('Utilisation profile'!$F25:$FA25,"<" & S25+0.5,'Asset data'!$L25:$FG25)*G25-W25,0) -> 5538.055964 | Y25: =IF($A25>0,SUMIF('Utilisation profile'!$F25:$FA25,"<" & T25+0.5,'Asset data'!$L25:$FG25)*G25-X25-W25,0) -> 74538.13101 | Z25: =IF($A25>0,SUMIF('Utilisation profile'!$F25:$FA25,"<" & U25+0.5,'Asset data'!$L25:$FG25)*G25-Y25-X25-W25,0) -> 21865.0654 | AA25: -3.637978807e-12 | AB25: 0.1425120773 | AC25: 0.04658385093 | AD25: 0.626984127 | AE25: 0.1839199448 | AF25: -3.060118272e-17 | AI25: =IF($A25>0,'aug forecast'!K25,0) -> 113.4064225
A26: ='Asset data'!A26 -> 0 | B26: ='Asset data'!B26 -> 0 | C26: ='Asset data'!C26 -> 0 | D26: ='Asset data'!E26 -> 0 | E26: 0 | F26: =IF(A26>0,SUM('Asset data'!L26:FG26),0) -> 0 | G26: =IF(A26>0,'Asset data'!F26,0) -> 0 | H26: 0 | I26: 0 | J26: 0 | K26: 0 | L26: 0 | M26: =IF($A26>0,SUMPRODUCT('Utilisation profile'!$F26:$FA26,'Asset data'!$L26:$FG26)/F26-0.5,0) -> 0 | N26: 0 | O26: =IF($A26>0,'Asset data'!I26,0) -> 0 | P26: 0 | Q26: 0 | R26: 0 | S26: 0 | T26: 0 | U26: 0 | W26: =IF($A26>0,SUMIF('Utilisation profile'!$F26:$FA26,"<" & R26+0.5,'Asset data'!$L26:$FG26)*$G26,0) -> 0 | X26: =IF($A26>0,SUMIF('Utilisation profile'!$F26:$FA26,"<" & S26+0.5,'Asset data'!$L26:$FG26)*G26-W26,0) -> 0 | Y26: =IF($A26>0,SUMIF('Utilisation profile'!$F26:$FA26,"<" & T26+0.5,'Asset data'!$L26:$FG26)*G26-X26-W26,0) -> 0 | Z26: =IF($A26>0,SUMIF('Utilisation profile'!$F26:$FA26,"<" & U26+0.5,'Asset data'!$L26:$FG26)*G26-Y26-X26-W26,0) -> 0 | AA26: 0 | AB26: 0 | AC26: 0 | AD26: 0 | AE26: 0 | AF26: 0 | AI26: =IF($A26>0,'aug forecast'!K26,0) -> 0
A27: ='Asset data'!A27 -> 0 | B27: ='Asset data'!B27 -> 0 | C27: ='Asset data'!C27 -> 0 | D27: ='Asset data'!E27 -> 0 | E27: 0 | F27: =IF(A27>0,SUM('Asset data'!L27:FG27),0) -> 0 | G27: =IF(A27>0,'Asset data'!F27,0) -> 0 | H27: 0 | I27: 0 | J27: 0 | K27: 0 | L27: 0 | M27: =IF($A27>0,SUMPRODUCT('Utilisation profile'!$F27:$FA27,'Asset data'!$L27:$FG27)/F27-0.5,0) -> 0 | N27: 0 | O27: =IF($A27>0,'Asset data'!I27,0) -> 0 | P27: 0 | Q27: 0 | R27: 0 | S27: 0 | T27: 0 | U27: 0 | W27: =IF($A27>0,SUMIF('Utilisation profile'!$F27:$FA27,"<" & R27+0.5,'Asset data'!$L27:$FG27)*$G27,0) -> 0 | X27: =IF($A27>0,SUMIF('Utilisation profile'!$F27:$FA27,"<" & S27+0.5,'Asset data'!$L27:$FG27)*G27-W27,0) -> 0 | Y27: =IF($A27>0,SUMIF('Utilisation profile'!$F27:$FA27,"<" & T27+0.5,'Asset data'!$L27:$FG27)*G27-X27-W27,0) -> 0 | Z27: =IF($A27>0,SUMIF('Utilisation profile'!$F27:$FA27,"<" & U27+0.5,'Asset data'!$L27:$FG27)*G27-Y27-X27-W27,0) -> 0 | AA27: 0 | AB27: 0 | AC27: 0 | AD27: 0 | AE27: 0 | AF27: 0 | AI27: =IF($A27>0,'aug forecast'!K27,0) -> 0
A28: ='Asset data'!A28 -> 2 | B28: ='Asset data'!B28 -> 0 | C28: ='Asset data'!C28 -> 0 | D28: ='Asset data'!E28 -> HV Feeders - Rural Short | E28: HV Feeders | F28: =IF(A28>0,SUM('Asset data'!L28:FG28),0) -> 1512.393683 | G28: =IF(A28>0,'Asset data'!F28,0) -> 141.9963454 | H28: 214754.3757 | I28: 0.1036635672 | J28: 5 | K28: 0.3892081933 | L28: 141.9963454 | M28: =IF($A28>0,SUMPRODUCT('Utilisation profile'!$F28:$FA28,'Asset data'!$L28:$FG28)/F28-0.5,0) -> 23.35084712 | N28: 5014696.595 | O28: =IF($A28>0,'Asset data'!I28,0) -> 86.13333333 | P28: 18497510.23 | Q28: 0.7288988338 | R28: 0 | S28: 12.92 | T28: 43.06666667 | U28: 68.90666667 | W28: =IF($A28>0,SUMIF('Utilisation profile'!$F28:$FA28,"<" & R28+0.5,'Asset data'!$L28:$FG28)*$G28,0) -> 40564.37847 | X28: =IF($A28>0,SUMIF('Utilisation profile'!$F28:$FA28,"<" & S28+0.5,'Asset data'!$L28:$FG28)*G28-W28,0) -> 39400.54268 | Y28: =IF($A28>0,SUMIF('Utilisation profile'!$F28:$FA28,"<" & T28+0.5,'Asset data'!$L28:$FG28)*G28-X28-W28,0) -> 92506.53623 | Z28: =IF($A28>0,SUMIF('Utilisation profile'!$F28:$FA28,"<" & U28+0.5,'Asset data'!$L28:$FG28)*G28-Y28-X28-W28,0) -> 21717.86791 | AA28: 20565.05045 | AB28: 0.1888873199 | AC28: 0.1834679389 | AD28: 0.4307550703 | AE28: 0.1011288726 | AF28: 0.09576079825 | AI28: =IF($A28>0,'aug forecast'!K28,0) -> 86.13333333
A29: ='Asset data'!A29 -> 2 | B29: ='Asset data'!B29 -> 0 | C29: ='Asset data'!C29 -> 0 | D29: ='Asset data'!E29 -> HV Feeders - Rural Long | E29: HV Feeders | F29: =IF(A29>0,SUM('Asset data'!L29:FG29),0) -> 1009.700491 | G29: =IF(A29>0,'Asset data'!F29,0) -> 103.3734112 | H29: 104376.184 | I29: 0.05038317627 | J29: 10 | K29: 0.1891652538 | L29: 103.3734112 | M29: =IF($A29>0,SUMPRODUCT('Utilisation profile'!$F29:$FA29,'Asset data'!$L29:$FG29)/F29-0.5,0) -> 41.89061561 | N29: 4372382.602 | O29: =IF($A29>0,'Asset data'!I29,0) -> 107 | P29: 11168251.69 | Q29: 0.6084989196 | R29: 0 | S29: 16.05 | T29: 53.5 | U29: 85.6 | W29: =IF($A29>0,SUMIF('Utilisation profile'!$F29:$FA29,"<" & R29+0.5,'Asset data'!$L29:$FG29)*$G29,0) -> 5242.883546 | X29: =IF($A29>0,SUMIF('Utilisation profile'!$F29:$FA29,"<" & S29+0.5,'Asset data'!$L29:$FG29)*G29-W29,0) -> 12840.89287 | Y29: =IF($A29>0,SUMIF('Utilisation profile'!$F29:$FA29,"<" & T29+0.5,'Asset data'!$L29:$FG29)*G29-X29-W29,0) -> 50023.01224 | Z29: =IF($A29>0,SUMIF('Utilisation profile'!$F29:$FA29,"<" & U29+0.5,'Asset data'!$L29:$FG29)*G29-Y29-X29-W29,0) -> 29932.09879 | AA29: 6337.296544 | AB29: 0.05023064981 | AC29: 0.123025123 | AD29: 0.4792569562 | AE29: 0.2867713462 | AF29: 0.06071592485 | AI29: =IF($A29>0,'aug forecast'!K29,0) -> 107
A30: ='Asset data'!A30 -> 2 | B30: ='Asset data'!B30 -> 0 | C30: ='Asset data'!C30 -> 0 | D30: ='Asset data'!E30 -> HV Feeders - Urban | E30: HV Feeders | F30: =IF(A30>0,SUM('Asset data'!L30:FG30),0) -> 2151.462927 | G30: =IF(A30>0,'Asset data'!F30,0) -> 108.1319748 | H30: 232641.9349 | I30: 0.1122980278 | J30: 4 | K30: 0.4216265529 | L30: 108.1319748 | M30: =IF($A30>0,SUMPRODUCT('Utilisation profile'!$F30:$FA30,'Asset data'!$L30:$FG30)/F30-0.5,0) -> 16.73483206 | N30: 3893223.711 | O30: =IF($A30>0,'Asset data'!I30,0) -> 74.705 | P30: 17379515.75 | Q30: 0.7759877912 | R30: 0 | S30: 11.20575 | T30: 37.3525 | U30: 59.764 | W30: =IF($A30>0,SUMIF('Utilisation profile'!$F30:$FA30,"<" & R30+0.5,'Asset data'!$L30:$FG30)*$G30,0) -> 53963.50514 | X30: =IF($A30>0,SUMIF('Utilisation profile'!$F30:$FA30,"<" & S30+0.5,'Asset data'!$L30:$FG30)*G30-W30,0) -> 47752.09538 | Y30: =IF($A30>0,SUMIF('Utilisation profile'!$F30:$FA30,"<" & T30+0.5,'Asset data'!$L30:$FG30)*G30-X30-W30,0) -> 84258.91076 | Z30: =IF($A30>0,SUMIF('Utilisation profile'!$F30:$FA30,"<" & U30+0.5,'Asset data'!$L30:$FG30)*G30-Y30-X30-W30,0) -> 36316.93134 | AA30: 10350.49231 | AB30: 0.2319594924 | AC30: 0.2052600508 | AD30: 0.3621828145 | AE30: 0.1561065564 | AF30: 0.04449108588 | AI30: =IF($A30>0,'aug forecast'!K30,0) -> 74.705
A31: ='Asset data'!A31 -> 0 | B31: ='Asset data'!B31 -> 0 | C31: ='Asset data'!C31 -> 0 | D31: ='Asset data'!E31 -> 0 | E31: 0 | F31: =IF(A31>0,SUM('Asset data'!L31:FG31),0) -> 0 | G31: =IF(A31>0,'Asset data'!F31,0) -> 0 | H31: 0 | I31: 0 | J31: 0 | K31: 0 | L31: 0 | M31: =IF($A31>0,SUMPRODUCT('Utilisation profile'!$F31:$FA31,'Asset data'!$L31:$FG31)/F31-0.5,0) -> 0 | N31: 0 | O31: =IF($A31>0,'Asset data'!I31,0) -> 0 | P31: 0 | Q31: 0 | R31: 0 | S31: 0 | T31: 0 | U31: 0 | W31: =IF($A31>0,SUMIF('Utilisation profile'!$F31:$FA31,"<" & R31+0.5,'Asset data'!$L31:$FG31)*$G31,0) -> 0 | X31: =IF($A31>0,SUMIF('Utilisation profile'!$F31:$FA31,"<" & S31+0.5,'Asset data'!$L31:$FG31)*G31-W31,0) -> 0 | Y31: =IF($A31>0,SUMIF('Utilisation profile'!$F31:$FA31,"<" & T31+0.5,'Asset data'!$L31:$FG31)*G31-X31-W31,0) -> 0 | Z31: =IF($A31>0,SUMIF('Utilisation profile'!$F31:$FA31,"<" & U31+0.5,'Asset data'!$L31:$FG31)*G31-Y31-X31-W31,0) -> 0 | AA31: 0 | AB31: 0 | AC31: 0 | AD31: 0 | AE31: 0 | AF31: 0 | AI31: =IF($A31>0,'aug forecast'!K31,0) -> 0
A32: ='Asset data'!A32 -> 0 | B32: ='Asset data'!B32 -> 0 | C32: ='Asset data'!C32 -> 0 | D32: ='Asset data'!E32 -> 0 | E32: 0 | F32: =IF(A32>0,SUM('Asset data'!L32:FG32),0) -> 0 | G32: =IF(A32>0,'Asset data'!F32,0) -> 0 | H32: 0 | I32: 0 | J32: 0 | K32: 0 | L32: 0 | M32: =IF($A32>0,SUMPRODUCT('Utilisation profile'!$F32:$FA32,'Asset data'!$L32:$FG32)/F32-0.5,0) -> 0 | N32: 0 | O32: =IF($A32>0,'Asset data'!I32,0) -> 0 | P32: 0 | Q32: 0 | R32: 0 | S32: 0 | T32: 0 | U32: 0 | W32: =IF($A32>0,SUMIF('Utilisation profile'!$F32:$FA32,"<" & R32+0.5,'Asset data'!$L32:$FG32)*$G32,0) -> 0 | X32: =IF($A32>0,SUMIF('Utilisation profile'!$F32:$FA32,"<" & S32+0.5,'Asset data'!$L32:$FG32)*G32-W32,0) -> 0 | Y32: =IF($A32>0,SUMIF('Utilisation profile'!$F32:$FA32,"<" & T32+0.5,'Asset data'!$L32:$FG32)*G32-X32-W32,0) -> 0 | Z32: =IF($A32>0,SUMIF('Utilisation profile'!$F32:$FA32,"<" & U32+0.5,'Asset data'!$L32:$FG32)*G32-Y32-X32-W32,0) -> 0 | AA32: 0 | AB32: 0 | AC32: 0 | AD32: 0 | AE32: 0 | AF32: 0 | AI32: =IF($A32>0,'aug forecast'!K32,0) -> 0
A33: ='Asset data'!A33 -> 3 | B33: ='Asset data'!B33 -> 0 | C33: ='Asset data'!C33 -> 0 | D33: ='Asset data'!E33 -> ZSS Urban | E33: Zone Substation | F33: =IF(A33>0,SUM('Asset data'!L33:FG33),0) -> 1145.9 | G33: =IF(A33>0,'Asset data'!F33,0) -> 231.8643595 | H33: 265693.3695 | I33: 0.1282522062 | J33: 3 | K33: 0.4816324815 | L33: 231.8643595 | M33: =IF($A33>0,SUMPRODUCT('Utilisation profile'!$F33:$FA33,'Asset data'!$L33:$FG33)/F33-0.5,0) -> 13.46518021 | N33: 3577609.101 | O33: =IF($A33>0,'Asset data'!I33,0) -> 82.92685702 | P33: 22033116.06 | Q33: 0.8376258224 | R33: 0 | S33: 12.43902855 | T33: 41.46342851 | U33: 66.34148561 | W33: =IF($A33>0,SUMIF('Utilisation profile'!$F33:$FA33,"<" & R33+0.5,'Asset data'!$L33:$FG33)*$G33,0) -> 81940.86464 | X33: =IF($A33>0,SUMIF('Utilisation profile'!$F33:$FA33,"<" & S33+0.5,'Asset data'!$L33:$FG33)*G33-W33,0) -> 59241.34385 | Y33: =IF($A33>0,SUMIF('Utilisation profile'!$F33:$FA33,"<" & T33+0.5,'Asset data'!$L33:$FG33)*G33-X33-W33,0) -> 91563.23556 | Z33: =IF($A33>0,SUMIF('Utilisation profile'!$F33:$FA33,"<" & U33+0.5,'Asset data'!$L33:$FG33)*G33-Y33-X33-W33,0) -> 25991.9947 | AA33: 6955.930784 | AB33: 0.3084038747 | AC33: 0.2229688454 | AD33: 0.3446199494 | AE33: 0.09782703552 | AF33: 0.02618029496 | AI33: =IF($A33>0,'aug forecast'!K33,0) -> 82.92685702
A34: ='Asset data'!A34 -> 3 | B34: ='Asset data'!B34 -> 0 | C34: ='Asset data'!C34 -> 0 | D34: ='Asset data'!E34 -> ZSS Rural | E34: Zone Substation | F34: =IF(A34>0,SUM('Asset data'!L34:FG34),0) -> 1233.3 | G34: =IF(A34>0,'Asset data'!F34,0) -> 231.8643595 | H34: 285958.3145 | I34: 0.138034249 | J34: 2 | K34: 0.5183675185 | L34: 231.8643595 | M34: =IF($A34>0,SUMPRODUCT('Utilisation profile'!$F34:$FA34,'Asset data'!$L34:$FG34)/F34-0.5,0) -> 10.38137517 | N34: 2968640.547 | O34: =IF($A34>0,'Asset data'!I34,0) -> 79.32171007 | P34: 22682702.52 | Q34: 0.8691231548 | R34: 0 | S34: 11.89825651 | T34: 39.66085504 | U34: 63.45736806 | W34: =IF($A34>0,SUMIF('Utilisation profile'!$F34:$FA34,"<" & R34+0.5,'Asset data'!$L34:$FG34)*$G34,0) -> 119989.806 | X34: =IF($A34>0,SUMIF('Utilisation profile'!$F34:$FA34,"<" & S34+0.5,'Asset data'!$L34:$FG34)*G34-W34,0) -> 45399.04159 | Y34: =IF($A34>0,SUMIF('Utilisation profile'!$F34:$FA34,"<" & T34+0.5,'Asset data'!$L34:$FG34)*G34-X34-W34,0) -> 74567.57801 | Z34: =IF($A34>0,SUMIF('Utilisation profile'!$F34:$FA34,"<" & U34+0.5,'Asset data'!$L34:$FG34)*G34-Y34-X34-W34,0) -> 37446.09406 | AA34: 8555.794865 | AB34: 0.4196059353 | AC34: 0.1587610476 | AD34: 0.2607638044 | AE34: 0.1309494851 | AF34: 0.02991972756 | AI34: =IF($A34>0,'aug forecast'!K34,0) -> 79.32171007
A35: ='Asset data'!A35 -> 0 | B35: ='Asset data'!B35 -> 0 | C35: ='Asset data'!C35 -> 0 | D35: ='Asset data'!E35 -> 0 | E35: 0 | F35: =IF(A35>0,SUM('Asset data'!L35:FG35),0) -> 0 | G35: =IF(A35>0,'Asset data'!F35,0) -> 0 | H35: 0 | I35: 0 | J35: 0 | K35: 0 | L35: 0 | M35: =IF($A35>0,SUMPRODUCT('Utilisation profile'!$F35:$FA35,'Asset data'!$L35:$FG35)/F35-0.5,0) -> 0 | N35: 0 | O35: =IF($A35>0,'Asset data'!I35,0) -> 0 | P35: 0 | Q35: 0 | R35: 0 | S35: 0 | T35: 0 | U35: 0 | W35: =IF($A35>0,SUMIF('Utilisation profile'!$F35:$FA35,"<" & R35+0.5,'Asset data'!$L35:$FG35)*$G35,0) -> 0 | X35: =IF($A35>0,SUMIF('Utilisation profile'!$F35:$FA35,"<" & S35+0.5,'Asset data'!$L35:$FG35)*G35-W35,0) -> 0 | Y35: =IF($A35>0,SUMIF('Utilisation profile'!$F35:$FA35,"<" & T35+0.5,'Asset data'!$L35:$FG35)*G35-X35-W35,0) -> 0 | Z35: =IF($A35>0,SUMIF('Utilisation profile'!$F35:$FA35,"<" & U35+0.5,'Asset data'!$L35:$FG35)*G35-Y35-X35-W35,0) -> 0 | AA35: 0 | AB35: 0 | AC35: 0 | AD35: 0 | AE35: 0 | AF35: 0 | AI35: =IF($A35>0,'aug forecast'!K35,0) -> 0
A36: ='Asset data'!A36 -> 0 | B36: ='Asset data'!B36 -> 0 | C36: ='Asset data'!C36 -> 0 | D36: ='Asset data'!E36 -> 0 | E36: 0 | F36: =IF(A36>0,SUM('Asset data'!L36:FG36),0) -> 0 | G36: =IF(A36>0,'Asset data'!F36,0) -> 0 | H36: 0 | I36: 0 | J36: 0 | K36: 0 | L36: 0 | M36: =IF($A36>0,SUMPRODUCT('Utilisation profile'!$F36:$FA36,'Asset data'!$L36:$FG36)/F36-0.5,0) -> 0 | N36: 0 | O36: =IF($A36>0,'Asset data'!I36,0) -> 0 | P36: 0 | Q36: 0 | R36: 0 | S36: 0 | T36: 0 | U36: 0 | W36: =IF($A36>0,SUMIF('Utilisation profile'!$F36:$FA36,"<" & R36+0.5,'Asset data'!$L36:$FG36)*$G36,0) -> 0 | X36: =IF($A36>0,SUMIF('Utilisation profile'!$F36:$FA36,"<" & S36+0.5,'Asset data'!$L36:$FG36)*G36-W36,0) -> 0 | Y36: =IF($A36>0,SUMIF('Utilisation profile'!$F36:$FA36,"<" & T36+0.5,'Asset data'!$L36:$FG36)*G36-X36-W36,0) -> 0 | Z36: =IF($A36>0,SUMIF('Utilisation profile'!$F36:$FA36,"<" & U36+0.5,'Asset data'!$L36:$FG36)*G36-Y36-X36-W36,0) -> 0 | AA36: 0 | AB36: 0 | AC36: 0 | AD36: 0 | AE36: 0 | AF36: 0 | AI36: =IF($A36>0,'aug forecast'!K36,0) -> 0
A37: ='Asset data'!A37 -> 4 | B37: ='Asset data'!B37 -> 0 | C37: ='Asset data'!C37 -> 0 | D37: ='Asset data'!E37 -> DB Substations and LV | E37: Distribution Substations and LV Feeders | F37: =IF(A37>0,SUM('Asset data'!L37:FG37),0) -> 3063.966885 | G37: =IF(A37>0,'Asset data'!F37,0) -> 109 | H37: 333972.3905 | I37: 0.1612110079 | J37: 1 | K37: 1 | L37: 109 | M37: =IF($A37>0,SUMPRODUCT('Utilisation profile'!$F37:$FA37,'Asset data'!$L37:$FG37)/F37-0.5,0) -> 63.90223607 | N37: 21341582.54 | O37: =IF($A37>0,'Asset data'!I37,0) -> 137 | P37: 45754217.49 | Q37: 0.5335603207 | R37: =IF($A37>0,$O37-R$4*$O37,0) -> 0 | S37: 20.55 | T37: 68.5 | U37: 109.6 | W37: =IF($A37>0,SUMIF('Utilisation profile'!$F37:$FA37,"<" & R37+0.5,'Asset data'!$L37:$FG37)*$G37,0) -> 20618.40328 | X37: =IF($A37>0,SUMIF('Utilisation profile'!$F37:$FA37,"<" & S37+0.5,'Asset data'!$L37:$FG37)*G37-W37,0) -> 20417.63563 | Y37: =IF($A37>0,SUMIF('Utilisation profile'!$F37:$FA37,"<" & T37+0.5,'Asset data'!$L37:$FG37)*G37-X37-W37,0) -> 128893.9397 | Z37: =IF($A37>0,SUMIF('Utilisation profile'!$F37:$FA37,"<" & U37+0.5,'Asset data'!$L37:$FG37)*G37-Y37-X37-W37,0) -> 137653.1128 | AA37: 26389.29912 | AB37: 0.06173684971 | AC37: 0.06113569927 | AD37: 0.3859419022 | AE37: 0.4121691395 | AF37: 0.07901640937 | AI37: =IF($A37>0,'aug forecast'!K37,0) -> 137
A38: ='Asset data'!A38 -> 0 | B38: ='Asset data'!B38 -> 0 | C38: ='Asset data'!C38 -> 0 | D38: ='Asset data'!E38 -> 0 | E38: 0 | F38: =IF(A38>0,SUM('Asset data'!L38:FG38),0) -> 0 | G38: =IF(A38>0,'Asset data'!F38,0) -> 0 | H38: 0 | I38: 0 | J38: 0 | K38: 0 | L38: 0 | M38: =IF($A38>0,SUMPRODUCT('Utilisation profile'!$F38:$FA38,'Asset data'!$L38:$FG38)/F38-0.5,0) -> 0 | N38: 0 | O38: =IF($A38>0,'Asset data'!I38,0) -> 0 | P38: 0 | Q38: 0 | R38: 0 | S38: 0 | T38: 0 | U38: 0 | W38: =IF($A38>0,SUMIF('Utilisation profile'!$F38:$FA38,"<" & R38+0.5,'Asset data'!$L38:$FG38)*$G38,0) -> 0 | X38: =IF($A38>0,SUMIF('Utilisation profile'!$F38:$FA38,"<" & S38+0.5,'Asset data'!$L38:$FG38)*G38-W38,0) -> 0 | Y38: =IF($A38>0,SUMIF('Utilisation profile'!$F38:$FA38,"<" & T38+0.5,'Asset data'!$L38:$FG38)*G38-X38-W38,0) -> 0 | Z38: =IF($A38>0,SUMIF('Utilisation profile'!$F38:$FA38,"<" & U38+0.5,'Asset data'!$L38:$FG38)*G38-Y38-X38-W38,0) -> 0 | AA38: 0 | AB38: 0 | AC38: 0 | AD38: 0 | AE38: 0 | AF38: 0 | AI38: =IF($A38>0,'aug forecast'!K38,0) -> 0
A39: ='Asset data'!A39 -> 0 | B39: ='Asset data'!B39 -> 0 | C39: ='Asset data'!C39 -> 0 | D39: ='Asset data'!E39 -> 0 | E39: 0 | F39: =IF(A39>0,SUM('Asset data'!L39:FG39),0) -> 0 | G39: =IF(A39>0,'Asset data'!F39,0) -> 0 | H39: 0 | I39: 0 | J39: 0 | K39: 0 | L39: 0 | M39: =IF($A39>0,SUMPRODUCT('Utilisation profile'!$F39:$FA39,'Asset data'!$L39:$FG39)/F39-0.5,0) -> 0 | N39: 0 | O39: =IF($A39>0,'Asset data'!I39,0) -> 0 | P39: 0 | Q39: 0 | R39: 0 | S39: 0 | T39: 0 | U39: 0 | W39: =IF($A39>0,SUMIF('Utilisation profile'!$F39:$FA39,"<" & R39+0.5,'Asset data'!$L39:$FG39)*$G39,0) -> 0 | X39: =IF($A39>0,SUMIF('Utilisation profile'!$F39:$FA39,"<" & S39+0.5,'Asset data'!$L39:$FG39)*G39-W39,0) -> 0 | Y39: =IF($A39>0,SUMIF('Utilisation profile'!$F39:$FA39,"<" & T39+0.5,'Asset data'!$L39:$FG39)*G39-X39-W39,0) -> 0 | Z39: =IF($A39>0,SUMIF('Utilisation profile'!$F39:$FA39,"<" & U39+0.5,'Asset data'!$L39:$FG39)*G39-Y39-X39-W39,0) -> 0 | AA39: 0 | AB39: 0 | AC39: 0 | AD39: 0 | AE39: 0 | AF39: 0 | AI39: =IF($A39>0,'aug forecast'!K39,0) -> 0
A40: ='Asset data'!A40 -> 0 | B40: ='Asset data'!B40 -> 0 | C40: ='Asset data'!C40 -> 0 | D40: ='Asset data'!E40 -> 0 | E40: 0 | F40: =IF(A40>0,SUM('Asset data'!L40:FG40),0) -> 0 | G40: =IF(A40>0,'Asset data'!F40,0) -> 0 | H40: 0 | I40: 0 | J40: 0 | K40: 0 | L40: 0 | M40: =IF($A40>0,SUMPRODUCT('Utilisation profile'!$F40:$FA40,'Asset data'!$L40:$FG40)/F40-0.5,0) -> 0 | N40: 0 | O40: =IF($A40>0,'Asset data'!I40,0) -> 0 | P40: 0 | Q40: 0 | R40: 0 | S40: 0 | T40: 0 | U40: 0 | W40: =IF($A40>0,SUMIF('Utilisation profile'!$F40:$FA40,"<" & R40+0.5,'Asset data'!$L40:$FG40)*$G40,0) -> 0 | X40: =IF($A40>0,SUMIF('Utilisation profile'!$F40:$FA40,"<" & S40+0.5,'Asset data'!$L40:$FG40)*G40-W40,0) -> 0 | Y40: =IF($A40>0,SUMIF('Utilisation profile'!$F40:$FA40,"<" & T40+0.5,'Asset data'!$L40:$FG40)*G40-X40-W40,0) -> 0 | Z40: =IF($A40>0,SUMIF('Utilisation profile'!$F40:$FA40,"<" & U40+0.5,'Asset data'!$L40:$FG40)*G40-Y40-X40-W40,0) -> 0 | AA40: 0 | AB40: 0 | AC40: 0 | AD40: 0 | AE40: 0 | AF40: 0 | AI40: =IF($A40>0,'aug forecast'!K40,0) -> 0
A41: ='Asset data'!A41 -> 0 | B41: ='Asset data'!B41 -> 0 | C41: ='Asset data'!C41 -> 0 | D41: ='Asset data'!E41 -> 0 | E41: 0 | F41: =IF(A41>0,SUM('Asset data'!L41:FG41),0) -> 0 | G41: =IF(A41>0,'Asset data'!F41,0) -> 0 | H41: 0 | I41: 0 | J41: 0 | K41: 0 | L41: 0 | M41: =IF($A41>0,SUMPRODUCT('Utilisation profile'!$F41:$FA41,'Asset data'!$L41:$FG41)/F41-0.5,0) -> 0 | N41: 0 | O41: =IF($A41>0,'Asset data'!I41,0) -> 0 | P41: 0 | Q41: 0 | R41: 0 | S41: 0 | T41: 0 | U41: 0 | W41: =IF($A41>0,SUMIF('Utilisation profile'!$F41:$FA41,"<" & R41+0.5,'Asset data'!$L41:$FG41)*$G41,0) -> 0 | X41: =IF($A41>0,SUMIF('Utilisation profile'!$F41:$FA41,"<" & S41+0.5,'Asset data'!$L41:$FG41)*G41-W41,0) -> 0 | Y41: =IF($A41>0,SUMIF('Utilisation profile'!$F41:$FA41,"<" & T41+0.5,'Asset data'!$L41:$FG41)*G41-X41-W41,0) -> 0 | Z41: =IF($A41>0,SUMIF('Utilisation profile'!$F41:$FA41,"<" & U41+0.5,'Asset data'!$L41:$FG41)*G41-Y41-X41-W41,0) -> 0 | AA41: 0 | AB41: 0 | AC41: 0 | AD41: 0 | AE41: 0 | AF41: 0 | AI41: =IF($A41>0,'aug forecast'!K41,0) -> 0
A42: ='Asset data'!A42 -> 0 | B42: ='Asset data'!B42 -> 0 | C42: ='Asset data'!C42 -> 0 | D42: ='Asset data'!E42 -> 0 | E42: 0 | F42: =IF(A42>0,SUM('Asset data'!L42:FG42),0) -> 0 | G42: =IF(A42>0,'Asset data'!F42,0) -> 0 | H42: 0 | I42: 0 | J42: 0 | K42: 0 | L42: 0 | M42: =IF($A42>0,SUMPRODUCT('Utilisation profile'!$F42:$FA42,'Asset data'!$L42:$FG42)/F42-0.5,0) -> 0 | N42: 0 | O42: =IF($A42>0,'Asset data'!I42,0) -> 0 | P42: 0 | Q42: 0 | R42: 0 | S42: 0 | T42: 0 | U42: 0 | W42: =IF($A42>0,SUMIF('Utilisation profile'!$F42:$FA42,"<" & R42+0.5,'Asset data'!$L42:$FG42)*$G42,0) -> 0 | X42: =IF($A42>0,SUMIF('Utilisation profile'!$F42:$FA42,"<" & S42+0.5,'Asset data'!$L42:$FG42)*G42-W42,0) -> 0 | Y42: =IF($A42>0,SUMIF('Utilisation profile'!$F42:$FA42,"<" & T42+0.5,'Asset data'!$L42:$FG42)*G42-X42-W42,0) -> 0 | Z42: =IF($A42>0,SUMIF('Utilisation profile'!$F42:$FA42,"<" & U42+0.5,'Asset data'!$L42:$FG42)*G42-Y42-X42-W42,0) -> 0 | AA42: 0 | AB42: 0 | AC42: 0 | AD42: 0 | AE42: 0 | AF42: 0 | AI42: =IF($A42>0,'aug forecast'!K42,0) -> 0
A43: ='Asset data'!A43 -> 0 | B43: ='Asset data'!B43 -> 0 | C43: ='Asset data'!C43 -> 0 | D43: ='Asset data'!E43 -> 0 | E43: 0 | F43: =IF(A43>0,SUM('Asset data'!L43:FG43),0) -> 0 | G43: =IF(A43>0,'Asset data'!F43,0) -> 0 | H43: 0 | I43: 0 | J43: 0 | K43: 0 | L43: 0 | M43: =IF($A43>0,SUMPRODUCT('Utilisation profile'!$F43:$FA43,'Asset data'!$L43:$FG43)/F43-0.5,0) -> 0 | N43: 0 | O43: =IF($A43>0,'Asset data'!I43,0) -> 0 | P43: 0 | Q43: 0 | R43: 0 | S43: 0 | T43: 0 | U43: 0 | W43: =IF($A43>0,SUMIF('Utilisation profile'!$F43:$FA43,"<" & R43+0.5,'Asset data'!$L43:$FG43)*$G43,0) -> 0 | X43: =IF($A43>0,SUMIF('Utilisation profile'!$F43:$FA43,"<" & S43+0.5,'Asset data'!$L43:$FG43)*G43-W43,0) -> 0 | Y43: =IF($A43>0,SUMIF('Utilisation profile'!$F43:$FA43,"<" & T43+0.5,'Asset data'!$L43:$FG43)*G43-X43-W43,0) -> 0 | Z43: =IF($A43>0,SUMIF('Utilisation profile'!$F43:$FA43,"<" & U43+0.5,'Asset data'!$L43:$FG43)*G43-Y43-X43-W43,0) -> 0 | AA43: 0 | AB43: 0 | AC43: 0 | AD43: 0 | AE43: 0 | AF43: 0 | AI43: =IF($A43>0,'aug forecast'!K43,0) -> 0
A44: ='Asset data'!A44 -> 0 | B44: ='Asset data'!B44 -> 0 | C44: ='Asset data'!C44 -> 0 | D44: ='Asset data'!E44 -> 0 | E44: 0 | F44: =IF(A44>0,SUM('Asset data'!L44:FG44),0) -> 0 | G44: =IF(A44>0,'Asset data'!F44,0) -> 0 | H44: 0 | I44: 0 | J44: 0 | K44: 0 | L44: 0 | M44: =IF($A44>0,SUMPRODUCT('Utilisation profile'!$F44:$FA44,'Asset data'!$L44:$FG44)/F44-0.5,0) -> 0 | N44: 0 | O44: =IF($A44>0,'Asset data'!I44,0) -> 0 | P44: 0 | Q44: 0 | R44: 0 | S44: 0 | T44: 0 | U44: 0 | W44: =IF($A44>0,SUMIF('Utilisation profile'!$F44:$FA44,"<" & R44+0.5,'Asset data'!$L44:$FG44)*$G44,0) -> 0 | X44: =IF($A44>0,SUMIF('Utilisation profile'!$F44:$FA44,"<" & S44+0.5,'Asset data'!$L44:$FG44)*G44-W44,0) -> 0 | Y44: =IF($A44>0,SUMIF('Utilisation profile'!$F44:$FA44,"<" & T44+0.5,'Asset data'!$L44:$FG44)*G44-X44-W44,0) -> 0 | Z44: =IF($A44>0,SUMIF('Utilisation profile'!$F44:$FA44,"<" & U44+0.5,'Asset data'!$L44:$FG44)*G44-Y44-X44-W44,0) -> 0 | AA44: 0 | AB44: 0 | AC44: 0 | AD44: 0 | AE44: 0 | AF44: 0 | AI44: =IF($A44>0,'aug forecast'!K44,0) -> 0 | AJ44: =IF($A44>0,AI44*H44,0) -> 0 | AL44: =IF($A44>0,'Asset data'!G44,0) -> 0 | AM44: =AL44*H44 -> 0
A45: ='Asset data'!A45 -> 0 | B45: ='Asset data'!B45 -> 0 | C45: ='Asset data'!C45 -> 0 | D45: ='Asset data'!E45 -> 0 | E45: 0 | F45: =IF(A45>0,SUM('Asset data'!L45:FG45),0) -> 0 | G45: =IF(A45>0,'Asset data'!F45,0) -> 0 | H45: 0 | I45: 0 | J45: 0 | K45: 0 | L45: 0 | M45: =IF($A45>0,SUMPRODUCT('Utilisation profile'!$F45:$FA45,'Asset data'!$L45:$FG45)/F45-0.5,0) -> 0 | N45: 0 | O45: =IF($A45>0,'Asset data'!I45,0) -> 0 | P45: 0 | Q45: 0 | R45: 0 | S45: 0 | T45: 0 | U45: 0 | W45: =IF($A45>0,SUMIF('Utilisation profile'!$F45:$FA45,"<" & R45+0.5,'Asset data'!$L45:$FG45)*$G45,0) -> 0 | X45: =IF($A45>0,SUMIF('Utilisation profile'!$F45:$FA45,"<" & S45+0.5,'Asset data'!$L45:$FG45)*G45-W45,0) -> 0 | Y45: =IF($A45>0,SUMIF('Utilisation profile'!$F45:$FA45,"<" & T45+0.5,'Asset data'!$L45:$FG45)*G45-X45-W45,0) -> 0 | Z45: =IF($A45>0,SUMIF('Utilisation profile'!$F45:$FA45,"<" & U45+0.5,'Asset data'!$L45:$FG45)*G45-Y45-X45-W45,0) -> 0 | AA45: 0 | AB45: 0 | AC45: 0 | AD45: 0 | AE45: 0 | AF45: 0 | AI45: =IF($A45>0,'aug forecast'!K45,0) -> 0 | AJ45: 0 | AL45: =IF($A45>0,'Asset data'!G45,0) -> 0 | AM45: 0
A46: ='Asset data'!A46 -> 0 | B46: ='Asset data'!B46 -> 0 | C46: ='Asset data'!C46 -> 0 | D46: ='Asset data'!E46 -> 0 | E46: 0 | F46: =IF(A46>0,SUM('Asset data'!L46:FG46),0) -> 0 | G46: =IF(A46>0,'Asset data'!F46,0) -> 0 | H46: 0 | I46: 0 | J46: 0 | K46: 0 | L46: 0 | M46: =IF($A46>0,SUMPRODUCT('Utilisation profile'!$F46:$FA46,'Asset data'!$L46:$FG46)/F46-0.5,0) -> 0 | N46: 0 | O46: =IF($A46>0,'Asset data'!I46,0) -> 0 | P46: 0 | Q46: 0 | R46: 0 | S46: 0 | T46: 0 | U46: 0 | W46: =IF($A46>0,SUMIF('Utilisation profile'!$F46:$FA46,"<" & R46+0.5,'Asset data'!$L46:$FG46)*$G46,0) -> 0 | X46: =IF($A46>0,SUMIF('Utilisation profile'!$F46:$FA46,"<" & S46+0.5,'Asset data'!$L46:$FG46)*G46-W46,0) -> 0 | Y46: =IF($A46>0,SUMIF('Utilisation profile'!$F46:$FA46,"<" & T46+0.5,'Asset data'!$L46:$FG46)*G46-X46-W46,0) -> 0 | Z46: =IF($A46>0,SUMIF('Utilisation profile'!$F46:$FA46,"<" & U46+0.5,'Asset data'!$L46:$FG46)*G46-Y46-X46-W46,0) -> 0 | AA46: 0 | AB46: 0 | AC46: 0 | AD46: 0 | AE46: 0 | AF46: 0 | AI46: =IF($A46>0,'aug forecast'!K46,0) -> 0 | AJ46: 0 | AL46: =IF($A46>0,'Asset data'!G46,0) -> 0 | AM46: 0
A47: ='Asset data'!A47 -> 0 | B47: ='Asset data'!B47 -> 0 | C47: ='Asset data'!C47 -> 0 | D47: ='Asset data'!E47 -> 0 | E47: 0 | F47: =IF(A47>0,SUM('Asset data'!L47:FG47),0) -> 0 | G47: =IF(A47>0,'Asset data'!F47,0) -> 0 | H47: 0 | I47: 0 | J47: 0 | K47: 0 | L47: 0 | M47: =IF($A47>0,SUMPRODUCT('Utilisation profile'!$F47:$FA47,'Asset data'!$L47:$FG47)/F47-0.5,0) -> 0 | N47: 0 | O47: =IF($A47>0,'Asset data'!I47,0) -> 0 | P47: 0 | Q47: 0 | R47: 0 | S47: 0 | T47: 0 | U47: 0 | W47: =IF($A47>0,SUMIF('Utilisation profile'!$F47:$FA47,"<" & R47+0.5,'Asset data'!$L47:$FG47)*$G47,0) -> 0 | X47: =IF($A47>0,SUMIF('Utilisation profile'!$F47:$FA47,"<" & S47+0.5,'Asset data'!$L47:$FG47)*G47-W47,0) -> 0 | Y47: =IF($A47>0,SUMIF('Utilisation profile'!$F47:$FA47,"<" & T47+0.5,'Asset data'!$L47:$FG47)*G47-X47-W47,0) -> 0 | Z47: =IF($A47>0,SUMIF('Utilisation profile'!$F47:$FA47,"<" & U47+0.5,'Asset data'!$L47:$FG47)*G47-Y47-X47-W47,0) -> 0 | AA47: 0 | AB47: 0 | AC47: 0 | AD47: 0 | AE47: 0 | AF47: 0 | AI47: =IF($A47>0,'aug forecast'!K47,0) -> 0 | AJ47: 0 | AL47: =IF($A47>0,'Asset data'!G47,0) -> 0 | AM47: 0
A48: ='Asset data'!A48 -> 0 | B48: ='Asset data'!B48 -> 0 | C48: ='Asset data'!C48 -> 0 | D48: ='Asset data'!E48 -> 0 | E48: 0 | F48: =IF(A48>0,SUM('Asset data'!L48:FG48),0) -> 0 | G48: =IF(A48>0,'Asset data'!F48,0) -> 0 | H48: 0 | I48: 0 | J48: 0 | K48: 0 | L48: 0 | M48: =IF($A48>0,SUMPRODUCT('Utilisation profile'!$F48:$FA48,'Asset data'!$L48:$FG48)/F48-0.5,0) -> 0 | N48: 0 | O48: =IF($A48>0,'Asset data'!I48,0) -> 0 | P48: 0 | Q48: 0 | R48: 0 | S48: 0 | T48: 0 | U48: 0 | W48: =IF($A48>0,SUMIF('Utilisation profile'!$F48:$FA48,"<" & R48+0.5,'Asset data'!$L48:$FG48)*$G48,0) -> 0 | X48: =IF($A48>0,SUMIF('Utilisation profile'!$F48:$FA48,"<" & S48+0.5,'Asset data'!$L48:$FG48)*G48-W48,0) -> 0 | Y48: =IF($A48>0,SUMIF('Utilisation profile'!$F48:$FA48,"<" & T48+0.5,'Asset data'!$L48:$FG48)*G48-X48-W48,0) -> 0 | Z48: =IF($A48>0,SUMIF('Utilisation profile'!$F48:$FA48,"<" & U48+0.5,'Asset data'!$L48:$FG48)*G48-Y48-X48-W48,0) -> 0 | AA48: 0 | AB48: 0 | AC48: 0 | AD48: 0 | AE48: 0 | AF48: 0 | AI48: =IF($A48>0,'aug forecast'!K48,0) -> 0 | AJ48: 0 | AL48: =IF($A48>0,'Asset data'!G48,0) -> 0 | AM48: 0
A49: ='Asset data'!A49 -> 0 | B49: ='Asset data'!B49 -> 0 | C49: ='Asset data'!C49 -> 0 | D49: ='Asset data'!E49 -> 0 | E49: 0 | F49: =IF(A49>0,SUM('Asset data'!L49:FG49),0) -> 0 | G49: =IF(A49>0,'Asset data'!F49,0) -> 0 | H49: 0 | I49: 0 | J49: 0 | K49: 0 | L49: 0 | M49: =IF($A49>0,SUMPRODUCT('Utilisation profile'!$F49:$FA49,'Asset data'!$L49:$FG49)/F49-0.5,0) -> 0 | N49: 0 | O49: =IF($A49>0,'Asset data'!I49,0) -> 0 | P49: 0 | Q49: 0 | R49: 0 | S49: 0 | T49: 0 | U49: 0 | W49: =IF($A49>0,SUMIF('Utilisation profile'!$F49:$FA49,"<" & R49+0.5,'Asset data'!$L49:$FG49)*$G49,0) -> 0 | X49: =IF($A49>0,SUMIF('Utilisation profile'!$F49:$FA49,"<" & S49+0.5,'Asset data'!$L49:$FG49)*G49-W49,0) -> 0 | Y49: =IF($A49>0,SUMIF('Utilisation profile'!$F49:$FA49,"<" & T49+0.5,'Asset data'!$L49:$FG49)*G49-X49-W49,0) -> 0 | Z49: =IF($A49>0,SUMIF('Utilisation profile'!$F49:$FA49,"<" & U49+0.5,'Asset data'!$L49:$FG49)*G49-Y49-X49-W49,0) -> 0 | AA49: 0 | AB49: 0 | AC49: 0 | AD49: 0 | AE49: 0 | AF49: 0 | AI49: =IF($A49>0,'aug forecast'!K49,0) -> 0 | AJ49: 0 | AL49: =IF($A49>0,'Asset data'!G49,0) -> 0 | AM49: 0
A50: ='Asset data'!A50 -> 0 | B50: ='Asset data'!B50 -> 0 | C50: ='Asset data'!C50 -> 0 | D50: ='Asset data'!E50 -> 0 | E50: 0 | F50: =IF(A50>0,SUM('Asset data'!L50:FG50),0) -> 0 | G50: =IF(A50>0,'Asset data'!F50,0) -> 0 | H50: 0 | I50: 0 | J50: 0 | K50: 0 | L50: 0 | M50: =IF($A50>0,SUMPRODUCT('Utilisation profile'!$F50:$FA50,'Asset data'!$L50:$FG50)/F50-0.5,0) -> 0 | N50: 0 | O50: =IF($A50>0,'Asset data'!I50,0) -> 0 | P50: 0 | Q50: 0 | R50: 0 | S50: 0 | T50: 0 | U50: 0 | W50: =IF($A50>0,SUMIF('Utilisation profile'!$F50:$FA50,"<" & R50+0.5,'Asset data'!$L50:$FG50)*$G50,0) -> 0 | X50: =IF($A50>0,SUMIF('Utilisation profile'!$F50:$FA50,"<" & S50+0.5,'Asset data'!$L50:$FG50)*G50-W50,0) -> 0 | Y50: =IF($A50>0,SUMIF('Utilisation profile'!$F50:$FA50,"<" & T50+0.5,'Asset data'!$L50:$FG50)*G50-X50-W50,0) -> 0 | Z50: =IF($A50>0,SUMIF('Utilisation profile'!$F50:$FA50,"<" & U50+0.5,'Asset data'!$L50:$FG50)*G50-Y50-X50-W50,0) -> 0 | AA50: 0 | AB50: 0 | AC50: 0 | AD50: 0 | AE50: 0 | AF50: 0 | AI50: =IF($A50>0,'aug forecast'!K50,0) -> 0 | AJ50: 0 | AL50: =IF($A50>0,'Asset data'!G50,0) -> 0 | AM50: 0
A51: ='Asset data'!A51 -> 0 | B51: ='Asset data'!B51 -> 0 | C51: ='Asset data'!C51 -> 0 | D51: ='Asset data'!E51 -> 0 | E51: 0 | F51: =IF(A51>0,SUM('Asset data'!L51:FG51),0) -> 0 | G51: =IF(A51>0,'Asset data'!F51,0) -> 0 | H51: 0 | I51: 0 | J51: 0 | K51: 0 | L51: 0 | M51: =IF($A51>0,SUMPRODUCT('Utilisation profile'!$F51:$FA51,'Asset data'!$L51:$FG51)/F51-0.5,0) -> 0 | N51: 0 | O51: =IF($A51>0,'Asset data'!I51,0) -> 0 | P51: 0 | Q51: 0 | R51: 0 | S51: 0 | T51: 0 | U51: 0 | W51: =IF($A51>0,SUMIF('Utilisation profile'!$F51:$FA51,"<" & R51+0.5,'Asset data'!$L51:$FG51)*$G51,0) -> 0 | X51: =IF($A51>0,SUMIF('Utilisation profile'!$F51:$FA51,"<" & S51+0.5,'Asset data'!$L51:$FG51)*G51-W51,0) -> 0 | Y51: =IF($A51>0,SUMIF('Utilisation profile'!$F51:$FA51,"<" & T51+0.5,'Asset data'!$L51:$FG51)*G51-X51-W51,0) -> 0 | Z51: =IF($A51>0,SUMIF('Utilisation profile'!$F51:$FA51,"<" & U51+0.5,'Asset data'!$L51:$FG51)*G51-Y51-X51-W51,0) -> 0 | AA51: 0 | AB51: 0 | AC51: 0 | AD51: 0 | AE51: 0 | AF51: 0 | AI51: =IF($A51>0,'aug forecast'!K51,0) -> 0 | AJ51: 0 | AL51: =IF($A51>0,'Asset data'!G51,0) -> 0 | AM51: 0
A52: ='Asset data'!A52 -> 0 | B52: ='Asset data'!B52 -> 0 | C52: ='Asset data'!C52 -> 0 | D52: ='Asset data'!E52 -> 0 | E52: 0 | F52: =IF(A52>0,SUM('Asset data'!L52:FG52),0) -> 0 | G52: =IF(A52>0,'Asset data'!F52,0) -> 0 | H52: 0 | I52: 0 | J52: 0 | K52: 0 | L52: 0 | M52: =IF($A52>0,SUMPRODUCT('Utilisation profile'!$F52:$FA52,'Asset data'!$L52:$FG52)/F52-0.5,0) -> 0 | N52: 0 | O52: =IF($A52>0,'Asset data'!I52,0) -> 0 | P52: 0 | Q52: 0 | R52: 0 | S52: 0 | T52: 0 | U52: 0 | W52: =IF($A52>0,SUMIF('Utilisation profile'!$F52:$FA52,"<" & R52+0.5,'Asset data'!$L52:$FG52)*$G52,0) -> 0 | X52: =IF($A52>0,SUMIF('Utilisation profile'!$F52:$FA52,"<" & S52+0.5,'Asset data'!$L52:$FG52)*G52-W52,0) -> 0 | Y52: =IF($A52>0,SUMIF('Utilisation profile'!$F52:$FA52,"<" & T52+0.5,'Asset data'!$L52:$FG52)*G52-X52-W52,0) -> 0 | Z52: =IF($A52>0,SUMIF('Utilisation profile'!$F52:$FA52,"<" & U52+0.5,'Asset data'!$L52:$FG52)*G52-Y52-X52-W52,0) -> 0 | AA52: 0 | AB52: 0 | AC52: 0 | AD52: 0 | AE52: 0 | AF52: 0 | AI52: =IF($A52>0,'aug forecast'!K52,0) -> 0 | AJ52: 0 | AL52: =IF($A52>0,'Asset data'!G52,0) -> 0 | AM52: 0
A53: ='Asset data'!A53 -> 0 | B53: ='Asset data'!B53 -> 0 | C53: ='Asset data'!C53 -> 0 | D53: ='Asset data'!E53 -> 0 | E53: 0 | F53: =IF(A53>0,SUM('Asset data'!L53:FG53),0) -> 0 | G53: =IF(A53>0,'Asset data'!F53,0) -> 0 | H53: 0 | I53: 0 | J53: 0 | K53: 0 | L53: 0 | M53: =IF($A53>0,SUMPRODUCT('Utilisation profile'!$F53:$FA53,'Asset data'!$L53:$FG53)/F53-0.5,0) -> 0 | N53: 0 | O53: =IF($A53>0,'Asset data'!I53,0) -> 0 | P53: 0 | Q53: 0 | R53: 0 | S53: 0 | T53: 0 | U53: 0 | W53: =IF($A53>0,SUMIF('Utilisation profile'!$F53:$FA53,"<" & R53+0.5,'Asset data'!$L53:$FG53)*$G53,0) -> 0 | X53: =IF($A53>0,SUMIF('Utilisation profile'!$F53:$FA53,"<" & S53+0.5,'Asset data'!$L53:$FG53)*G53-W53,0) -> 0 | Y53: =IF($A53>0,SUMIF('Utilisation profile'!$F53:$FA53,"<" & T53+0.5,'Asset data'!$L53:$FG53)*G53-X53-W53,0) -> 0 | Z53: =IF($A53>0,SUMIF('Utilisation profile'!$F53:$FA53,"<" & U53+0.5,'Asset data'!$L53:$FG53)*G53-Y53-X53-W53,0) -> 0 | AA53: 0 | AB53: 0 | AC53: 0 | AD53: 0 | AE53: 0 | AF53: 0 | AI53: =IF($A53>0,'aug forecast'!K53,0) -> 0 | AJ53: 0 | AL53: =IF($A53>0,'Asset data'!G53,0) -> 0 | AM53: 0
A54: ='Asset data'!A54 -> 0 | B54: ='Asset data'!B54 -> 0 | C54: ='Asset data'!C54 -> 0 | D54: ='Asset data'!E54 -> 0 | E54: 0 | F54: =IF(A54>0,SUM('Asset data'!L54:FG54),0) -> 0 | G54: =IF(A54>0,'Asset data'!F54,0) -> 0 | H54: 0 | I54: 0 | J54: 0 | K54: 0 | L54: 0 | M54: =IF($A54>0,SUMPRODUCT('Utilisation profile'!$F54:$FA54,'Asset data'!$L54:$FG54)/F54-0.5,0) -> 0 | N54: 0 | O54: =IF($A54>0,'Asset data'!I54,0) -> 0 | P54: 0 | Q54: 0 | R54: 0 | S54: 0 | T54: 0 | U54: 0 | W54: =IF($A54>0,SUMIF('Utilisation profile'!$F54:$FA54,"<" & R54+0.5,'Asset data'!$L54:$FG54)*$G54,0) -> 0 | X54: =IF($A54>0,SUMIF('Utilisation profile'!$F54:$FA54,"<" & S54+0.5,'Asset data'!$L54:$FG54)*G54-W54,0) -> 0 | Y54: =IF($A54>0,SUMIF('Utilisation profile'!$F54:$FA54,"<" & T54+0.5,'Asset data'!$L54:$FG54)*G54-X54-W54,0) -> 0 | Z54: =IF($A54>0,SUMIF('Utilisation profile'!$F54:$FA54,"<" & U54+0.5,'Asset data'!$L54:$FG54)*G54-Y54-X54-W54,0) -> 0 | AA54: 0 | AB54: 0 | AC54: 0 | AD54: 0 | AE54: 0 | AF54: 0 | AI54: =IF($A54>0,'aug forecast'!K54,0) -> 0 | AJ54: 0 | AL54: =IF($A54>0,'Asset data'!G54,0) -> 0 | AM54: 0
A55: ='Asset data'!A55 -> 0 | B55: ='Asset data'!B55 -> 0 | C55: ='Asset data'!C55 -> 0 | D55: ='Asset data'!E55 -> 0 | E55: 0 | F55: =IF(A55>0,SUM('Asset data'!L55:FG55),0) -> 0 | G55: =IF(A55>0,'Asset data'!F55,0) -> 0 | H55: 0 | I55: 0 | J55: 0 | K55: 0 | L55: 0 | M55: =IF($A55>0,SUMPRODUCT('Utilisation profile'!$F55:$FA55,'Asset data'!$L55:$FG55)/F55-0.5,0) -> 0 | N55: 0 | O55: =IF($A55>0,'Asset data'!I55,0) -> 0 | P55: 0 | Q55: 0 | R55: 0 | S55: 0 | T55: 0 | U55: 0 | W55: =IF($A55>0,SUMIF('Utilisation profile'!$F55:$FA55,"<" & R55+0.5,'Asset data'!$L55:$FG55)*$G55,0) -> 0 | X55: =IF($A55>0,SUMIF('Utilisation profile'!$F55:$FA55,"<" & S55+0.5,'Asset data'!$L55:$FG55)*G55-W55,0) -> 0 | Y55: =IF($A55>0,SUMIF('Utilisation profile'!$F55:$FA55,"<" & T55+0.5,'Asset data'!$L55:$FG55)*G55-X55-W55,0) -> 0 | Z55: =IF($A55>0,SUMIF('Utilisation profile'!$F55:$FA55,"<" & U55+0.5,'Asset data'!$L55:$FG55)*G55-Y55-X55-W55,0) -> 0 | AA55: 0 | AB55: 0 | AC55: 0 | AD55: 0 | AE55: 0 | AF55: 0 | AI55: =IF($A55>0,'aug forecast'!K55,0) -> 0 | AJ55: 0 | AL55: =IF($A55>0,'Asset data'!G55,0) -> 0 | AM55: 0
A56: ='Asset data'!A56 -> 0 | B56: ='Asset data'!B56 -> 0 | C56: ='Asset data'!C56 -> 0 | D56: ='Asset data'!E56 -> 0 | E56: 0 | F56: =IF(A56>0,SUM('Asset data'!L56:FG56),0) -> 0 | G56: =IF(A56>0,'Asset data'!F56,0) -> 0 | H56: 0 | I56: 0 | J56: 0 | K56: 0 | L56: 0 | M56: =IF($A56>0,SUMPRODUCT('Utilisation profile'!$F56:$FA56,'Asset data'!$L56:$FG56)/F56-0.5,0) -> 0 | N56: 0 | O56: =IF($A56>0,'Asset data'!I56,0) -> 0 | P56: 0 | Q56: 0 | R56: 0 | S56: 0 | T56: 0 | U56: 0 | W56: =IF($A56>0,SUMIF('Utilisation profile'!$F56:$FA56,"<" & R56+0.5,'Asset data'!$L56:$FG56)*$G56,0) -> 0 | X56: =IF($A56>0,SUMIF('Utilisation profile'!$F56:$FA56,"<" & S56+0.5,'Asset data'!$L56:$FG56)*G56-W56,0) -> 0 | Y56: =IF($A56>0,SUMIF('Utilisation profile'!$F56:$FA56,"<" & T56+0.5,'Asset data'!$L56:$FG56)*G56-X56-W56,0) -> 0 | Z56: =IF($A56>0,SUMIF('Utilisation profile'!$F56:$FA56,"<" & U56+0.5,'Asset data'!$L56:$FG56)*G56-Y56-X56-W56,0) -> 0 | AA56: 0 | AB56: 0 | AC56: 0 | AD56: 0 | AE56: 0 | AF56: 0 | AI56: =IF($A56>0,'aug forecast'!K56,0) -> 0 | AJ56: 0 | AL56: =IF($A56>0,'Asset data'!G56,0) -> 0 | AM56: 0
A57: ='Asset data'!A57 -> 0 | B57: ='Asset data'!B57 -> 0 | C57: ='Asset data'!C57 -> 0 | D57: ='Asset data'!E57 -> 0 | E57: 0 | F57: =IF(A57>0,SUM('Asset data'!L57:FG57),0) -> 0 | G57: =IF(A57>0,'Asset data'!F57,0) -> 0 | H57: 0 | I57: 0 | J57: 0 | K57: 0 | L57: 0 | M57: =IF($A57>0,SUMPRODUCT('Utilisation profile'!$F57:$FA57,'Asset data'!$L57:$FG57)/F57-0.5,0) -> 0 | N57: 0 | O57: =IF($A57>0,'Asset data'!I57,0) -> 0 | P57: 0 | Q57: 0 | R57: 0 | S57: 0 | T57: 0 | U57: 0 | W57: =IF($A57>0,SUMIF('Utilisation profile'!$F57:$FA57,"<" & R57+0.5,'Asset data'!$L57:$FG57)*$G57,0) -> 0 | X57: =IF($A57>0,SUMIF('Utilisation profile'!$F57:$FA57,"<" & S57+0.5,'Asset data'!$L57:$FG57)*G57-W57,0) -> 0 | Y57: =IF($A57>0,SUMIF('Utilisation profile'!$F57:$FA57,"<" & T57+0.5,'Asset data'!$L57:$FG57)*G57-X57-W57,0) -> 0 | Z57: =IF($A57>0,SUMIF('Utilisation profile'!$F57:$FA57,"<" & U57+0.5,'Asset data'!$L57:$FG57)*G57-Y57-X57-W57,0) -> 0 | AA57: 0 | AB57: 0 | AC57: 0 | AD57: 0 | AE57: 0 | AF57: 0 | AI57: =IF($A57>0,'aug forecast'!K57,0) -> 0 | AJ57: 0 | AL57: =IF($A57>0,'Asset data'!G57,0) -> 0 | AM57: 0
A58: ='Asset data'!A58 -> 0 | B58: ='Asset data'!B58 -> 0 | C58: ='Asset data'!C58 -> 0 | D58: ='Asset data'!E58 -> 0 | E58: 0 | F58: =IF(A58>0,SUM('Asset data'!L58:FG58),0) -> 0 | G58: =IF(A58>0,'Asset data'!F58,0) -> 0 | H58: 0 | I58: 0 | J58: 0 | K58: 0 | L58: 0 | M58: =IF($A58>0,SUMPRODUCT('Utilisation profile'!$F58:$FA58,'Asset data'!$L58:$FG58)/F58-0.5,0) -> 0 | N58: 0 | O58: =IF($A58>0,'Asset data'!I58,0) -> 0 | P58: 0 | Q58: 0 | R58: 0 | S58: 0 | T58: 0 | U58: 0 | W58: =IF($A58>0,SUMIF('Utilisation profile'!$F58:$FA58,"<" & R58+0.5,'Asset data'!$L58:$FG58)*$G58,0) -> 0 | X58: =IF($A58>0,SUMIF('Utilisation profile'!$F58:$FA58,"<" & S58+0.5,'Asset data'!$L58:$FG58)*G58-W58,0) -> 0 | Y58: =IF($A58>0,SUMIF('Utilisation profile'!$F58:$FA58,"<" & T58+0.5,'Asset data'!$L58:$FG58)*G58-X58-W58,0) -> 0 | Z58: =IF($A58>0,SUMIF('Utilisation profile'!$F58:$FA58,"<" & U58+0.5,'Asset data'!$L58:$FG58)*G58-Y58-X58-W58,0) -> 0 | AA58: 0 | AB58: 0 | AC58: 0 | AD58: 0 | AE58: 0 | AF58: 0 | AI58: =IF($A58>0,'aug forecast'!K58,0) -> 0 | AJ58: 0 | AL58: =IF($A58>0,'Asset data'!G58,0) -> 0 | AM58: 0
A59: ='Asset data'!A59 -> 0 | B59: ='Asset data'!B59 -> 0 | C59: ='Asset data'!C59 -> 0 | D59: ='Asset data'!E59 -> 0 | E59: 0 | F59: =IF(A59>0,SUM('Asset data'!L59:FG59),0) -> 0 | G59: =IF(A59>0,'Asset data'!F59,0) -> 0 | H59: 0 | I59: 0 | J59: 0 | K59: 0 | L59: 0 | M59: =IF($A59>0,SUMPRODUCT('Utilisation profile'!$F59:$FA59,'Asset data'!$L59:$FG59)/F59-0.5,0) -> 0 | N59: 0 | O59: =IF($A59>0,'Asset data'!I59,0) -> 0 | P59: 0 | Q59: 0 | R59: 0 | S59: 0 | T59: 0 | U59: 0 | W59: =IF($A59>0,SUMIF('Utilisation profile'!$F59:$FA59,"<" & R59+0.5,'Asset data'!$L59:$FG59)*$G59,0) -> 0 | X59: =IF($A59>0,SUMIF('Utilisation profile'!$F59:$FA59,"<" & S59+0.5,'Asset data'!$L59:$FG59)*G59-W59,0) -> 0 | Y59: =IF($A59>0,SUMIF('Utilisation profile'!$F59:$FA59,"<" & T59+0.5,'Asset data'!$L59:$FG59)*G59-X59-W59,0) -> 0 | Z59: =IF($A59>0,SUMIF('Utilisation profile'!$F59:$FA59,"<" & U59+0.5,'Asset data'!$L59:$FG59)*G59-Y59-X59-W59,0) -> 0 | AA59: 0 | AB59: 0 | AC59: 0 | AD59: 0 | AE59: 0 | AF59: 0 | AI59: =IF($A59>0,'aug forecast'!K59,0) -> 0 | AJ59: 0 | AL59: =IF($A59>0,'Asset data'!G59,0) -> 0 | AM59: 0
A60: ='Asset data'!A60 -> 0 | B60: ='Asset data'!B60 -> 0 | C60: ='Asset data'!C60 -> 0 | D60: ='Asset data'!E60 -> 0 | E60: 0 | F60: =IF(A60>0,SUM('Asset data'!L60:FG60),0) -> 0 | G60: =IF(A60>0,'Asset data'!F60,0) -> 0 | H60: 0 | I60: 0 | J60: 0 | K60: 0 | L60: 0 | M60: =IF($A60>0,SUMPRODUCT('Utilisation profile'!$F60:$FA60,'Asset data'!$L60:$FG60)/F60-0.5,0) -> 0 | N60: 0 | O60: =IF($A60>0,'Asset data'!I60,0) -> 0 | P60: 0 | Q60: 0 | R60: 0 | S60: 0 | T60: 0 | U60: 0 | W60: =IF($A60>0,SUMIF('Utilisation profile'!$F60:$FA60,"<" & R60+0.5,'Asset data'!$L60:$FG60)*$G60,0) -> 0 | X60: =IF($A60>0,SUMIF('Utilisation profile'!$F60:$FA60,"<" & S60+0.5,'Asset data'!$L60:$FG60)*G60-W60,0) -> 0 | Y60: =IF($A60>0,SUMIF('Utilisation profile'!$F60:$FA60,"<" & T60+0.5,'Asset data'!$L60:$FG60)*G60-X60-W60,0) -> 0 | Z60: =IF($A60>0,SUMIF('Utilisation profile'!$F60:$FA60,"<" & U60+0.5,'Asset data'!$L60:$FG60)*G60-Y60-X60-W60,0) -> 0 | AA60: 0 | AB60: 0 | AC60: 0 | AD60: 0 | AE60: 0 | AF60: 0 | AI60: =IF($A60>0,'aug forecast'!K60,0) -> 0 | AJ60: 0 | AL60: =IF($A60>0,'Asset data'!G60,0) -> 0 | AM60: 0
A61: ='Asset data'!A61 -> 0 | B61: ='Asset data'!B61 -> 0 | C61: ='Asset data'!C61 -> 0 | D61: ='Asset data'!E61 -> 0 | E61: 0 | F61: =IF(A61>0,SUM('Asset data'!L61:FG61),0) -> 0 | G61: =IF(A61>0,'Asset data'!F61,0) -> 0 | H61: 0 | I61: 0 | J61: 0 | K61: 0 | L61: 0 | M61: =IF($A61>0,SUMPRODUCT('Utilisation profile'!$F61:$FA61,'Asset data'!$L61:$FG61)/F61-0.5,0) -> 0 | N61: 0 | O61: =IF($A61>0,'Asset data'!I61,0) -> 0 | P61: 0 | Q61: 0 | R61: 0 | S61: 0 | T61: 0 | U61: 0 | W61: =IF($A61>0,SUMIF('Utilisation profile'!$F61:$FA61,"<" & R61+0.5,'Asset data'!$L61:$FG61)*$G61,0) -> 0 | X61: =IF($A61>0,SUMIF('Utilisation profile'!$F61:$FA61,"<" & S61+0.5,'Asset data'!$L61:$FG61)*G61-W61,0) -> 0 | Y61: =IF($A61>0,SUMIF('Utilisation profile'!$F61:$FA61,"<" & T61+0.5,'Asset data'!$L61:$FG61)*G61-X61-W61,0) -> 0 | Z61: =IF($A61>0,SUMIF('Utilisation profile'!$F61:$FA61,"<" & U61+0.5,'Asset data'!$L61:$FG61)*G61-Y61-X61-W61,0) -> 0 | AA61: 0 | AB61: 0 | AC61: 0 | AD61: 0 | AE61: 0 | AF61: 0 | AI61: =IF($A61>0,'aug forecast'!K61,0) -> 0 | AJ61: 0 | AL61: =IF($A61>0,'Asset data'!G61,0) -> 0 | AM61: 0
AI206: =IF($A206>0,#REF!,0) -> 0 | AJ206: =IF($A206>0,AI206*H206,0) -> 0

Sheet aug forecast
A1: Asset calcs | AY1: Augmentation capacity added (MVA) | BS1: Weighted average utilisation forecast (WAA) | CN1: Weighted average remaining utilisation forecast (WARL) | DI1: Augmentation expendiutre forecast ($ millions)
AY2: 1 | AZ2: 2 | BA2: 3 | BB2: 4 | BC2: 5 | BD2: 6 | BE2: 7 | BF2: 8 | BG2: 9 | BH2: 10 | BI2: 11 | BJ2: 12 | BK2: 13 | BL2: 14 | BM2: 15 | BN2: 16 | BO2: 17 | BP2: 18 | BQ2: 19 | BR2: 20 | BS2: 0 | BT2: 1 | BU2: 2 | BV2: 3 | BW2: 4 | BX2: 5 | BY2: 6 | BZ2: 7 | CA2: 8 | CB2: 9 | CC2: 10 | CD2: 11 | CE2: 12 | CF2: 13 | CG2: 14 | CH2: 15 | CI2: 16 | CJ2: 17 | CK2: 18 | CL2: 19 | CM2: 20 | CN2: 0 | CO2: 1 | CP2: 2 | CQ2: 3 | CR2: 4 | CS2: 5 | CT2: 6 | CU2: 7 | CV2: 8 | CW2: 9 | CX2: 10 | CY2: 11 | CZ2: 12 | DA2: 13 | DB2: 14 | DC2: 15 | DD2: 16 | DE2: 17 | DF2: 18 | DG2: 19 | DH2: 20 | DI2: 1 | DJ2: 2 | DK2: 3 | DL2: 4 | DM2: 5 | DN2: 6 | DO2: 7 | DP2: 8 | DQ2: 9 | DR2: 10 | DS2: 11 | DT2: 12 | DU2: 13 | DV2: 14 | DW2: 15 | DX2: 16 | DY2: 17 | DZ2: 18 | EA2: 19 | EB2: 20
Q3: DNSP
G4: Historical | Q4: Forcast | AO4: Model forecast
E5: year | G5: =H5-1 -> 2004 | H5: 2005 | I5: 2006 | J5: 2007 | K5: 2008 | L5: 2009 | M5: 2010 | N5: 2011 | O5: =P5-1 -> 2012 | P5: =IF(Tables!B19=1,Now,Now-1) -> 2013 | Q5: =P5+1 -> 2014 | R5: =Q5+1 -> 2015 | S5: 2016 | T5: 2017 | U5: 2018 | V5: 2019 | W5: 2020 | X5: 2021 | Y5: 2022 | Z5: 2023 | AA5: =Z5+1 -> 2024 | AB5: 2025 | AC5: 2026 | AD5: 2027 | AE5: 2028 | AF5: 2029 | AG5: 2030 | AH5: 2031 | AI5: 2032 | AJ5: 2033 | AO5: =G5 -> 2004 | AP5: 2005 | AQ5: 2006 | AR5: 2007 | AS5: 2008 | AT5: 2009 | AU5: 2010 | AV5: 2011 | AW5: 2012 | AX5: 2013 | AY5: 2014 | AZ5: 2015 | BA5: 2016 | BB5: 2017 | BC5: 2018 | BD5: 2019 | BE5: 2020 | BF5: 2021 | BG5: 2022 | BH5: 2023 | BI5: 2024 | BJ5: 2025 | BK5: 2026 | BL5: 2027 | BM5: 2028 | BN5: 2029 | BO5: 2030 | BP5: 2031 | BQ5: 2032 | BR5: 2033 | BS5: =AX5 -> 2013 | BT5: =AY5 -> 2014 | BU5: 2015 | BV5: 2016 | BW5: 2017 | BX5: 2018 | BY5: 2019 | BZ5: 2020 | CA5: 2021 | CB5: 2022 | CC5: 2023 | CD5: 2024 | CE5: 2025 | CF5: 2026 | CG5: 2027 | CH5: 2028 | CI5: 2029 | CJ5: 2030 | CK5: 2031 | CL5: 2032 | CM5: 2033 | CN5: =BS5 -> 2013 | CO5: =BT5 -> 2014 | CP5: 2015 | CQ5: 2016 | CR5: 2017 | CS5: 2018 | CT5: 2019 | CU5: 2020 | CV5: 2021 | CW5: 2022 | CX5: 2023 | CY5: 2024 | CZ5: 2025 | DA5: 2026 | DB5: 2027 | DC5: 2028 | DD5: 2029 | DE5: 2030 | DF5: 2031 | DG5: 2032 | DH5: 2033 | DI5: =AY5 -> 2014 | DJ5: =AZ5 -> 2015 | DK5: 2016 | DL5: 2017 | DM5: 2018 | DN5: 2019 | DO5: 2020 | DP5: 2021 | DQ5: 2022 | DR5: 2023 | DS5: 2024 | DT5: 2025 | DU5: 2026 | DV5: 2027 | DW5: 2028 | DX5: 2029 | DY5: 2030 | DZ5: 2031 | EA5: 2032 | EB5: 2033
A6: 1 | D6: =VLOOKUP(A6,IDtable,2) -> Subtransmission Lines | E6: =D6 -> Subtransmission Lines | AN6: =D6 & " (mod)" -> Subtransmission Lines (mod) | AY6: =SUMIF($A$21:$A$205,$A6,AY$21:AY$205) -> 529.121448 | AZ6: 393.9664233 | BA6: 349.5477804 | BB6: 357.4991763 | BC6: 387.5977278 | BD6: 420.1802923 | BE6: 443.4971491 | BF6: 451.9321899 | BG6: 446.0344033 | BH6: 432.0503042 | BI6: 418.8077839 | BJ6: 412.7594433 | BK6: 414.5540319 | BL6: 419.5025293 | BM6: 420.8543826 | BN6: 412.1081347 | BO6: =SUMIF($A$21:$A$205,$A6,BO$21:BO$205) -> 385.6695014 | BP6: 333.688396 | BQ6: 253.9385448 | BR6: 157.8388693 | BS6: =SUM(IF($A$21:$A$205=$A6,CN$21:CN$205))/('Utilisation profile summary'!$H6*1000+0.000001) -> 66.56923873 | BT6: =SUM(IF($A$21:$A$205=$A6,CO$21:CO$205))/('Utilisation profile summary'!$H6*1000+0.000001) -> 64.14362852 | BU6: =SUM(IF($A$21:$A$205=$A6,CP$21:CP$205))/('Utilisation profile summary'!$H6*1000+0.000001) -> 63.14120689 | BV6: =SUM(IF($A$21:$A$205=$A6,CQ$21:CQ$205))/('Utilisation profile summary'!$H6*1000+0.000001) -> 62.58569149 | BW6: =SUM(IF($A$21:$A$205=$A6,CR$21:CR$205))/('Utilisation profile summary'!$H6*1000+0.000001) -> 62.1106413 | BX6: =SUM(IF($A$21:$A$205=$A6,CS$21:CS$205))/('Utilisation profile summary'!$H6*1000+0.000001) -> 61.60068884 | BY6: =SUM(IF($A$21:$A$205=$A6,CT$21:CT$205))/('Utilisation profile summary'!$H6*1000+0.000001) -> 61.05729702 | BZ6: =SUM(IF($A$21:$A$205=$A6,CU$21:CU$205))/('Utilisation profile summary'!$H6*1000+0.000001) -> 60.52567742 | CA6: =SUM(IF($A$21:$A$205=$A6,CV$21:CV$205))/('Utilisation profile summary'!$H6*1000+0.000001) -> 60.05672616 | CB6: =SUM(IF($A$21:$A$205=$A6,CW$21:CW$205))/('Utilisation profile summary'!$H6*1000+0.000001) -> 59.68854593 | CC6: =SUM(IF($A$21:$A$205=$A6,CX$21:CX$205))/('Utilisation profile summary'!$H6*1000+0.000001) -> 59.43769226 | CD6: =SUM(IF($A$21:$A$205=$A6,CY$21:CY$205))/('Utilisation profile summary'!$H6*1000+0.000001) -> 59.2976395 | CE6: =SUM(IF($A$21:$A$205=$A6,CZ$21:CZ$205))/('Utilisation profile summary'!$H6*1000+0.000001) -> 59.24568954 | CF6: =SUM(IF($A$21:$A$205=$A6,DA$21:DA$205))/('Utilisation profile summary'!$H6*1000+0.000001) -> 59.25706793 | CG6: =SUM(IF($A$21:$A$205=$A6,DB$21:DB$205))/('Utilisation profile summary'!$H6*1000+0.000001) -> 59.31911939 | CH6: =SUM(IF($A$21:$A$205=$A6,DC$21:DC$205))/('Utilisation profile summary'!$H6*1000+0.000001) -> 59.4374373 | CI6: =SUM(IF($A$21:$A$205=$A6,DD$21:DD$205))/('Utilisation profile summary'!$H6*1000+0.000001) -> 59.63481074 | CJ6: =SUM(IF($A$21:$A$205=$A6,DE$21:DE$205))/('Utilisation profile summary'!$H6*1000+0.000001) -> 59.95266391 | CK6: =SUM(IF($A$21:$A$205=$A6,DF$21:DF$205))/('Utilisation profile summary'!$H6*1000+0.000001) -> 60.45077696 | CL6: =SUM(IF($A$21:$A$205=$A6,DG$21:DG$205))/('Utilisation profile summary'!$H6*1000+0.000001) -> 61.19647471 | CM6: =SUM(IF($A$21:$A$205=$A6,DH$21:DH$205))/('Utilisation profile summary'!$H6*1000+0.000001) -> 62.23868414 | CN6: ='Utilisation profile summary'!$O6-'aug forecast'!BS6 -> 46.83718379 | CO6: ='Utilisation profile summary'!$O6-'aug forecast'!BT6 -> 49.262794 | CP6: ='Utilisation profile summary'!$O6-'aug forecast'!BU6 -> 50.26521563 | CQ6: ='Utilisation profile summary'!$O6-'aug forecast'!BV6 -> 50.82073103 | CR6: ='Utilisation profile summary'!$O6-'aug forecast'!BW6 -> 51.29578122 | CS6: ='Utilisation profile summary'!$O6-'aug forecast'!BX6 -> 51.80573368 | CT6: ='Utilisation profile summary'!$O6-'aug forecast'!BY6 -> 52.3491255 | CU6: ='Utilisation profile summary'!$O6-'aug forecast'!BZ6 -> 52.8807451 | CV6: ='Utilisation profile summary'!$O6-'aug forecast'!CA6 -> 53.34969636 | CW6: ='Utilisation profile summary'!$O6-'aug forecast'!CB6 -> 53.7178766 | CX6: ='Utilisation profile summary'!$O6-'aug forecast'!CC6 -> 53.96873027 | CY6: ='Utilisation profile summary'!$O6-'aug forecast'!CD6 -> 54.10878302 | CZ6: ='Utilisation profile summary'!$O6-'aug forecast'!CE6 -> 54.16073298 | DA6: ='Utilisation profile summary'!$O6-'aug forecast'!CF6 -> 54.1493546 | DB6: ='Utilisation profile summary'!$O6-'aug forecast'!CG6 -> 54.08730313 | DC6: ='Utilisation profile summary'!$O6-'aug forecast'!CH6 -> 53.96898523 | DD6: ='Utilisation profile summary'!$O6-'aug forecast'!CI6 -> 53.77161178 | DE6: ='Utilisation profile summary'!$O6-'aug forecast'!CJ6 -> 53.45375861 | DF6: ='Utilisation profile summary'!$O6-'aug forecast'!CK6 -> 52.95564556 | DG6: ='Utilisation profile summary'!$O6-'aug forecast'!CL6 -> 52.20994781 | DH6: ='Utilisation profile summary'!$O6-'aug forecast'!CM6 -> 51.16773838 | DI6: =SUMIF($A$21:$A$205,$A6,DI$21:DI$205) -> 37.97557605 | DJ6: 28.27536462 | DK6: 25.08739415 | DL6: 25.6580738 | DM6: 27.81827697 | DN6: 30.15676024 | DO6: 31.8302344 | DP6: 32.43562572 | DQ6: 32.01233567 | DR6: 31.00868288 | DS6: 30.05825394 | DT6: 29.62415848 | DU6: 29.7529579 | DV6: 30.10811651 | DW6: 30.20514038 | DX6: 29.57741341 | DY6: =SUMIF($A$21:$A$205,$A6,DY$21:DY$205) -> 27.67988623 | DZ6: 23.94915026 | EA6: 18.22542359 | EB6: 11.32825367
A7: 2 | D7: HV Feeders | E7: HV Feeders | AN7: =D7 & " (mod)" -> HV Feeders (mod) | AY7: 254.2742099 | AZ7: 229.8772312 | BA7: 211.5524001 | BB7: 197.4039586 | BC7: 186.0754298 | BD7: 176.6785149 | BE7: 168.6398513 | BF7: 161.5885359 | BG7: 155.2847241 | BH7: 149.572675 | BI7: 144.1391276 | BJ7: 138.8016329 | BK7: 133.6218327 | BL7: 128.4708613 | BM7: 123.2115185 | BN7: 117.710096 | BO7: 111.8546078 | BP7: 105.5723673 | BQ7: 98.9133503 | BR7: 91.91872674 | BS7: =SUM(IF($A$21:$A$205=$A7,CN$21:CN$205))/('Utilisation profile summary'!$H7*1000+0.000001) -> 60.76613874 | BT7: =SUM(IF($A$21:$A$205=$A7,CO$21:CO$205))/('Utilisation profile summary'!$H7*1000+0.000001) -> 58.23332818 | BU7: =SUM(IF($A$21:$A$205=$A7,CP$21:CP$205))/('Utilisation profile summary'!$H7*1000+0.000001) -> 56.42287508 | BV7: =SUM(IF($A$21:$A$205=$A7,CQ$21:CQ$205))/('Utilisation profile summary'!$H7*1000+0.000001) -> 55.06390344 | BW7: =SUM(IF($A$21:$A$205=$A7,CR$21:CR$205))/('Utilisation profile summary'!$H7*1000+0.000001) -> 54.0093569 | BX7: =SUM(IF($A$21:$A$205=$A7,CS$21:CS$205))/('Utilisation profile summary'!$H7*1000+0.000001) -> 53.17327029 | BY7: =SUM(IF($A$21:$A$205=$A7,CT$21:CT$205))/('Utilisation profile summary'!$H7*1000+0.000001) -> 52.50192621 | BZ7: =SUM(IF($A$21:$A$205=$A7,CU$21:CU$205))/('Utilisation profile summary'!$H7*1000+0.000001) -> 51.95971328 | CA7: =SUM(IF($A$21:$A$205=$A7,CV$21:CV$205))/('Utilisation profile summary'!$H7*1000+0.000001) -> 51.52177744 | CB7: =SUM(IF($A$21:$A$205=$A7,CW$21:CW$205))/('Utilisation profile summary'!$H7*1000+0.000001) -> 51.16998344 | CC7: =SUM(IF($A$21:$A$205=$A7,CX$21:CX$205))/('Utilisation profile summary'!$H7*1000+0.000001) -> 50.89059024 | CD7: =SUM(IF($A$21:$A$205=$A7,CY$21:CY$205))/('Utilisation profile summary'!$H7*1000+0.000001) -> 50.67462072 | CE7: =SUM(IF($A$21:$A$205=$A7,CZ$21:CZ$205))/('Utilisation profile summary'!$H7*1000+0.000001) -> 50.5160423 | CF7: =SUM(IF($A$21:$A$205=$A7,DA$21:DA$205))/('Utilisation profile summary'!$H7*1000+0.000001) -> 50.40932617 | CG7: =SUM(IF($A$21:$A$205=$A7,DB$21:DB$205))/('Utilisation profile summary'!$H7*1000+0.000001) -> 50.35077672 | CH7: =SUM(IF($A$21:$A$205=$A7,DC$21:DC$205))/('Utilisation profile summary'!$H7*1000+0.000001) -> 50.33836045 | CI7: =SUM(IF($A$21:$A$205=$A7,DD$21:DD$205))/('Utilisation profile summary'!$H7*1000+0.000001) -> 50.37150922 | CJ7: =SUM(IF($A$21:$A$205=$A7,DE$21:DE$205))/('Utilisation profile summary'!$H7*1000+0.000001) -> 50.45084537 | CK7: =SUM(IF($A$21:$A$205=$A7,DF$21:DF$205))/('Utilisation profile summary'!$H7*1000+0.000001) -> 50.57783038 | CL7: =SUM(IF($A$21:$A$205=$A7,DG$21:DG$205))/('Utilisation profile summary'!$H7*1000+0.000001) -> 50.75381304 | CM7: =SUM(IF($A$21:$A$205=$A7,DH$21:DH$205))/('Utilisation profile summary'!$H7*1000+0.000001) -> 50.98010901 | CN7: ='Utilisation profile summary'!$O7-'aug forecast'!BS7 -> 24.4959541 | CO7: ='Utilisation profile summary'!$O7-'aug forecast'!BT7 -> 27.02876466 | CP7: ='Utilisation profile summary'!$O7-'aug forecast'!BU7 -> 28.83921776 | CQ7: ='Utilisation profile summary'!$O7-'aug forecast'!BV7 -> 30.1981894 | CR7: ='Utilisation profile summary'!$O7-'aug forecast'!BW7 -> 31.25273594 | CS7: ='Utilisation profile summary'!$O7-'aug forecast'!BX7 -> 32.08882255 | CT7: ='Utilisation profile summary'!$O7-'aug forecast'!BY7 -> 32.76016663 | CU7: ='Utilisation profile summary'!$O7-'aug forecast'!BZ7 -> 33.30237956 | CV7: ='Utilisation profile summary'!$O7-'aug forecast'!CA7 -> 33.7403154 | CW7: ='Utilisation profile summary'!$O7-'aug forecast'!CB7 -> 34.0921094 | CX7: ='Utilisation profile summary'!$O7-'aug forecast'!CC7 -> 34.3715026 | CY7: ='Utilisation profile summary'!$O7-'aug forecast'!CD7 -> 34.58747212 | CZ7: ='Utilisation profile summary'!$O7-'aug forecast'!CE7 -> 34.74605054 | DA7: ='Utilisation profile summary'!$O7-'aug forecast'!CF7 -> 34.85276667 | DB7: ='Utilisation profile summary'!$O7-'aug forecast'!CG7 -> 34.91131612 | DC7: ='Utilisation profile summary'!$O7-'aug forecast'!CH7 -> 34.92373239 | DD7: ='Utilisation profile summary'!$O7-'aug forecast'!CI7 -> 34.89058362 | DE7: ='Utilisation profile summary'!$O7-'aug forecast'!CJ7 -> 34.81124747 | DF7: ='Utilisation profile summary'!$O7-'aug forecast'!CK7 -> 34.68426246 | DG7: ='Utilisation profile summary'!$O7-'aug forecast'!CL7 -> 34.5082798 | DH7: ='Utilisation profile summary'!$O7-'aug forecast'!CM7 -> 34.28198383 | DI7: 33.59071266 | DJ7: 30.26700744 | DK7: 27.78025007 | DL7: 25.8680416 | DM7: 24.34356329 | DN7: 23.0833505 | DO7: 22.00710431 | DP7: 21.06277515 | DQ7: 20.21679767 | DR7: 19.44751958 | DS7: 18.71800822 | DT7: 18.00648336 | DU7: 17.31808842 | DV7: 16.63763585 | DW7: 15.94918192 | DX7: 15.23728003 | DY7: 14.48896786 | DZ7: 13.69567194 | EA7: 12.86215502 | EB7: 11.99208585
A8: 3 | D8: Zone Substation | E8: Zone Substation | AN8: Zone Substation (mod) | AY8: 59.46290812 | AZ8: 61.82331523 | BA8: 64.16908529 | BB8: 66.49575498 | BC8: 68.80159247 | BD8: 71.08807967 | BE8: 73.36040576 | BF8: 75.62795782 | BG8: 77.90463839 | BH8: 80.20873008 | BI8: 78.88936656 | BJ8: 73.2970337 | BK8: 66.97604146 | BL8: 60.09983385 | BM8: 52.90900138 | BN8: 45.68974423 | BO8: 38.73273225 | BP8: 32.28239234 | BQ8: 26.50246954 | BR8: 21.47530124 | BS8: =SUM(IF($A$21:$A$205=$A8,CN$21:CN$205))/('Utilisation profile summary'!$H8*1000+0.000001) -> 68.55989408 | BT8: =SUM(IF($A$21:$A$205=$A8,CO$21:CO$205))/('Utilisation profile summary'!$H8*1000+0.000001) -> 68.95913558 | BU8: =SUM(IF($A$21:$A$205=$A8,CP$21:CP$205))/('Utilisation profile summary'!$H8*1000+0.000001) -> 69.3366657 | BV8: =SUM(IF($A$21:$A$205=$A8,CQ$21:CQ$205))/('Utilisation profile summary'!$H8*1000+0.000001) -> 69.69516857 | BW8: =SUM(IF($A$21:$A$205=$A8,CR$21:CR$205))/('Utilisation profile summary'!$H8*1000+0.000001) -> 70.03741701 | BX8: =SUM(IF($A$21:$A$205=$A8,CS$21:CS$205))/('Utilisation profile summary'!$H8*1000+0.000001) -> 70.36616096 | BY8: =SUM(IF($A$21:$A$205=$A8,CT$21:CT$205))/('Utilisation profile summary'!$H8*1000+0.000001) -> 70.68401588 | BZ8: =SUM(IF($A$21:$A$205=$A8,CU$21:CU$205))/('Utilisation profile summary'!$H8*1000+0.000001) -> 70.99335422 | CA8: =SUM(IF($A$21:$A$205=$A8,CV$21:CV$205))/('Utilisation profile summary'!$H8*1000+0.000001) -> 71.29620276 | CB8: =SUM(IF($A$21:$A$205=$A8,CW$21:CW$205))/('Utilisation profile summary'!$H8*1000+0.000001) -> 71.59415134 | CC8: =SUM(IF($A$21:$A$205=$A8,CX$21:CX$205))/('Utilisation profile summary'!$H8*1000+0.000001) -> 71.88828333 | CD8: =SUM(IF($A$21:$A$205=$A8,CY$21:CY$205))/('Utilisation profile summary'!$H8*1000+0.000001) -> 72.26318181 | CE8: =SUM(IF($A$21:$A$205=$A8,CZ$21:CZ$205))/('Utilisation profile summary'!$H8*1000+0.000001) -> 72.81166657 | CF8: =SUM(IF($A$21:$A$205=$A8,DA$21:DA$205))/('Utilisation profile summary'!$H8*1000+0.000001) -> 73.54321691 | CG8: =SUM(IF($A$21:$A$205=$A8,DB$21:DB$205))/('Utilisation profile summary'!$H8*1000+0.000001) -> 74.46536377 | CH8: =SUM(IF($A$21:$A$205=$A8,DC$21:DC$205))/('Utilisation profile summary'!$H8*1000+0.000001) -> 75.58266694 | CI8: =SUM(IF($A$21:$A$205=$A8,DD$21:DD$205))/('Utilisation profile summary'!$H8*1000+0.000001) -> 76.89591444 | CJ8: =SUM(IF($A$21:$A$205=$A8,DE$21:DE$205))/('Utilisation profile summary'!$H8*1000+0.000001) -> 78.40189054 | CK8: =SUM(IF($A$21:$A$205=$A8,DF$21:DF$205))/('Utilisation profile summary'!$H8*1000+0.000001) -> 80.09394132 | CL8: =SUM(IF($A$21:$A$205=$A8,DG$21:DG$205))/('Utilisation profile summary'!$H8*1000+0.000001) -> 81.96311056 | CM8: =SUM(IF($A$21:$A$205=$A8,DH$21:DH$205))/('Utilisation profile summary'!$H8*1000+0.000001) -> 83.99926949 | CN8: ='Utilisation profile summary'!$O8-'aug forecast'!BS8 -> 12.49817186 | CO8: ='Utilisation profile summary'!$O8-'aug forecast'!BT8 -> 12.09893036 | CP8: ='Utilisation profile summary'!$O8-'aug forecast'!BU8 -> 11.72140025 | CQ8: ='Utilisation profile summary'!$O8-'aug forecast'!BV8 -> 11.36289737 | CR8: ='Utilisation profile summary'!$O8-'aug forecast'!BW8 -> 11.02064893 | CS8: ='Utilisation profile summary'!$O8-'aug forecast'!BX8 -> 10.69190498 | CT8: ='Utilisation profile summary'!$O8-'aug forecast'!BY8 -> 10.37405006 | CU8: ='Utilisation profile summary'!$O8-'aug forecast'!BZ8 -> 10.06471172 | CV8: ='Utilisation profile summary'!$O8-'aug forecast'!CA8 -> 9.761863185 | CW8: ='Utilisation profile summary'!$O8-'aug forecast'!CB8 -> 9.463914598 | CX8: ='Utilisation profile summary'!$O8-'aug forecast'!CC8 -> 9.169782613 | CY8: ='Utilisation profile summary'!$O8-'aug forecast'!CD8 -> 8.794884129 | CZ8: ='Utilisation profile summary'!$O8-'aug forecast'!CE8 -> 8.246399376 | DA8: ='Utilisation profile summary'!$O8-'aug forecast'!CF8 -> 7.514849038 | DB8: ='Utilisation profile summary'!$O8-'aug forecast'!CG8 -> 6.592702169 | DC8: ='Utilisation profile summary'!$O8-'aug forecast'!CH8 -> 5.475399007 | DD8: ='Utilisation profile summary'!$O8-'aug forecast'!CI8 -> 4.162151503 | DE8: ='Utilisation profile summary'!$O8-'aug forecast'!CJ8 -> 2.656175403 | DF8: ='Utilisation profile summary'!$O8-'aug forecast'!CK8 -> 0.9641246199 | DG8: ='Utilisation profile summary'!$O8-'aug forecast'!CL8 -> -0.9050446214 | DH8: ='Utilisation profile summary'!$O8-'aug forecast'!CM8 -> -2.94120355 | DI8: 13.7873291 | DJ8: 14.33462339 | DK8: 14.87852386 | DL8: 15.41799564 | DM8: 15.95263717 | DN8: 16.48279206 | DO8: 17.00966349 | DP8: 17.535428 | DQ8: 18.06330908 | DR8: 18.59754582 | DS8: 18.29163245 | DT8: 16.99496977 | DU8: 15.52935695 | DV8: 13.93500948 | DW8: 12.26771172 | DX8: 10.59382328 | DY8: 8.980740153 | DZ8: 7.485136223 | EA8: 6.144978124 | EB8: 4.979356968
A9: 4 | D9: Distribution Substations and LV Feeders | E9: Distribution Substations and LV Feeders | AN9: Distribution Substations and LV Feeders (mod) | AY9: 36.26655349 | AZ9: 35.90605798 | BA9: 35.38717205 | BB9: 34.74632983 | BC9: 34.02362301 | BD9: 33.26063058 | BE9: 32.49817921 | BF9: 31.77421967 | BG9: 31.12199631 | BH9: 30.56865804 | BI9: 30.11716603 | BJ9: 29.7701288 | BK9: 29.54337145 | BL9: 29.43071615 | BM9: 29.41927081 | BN9: 29.49049926 | BO9: 29.62138316 | BP9: 29.78556593 | BQ9: 29.9544011 | BR9: 30.09786703 | BS9: =SUM(IF($A$21:$A$205=$A9,CN$21:CN$205))/('Utilisation profile summary'!$H9*1000+0.000001) -> 72.71137442 | BT9: =SUM(IF($A$21:$A$205=$A9,CO$21:CO$205))/('Utilisation profile summary'!$H9*1000+0.000001) -> 72.91672471 | BU9: =SUM(IF($A$21:$A$205=$A9,CP$21:CP$205))/('Utilisation profile summary'!$H9*1000+0.000001) -> 73.14111302 | BV9: =SUM(IF($A$21:$A$205=$A9,CQ$21:CQ$205))/('Utilisation profile summary'!$H9*1000+0.000001) -> 73.38786256 | BW9: =SUM(IF($A$21:$A$205=$A9,CR$21:CR$205))/('Utilisation profile summary'!$H9*1000+0.000001) -> 73.6593822 | BX9: =SUM(IF($A$21:$A$205=$A9,CS$21:CS$205))/('Utilisation profile summary'!$H9*1000+0.000001) -> 73.95713191 | BY9: =SUM(IF($A$21:$A$205=$A9,CT$21:CT$205))/('Utilisation profile summary'!$H9*1000+0.000001) -> 74.28163202 | BZ9: =SUM(IF($A$21:$A$205=$A9,CU$21:CU$205))/('Utilisation profile summary'!$H9*1000+0.000001) -> 74.63251424 | CA9: =SUM(IF($A$21:$A$205=$A9,CV$21:CV$205))/('Utilisation profile summary'!$H9*1000+0.000001) -> 75.00861007 | CB9: =SUM(IF($A$21:$A$205=$A9,CW$21:CW$205))/('Utilisation profile summary'!$H9*1000+0.000001) -> 75.40806972 | CC9: =SUM(IF($A$21:$A$205=$A9,CX$21:CX$205))/('Utilisation profile summary'!$H9*1000+0.000001) -> 75.82850314 | CD9: =SUM(IF($A$21:$A$205=$A9,CY$21:CY$205))/('Utilisation profile summary'!$H9*1000+0.000001) -> 76.26751689 | CE9: =SUM(IF($A$21:$A$205=$A9,CZ$21:CZ$205))/('Utilisation profile summary'!$H9*1000+0.000001) -> 76.72271116 | CF9: =SUM(IF($A$21:$A$205=$A9,DA$21:DA$205))/('Utilisation profile summary'!$H9*1000+0.000001) -> 77.1913776 | CG9: =SUM(IF($A$21:$A$205=$A9,DB$21:DB$205))/('Utilisation profile summary'!$H9*1000+0.000001) -> 77.67098148 | CH9: =SUM(IF($A$21:$A$205=$A9,DC$21:DC$205))/('Utilisation profile summary'!$H9*1000+0.000001) -> 78.15930145 | CI9: =SUM(IF($A$21:$A$205=$A9,DD$21:DD$205))/('Utilisation profile summary'!$H9*1000+0.000001) -> 78.65454641 | CJ9: =SUM(IF($A$21:$A$205=$A9,DE$21:DE$205))/('Utilisation profile summary'!$H9*1000+0.000001) -> 79.15544724 | CK9: =SUM(IF($A$21:$A$205=$A9,DF$21:DF$205))/('Utilisation profile summary'!$H9*1000+0.000001) -> 79.66132384 | CL9: =SUM(IF($A$21:$A$205=$A9,DG$21:DG$205))/('Utilisation profile summary'!$H9*1000+0.000001) -> 80.17212929 | CM9: =SUM(IF($A$21:$A$205=$A9,DH$21:DH$205))/('Utilisation profile summary'!$H9*1000+0.000001) -> 80.68847393 | CN9: ='Utilisation profile summary'!$O9-'aug forecast'!BS9 -> 64.28862558 | CO9: ='Utilisation profile summary'!$O9-'aug forecast'!BT9 -> 64.08327529 | CP9: ='Utilisation profile summary'!$O9-'aug forecast'!BU9 -> 63.85888698 | CQ9: ='Utilisation profile summary'!$O9-'aug forecast'!BV9 -> 63.61213744 | CR9: ='Utilisation profile summary'!$O9-'aug forecast'!BW9 -> 63.3406178 | CS9: ='Utilisation profile summary'!$O9-'aug forecast'!BX9 -> 63.04286809 | CT9: ='Utilisation profile summary'!$O9-'aug forecast'!BY9 -> 62.71836798 | CU9: ='Utilisation profile summary'!$O9-'aug forecast'!BZ9 -> 62.36748576 | CV9: ='Utilisation profile summary'!$O9-'aug forecast'!CA9 -> 61.99138993 | CW9: ='Utilisation profile summary'!$O9-'aug forecast'!CB9 -> 61.59193028 | CX9: ='Utilisation profile summary'!$O9-'aug forecast'!CC9 -> 61.17149686 | CY9: ='Utilisation profile summary'!$O9-'aug forecast'!CD9 -> 60.73248311 | CZ9: ='Utilisation profile summary'!$O9-'aug forecast'!CE9 -> 60.27728884 | DA9: ='Utilisation profile summary'!$O9-'aug forecast'!CF9 -> 59.8086224 | DB9: ='Utilisation profile summary'!$O9-'aug forecast'!CG9 -> 59.32901852 | DC9: ='Utilisation profile summary'!$O9-'aug forecast'!CH9 -> 58.84069855 | DD9: ='Utilisation profile summary'!$O9-'aug forecast'!CI9 -> 58.34545359 | DE9: ='Utilisation profile summary'!$O9-'aug forecast'!CJ9 -> 57.84455276 | DF9: ='Utilisation profile summary'!$O9-'aug forecast'!CK9 -> 57.33867616 | DG9: ='Utilisation profile summary'!$O9-'aug forecast'!CL9 -> 56.82787071 | DH9: ='Utilisation profile summary'!$O9-'aug forecast'!CM9 -> 56.31152607 | DI9: 3.953054331 | DJ9: 3.913760319 | DK9: 3.857201753 | DL9: 3.787349952 | DM9: 3.708574909 | DN9: 3.625408734 | DO9: 3.542301534 | DP9: 3.463389944 | DQ9: 3.392297597 | DR9: 3.331983726 | DS9: 3.282771097 | DT9: 3.24494404 | DU9: 3.220227489 | DV9: 3.20794806 | DW9: 3.206700518 | DX9: 3.214464419 | DY9: 3.228730764 | DZ9: 3.246626686 | EA9: 3.26502972 | EB9: 3.280667506
A10: 5 | D10: 0 | E10: 0 | AN10: 0 (mod) | AY10: 0 | AZ10: 0 | BA10: 0 | BB10: 0 | BC10: 0 | BD10: 0 | BE10: 0 | BF10: 0 | BG10: 0 | BH10: 0 | BI10: 0 | BJ10: 0 | BK10: 0 | BL10: 0 | BM10: 0 | BN10: 0 | BO10: 0 | BP10: 0 | BQ10: 0 | BR10: 0 | BS10: =SUM(IF($A$21:$A$205=$A10,CN$21:CN$205))/('Utilisation profile summary'!$H10*1000+0.000001) -> 0 | BT10: =SUM(IF($A$21:$A$205=$A10,CO$21:CO$205))/('Utilisation profile summary'!$H10*1000+0.000001) -> 0 | BU10: =SUM(IF($A$21:$A$205=$A10,CP$21:CP$205))/('Utilisation profile summary'!$H10*1000+0.000001) -> 0 | BV10: =SUM(IF($A$21:$A$205=$A10,CQ$21:CQ$205))/('Utilisation profile summary'!$H10*1000+0.000001) -> 0 | BW10: =SUM(IF($A$21:$A$205=$A10,CR$21:CR$205))/('Utilisation profile summary'!$H10*1000+0.000001) -> 0 | BX10: =SUM(IF($A$21:$A$205=$A10,CS$21:CS$205))/('Utilisation profile summary'!$H10*1000+0.000001) -> 0 | BY10: =SUM(IF($A$21:$A$205=$A10,CT$21:CT$205))/('Utilisation profile summary'!$H10*1000+0.000001) -> 0 | BZ10: =SUM(IF($A$21:$A$205=$A10,CU$21:CU$205))/('Utilisation profile summary'!$H10*1000+0.000001) -> 0 | CA10: =SUM(IF($A$21:$A$205=$A10,CV$21:CV$205))/('Utilisation profile summary'!$H10*1000+0.000001) -> 0 | CB10: =SUM(IF($A$21:$A$205=$A10,CW$21:CW$205))/('Utilisation profile summary'!$H10*1000+0.000001) -> 0 | CC10: =SUM(IF($A$21:$A$205=$A10,CX$21:CX$205))/('Utilisation profile summary'!$H10*1000+0.000001) -> 0 | CD10: =SUM(IF($A$21:$A$205=$A10,CY$21:CY$205))/('Utilisation profile summary'!$H10*1000+0.000001) -> 0 | CE10: =SUM(IF($A$21:$A$205=$A10,CZ$21:CZ$205))/('Utilisation profile summary'!$H10*1000+0.000001) -> 0 | CF10: =SUM(IF($A$21:$A$205=$A10,DA$21:DA$205))/('Utilisation profile summary'!$H10*1000+0.000001) -> 0 | CG10: =SUM(IF($A$21:$A$205=$A10,DB$21:DB$205))/('Utilisation profile summary'!$H10*1000+0.000001) -> 0 | CH10: =SUM(IF($A$21:$A$205=$A10,DC$21:DC$205))/('Utilisation profile summary'!$H10*1000+0.000001) -> 0 | CI10: =SUM(IF($A$21:$A$205=$A10,DD$21:DD$205))/('Utilisation profile summary'!$H10*1000+0.000001) -> 0 | CJ10: =SUM(IF($A$21:$A$205=$A10,DE$21:DE$205))/('Utilisation profile summary'!$H10*1000+0.000001) -> 0 | CK10: =SUM(IF($A$21:$A$205=$A10,DF$21:DF$205))/('Utilisation profile summary'!$H10*1000+0.000001) -> 0 | CL10: =SUM(IF($A$21:$A$205=$A10,DG$21:DG$205))/('Utilisation profile summary'!$H10*1000+0.000001) -> 0 | CM10: =SUM(IF($A$21:$A$205=$A10,DH$21:DH$205))/('Utilisation profile summary'!$H10*1000+0.000001) -> 0 | CN10: ='Utilisation profile summary'!$O10-'aug forecast'!BS10 -> 0 | CO10: ='Utilisation profile summary'!$O10-'aug forecast'!BT10 -> 0 | CP10: ='Utilisation profile summary'!$O10-'aug forecast'!BU10 -> 0 | CQ10: ='Utilisation profile summary'!$O10-'aug forecast'!BV10 -> 0 | CR10: ='Utilisation profile summary'!$O10-'aug forecast'!BW10 -> 0 | CS10: ='Utilisation profile summary'!$O10-'aug forecast'!BX10 -> 0 | CT10: ='Utilisation profile summary'!$O10-'aug forecast'!BY10 -> 0 | CU10: ='Utilisation profile summary'!$O10-'aug forecast'!BZ10 -> 0 | CV10: ='Utilisation profile summary'!$O10-'aug forecast'!CA10 -> 0 | CW10: ='Utilisation profile summary'!$O10-'aug forecast'!CB10 -> 0 | CX10: ='Utilisation profile summary'!$O10-'aug forecast'!CC10 -> 0 | CY10: ='Utilisation profile summary'!$O10-'aug forecast'!CD10 -> 0 | CZ10: ='Utilisation profile summary'!$O10-'aug forecast'!CE10 -> 0 | DA10: ='Utilisation profile summary'!$O10-'aug forecast'!CF10 -> 0 | DB10: ='Utilisation profile summary'!$O10-'aug forecast'!CG10 -> 0 | DC10: ='Utilisation profile summary'!$O10-'aug forecast'!CH10 -> 0 | DD10: ='Utilisation profile summary'!$O10-'aug forecast'!CI10 -> 0 | DE10: ='Utilisation profile summary'!$O10-'aug forecast'!CJ10 -> 0 | DF10: ='Utilisation profile summary'!$O10-'aug forecast'!CK10 -> 0 | DG10: ='Utilisation profile summary'!$O10-'aug forecast'!CL10 -> 0 | DH10: ='Utilisation profile summary'!$O10-'aug forecast'!CM10 -> 0 | DI10: 0 | DJ10: 0 | DK10: 0 | DL10: 0 | DM10: 0 | DN10: 0 | DO10: 0 | DP10: 0 | DQ10: 0 | DR10: 0 | DS10: 0 | DT10: 0 | DU10: 0 | DV10: 0 | DW10: 0 | DX10: 0 | DY10: 0 | DZ10: 0 | EA10: 0 | EB10: 0
A11: 6 | D11: 0 | E11: 0 | AN11: 0 (mod) | AY11: 0 | AZ11: 0 | BA11: 0 | BB11: 0 | BC11: 0 | BD11: 0 | BE11: 0 | BF11: 0 | BG11: 0 | BH11: 0 | BI11: 0 | BJ11: 0 | BK11: 0 | BL11: 0 | BM11: 0 | BN11: 0 | BO11: 0 | BP11: 0 | BQ11: 0 | BR11: 0 | BS11: =SUM(IF($A$21:$A$205=$A11,CN$21:CN$205))/('Utilisation profile summary'!$H11*1000+0.000001) -> 0 | BT11: =SUM(IF($A$21:$A$205=$A11,CO$21:CO$205))/('Utilisation profile summary'!$H11*1000+0.000001) -> 0 | BU11: =SUM(IF($A$21:$A$205=$A11,CP$21:CP$205))/('Utilisation profile summary'!$H11*1000+0.000001) -> 0 | BV11: =SUM(IF($A$21:$A$205=$A11,CQ$21:CQ$205))/('Utilisation profile summary'!$H11*1000+0.000001) -> 0 | BW11: =SUM(IF($A$21:$A$205=$A11,CR$21:CR$205))/('Utilisation profile summary'!$H11*1000+0.000001) -> 0 | BX11: =SUM(IF($A$21:$A$205=$A11,CS$21:CS$205))/('Utilisation profile summary'!$H11*1000+0.000001) -> 0 | BY11: =SUM(IF($A$21:$A$205=$A11,CT$21:CT$205))/('Utilisation profile summary'!$H11*1000+0.000001) -> 0 | BZ11: =SUM(IF($A$21:$A$205=$A11,CU$21:CU$205))/('Utilisation profile summary'!$H11*1000+0.000001) -> 0 | CA11: =SUM(IF($A$21:$A$205=$A11,CV$21:CV$205))/('Utilisation profile summary'!$H11*1000+0.000001) -> 0 | CB11: =SUM(IF($A$21:$A$205=$A11,CW$21:CW$205))/('Utilisation profile summary'!$H11*1000+0.000001) -> 0 | CC11: =SUM(IF($A$21:$A$205=$A11,CX$21:CX$205))/('Utilisation profile summary'!$H11*1000+0.000001) -> 0 | CD11: =SUM(IF($A$21:$A$205=$A11,CY$21:CY$205))/('Utilisation profile summary'!$H11*1000+0.000001) -> 0 | CE11: =SUM(IF($A$21:$A$205=$A11,CZ$21:CZ$205))/('Utilisation profile summary'!$H11*1000+0.000001) -> 0 | CF11: =SUM(IF($A$21:$A$205=$A11,DA$21:DA$205))/('Utilisation profile summary'!$H11*1000+0.000001) -> 0 | CG11: =SUM(IF($A$21:$A$205=$A11,DB$21:DB$205))/('Utilisation profile summary'!$H11*1000+0.000001) -> 0 | CH11: =SUM(IF($A$21:$A$205=$A11,DC$21:DC$205))/('Utilisation profile summary'!$H11*1000+0.000001) -> 0 | CI11: =SUM(IF($A$21:$A$205=$A11,DD$21:DD$205))/('Utilisation profile summary'!$H11*1000+0.000001) -> 0 | CJ11: =SUM(IF($A$21:$A$205=$A11,DE$21:DE$205))/('Utilisation profile summary'!$H11*1000+0.000001) -> 0 | CK11: =SUM(IF($A$21:$A$205=$A11,DF$21:DF$205))/('Utilisation profile summary'!$H11*1000+0.000001) -> 0 | CL11: =SUM(IF($A$21:$A$205=$A11,DG$21:DG$205))/('Utilisation profile summary'!$H11*1000+0.000001) -> 0 | CM11: =SUM(IF($A$21:$A$205=$A11,DH$21:DH$205))/('Utilisation profile summary'!$H11*1000+0.000001) -> 0 | CN11: ='Utilisation profile summary'!$O11-'aug forecast'!BS11 -> 0 | CO11: ='Utilisation profile summary'!$O11-'aug forecast'!BT11 -> 0 | CP11: ='Utilisation profile summary'!$O11-'aug forecast'!BU11 -> 0 | CQ11: ='Utilisation profile summary'!$O11-'aug forecast'!BV11 -> 0 | CR11: ='Utilisation profile summary'!$O11-'aug forecast'!BW11 -> 0 | CS11: ='Utilisation profile summary'!$O11-'aug forecast'!BX11 -> 0 | CT11: ='Utilisation profile summary'!$O11-'aug forecast'!BY11 -> 0 | CU11: ='Utilisation profile summary'!$O11-'aug forecast'!BZ11 -> 0 | CV11: ='Utilisation profile summary'!$O11-'aug forecast'!CA11 -> 0 | CW11: ='Utilisation profile summary'!$O11-'aug forecast'!CB11 -> 0 | CX11: ='Utilisation profile summary'!$O11-'aug forecast'!CC11 -> 0 | CY11: ='Utilisation profile summary'!$O11-'aug forecast'!CD11 -> 0 | CZ11: ='Utilisation profile summary'!$O11-'aug forecast'!CE11 -> 0 | DA11: ='Utilisation profile summary'!$O11-'aug forecast'!CF11 -> 0 | DB11: ='Utilisation profile summary'!$O11-'aug forecast'!CG11 -> 0 | DC11: ='Utilisation profile summary'!$O11-'aug forecast'!CH11 -> 0 | DD11: ='Utilisation profile summary'!$O11-'aug forecast'!CI11 -> 0 | DE11: ='Utilisation profile summary'!$O11-'aug forecast'!CJ11 -> 0 | DF11: ='Utilisation profile summary'!$O11-'aug forecast'!CK11 -> 0 | DG11: ='Utilisation profile summary'!$O11-'aug forecast'!CL11 -> 0 | DH11: ='Utilisation profile summary'!$O11-'aug forecast'!CM11 -> 0 | DI11: 0 | DJ11: 0 | DK11: 0 | DL11: 0 | DM11: 0 | DN11: 0 | DO11: 0 | DP11: 0 | DQ11: 0 | DR11: 0 | DS11: 0 | DT11: 0 | DU11: 0 | DV11: 0 | DW11: 0 | DX11: 0 | DY11: 0 | DZ11: 0 | EA11: 0 | EB11: 0
A12: 7 | D12: 0 | E12: 0 | AN12: 0 (mod) | AY12: 0 | AZ12: 0 | BA12: 0 | BB12: 0 | BC12: 0 | BD12: 0 | BE12: 0 | BF12: 0 | BG12: 0 | BH12: 0 | BI12: 0 | BJ12: 0 | BK12: 0 | BL12: 0 | BM12: 0 | BN12: 0 | BO12: 0 | BP12: 0 | BQ12: 0 | BR12: 0 | BS12: =SUM(IF($A$21:$A$205=$A12,CN$21:CN$205))/('Utilisation profile summary'!$H12*1000+0.000001) -> 0 | BT12: =SUM(IF($A$21:$A$205=$A12,CO$21:CO$205))/('Utilisation profile summary'!$H12*1000+0.000001) -> 0 | BU12: =SUM(IF($A$21:$A$205=$A12,CP$21:CP$205))/('Utilisation profile summary'!$H12*1000+0.000001) -> 0 | BV12: =SUM(IF($A$21:$A$205=$A12,CQ$21:CQ$205))/('Utilisation profile summary'!$H12*1000+0.000001) -> 0 | BW12: =SUM(IF($A$21:$A$205=$A12,CR$21:CR$205))/('Utilisation profile summary'!$H12*1000+0.000001) -> 0 | BX12: =SUM(IF($A$21:$A$205=$A12,CS$21:CS$205))/('Utilisation profile summary'!$H12*1000+0.000001) -> 0 | BY12: =SUM(IF($A$21:$A$205=$A12,CT$21:CT$205))/('Utilisation profile summary'!$H12*1000+0.000001) -> 0 | BZ12: =SUM(IF($A$21:$A$205=$A12,CU$21:CU$205))/('Utilisation profile summary'!$H12*1000+0.000001) -> 0 | CA12: =SUM(IF($A$21:$A$205=$A12,CV$21:CV$205))/('Utilisation profile summary'!$H12*1000+0.000001) -> 0 | CB12: =SUM(IF($A$21:$A$205=$A12,CW$21:CW$205))/('Utilisation profile summary'!$H12*1000+0.000001) -> 0 | CC12: =SUM(IF($A$21:$A$205=$A12,CX$21:CX$205))/('Utilisation profile summary'!$H12*1000+0.000001) -> 0 | CD12: =SUM(IF($A$21:$A$205=$A12,CY$21:CY$205))/('Utilisation profile summary'!$H12*1000+0.000001) -> 0 | CE12: =SUM(IF($A$21:$A$205=$A12,CZ$21:CZ$205))/('Utilisation profile summary'!$H12*1000+0.000001) -> 0 | CF12: =SUM(IF($A$21:$A$205=$A12,DA$21:DA$205))/('Utilisation profile summary'!$H12*1000+0.000001) -> 0 | CG12: =SUM(IF($A$21:$A$205=$A12,DB$21:DB$205))/('Utilisation profile summary'!$H12*1000+0.000001) -> 0 | CH12: =SUM(IF($A$21:$A$205=$A12,DC$21:DC$205))/('Utilisation profile summary'!$H12*1000+0.000001) -> 0 | CI12: =SUM(IF($A$21:$A$205=$A12,DD$21:DD$205))/('Utilisation profile summary'!$H12*1000+0.000001) -> 0 | CJ12: =SUM(IF($A$21:$A$205=$A12,DE$21:DE$205))/('Utilisation profile summary'!$H12*1000+0.000001) -> 0 | CK12: =SUM(IF($A$21:$A$205=$A12,DF$21:DF$205))/('Utilisation profile summary'!$H12*1000+0.000001) -> 0 | CL12: =SUM(IF($A$21:$A$205=$A12,DG$21:DG$205))/('Utilisation profile summary'!$H12*1000+0.000001) -> 0 | CM12: =SUM(IF($A$21:$A$205=$A12,DH$21:DH$205))/('Utilisation profile summary'!$H12*1000+0.000001) -> 0 | CN12: ='Utilisation profile summary'!$O12-'aug forecast'!BS12 -> 0 | CO12: ='Utilisation profile summary'!$O12-'aug forecast'!BT12 -> 0 | CP12: ='Utilisation profile summary'!$O12-'aug forecast'!BU12 -> 0 | CQ12: ='Utilisation profile summary'!$O12-'aug forecast'!BV12 -> 0 | CR12: ='Utilisation profile summary'!$O12-'aug forecast'!BW12 -> 0 | CS12: ='Utilisation profile summary'!$O12-'aug forecast'!BX12 -> 0 | CT12: ='Utilisation profile summary'!$O12-'aug forecast'!BY12 -> 0 | CU12: ='Utilisation profile summary'!$O12-'aug forecast'!BZ12 -> 0 | CV12: ='Utilisation profile summary'!$O12-'aug forecast'!CA12 -> 0 | CW12: ='Utilisation profile summary'!$O12-'aug forecast'!CB12 -> 0 | CX12: ='Utilisation profile summary'!$O12-'aug forecast'!CC12 -> 0 | CY12: ='Utilisation profile summary'!$O12-'aug forecast'!CD12 -> 0 | CZ12: ='Utilisation profile summary'!$O12-'aug forecast'!CE12 -> 0 | DA12: ='Utilisation profile summary'!$O12-'aug forecast'!CF12 -> 0 | DB12: ='Utilisation profile summary'!$O12-'aug forecast'!CG12 -> 0 | DC12: ='Utilisation profile summary'!$O12-'aug forecast'!CH12 -> 0 | DD12: ='Utilisation profile summary'!$O12-'aug forecast'!CI12 -> 0 | DE12: ='Utilisation profile summary'!$O12-'aug forecast'!CJ12 -> 0 | DF12: ='Utilisation profile summary'!$O12-'aug forecast'!CK12 -> 0 | DG12: ='Utilisation profile summary'!$O12-'aug forecast'!CL12 -> 0 | DH12: ='Utilisation profile summary'!$O12-'aug forecast'!CM12 -> 0 | DI12: 0 | DJ12: 0 | DK12: 0 | DL12: 0 | DM12: 0 | DN12: 0 | DO12: 0 | DP12: 0 | DQ12: 0 | DR12: 0 | DS12: 0 | DT12: 0 | DU12: 0 | DV12: 0 | DW12: 0 | DX12: 0 | DY12: 0 | DZ12: 0 | EA12: 0 | EB12: 0
A13: 8 | D13: 0 | E13: 0 | AN13: 0 (mod) | AY13: 0 | AZ13: 0 | BA13: 0 | BB13: 0 | BC13: 0 | BD13: 0 | BE13: 0 | BF13: 0 | BG13: 0 | BH13: 0 | BI13: 0 | BJ13: 0 | BK13: 0 | BL13: 0 | BM13: 0 | BN13: 0 | BO13: 0 | BP13: 0 | BQ13: 0 | BR13: 0 | BS13: =SUM(IF($A$21:$A$205=$A13,CN$21:CN$205))/('Utilisation profile summary'!$H13*1000+0.000001) -> 0 | BT13: =SUM(IF($A$21:$A$205=$A13,CO$21:CO$205))/('Utilisation profile summary'!$H13*1000+0.000001) -> 0 | BU13: =SUM(IF($A$21:$A$205=$A13,CP$21:CP$205))/('Utilisation profile summary'!$H13*1000+0.000001) -> 0 | BV13: =SUM(IF($A$21:$A$205=$A13,CQ$21:CQ$205))/('Utilisation profile summary'!$H13*1000+0.000001) -> 0 | BW13: =SUM(IF($A$21:$A$205=$A13,CR$21:CR$205))/('Utilisation profile summary'!$H13*1000+0.000001) -> 0 | BX13: =SUM(IF($A$21:$A$205=$A13,CS$21:CS$205))/('Utilisation profile summary'!$H13*1000+0.000001) -> 0 | BY13: =SUM(IF($A$21:$A$205=$A13,CT$21:CT$205))/('Utilisation profile summary'!$H13*1000+0.000001) -> 0 | BZ13: =SUM(IF($A$21:$A$205=$A13,CU$21:CU$205))/('Utilisation profile summary'!$H13*1000+0.000001) -> 0 | CA13: =SUM(IF($A$21:$A$205=$A13,CV$21:CV$205))/('Utilisation profile summary'!$H13*1000+0.000001) -> 0 | CB13: =SUM(IF($A$21:$A$205=$A13,CW$21:CW$205))/('Utilisation profile summary'!$H13*1000+0.000001) -> 0 | CC13: =SUM(IF($A$21:$A$205=$A13,CX$21:CX$205))/('Utilisation profile summary'!$H13*1000+0.000001) -> 0 | CD13: =SUM(IF($A$21:$A$205=$A13,CY$21:CY$205))/('Utilisation profile summary'!$H13*1000+0.000001) -> 0 | CE13: =SUM(IF($A$21:$A$205=$A13,CZ$21:CZ$205))/('Utilisation profile summary'!$H13*1000+0.000001) -> 0 | CF13: =SUM(IF($A$21:$A$205=$A13,DA$21:DA$205))/('Utilisation profile summary'!$H13*1000+0.000001) -> 0 | CG13: =SUM(IF($A$21:$A$205=$A13,DB$21:DB$205))/('Utilisation profile summary'!$H13*1000+0.000001) -> 0 | CH13: =SUM(IF($A$21:$A$205=$A13,DC$21:DC$205))/('Utilisation profile summary'!$H13*1000+0.000001) -> 0 | CI13: =SUM(IF($A$21:$A$205=$A13,DD$21:DD$205))/('Utilisation profile summary'!$H13*1000+0.000001) -> 0 | CJ13: =SUM(IF($A$21:$A$205=$A13,DE$21:DE$205))/('Utilisation profile summary'!$H13*1000+0.000001) -> 0 | CK13: =SUM(IF($A$21:$A$205=$A13,DF$21:DF$205))/('Utilisation profile summary'!$H13*1000+0.000001) -> 0 | CL13: =SUM(IF($A$21:$A$205=$A13,DG$21:DG$205))/('Utilisation profile summary'!$H13*1000+0.000001) -> 0 | CM13: =SUM(IF($A$21:$A$205=$A13,DH$21:DH$205))/('Utilisation profile summary'!$H13*1000+0.000001) -> 0 | CN13: ='Utilisation profile summary'!$O13-'aug forecast'!BS13 -> 0 | CO13: ='Utilisation profile summary'!$O13-'aug forecast'!BT13 -> 0 | CP13: ='Utilisation profile summary'!$O13-'aug forecast'!BU13 -> 0 | CQ13: ='Utilisation profile summary'!$O13-'aug forecast'!BV13 -> 0 | CR13: ='Utilisation profile summary'!$O13-'aug forecast'!BW13 -> 0 | CS13: ='Utilisation profile summary'!$O13-'aug forecast'!BX13 -> 0 | CT13: ='Utilisation profile summary'!$O13-'aug forecast'!BY13 -> 0 | CU13: ='Utilisation profile summary'!$O13-'aug forecast'!BZ13 -> 0 | CV13: ='Utilisation profile summary'!$O13-'aug forecast'!CA13 -> 0 | CW13: ='Utilisation profile summary'!$O13-'aug forecast'!CB13 -> 0 | CX13: ='Utilisation profile summary'!$O13-'aug forecast'!CC13 -> 0 | CY13: ='Utilisation profile summary'!$O13-'aug forecast'!CD13 -> 0 | CZ13: ='Utilisation profile summary'!$O13-'aug forecast'!CE13 -> 0 | DA13: ='Utilisation profile summary'!$O13-'aug forecast'!CF13 -> 0 | DB13: ='Utilisation profile summary'!$O13-'aug forecast'!CG13 -> 0 | DC13: ='Utilisation profile summary'!$O13-'aug forecast'!CH13 -> 0 | DD13: ='Utilisation profile summary'!$O13-'aug forecast'!CI13 -> 0 | DE13: ='Utilisation profile summary'!$O13-'aug forecast'!CJ13 -> 0 | DF13: ='Utilisation profile summary'!$O13-'aug forecast'!CK13 -> 0 | DG13: ='Utilisation profile summary'!$O13-'aug forecast'!CL13 -> 0 | DH13: ='Utilisation profile summary'!$O13-'aug forecast'!CM13 -> 0 | DI13: 0 | DJ13: 0 | DK13: 0 | DL13: 0 | DM13: 0 | DN13: 0 | DO13: 0 | DP13: 0 | DQ13: 0 | DR13: 0 | DS13: 0 | DT13: 0 | DU13: 0 | DV13: 0 | DW13: 0 | DX13: 0 | DY13: 0 | DZ13: 0 | EA13: 0 | EB13: 0
A14: 9 | D14: =VLOOKUP(A14,IDtable,2) -> 0 | E14: =D14 -> 0 | AN14: =D14 & " (mod)" -> 0 (mod) | AY14: 0 | AZ14: 0 | BA14: 0 | BB14: 0 | BC14: 0 | BD14: 0 | BE14: 0 | BF14: 0 | BG14: 0 | BH14: 0 | BI14: 0 | BJ14: 0 | BK14: 0 | BL14: 0 | BM14: 0 | BN14: 0 | BO14: 0 | BP14: 0 | BQ14: 0 | BR14: 0 | BS14: =SUM(IF($A$21:$A$205=$A14,CN$21:CN$205))/('Utilisation profile summary'!$H14*1000+0.000001) -> 0 | BT14: =SUM(IF($A$21:$A$205=$A14,CO$21:CO$205))/('Utilisation profile summary'!$H14*1000+0.000001) -> 0 | BU14: =SUM(IF($A$21:$A$205=$A14,CP$21:CP$205))/('Utilisation profile summary'!$H14*1000+0.000001) -> 0 | BV14: =SUM(IF($A$21:$A$205=$A14,CQ$21:CQ$205))/('Utilisation profile summary'!$H14*1000+0.000001) -> 0 | BW14: =SUM(IF($A$21:$A$205=$A14,CR$21:CR$205))/('Utilisation profile summary'!$H14*1000+0.000001) -> 0 | BX14: =SUM(IF($A$21:$A$205=$A14,CS$21:CS$205))/('Utilisation profile summary'!$H14*1000+0.000001) -> 0 | BY14: =SUM(IF($A$21:$A$205=$A14,CT$21:CT$205))/('Utilisation profile summary'!$H14*1000+0.000001) -> 0 | BZ14: =SUM(IF($A$21:$A$205=$A14,CU$21:CU$205))/('Utilisation profile summary'!$H14*1000+0.000001) -> 0 | CA14: =SUM(IF($A$21:$A$205=$A14,CV$21:CV$205))/('Utilisation profile summary'!$H14*1000+0.000001) -> 0 | CB14: =SUM(IF($A$21:$A$205=$A14,CW$21:CW$205))/('Utilisation profile summary'!$H14*1000+0.000001) -> 0 | CC14: =SUM(IF($A$21:$A$205=$A14,CX$21:CX$205))/('Utilisation profile summary'!$H14*1000+0.000001) -> 0 | CD14: =SUM(IF($A$21:$A$205=$A14,CY$21:CY$205))/('Utilisation profile summary'!$H14*1000+0.000001) -> 0 | CE14: =SUM(IF($A$21:$A$205=$A14,CZ$21:CZ$205))/('Utilisation profile summary'!$H14*1000+0.000001) -> 0 | CF14: =SUM(IF($A$21:$A$205=$A14,DA$21:DA$205))/('Utilisation profile summary'!$H14*1000+0.000001) -> 0 | CG14: =SUM(IF($A$21:$A$205=$A14,DB$21:DB$205))/('Utilisation profile summary'!$H14*1000+0.000001) -> 0 | CH14: =SUM(IF($A$21:$A$205=$A14,DC$21:DC$205))/('Utilisation profile summary'!$H14*1000+0.000001) -> 0 | CI14: =SUM(IF($A$21:$A$205=$A14,DD$21:DD$205))/('Utilisation profile summary'!$H14*1000+0.000001) -> 0 | CJ14: =SUM(IF($A$21:$A$205=$A14,DE$21:DE$205))/('Utilisation profile summary'!$H14*1000+0.000001) -> 0 | CK14: =SUM(IF($A$21:$A$205=$A14,DF$21:DF$205))/('Utilisation profile summary'!$H14*1000+0.000001) -> 0 | CL14: =SUM(IF($A$21:$A$205=$A14,DG$21:DG$205))/('Utilisation profile summary'!$H14*1000+0.000001) -> 0 | CM14: =SUM(IF($A$21:$A$205=$A14,DH$21:DH$205))/('Utilisation profile summary'!$H14*1000+0.000001) -> 0 | CN14: ='Utilisation profile summary'!$O14-'aug forecast'!BS14 -> 0 | CO14: ='Utilisation profile summary'!$O14-'aug forecast'!BT14 -> 0 | CP14: ='Utilisation profile summary'!$O14-'aug forecast'!BU14 -> 0 | CQ14: ='Utilisation profile summary'!$O14-'aug forecast'!BV14 -> 0 | CR14: ='Utilisation profile summary'!$O14-'aug forecast'!BW14 -> 0 | CS14: ='Utilisation profile summary'!$O14-'aug forecast'!BX14 -> 0 | CT14: ='Utilisation profile summary'!$O14-'aug forecast'!BY14 -> 0 | CU14: ='Utilisation profile summary'!$O14-'aug forecast'!BZ14 -> 0 | CV14: ='Utilisation profile summary'!$O14-'aug forecast'!CA14 -> 0 | CW14: ='Utilisation profile summary'!$O14-'aug forecast'!CB14 -> 0 | CX14: ='Utilisation profile summary'!$O14-'aug forecast'!CC14 -> 0 | CY14: ='Utilisation profile summary'!$O14-'aug forecast'!CD14 -> 0 | CZ14: ='Utilisation profile summary'!$O14-'aug forecast'!CE14 -> 0 | DA14: ='Utilisation profile summary'!$O14-'aug forecast'!CF14 -> 0 | DB14: ='Utilisation profile summary'!$O14-'aug forecast'!CG14 -> 0 | DC14: ='Utilisation profile summary'!$O14-'aug forecast'!CH14 -> 0 | DD14: ='Utilisation profile summary'!$O14-'aug forecast'!CI14 -> 0 | DE14: ='Utilisation profile summary'!$O14-'aug forecast'!CJ14 -> 0 | DF14: ='Utilisation profile summary'!$O14-'aug forecast'!CK14 -> 0 | DG14: ='Utilisation profile summary'!$O14-'aug forecast'!CL14 -> 0 | DH14: ='Utilisation profile summary'!$O14-'aug forecast'!CM14 -> 0 | DI14: 0 | DJ14: 0 | DK14: 0 | DL14: 0 | DM14: 0 | DN14: 0 | DO14: 0 | DP14: 0 | DQ14: 0 | DR14: 0 | DS14: 0 | DT14: 0 | DU14: 0 | DV14: 0 | DW14: 0 | DX14: 0 | DY14: 0 | DZ14: 0 | EA14: 0 | EB14: 0
A15: 10 | D15: =VLOOKUP(A15,IDtable,2) -> 0 | E15: =D15 -> 0 | AN15: =D15 & " (mod)" -> 0 (mod) | AY15: 0 | AZ15: 0 | BA15: 0 | BB15: 0 | BC15: 0 | BD15: 0 | BE15: 0 | BF15: 0 | BG15: 0 | BH15: 0 | BI15: 0 | BJ15: 0 | BK15: 0 | BL15: 0 | BM15: 0 | BN15: 0 | BO15: 0 | BP15: 0 | BQ15: 0 | BR15: 0 | BS15: =SUM(IF($A$21:$A$205=$A15,CN$21:CN$205))/('Utilisation profile summary'!$H15*1000+0.000001) -> 0 | BT15: =SUM(IF($A$21:$A$205=$A15,CO$21:CO$205))/('Utilisation profile summary'!$H15*1000+0.000001) -> 0 | BU15: =SUM(IF($A$21:$A$205=$A15,CP$21:CP$205))/('Utilisation profile summary'!$H15*1000+0.000001) -> 0 | BV15: =SUM(IF($A$21:$A$205=$A15,CQ$21:CQ$205))/('Utilisation profile summary'!$H15*1000+0.000001) -> 0 | BW15: =SUM(IF($A$21:$A$205=$A15,CR$21:CR$205))/('Utilisation profile summary'!$H15*1000+0.000001) -> 0 | BX15: =SUM(IF($A$21:$A$205=$A15,CS$21:CS$205))/('Utilisation profile summary'!$H15*1000+0.000001) -> 0 | BY15: =SUM(IF($A$21:$A$205=$A15,CT$21:CT$205))/('Utilisation profile summary'!$H15*1000+0.000001) -> 0 | BZ15: =SUM(IF($A$21:$A$205=$A15,CU$21:CU$205))/('Utilisation profile summary'!$H15*1000+0.000001) -> 0 | CA15: =SUM(IF($A$21:$A$205=$A15,CV$21:CV$205))/('Utilisation profile summary'!$H15*1000+0.000001) -> 0 | CB15: =SUM(IF($A$21:$A$205=$A15,CW$21:CW$205))/('Utilisation profile summary'!$H15*1000+0.000001) -> 0 | CC15: =SUM(IF($A$21:$A$205=$A15,CX$21:CX$205))/('Utilisation profile summary'!$H15*1000+0.000001) -> 0 | CD15: =SUM(IF($A$21:$A$205=$A15,CY$21:CY$205))/('Utilisation profile summary'!$H15*1000+0.000001) -> 0 | CE15: =SUM(IF($A$21:$A$205=$A15,CZ$21:CZ$205))/('Utilisation profile summary'!$H15*1000+0.000001) -> 0 | CF15: =SUM(IF($A$21:$A$205=$A15,DA$21:DA$205))/('Utilisation profile summary'!$H15*1000+0.000001) -> 0 | CG15: =SUM(IF($A$21:$A$205=$A15,DB$21:DB$205))/('Utilisation profile summary'!$H15*1000+0.000001) -> 0 | CH15: =SUM(IF($A$21:$A$205=$A15,DC$21:DC$205))/('Utilisation profile summary'!$H15*1000+0.000001) -> 0 | CI15: =SUM(IF($A$21:$A$205=$A15,DD$21:DD$205))/('Utilisation profile summary'!$H15*1000+0.000001) -> 0 | CJ15: =SUM(IF($A$21:$A$205=$A15,DE$21:DE$205))/('Utilisation profile summary'!$H15*1000+0.000001) -> 0 | CK15: =SUM(IF($A$21:$A$205=$A15,DF$21:DF$205))/('Utilisation profile summary'!$H15*1000+0.000001) -> 0 | CL15: =SUM(IF($A$21:$A$205=$A15,DG$21:DG$205))/('Utilisation profile summary'!$H15*1000+0.000001) -> 0 | CM15: =SUM(IF($A$21:$A$205=$A15,DH$21:DH$205))/('Utilisation profile summary'!$H15*1000+0.000001) -> 0 | CN15: ='Utilisation profile summary'!$O15-'aug forecast'!BS15 -> 0 | CO15: ='Utilisation profile summary'!$O15-'aug forecast'!BT15 -> 0 | CP15: ='Utilisation profile summary'!$O15-'aug forecast'!BU15 -> 0 | CQ15: ='Utilisation profile summary'!$O15-'aug forecast'!BV15 -> 0 | CR15: ='Utilisation profile summary'!$O15-'aug forecast'!BW15 -> 0 | CS15: ='Utilisation profile summary'!$O15-'aug forecast'!BX15 -> 0 | CT15: ='Utilisation profile summary'!$O15-'aug forecast'!BY15 -> 0 | CU15: ='Utilisation profile summary'!$O15-'aug forecast'!BZ15 -> 0 | CV15: ='Utilisation profile summary'!$O15-'aug forecast'!CA15 -> 0 | CW15: ='Utilisation profile summary'!$O15-'aug forecast'!CB15 -> 0 | CX15: ='Utilisation profile summary'!$O15-'aug forecast'!CC15 -> 0 | CY15: ='Utilisation profile summary'!$O15-'aug forecast'!CD15 -> 0 | CZ15: ='Utilisation profile summary'!$O15-'aug forecast'!CE15 -> 0 | DA15: ='Utilisation profile summary'!$O15-'aug forecast'!CF15 -> 0 | DB15: ='Utilisation profile summary'!$O15-'aug forecast'!CG15 -> 0 | DC15: ='Utilisation profile summary'!$O15-'aug forecast'!CH15 -> 0 | DD15: ='Utilisation profile summary'!$O15-'aug forecast'!CI15 -> 0 | DE15: ='Utilisation profile summary'!$O15-'aug forecast'!CJ15 -> 0 | DF15: ='Utilisation profile summary'!$O15-'aug forecast'!CK15 -> 0 | DG15: ='Utilisation profile summary'!$O15-'aug forecast'!CL15 -> 0 | DH15: ='Utilisation profile summary'!$O15-'aug forecast'!CM15 -> 0 | DI15: 0 | DJ15: 0 | DK15: 0 | DL15: 0 | DM15: 0 | DN15: 0 | DO15: 0 | DP15: 0 | DQ15: 0 | DR15: 0 | DS15: 0 | DT15: 0 | DU15: 0 | DV15: 0 | DW15: 0 | DX15: 0 | DY15: 0 | DZ15: 0 | EA15: 0 | EB15: 0
A16: 11 | D16: =VLOOKUP(A16,IDtable,2) -> 0 | E16: =D16 -> 0 | AN16: =D16 & " (mod)" -> 0 (mod) | AY16: 0 | AZ16: 0 | BA16: 0 | BB16: 0 | BC16: 0 | BD16: 0 | BE16: 0 | BF16: 0 | BG16: 0 | BH16: 0 | BI16: 0 | BJ16: 0 | BK16: 0 | BL16: 0 | BM16: 0 | BN16: 0 | BO16: 0 | BP16: 0 | BQ16: 0 | BR16: 0 | BS16: =SUM(IF($A$21:$A$205=$A16,CN$21:CN$205))/('Utilisation profile summary'!$H16*1000+0.000001) -> 0 | BT16: =SUM(IF($A$21:$A$205=$A16,CO$21:CO$205))/('Utilisation profile summary'!$H16*1000+0.000001) -> 0 | BU16: =SUM(IF($A$21:$A$205=$A16,CP$21:CP$205))/('Utilisation profile summary'!$H16*1000+0.000001) -> 0 | BV16: =SUM(IF($A$21:$A$205=$A16,CQ$21:CQ$205))/('Utilisation profile summary'!$H16*1000+0.000001) -> 0 | BW16: =SUM(IF($A$21:$A$205=$A16,CR$21:CR$205))/('Utilisation profile summary'!$H16*1000+0.000001) -> 0 | BX16: =SUM(IF($A$21:$A$205=$A16,CS$21:CS$205))/('Utilisation profile summary'!$H16*1000+0.000001) -> 0 | BY16: =SUM(IF($A$21:$A$205=$A16,CT$21:CT$205))/('Utilisation profile summary'!$H16*1000+0.000001) -> 0 | BZ16: =SUM(IF($A$21:$A$205=$A16,CU$21:CU$205))/('Utilisation profile summary'!$H16*1000+0.000001) -> 0 | CA16: =SUM(IF($A$21:$A$205=$A16,CV$21:CV$205))/('Utilisation profile summary'!$H16*1000+0.000001) -> 0 | CB16: =SUM(IF($A$21:$A$205=$A16,CW$21:CW$205))/('Utilisation profile summary'!$H16*1000+0.000001) -> 0 | CC16: =SUM(IF($A$21:$A$205=$A16,CX$21:CX$205))/('Utilisation profile summary'!$H16*1000+0.000001) -> 0 | CD16: =SUM(IF($A$21:$A$205=$A16,CY$21:CY$205))/('Utilisation profile summary'!$H16*1000+0.000001) -> 0 | CE16: =SUM(IF($A$21:$A$205=$A16,CZ$21:CZ$205))/('Utilisation profile summary'!$H16*1000+0.000001) -> 0 | CF16: =SUM(IF($A$21:$A$205=$A16,DA$21:DA$205))/('Utilisation profile summary'!$H16*1000+0.000001) -> 0 | CG16: =SUM(IF($A$21:$A$205=$A16,DB$21:DB$205))/('Utilisation profile summary'!$H16*1000+0.000001) -> 0 | CH16: =SUM(IF($A$21:$A$205=$A16,DC$21:DC$205))/('Utilisation profile summary'!$H16*1000+0.000001) -> 0 | CI16: =SUM(IF($A$21:$A$205=$A16,DD$21:DD$205))/('Utilisation profile summary'!$H16*1000+0.000001) -> 0 | CJ16: =SUM(IF($A$21:$A$205=$A16,DE$21:DE$205))/('Utilisation profile summary'!$H16*1000+0.000001) -> 0 | CK16: =SUM(IF($A$21:$A$205=$A16,DF$21:DF$205))/('Utilisation profile summary'!$H16*1000+0.000001) -> 0 | CL16: =SUM(IF($A$21:$A$205=$A16,DG$21:DG$205))/('Utilisation profile summary'!$H16*1000+0.000001) -> 0 | CM16: =SUM(IF($A$21:$A$205=$A16,DH$21:DH$205))/('Utilisation profile summary'!$H16*1000+0.000001) -> 0 | CN16: ='Utilisation profile summary'!$O16-'aug forecast'!BS16 -> 0 | CO16: ='Utilisation profile summary'!$O16-'aug forecast'!BT16 -> 0 | CP16: ='Utilisation profile summary'!$O16-'aug forecast'!BU16 -> 0 | CQ16: ='Utilisation profile summary'!$O16-'aug forecast'!BV16 -> 0 | CR16: ='Utilisation profile summary'!$O16-'aug forecast'!BW16 -> 0 | CS16: ='Utilisation profile summary'!$O16-'aug forecast'!BX16 -> 0 | CT16: ='Utilisation profile summary'!$O16-'aug forecast'!BY16 -> 0 | CU16: ='Utilisation profile summary'!$O16-'aug forecast'!BZ16 -> 0 | CV16: ='Utilisation profile summary'!$O16-'aug forecast'!CA16 -> 0 | CW16: ='Utilisation profile summary'!$O16-'aug forecast'!CB16 -> 0 | CX16: ='Utilisation profile summary'!$O16-'aug forecast'!CC16 -> 0 | CY16: ='Utilisation profile summary'!$O16-'aug forecast'!CD16 -> 0 | CZ16: ='Utilisation profile summary'!$O16-'aug forecast'!CE16 -> 0 | DA16: ='Utilisation profile summary'!$O16-'aug forecast'!CF16 -> 0 | DB16: ='Utilisation profile summary'!$O16-'aug forecast'!CG16 -> 0 | DC16: ='Utilisation profile summary'!$O16-'aug forecast'!CH16 -> 0 | DD16: ='Utilisation profile summary'!$O16-'aug forecast'!CI16 -> 0 | DE16: ='Utilisation profile summary'!$O16-'aug forecast'!CJ16 -> 0 | DF16: ='Utilisation profile summary'!$O16-'aug forecast'!CK16 -> 0 | DG16: ='Utilisation profile summary'!$O16-'aug forecast'!CL16 -> 0 | DH16: ='Utilisation profile summary'!$O16-'aug forecast'!CM16 -> 0 | DI16: 0 | DJ16: 0 | DK16: 0 | DL16: 0 | DM16: 0 | DN16: 0 | DO16: 0 | DP16: 0 | DQ16: 0 | DR16: 0 | DS16: 0 | DT16: 0 | DU16: 0 | DV16: 0 | DW16: 0 | DX16: 0 | DY16: 0 | DZ16: 0 | EA16: 0 | EB16: 0
A17: 12 | D17: =VLOOKUP(A17,IDtable,2) -> 0 | E17: =D17 -> 0 | AN17: =D17 & " (mod)" -> 0 (mod) | AY17: 0 | AZ17: 0 | BA17: 0 | BB17: 0 | BC17: 0 | BD17: 0 | BE17: 0 | BF17: 0 | BG17: 0 | BH17: 0 | BI17: 0 | BJ17: 0 | BK17: 0 | BL17: 0 | BM17: 0 | BN17: 0 | BO17: 0 | BP17: 0 | BQ17: 0 | BR17: 0 | BS17: =SUM(IF($A$21:$A$205=$A17,CN$21:CN$205))/('Utilisation profile summary'!$H17*1000+0.000001) -> 0 | BT17: =SUM(IF($A$21:$A$205=$A17,CO$21:CO$205))/('Utilisation profile summary'!$H17*1000+0.000001) -> 0 | BU17: =SUM(IF($A$21:$A$205=$A17,CP$21:CP$205))/('Utilisation profile summary'!$H17*1000+0.000001) -> 0 | BV17: =SUM(IF($A$21:$A$205=$A17,CQ$21:CQ$205))/('Utilisation profile summary'!$H17*1000+0.000001) -> 0 | BW17: =SUM(IF($A$21:$A$205=$A17,CR$21:CR$205))/('Utilisation profile summary'!$H17*1000+0.000001) -> 0 | BX17: =SUM(IF($A$21:$A$205=$A17,CS$21:CS$205))/('Utilisation profile summary'!$H17*1000+0.000001) -> 0 | BY17: =SUM(IF($A$21:$A$205=$A17,CT$21:CT$205))/('Utilisation profile summary'!$H17*1000+0.000001) -> 0 | BZ17: =SUM(IF($A$21:$A$205=$A17,CU$21:CU$205))/('Utilisation profile summary'!$H17*1000+0.000001) -> 0 | CA17: =SUM(IF($A$21:$A$205=$A17,CV$21:CV$205))/('Utilisation profile summary'!$H17*1000+0.000001) -> 0 | CB17: =SUM(IF($A$21:$A$205=$A17,CW$21:CW$205))/('Utilisation profile summary'!$H17*1000+0.000001) -> 0 | CC17: =SUM(IF($A$21:$A$205=$A17,CX$21:CX$205))/('Utilisation profile summary'!$H17*1000+0.000001) -> 0 | CD17: =SUM(IF($A$21:$A$205=$A17,CY$21:CY$205))/('Utilisation profile summary'!$H17*1000+0.000001) -> 0 | CE17: =SUM(IF($A$21:$A$205=$A17,CZ$21:CZ$205))/('Utilisation profile summary'!$H17*1000+0.000001) -> 0 | CF17: =SUM(IF($A$21:$A$205=$A17,DA$21:DA$205))/('Utilisation profile summary'!$H17*1000+0.000001) -> 0 | CG17: =SUM(IF($A$21:$A$205=$A17,DB$21:DB$205))/('Utilisation profile summary'!$H17*1000+0.000001) -> 0 | CH17: =SUM(IF($A$21:$A$205=$A17,DC$21:DC$205))/('Utilisation profile summary'!$H17*1000+0.000001) -> 0 | CI17: =SUM(IF($A$21:$A$205=$A17,DD$21:DD$205))/('Utilisation profile summary'!$H17*1000+0.000001) -> 0 | CJ17: =SUM(IF($A$21:$A$205=$A17,DE$21:DE$205))/('Utilisation profile summary'!$H17*1000+0.000001) -> 0 | CK17: =SUM(IF($A$21:$A$205=$A17,DF$21:DF$205))/('Utilisation profile summary'!$H17*1000+0.000001) -> 0 | CL17: =SUM(IF($A$21:$A$205=$A17,DG$21:DG$205))/('Utilisation profile summary'!$H17*1000+0.000001) -> 0 | CM17: =SUM(IF($A$21:$A$205=$A17,DH$21:DH$205))/('Utilisation profile summary'!$H17*1000+0.000001) -> 0 | CN17: ='Utilisation profile summary'!$O17-'aug forecast'!BS17 -> 0 | CO17: ='Utilisation profile summary'!$O17-'aug forecast'!BT17 -> 0 | CP17: ='Utilisation profile summary'!$O17-'aug forecast'!BU17 -> 0 | CQ17: ='Utilisation profile summary'!$O17-'aug forecast'!BV17 -> 0 | CR17: ='Utilisation profile summary'!$O17-'aug forecast'!BW17 -> 0 | CS17: ='Utilisation profile summary'!$O17-'aug forecast'!BX17 -> 0 | CT17: ='Utilisation profile summary'!$O17-'aug forecast'!BY17 -> 0 | CU17: ='Utilisation profile summary'!$O17-'aug forecast'!BZ17 -> 0 | CV17: ='Utilisation profile summary'!$O17-'aug forecast'!CA17 -> 0 | CW17: ='Utilisation profile summary'!$O17-'aug forecast'!CB17 -> 0 | CX17: ='Utilisation profile summary'!$O17-'aug forecast'!CC17 -> 0 | CY17: ='Utilisation profile summary'!$O17-'aug forecast'!CD17 -> 0 | CZ17: ='Utilisation profile summary'!$O17-'aug forecast'!CE17 -> 0 | DA17: ='Utilisation profile summary'!$O17-'aug forecast'!CF17 -> 0 | DB17: ='Utilisation profile summary'!$O17-'aug forecast'!CG17 -> 0 | DC17: ='Utilisation profile summary'!$O17-'aug forecast'!CH17 -> 0 | DD17: ='Utilisation profile summary'!$O17-'aug forecast'!CI17 -> 0 | DE17: ='Utilisation profile summary'!$O17-'aug forecast'!CJ17 -> 0 | DF17: ='Utilisation profile summary'!$O17-'aug forecast'!CK17 -> 0 | DG17: ='Utilisation profile summary'!$O17-'aug forecast'!CL17 -> 0 | DH17: ='Utilisation profile summary'!$O17-'aug forecast'!CM17 -> 0 | DI17: 0 | DJ17: 0 | DK17: 0 | DL17: 0 | DM17: 0 | DN17: 0 | DO17: 0 | DP17: 0 | DQ17: 0 | DR17: 0 | DS17: 0 | DT17: 0 | DU17: 0 | DV17: 0 | DW17: 0 | DX17: 0 | DY17: 0 | DZ17: 0 | EA17: 0 | EB17: 0
D18: Total | G18: =SUM(G6:G14) -> 0 | H18: =SUM(H6:H14) -> 0 | I18: 0 | J18: 0 | K18: 0 | L18: 0 | M18: 0 | N18: 0 | O18: 0 | P18: 0 | Q18: 0 | R18: 0 | S18: 0 | T18: 0 | U18: 0 | V18: 0 | W18: 0 | X18: 0 | Y18: 0 | Z18: 0 | AA18: 0 | AB18: 0 | AC18: 0 | AD18: 0 | AE18: 0 | AF18: 0 | AG18: 0 | AH18: 0 | AI18: 0 | AJ18: 0 | AN18: =D18 & " (mod)" -> Total (mod) | AO18: 0 | AP18: 0 | AQ18: 0 | AR18: 0 | AS18: 0 | AT18: 0 | AU18: 0 | AV18: 0 | AW18: 0 | AX18: 0 | AY18: =SUM(AY6:AY17) -> 879.1251195 | AZ18: 721.5730277 | BA18: 660.6564377 | BB18: 656.1452198 | BC18: 676.498373 | BD18: 701.2075174 | BE18: 717.9955853 | BF18: 720.9229034 | BG18: 710.3457621 | BH18: 692.4003674 | BI18: 671.9534441 | BJ18: 654.6282387 | BK18: 644.6952775 | BL18: 637.5039406 | BM18: 626.3941733 | BN18: 604.9984742 | BO18: 565.8782247 | BP18: 501.3287216 | BQ18: 409.3087657 | BR18: 301.3307643 | BS18: =SUM(CN21:CN205)/('Utilisation profile summary'!$H$18*1000) -> 66.54387783 | BT18: =SUM(CO21:CO205)/('Utilisation profile summary'!$H$18*1000) -> 65.26607491 | BU18: =SUM(CP21:CP205)/('Utilisation profile summary'!$H$18*1000) -> 64.61367605 | BV18: =SUM(CQ21:CQ205)/('Utilisation profile summary'!$H$18*1000) -> 64.21688891 | BW18: =SUM(CR21:CR205)/('Utilisation profile summary'!$H$18*1000) -> 63.92548372 | BX18: =SUM(CS21:CS205)/('Utilisation profile summary'!$H$18*1000) -> 63.68221111 | BY18: =SUM(CT21:CT205)/('Utilisation profile summary'!$H$18*1000) -> 63.47399195 | BZ18: =SUM(CU21:CU205)/('Utilisation profile summary'!$H$18*1000) -> 63.30575559 | CA18: =SUM(CV21:CV205)/('Utilisation profile summary'!$H$18*1000) -> 63.18681585 | CB18: =SUM(CW21:CW205)/('Utilisation profile summary'!$H$18*1000) -> 63.12413309 | CC18: =SUM(CX21:CX205)/('Utilisation profile summary'!$H$18*1000) -> 63.11901923 | CD18: =SUM(CY21:CY205)/('Utilisation profile summary'!$H$18*1000) -> 63.18922287 | CE18: =SUM(CZ21:CZ205)/('Utilisation profile summary'!$H$18*1000) -> 63.35051785 | CF18: =SUM(DA21:DA205)/('Utilisation profile summary'!$H$18*1000) -> 63.59593428 | CG18: =SUM(DB21:DB205)/('Utilisation profile summary'!$H$18*1000) -> 63.92221012 | CH18: =SUM(DC21:DC205)/('Utilisation profile summary'!$H$18*1000) -> 64.33137231 | CI18: =SUM(DD21:DD205)/('Utilisation profile summary'!$H$18*1000) -> 64.83016769 | CJ18: =SUM(DE21:DE205)/('Utilisation profile summary'!$H$18*1000) -> 65.43038344 | CK18: =SUM(DF21:DF205)/('Utilisation profile summary'!$H$18*1000) -> 66.14882949 | CL18: =SUM(DG21:DG205)/('Utilisation profile summary'!$H$18*1000) -> 67.00408462 | CM18: =SUM(DH21:DH205)/('Utilisation profile summary'!$H$18*1000) -> 68.00887987 | CN18: ='Utilisation profile summary'!$O$18-'aug forecast'!BS18 -> 34.55606484 | CO18: ='Utilisation profile summary'!$O$18-'aug forecast'!BT18 -> 35.83386776 | CP18: ='Utilisation profile summary'!$O$18-'aug forecast'!BU18 -> 36.48626662 | CQ18: ='Utilisation profile summary'!$O$18-'aug forecast'!BV18 -> 36.88305376 | CR18: ='Utilisation profile summary'!$O$18-'aug forecast'!BW18 -> 37.17445894 | CS18: ='Utilisation profile summary'!$O$18-'aug forecast'!BX18 -> 37.41773156 | CT18: ='Utilisation profile summary'!$O$18-'aug forecast'!BY18 -> 37.62595072 | CU18: ='Utilisation profile summary'!$O$18-'aug forecast'!BZ18 -> 37.79418708 | CV18: ='Utilisation profile summary'!$O$18-'aug forecast'!CA18 -> 37.91312682 | CW18: ='Utilisation profile summary'!$O$18-'aug forecast'!CB18 -> 37.97580958 | CX18: ='Utilisation profile summary'!$O$18-'aug forecast'!CC18 -> 37.98092344 | CY18: ='Utilisation profile summary'!$O$18-'aug forecast'!CD18 -> 37.9107198 | CZ18: ='Utilisation profile summary'!$O$18-'aug forecast'!CE18 -> 37.74942482 | DA18: ='Utilisation profile summary'!$O$18-'aug forecast'!CF18 -> 37.50400839 | DB18: ='Utilisation profile summary'!$O$18-'aug forecast'!CG18 -> 37.17773255 | DC18: ='Utilisation profile summary'!$O$18-'aug forecast'!CH18 -> 36.76857036 | DD18: ='Utilisation profile summary'!$O$18-'aug forecast'!CI18 -> 36.26977498 | DE18: ='Utilisation profile summary'!$O$18-'aug forecast'!CJ18 -> 35.66955923 | DF18: ='Utilisation profile summary'!$O$18-'aug forecast'!CK18 -> 34.95111318 | DG18: ='Utilisation profile summary'!$O$18-'aug forecast'!CL18 -> 34.09585805 | DH18: ='Utilisation profile summary'!$O$18-'aug forecast'!CM18 -> 33.0910628 | DI18: =SUM(DI6:DI17) -> 89.30667215 | DJ18: 76.79075577 | DK18: 71.60336983 | DL18: 70.73146099 | DM18: 71.82305233 | DN18: 73.34831154 | DO18: 74.38930374 | DP18: 74.49721882 | DQ18: 73.68474001 | DR18: 72.38573202 | DS18: 70.3506657 | DT18: 67.87055565 | DU18: 65.82063076 | DV18: 63.8887099 | DW18: 61.62873453 | DX18: 58.62298114 | DY18: 54.37832501 | DZ18: 48.37658511 | EA18: 40.49758645 | EB18: 31.580364
D19: % | G19: RRR model | L19: recursive | M19: 1st year | AY19: =AY18/('Utilisation profile summary'!$F$18) -> 0.0463823488 | AZ19: =AZ18/('Utilisation profile summary'!$F$18) -> 0.03806995286 | BA19: =BA18/('Utilisation profile summary'!$F$18) -> 0.03485601384 | BB19: =BB18/('Utilisation profile summary'!$F$18) -> 0.03461800348 | BC19: =BC18/('Utilisation profile summary'!$F$18) -> 0.03569182907 | BD19: =BD18/('Utilisation profile summary'!$F$18) -> 0.03699547531 | BE19: =BE18/('Utilisation profile summary'!$F$18) -> 0.03788120819 | BF19: =BF18/('Utilisation profile summary'!$F$18) -> 0.03803565251 | BG19: =BG18/('Utilisation profile summary'!$F$18) -> 0.03747760606 | BH19: =BH18/('Utilisation profile summary'!$F$18) -> 0.03653081301 | BI19: =BI18/('Utilisation profile summary'!$F$18) -> 0.03545204014 | BJ19: =BJ18/('Utilisation profile summary'!$F$18) -> 0.03453796807 | BK19: =BK18/('Utilisation profile summary'!$F$18) -> 0.03401390834 | BL19: =BL18/('Utilisation profile summary'!$F$18) -> 0.03363449579 | BM19: =BM18/('Utilisation profile summary'!$F$18) -> 0.03304834817 | BN19: =BN18/('Utilisation profile summary'!$F$18) -> 0.0319195182 | BO19: =BO18/('Utilisation profile summary'!$F$18) -> 0.02985554685 | BP19: =BP18/('Utilisation profile summary'!$F$18) -> 0.02644993655 | BQ19: =BQ18/('Utilisation profile summary'!$F$18) -> 0.02159499429 | BR19: =BR18/('Utilisation profile summary'!$F$18) -> 0.01589811087 | BS19: =BS18/'Utilisation profile summary'!$O$18 -> 0.658198967 | BT19: =BT18/'Utilisation profile summary'!$O$18 -> 0.6455599597 | BU19: =BU18/'Utilisation profile summary'!$O$18 -> 0.6391069504 | BV19: =BV18/'Utilisation profile summary'!$O$18 -> 0.6351822485 | BW19: =BW18/'Utilisation profile summary'!$O$18 -> 0.6322999008 | BX19: =BX18/'Utilisation profile summary'!$O$18 -> 0.6298936422 | BY19: =BY18/'Utilisation profile summary'!$O$18 -> 0.6278341043 | BZ19: =BZ18/'Utilisation profile summary'!$O$18 -> 0.6261700444 | CA19: =CA18/'Utilisation profile summary'!$O$18 -> 0.6249935873 | CB19: =CB18/'Utilisation profile summary'!$O$18 -> 0.6243735794 | CC19: =CC18/'Utilisation profile summary'!$O$18 -> 0.6243229972 | CD19: =CD18/'Utilisation profile summary'!$O$18 -> 0.6250173957 | CE19: =CE18/'Utilisation profile summary'!$O$18 -> 0.6266127969 | CF19: =CF18/'Utilisation profile summary'!$O$18 -> 0.6290402606 | CG19: =CG18/'Utilisation profile summary'!$O$18 -> 0.632267521 | CH19: =CH18/'Utilisation profile summary'!$O$18 -> 0.636314627 | CI19: =CI18/'Utilisation profile summary'!$O$18 -> 0.6412483131 | CJ19: =CJ18/'Utilisation profile summary'!$O$18 -> 0.6471851685 | CK19: =CK18/'Utilisation profile summary'!$O$18 -> 0.6542914639 | CL19: =CL18/'Utilisation profile summary'!$O$18 -> 0.6627509656 | CM19: =CM18/'Utilisation profile summary'!$O$18 -> 0.6726895987 | CN19: =CN18/'Utilisation profile summary'!$O$18 -> 0.341801033 | CO19: =CO18/'Utilisation profile summary'!$O$18 -> 0.3544400403 | CP19: =CP18/'Utilisation profile summary'!$O$18 -> 0.3608930496 | CQ19: =CQ18/'Utilisation profile summary'!$O$18 -> 0.3648177515 | CR19: =CR18/'Utilisation profile summary'!$O$18 -> 0.3677000992 | CS19: =CS18/'Utilisation profile summary'!$O$18 -> 0.3701063578 | CT19: =CT18/'Utilisation profile summary'!$O$18 -> 0.3721658957 | CU19: =CU18/'Utilisation profile summary'!$O$18 -> 0.3738299556 | CV19: =CV18/'Utilisation profile summary'!$O$18 -> 0.3750064127 | CW19: =CW18/'Utilisation profile summary'!$O$18 -> 0.3756264206 | CX19: =CX18/'Utilisation profile summary'!$O$18 -> 0.3756770028 | CY19: =CY18/'Utilisation profile summary'!$O$18 -> 0.3749826043 | CZ19: =CZ18/'Utilisation profile summary'!$O$18 -> 0.3733872031 | DA19: =DA18/'Utilisation profile summary'!$O$18 -> 0.3709597394 | DB19: =DB18/'Utilisation profile summary'!$O$18 -> 0.367732479 | DC19: =DC18/'Utilisation profile summary'!$O$18 -> 0.363685373 | DD19: =DD18/'Utilisation profile summary'!$O$18 -> 0.3587516869 | DE19: =DE18/'Utilisation profile summary'!$O$18 -> 0.3528148315 | DF19: =DF18/'Utilisation profile summary'!$O$18 -> 0.3457085361 | DG19: =DG18/'Utilisation profile summary'!$O$18 -> 0.3372490344 | DH19: =DH18/'Utilisation profile summary'!$O$18 -> 0.3273104013 | DI19: =DI18/('Utilisation profile summary'!$H$18) -> 0.04310900852 | DJ19: =DJ18/('Utilisation profile summary'!$H$18) -> 0.03706748068 | DK19: =DK18/('Utilisation profile summary'!$H$18) -> 0.03456349011 | DL19: =DL18/('Utilisation profile summary'!$H$18) -> 0.0341426131 | DM19: =DM18/('Utilisation profile summary'!$H$18) -> 0.03466953252 | DN19: =DN18/('Utilisation profile summary'!$H$18) -> 0.03540578672 | DO19: =DO18/('Utilisation profile summary'!$H$18) -> 0.03590828156 | DP19: =DP18/('Utilisation profile summary'!$H$18) -> 0.03596037298 | DQ19: =DQ18/('Utilisation profile summary'!$H$18) -> 0.0355681833 | DR19: =DR18/('Utilisation profile summary'!$H$18) -> 0.03494114228 | DS19: =DS18/('Utilisation profile summary'!$H$18) -> 0.03395880032 | DT19: =DT18/('Utilisation profile summary'!$H$18) -> 0.03276163238 | DU19: =DU18/('Utilisation profile summary'!$H$18) -> 0.03177211807 | DV19: =DV18/('Utilisation profile summary'!$H$18) -> 0.03083956521 | DW19: =DW18/('Utilisation profile summary'!$H$18) -> 0.02974865794 | DX19: =DX18/('Utilisation profile summary'!$H$18) -> 0.02829775797 | DY19: =DY18/('Utilisation profile summary'!$H$18) -> 0.02624883023 | DZ19: =DZ18/('Utilisation profile summary'!$H$18) -> 0.02335174483 | EA19: =EA18/('Utilisation profile summary'!$H$18) -> 0.01954849237 | EB19: =EB18/('Utilisation profile summary'!$H$18) -> 0.01524408141
D20: segments | F20: Uth | G20: Uth | H20: SD | I20: Uth (S/R) | J20: Meth (D/P) | K20: Uth | L20: =IF(Tables!B18=1,TRUE,FALSE) -> FALSE | M20: =IF(Tables!B19=1,TRUE,FALSE) -> FALSE | AY20: % of cap ↑ | AZ20: =AZ18/AY18 -> 0.82078536 | BA20: =BA18/AZ18 -> 0.9155780667 | BB20: 0.9931716128 | BC20: 1.031019281 | BD20: 1.036525061 | BE20: 1.023941654 | BF20: 1.00407707 | BS20: % of total Uth ↑ | CN20: % of total life ↑ | DI20: % of AC ↑ | DJ20: =DJ18/DI18 -> 0.8598546326 | DK20: =DK18/DJ18 -> 0.9324477812 | DL20: 0.9878230752 | DM20: 1.015432897 | DN20: 1.021236346 | DO20: 1.014192449 | DP20: 1.00145068 | DQ20: 0.9890938371 | DR20: 0.9823707324 | DS20: 0.9718858087 | DT20: 0.9647464594 | DU20: 0.9697965506 | DV20: 0.9706487034 | DW20: 0.9646263734 | DX20: 0.9512280527 | DY20: 0.9275939905 | DZ20: 0.8896299233 | EA20: 0.8371319794 | EB20: 0.7798085457
A21: ='Asset data'!A21 -> 0 | B21: ='Asset data'!B21 -> 0 | C21: ='Asset data'!C21 -> 0 | D21: ='Asset data'!E21 -> 0 | E21: =IF(A21>0,VLOOKUP(A21,IDtable,2),0) -> 0 | F21: ='Asset data'!I21 -> 0 | G21: =F21 -> 0 | H21: ='Asset data'!J21 -> 0 | I21: S | J21: =IF(A21=0,0,IF('Asset data'!$D$1=1,1,IF('Asset data'!$D$1=2,2,'Asset data'!K21))) -> 0 | K21: =IF(A21>0,IF(I21="S",F21,IF(I21="R",G21,9999)),0) -> 0 | AX21: ='Utilisation profile summary'!H21 -> 0 | AY21: =Aug_calc('Asset data'!$M$5:$FG$5,'Asset data'!M21:FG21,'Asset data'!H21/100,'Asset data'!G21,'Asset data'!I21,'Asset data'!J21,J21,20) -> 0 | AZ21: 0 | BA21: 0 | BB21: 0 | BC21: 0 | BD21: 0 | BE21: 0 | BF21: 0 | BG21: 0 | BH21: 0 | BI21: 0 | BJ21: 0 | BK21: 0 | BL21: 0 | BM21: 0 | BN21: 0 | BO21: 0 | BP21: 0 | BQ21: 0 | BR21: 0 | BS21: 0 | BT21: 0 | BU21: 0 | BV21: 0 | BW21: 0 | BX21: 0 | BY21: 0 | BZ21: 0 | CA21: 0 | CB21: 0 | CC21: 0 | CD21: 0 | CE21: 0 | CF21: 0 | CG21: 0 | CH21: 0 | CI21: 0 | CJ21: 0 | CK21: 0 | CL21: 0 | CM21: 0 | CN21: =BS21*$AX21 -> 0 | CO21: 0 | CP21: 0 | CQ21: 0 | CR21: 0 | CS21: 0 | CT21: 0 | CU21: 0 | CV21: 0 | CW21: 0 | CX21: =CC21*$AX21 -> 0 | CY21: 0 | CZ21: 0 | DA21: 0 | DB21: 0 | DC21: 0 | DD21: 0 | DE21: 0 | DF21: 0 | DG21: 0 | DH21: =CM21*$AX21 -> 0 | DI21: =IF('Asset data'!$F21=0,0,AY21*'Asset data'!$F21/1000) -> 0 | DJ21: =IF('Asset data'!$F21=0,0,AZ21*'Asset data'!$F21/1000) -> 0 | DK21: =IF('Asset data'!$F21=0,0,BA21*'Asset data'!$F21/1000) -> 0 | DL21: =IF('Asset data'!$F21=0,0,BB21*'Asset data'!$F21/1000) -> 0 | DM21: =IF('Asset data'!$F21=0,0,BC21*'Asset data'!$F21/1000) -> 0 | DN21: =IF('Asset data'!$F21=0,0,BD21*'Asset data'!$F21/1000) -> 0 | DO21: =IF('Asset data'!$F21=0,0,BE21*'Asset data'!$F21/1000) -> 0 | DP21: =IF('Asset data'!$F21=0,0,BF21*'Asset data'!$F21/1000) -> 0 | DQ21: =IF('Asset data'!$F21=0,0,BG21*'Asset data'!$F21/1000) -> 0 | DR21: =IF('Asset data'!$F21=0,0,BH21*'Asset data'!$F21/1000) -> 0 | DS21: =IF('Asset data'!$F21=0,0,BI21*'Asset data'!$F21/1000) -> 0 | DT21: =IF('Asset data'!$F21=0,0,BJ21*'Asset data'!$F21/1000) -> 0 | DU21: =IF('Asset data'!$F21=0,0,BK21*'Asset data'!$F21/1000) -> 0 | DV21: =IF('Asset data'!$F21=0,0,BL21*'Asset data'!$F21/1000) -> 0 | DW21: =IF('Asset data'!$F21=0,0,BM21*'Asset data'!$F21/1000) -> 0 | DX21: =IF('Asset data'!$F21=0,0,BN21*'Asset data'!$F21/1000) -> 0 | DY21: =IF('Asset data'!$F21=0,0,BO21*'Asset data'!$F21/1000) -> 0 | DZ21: =IF('Asset data'!$F21=0,0,BP21*'Asset data'!$F21/1000) -> 0 | EA21: =IF('Asset data'!$F21=0,0,BQ21*'Asset data'!$F21/1000) -> 0 | EB21: =IF('Asset data'!$F21=0,0,BR21*'Asset data'!$F21/1000) -> 0
A22: ='Asset data'!A22 -> 1 | B22: ='Asset data'!B22 -> 0 | C22: ='Asset data'!C22 -> 0 | D22: ='Asset data'!E22 -> Subtrans <0% Growth | E22: =IF(A22>0,VLOOKUP(A22,IDtable,2),0) -> Subtransmission Lines | F22: ='Asset data'!I22 -> 113.4064225 | G22: =F22 -> 113.4064225 | H22: ='Asset data'!J22 -> 16.74315781 | I22: S | J22: =IF(A22=0,0,IF('Asset data'!$D$1=1,1,IF('Asset data'!$D$1=2,2,'Asset data'!K22))) -> 1 | K22: =IF(A22>0,IF(I22="S",F22,IF(I22="R",G22,9999)),0) -> 113.4064225 | AX22: ='Utilisation profile summary'!H22 -> 107971.58 | AY22: =Aug_calc('Asset data'!$M$5:$FG$5,'Asset data'!M22:FG22,'Asset data'!H22/100,'Asset data'!G22,'Asset data'!I22,'Asset data'!J22,J22,20) -> 0.001420502507 | AZ22: 0.00142065733 | BA22: 0.001420812168 | BB22: 0.001420967021 | BC22: 0.001421121889 | BD22: 0.001421276772 | BE22: 0.001421431671 | BF22: 0.001421586585 | BG22: 0.001421741514 | BH22: 0.001421896459 | BI22: 0.001422051418 | BJ22: 0.001422206393 | BK22: 0.001422361383 | BL22: 0.001422516389 | BM22: 0.001422671409 | BN22: 0.001422826445 | BO22: 0.001422981496 | BP22: 0.001423136563 | BQ22: 0.001423291645 | BR22: 0.001423446742 | BS22: 49.52735562 | BT22: 49.52780413 | BU22: 49.52825264 | BV22: 49.52870114 | BW22: 49.52914965 | BX22: 49.52959815 | BY22: 49.53004665 | BZ22: 49.53049515 | CA22: 49.53094365 | CB22: 49.53139215 | CC22: 49.53184065 | CD22: 49.53228915 | CE22: 49.53273765 | CF22: 49.53318614 | CG22: 49.53363464 | CH22: 49.53408313 | CI22: 49.53453162 | CJ22: 49.53498011 | CK22: 49.53542861 | CL22: 49.5358771 | CM22: 49.53632558 | CN22: 5347546.839 | CO22: 5347595.265 | CP22: 5347643.691 | CQ22: 5347692.117 | CR22: 5347740.543 | CS22: 5347788.968 | CT22: 5347837.394 | CU22: 5347885.819 | CV22: 5347934.244 | CW22: 5347982.67 | CX22: 5348031.095 | CY22: 5348079.52 | CZ22: 5348127.945 | DA22: 5348176.369 | DB22: 5348224.794 | DC22: 5348273.219 | DD22: 5348321.643 | DE22: 5348370.067 | DF22: 5348418.492 | DG22: 5348466.916 | DH22: =CM22*$AX22 -> 5348515.34 | DI22: =IF('Asset data'!$F22=0,0,AY22*'Asset data'!$F22/1000) -> 0.0001019508871 | DJ22: =IF('Asset data'!$F22=0,0,AZ22*'Asset data'!$F22/1000) -> 0.0001019619989 | DK22: =IF('Asset data'!$F22=0,0,BA22*'Asset data'!$F22/1000) -> 0.0001019731117 | DL22: =IF('Asset data'!$F22=0,0,BB22*'Asset data'!$F22/1000) -> 0.0001019842257 | DM22: =IF('Asset data'!$F22=0,0,BC22*'Asset data'!$F22/1000) -> 0.0001019953407 | DN22: =IF('Asset data'!$F22=0,0,BD22*'Asset data'!$F22/1000) -> 0.0001020064569 | DO22: =IF('Asset data'!$F22=0,0,BE22*'Asset data'!$F22/1000) -> 0.0001020175741 | DP22: =IF('Asset data'!$F22=0,0,BF22*'Asset data'!$F22/1000) -> 0.0001020286924 | DQ22: =IF('Asset data'!$F22=0,0,BG22*'Asset data'!$F22/1000) -> 0.0001020398119 | DR22: =IF('Asset data'!$F22=0,0,BH22*'Asset data'!$F22/1000) -> 0.0001020509324 | DS22: =IF('Asset data'!$F22=0,0,BI22*'Asset data'!$F22/1000) -> 0.000102062054 | DT22: =IF('Asset data'!$F22=0,0,BJ22*'Asset data'!$F22/1000) -> 0.0001020731767 | DU22: =IF('Asset data'!$F22=0,0,BK22*'Asset data'!$F22/1000) -> 0.0001020843005 | DV22: =IF('Asset data'!$F22=0,0,BL22*'Asset data'!$F22/1000) -> 0.0001020954254 | DW22: =IF('Asset data'!$F22=0,0,BM22*'Asset data'!$F22/1000) -> 0.0001021065514 | DX22: =IF('Asset data'!$F22=0,0,BN22*'Asset data'!$F22/1000) -> 0.0001021176784 | DY22: =IF('Asset data'!$F22=0,0,BO22*'Asset data'!$F22/1000) -> 0.0001021288066 | DZ22: =IF('Asset data'!$F22=0,0,BP22*'Asset data'!$F22/1000) -> 0.0001021399359 | EA22: =IF('Asset data'!$F22=0,0,BQ22*'Asset data'!$F22/1000) -> 0.0001021510663 | EB22: =IF('Asset data'!$F22=0,0,BR22*'Asset data'!$F22/1000) -> 0.0001021621977
A23: ='Asset data'!A23 -> 1 | B23: ='Asset data'!B23 -> 0 | C23: ='Asset data'!C23 -> 0 | D23: ='Asset data'!E23 -> Subtrans 0-2% Growth | E23: =IF(A23>0,VLOOKUP(A23,IDtable,2),0) -> Subtransmission Lines | F23: ='Asset data'!I23 -> 113.4064225 | G23: =F23 -> 113.4064225 | H23: ='Asset data'!J23 -> 16.74315781 | I23: S | J23: =IF(A23=0,0,IF('Asset data'!$D$1=1,1,IF('Asset data'!$D$1=2,2,'Asset data'!K23))) -> 1 | K23: =IF(A23>0,IF(I23="S",F23,IF(I23="R",G23,9999)),0) -> 113.4064225 | AX23: ='Utilisation profile summary'!H23 -> 196457.4075 | AY23: =Aug_calc('Asset data'!$M$5:$FG$5,'Asset data'!M23:FG23,'Asset data'!H23/100,'Asset data'!G23,'Asset data'!I23,'Asset data'!J23,J23,20) -> 33.8793739 | AZ23: 31.59084397 | BA23: 29.5898739 | BB23: 27.86997457 | BC23: 26.42219287 | BD23: 25.23562244 | BE23: 24.29786837 | BF23: 23.5954543 | BG23: 23.11416591 | BH23: 22.83932996 | BI23: 22.75532889 | BJ23: 22.84687172 | BK23: 23.09948068 | BL23: 23.49812775 | BM23: 24.02790444 | BN23: 24.67404795 | BO23: 25.42195545 | BP23: 26.25719158 | BQ23: 27.16549179 | BR23: 28.13276248 | BS23: 61.42994362 | BT23: 61.26436412 | BU23: 61.15826145 | BV23: 61.1032371 | BW23: 61.09163945 | BX23: 61.11648127 | BY23: 61.17137304 | BZ23: 61.25046899 | CA23: 61.34842327 | CB23: 61.46035469 | CC23: 61.58181814 | CD23: 61.70879612 | CE23: 61.83767197 | CF23: 61.96519944 | CG23: 62.08850466 | CH23: 62.20507713 | CI23: 62.31276208 | CJ23: 62.4097533 | CK23: 62.49458586 | CL23: 62.56612808 | CM23: 62.62357255 | CN23: =BS23*$AX23 -> 12068367.47 | CO23: =BT23*$AX23 -> 12035838.15 | CP23: =BU23*$AX23 -> 12014993.49 | CQ23: =BV23*$AX23 -> 12004183.55 | CR23: =BW23*$AX23 -> 12001905.11 | CS23: =BX23*$AX23 -> 12006785.46 | CT23: =BY23*$AX23 -> 12017569.36 | CU23: =BZ23*$AX23 -> 12033108.34 | CV23: =CA23*$AX23 -> 12052352.19 | CW23: =CB23*$AX23 -> 12074341.95 | CX23: =CC23*$AX23 -> 12098204.34 | CY23: =CD23*$AX23 -> 12123150.11 | CZ23: =CE23*$AX23 -> 12148468.72 | DA23: =CF23*$AX23 -> 12173522.44 | DB23: =CG23*$AX23 -> 12197746.66 | DC23: =CH23*$AX23 -> 12220648.19 | DD23: =CI23*$AX23 -> 12241803.69 | DE23: =CJ23*$AX23 -> 12260858.34 | DF23: =CK23*$AX23 -> 12277524.32 | DG23: =CL23*$AX23 -> 12291579.32 | DH23: =CM23*$AX23 -> 12302864.71 | DI23: =IF('Asset data'!$F23=0,0,AY23*'Asset data'!$F23/1000) -> 2.431556583 | DJ23: =IF('Asset data'!$F23=0,0,AZ23*'Asset data'!$F23/1000) -> 2.267306499 | DK23: =IF('Asset data'!$F23=0,0,BA23*'Asset data'!$F23/1000) -> 2.123694874 | DL23: =IF('Asset data'!$F23=0,0,BB23*'Asset data'!$F23/1000) -> 2.000255977 | DM23: =IF('Asset data'!$F23=0,0,BC23*'Asset data'!$F23/1000) -> 1.896347235 | DN23: =IF('Asset data'!$F23=0,0,BD23*'Asset data'!$F23/1000) -> 1.811185887 | DO23: =IF('Asset data'!$F23=0,0,BE23*'Asset data'!$F23/1000) -> 1.743882339 | DP23: =IF('Asset data'!$F23=0,0,BF23*'Asset data'!$F23/1000) -> 1.693469378 | DQ23: =IF('Asset data'!$F23=0,0,BG23*'Asset data'!$F23/1000) -> 1.658926828 | DR23: =IF('Asset data'!$F23=0,0,BH23*'Asset data'!$F23/1000) -> 1.639201577 | DS23: =IF('Asset data'!$F23=0,0,BI23*'Asset data'!$F23/1000) -> 1.633172736 | DT23: =IF('Asset data'!$F23=0,0,BJ23*'Asset data'!$F23/1000) -> 1.639742856 | DU23: =IF('Asset data'!$F23=0,0,BK23*'Asset data'!$F23/1000) -> 1.657872854 | DV23: =IF('Asset data'!$F23=0,0,BL23*'Asset data'!$F23/1000) -> 1.686484154 | DW23: =IF('Asset data'!$F23=0,0,BM23*'Asset data'!$F23/1000) -> 1.724506758 | DX23: =IF('Asset data'!$F23=0,0,BN23*'Asset data'!$F23/1000) -> 1.770881124 | DY23: =IF('Asset data'!$F23=0,0,BO23*'Asset data'!$F23/1000) -> 1.824559194 | DZ23: =IF('Asset data'!$F23=0,0,BP23*'Asset data'!$F23/1000) -> 1.884504927 | EA23: =IF('Asset data'!$F23=0,0,BQ23*'Asset data'!$F23/1000) -> 1.949694543 | EB23: =IF('Asset data'!$F23=0,0,BR23*'Asset data'!$F23/1000) -> 2.019116529
A24: ='Asset data'!A24 -> 1 | B24: ='Asset data'!B24 -> 0 | C24: ='Asset data'!C24 -> 0 | D24: ='Asset data'!E24 -> Subtrans 2-4.5% Growth | E24: Subtransmission Lines | F24: ='Asset data'!I24 -> 113.4064225 | G24: 113.4064225 | H24: ='Asset data'!J24 -> 16.74315781 | I24: S | J24: =IF(A24=0,0,IF('Asset data'!$D$1=1,1,IF('Asset data'!$D$1=2,2,'Asset data'!K24))) -> 1 | K24: 113.4064225 | AX24: ='Utilisation profile summary'!H24 -> 210938.3983 | AY24: =Aug_calc('Asset data'!$M$5:$FG$5,'Asset data'!M24:FG24,'Asset data'!H24/100,'Asset data'!G24,'Asset data'!I24,'Asset data'!J24,J24,20) -> 174.2380874 | AZ24: 160.4376719 | BA24: 154.3148881 | BB24: 155.8591917 | BC24: 163.9864791 | BD24: 177.1469955 | BE24: 193.61286 | BF24: 211.4949825 | BG24: 228.7283072 | BH24: 243.2042169 | BI24: 253.0362524 | BJ24: 256.8433152 | BK24: 253.9251184 | BL24: 244.2661382 | BM24: 228.4245038 | BN24: 207.3179904 | BO24: 181.9653411 | BP24: 153.0296265 | BQ24: 120.2055535 | BR24: 81.80962863 | BS24: 70.72170362 | BT24: 69.17453228 | BU24: 68.15992467 | BV24: 67.44213229 | BW24: 66.8385856 | BX24: 66.2220415 | BY24: 65.51662045 | BZ24: 64.69134938 | CA24: 63.75356871 | CB24: 62.741552 | CC24: 61.71481845 | CD24: 60.74262162 | CE24: 59.89295692 | CF24: 59.22460198 | CG24: 58.78341225 | CH24: 58.60215108 | CI24: 58.70287007 | CJ24: 59.10081003 | CK24: 59.81100386 | CL24: 60.85913452 | CM24: 62.29622068 | CN24: 14917922.88 | CO24: 14591565.04 | CP24: 14377545.34 | CQ24: 14226135.36 | CR24: 14098824.19 | CS24: 13968771.37 | CT24: 13819970.98 | CU24: 13645889.62 | CV24: 13448075.67 | CW24: 13234602.48 | CX24: 13018024.95 | CY24: 12812951.31 | CZ24: 12633724.4 | DA24: 12492742.68 | DB24: 12399678.83 | DC24: 12361443.88 | DD24: 12382689.39 | DE24: 12466630.2 | DF24: 12616437.35 | DG24: 12837528.36 | DH24: 13140665.01 | DI24: =IF('Asset data'!$F24=0,0,AY24*'Asset data'!$F24/1000) -> 12.50524197 | DJ24: =IF('Asset data'!$F24=0,0,AZ24*'Asset data'!$F24/1000) -> 11.51477233 | DK24: =IF('Asset data'!$F24=0,0,BA24*'Asset data'!$F24/1000) -> 11.07533401 | DL24: =IF('Asset data'!$F24=0,0,BB24*'Asset data'!$F24/1000) -> 11.18617023 | DM24: =IF('Asset data'!$F24=0,0,BC24*'Asset data'!$F24/1000) -> 11.76947378 | DN24: =IF('Asset data'!$F24=0,0,BD24*'Asset data'!$F24/1000) -> 12.71401722 | DO24: =IF('Asset data'!$F24=0,0,BE24*'Asset data'!$F24/1000) -> 13.8957888 | DP24: =IF('Asset data'!$F24=0,0,BF24*'Asset data'!$F24/1000) -> 15.17920663 | DQ24: =IF('Asset data'!$F24=0,0,BG24*'Asset data'!$F24/1000) -> 16.4160596 | DR24: =IF('Asset data'!$F24=0,0,BH24*'Asset data'!$F24/1000) -> 17.45501013 | DS24: =IF('Asset data'!$F24=0,0,BI24*'Asset data'!$F24/1000) -> 18.16066516 | DT24: =IF('Asset data'!$F24=0,0,BJ24*'Asset data'!$F24/1000) -> 18.43390187 | DU24: =IF('Asset data'!$F24=0,0,BK24*'Asset data'!$F24/1000) -> 18.22445997 | DV24: =IF('Asset data'!$F24=0,0,BL24*'Asset data'!$F24/1000) -> 17.53122529 | DW24: =IF('Asset data'!$F24=0,0,BM24*'Asset data'!$F24/1000) -> 16.39425532 | DX24: =IF('Asset data'!$F24=0,0,BN24*'Asset data'!$F24/1000) -> 14.87941973 | DY24: =IF('Asset data'!$F24=0,0,BO24*'Asset data'!$F24/1000) -> 13.0598347 | DZ24: =IF('Asset data'!$F24=0,0,BP24*'Asset data'!$F24/1000) -> 10.9830895 | EA24: =IF('Asset data'!$F24=0,0,BQ24*'Asset data'!$F24/1000) -> 8.627272918 | EB24: =IF('Asset data'!$F24=0,0,BR24*'Asset data'!$F24/1000) -> 5.871558951
A25: ='Asset data'!A25 -> 1 | B25: ='Asset data'!B25 -> 0 | C25: ='Asset data'!C25 -> 0 | D25: ='Asset data'!E25 -> Subtrans 4.5% Growth | E25: Subtransmission Lines | F25: ='Asset data'!I25 -> 113.4064225 | G25: 113.4064225 | H25: ='Asset data'!J25 -> 16.74315781 | I25: S | J25: =IF(A25=0,0,IF('Asset data'!$D$1=1,1,IF('Asset data'!$D$1=2,2,'Asset data'!K25))) -> 1 | K25: 113.4064225 | AX25: ='Utilisation profile summary'!H25 -> 118883.6014 | AY25: =Aug_calc('Asset data'!$M$5:$FG$5,'Asset data'!M25:FG25,'Asset data'!H25/100,'Asset data'!G25,'Asset data'!I25,'Asset data'!J25,J25,20) -> 321.0025662 | AZ25: 201.9364868 | BA25: 165.6415976 | BB25: 173.7685891 | BC25: 197.1876346 | BD25: 217.796253 | BE25: 225.5849993 | BF25: 216.8403315 | BG25: 194.1905084 | BH25: 166.0053354 | BI25: 143.0147805 | BJ25: 133.0678342 | BK25: 137.5280104 | BL25: 151.7368408 | BM25: 168.4005517 | BN25: 180.1146735 | BO25: 178.2807819 | BP25: 154.4001548 | BQ25: 106.5660762 | BR25: 47.89505474 | BS25: 83.17184265 | BT25: 73.2494739 | BU25: 69.87667082 | BV25: 68.27708353 | BW25: 66.83231015 | BX25: 65.16417584 | BY25: 63.42567929 | BZ25: 61.92264349 | CA25: 60.92241205 | CB25: 60.56842147 | CC25: 60.85073562 | CD25: 61.61830029 | CE25: 62.63535026 | CF25: 63.67078598 | CG25: 64.58047753 | CH25: 65.34028158 | CI25: 66.03621332 | CJ25: 66.86521578 | CK25: 68.1219672 | CL25: 70.12194961 | CM25: 73.0370017 | CN25: 9887768.186 | CO25: 8708161.254 | CP25: 8307190.278 | CQ25: 8117025.58 | CR25: 7945265.717 | CS25: 7746951.903 | CT25: 7540273.173 | CU25: 7361586.864 | CV25: 7242675.748 | CW25: 7200592.073 | CX25: 7234154.597 | CY25: 7325405.448 | CZ25: 7446316.011 | DA25: 7569412.339 | DB25: 7677559.747 | DC25: 7767887.989 | DD25: 7850622.859 | DE25: 7949177.657 | DF25: 8098584.793 | DG25: 8336349.904 | DH25: 8682901.795 | DI25: =IF('Asset data'!$F25=0,0,AY25*'Asset data'!$F25/1000) -> 23.03867555 | DJ25: =IF('Asset data'!$F25=0,0,AZ25*'Asset data'!$F25/1000) -> 14.49318383 | DK25: =IF('Asset data'!$F25=0,0,BA25*'Asset data'!$F25/1000) -> 11.88826329 | DL25: =IF('Asset data'!$F25=0,0,BB25*'Asset data'!$F25/1000) -> 12.47154561 | DM25: =IF('Asset data'!$F25=0,0,BC25*'Asset data'!$F25/1000) -> 14.15235395 | DN25: =IF('Asset data'!$F25=0,0,BD25*'Asset data'!$F25/1000) -> 15.63145513 | DO25: =IF('Asset data'!$F25=0,0,BE25*'Asset data'!$F25/1000) -> 16.19046125 | DP25: =IF('Asset data'!$F25=0,0,BF25*'Asset data'!$F25/1000) -> 15.56284768 | DQ25: =IF('Asset data'!$F25=0,0,BG25*'Asset data'!$F25/1000) -> 13.9372472 | DR25: =IF('Asset data'!$F25=0,0,BH25*'Asset data'!$F25/1000) -> 11.91436912 | DS25: =IF('Asset data'!$F25=0,0,BI25*'Asset data'!$F25/1000) -> 10.26431398 | DT25: =IF('Asset data'!$F25=0,0,BJ25*'Asset data'!$F25/1000) -> 9.550411682 | DU25: =IF('Asset data'!$F25=0,0,BK25*'Asset data'!$F25/1000) -> 9.870522996 | DV25: =IF('Asset data'!$F25=0,0,BL25*'Asset data'!$F25/1000) -> 10.89030498 | DW25: =IF('Asset data'!$F25=0,0,BM25*'Asset data'!$F25/1000) -> 12.08627619 | DX25: =IF('Asset data'!$F25=0,0,BN25*'Asset data'!$F25/1000) -> 12.92701044 | DY25: =IF('Asset data'!$F25=0,0,BO25*'Asset data'!$F25/1000) -> 12.79539021 | DZ25: =IF('Asset data'!$F25=0,0,BP25*'Asset data'!$F25/1000) -> 11.08145369 | EA25: =IF('Asset data'!$F25=0,0,BQ25*'Asset data'!$F25/1000) -> 7.648353978 | EB25: =IF('Asset data'!$F25=0,0,BR25*'Asset data'!$F25/1000) -> 3.437476029
A26: ='Asset data'!A26 -> 0 | B26: ='Asset data'!B26 -> 0 | C26: ='Asset data'!C26 -> 0 | D26: ='Asset data'!E26 -> 0 | E26: 0 | F26: ='Asset data'!I26 -> 0 | G26: 0 | H26: ='Asset data'!J26 -> 0 | I26: S | J26: =IF(A26=0,0,IF('Asset data'!$D$1=1,1,IF('Asset data'!$D$1=2,2,'Asset data'!K26))) -> 0 | K26: 0 | AX26: ='Utilisation profile summary'!H26 -> 0 | AY26: =Aug_calc('Asset data'!$M$5:$FG$5,'Asset data'!M26:FG26,'Asset data'!H26/100,'Asset data'!G26,'Asset data'!I26,'Asset data'!J26,J26,20) -> 0 | AZ26: 0 | BA26: 0 | BB26: 0 | BC26: 0 | BD26: 0 | BE26: 0 | BF26: 0 | BG26: 0 | BH26: 0 | BI26: 0 | BJ26: 0 | BK26: 0 | BL26: 0 | BM26: 0 | BN26: 0 | BO26: 0 | BP26: 0 | BQ26: 0 | BR26: 0 | BS26: 0 | BT26: 0 | BU26: 0 | BV26: 0 | BW26: 0 | BX26: 0 | BY26: 0 | BZ26: 0 | CA26: 0 | CB26: 0 | CC26: 0 | CD26: 0 | CE26: 0 | CF26: 0 | CG26: 0 | CH26: 0 | CI26: 0 | CJ26: 0 | CK26: 0 | CL26: 0 | CM26: 0 | CN26: 0 | CO26: 0 | CP26: 0 | CQ26: 0 | CR26: 0 | CS26: 0 | CT26: 0 | CU26: 0 | CV26: 0 | CW26: 0 | CX26: 0 | CY26: 0 | CZ26: 0 | DA26: 0 | DB26: 0 | DC26: 0 | DD26: 0 | DE26: 0 | DF26: 0 | DG26: 0 | DH26: 0 | DI26: =IF('Asset data'!$F26=0,0,AY26*'Asset data'!$F26/1000) -> 0 | DJ26: =IF('Asset data'!$F26=0,0,AZ26*'Asset data'!$F26/1000) -> 0 | DK26: =IF('Asset data'!$F26=0,0,BA26*'Asset data'!$F26/1000) -> 0 | DL26: =IF('Asset data'!$F26=0,0,BB26*'Asset data'!$F26/1000) -> 0 | DM26: =IF('Asset data'!$F26=0,0,BC26*'Asset data'!$F26/1000) -> 0 | DN26: =IF('Asset data'!$F26=0,0,BD26*'Asset data'!$F26/1000) -> 0 | DO26: =IF('Asset data'!$F26=0,0,BE26*'Asset data'!$F26/1000) -> 0 | DP26: =IF('Asset data'!$F26=0,0,BF26*'Asset data'!$F26/1000) -> 0 | DQ26: =IF('Asset data'!$F26=0,0,BG26*'Asset data'!$F26/1000) -> 0 | DR26: =IF('Asset data'!$F26=0,0,BH26*'Asset data'!$F26/1000) -> 0 | DS26: =IF('Asset data'!$F26=0,0,BI26*'Asset data'!$F26/1000) -> 0 | DT26: =IF('Asset data'!$F26=0,0,BJ26*'Asset data'!$F26/1000) -> 0 | DU26: =IF('Asset data'!$F26=0,0,BK26*'Asset data'!$F26/1000) -> 0 | DV26: =IF('Asset data'!$F26=0,0,BL26*'Asset data'!$F26/1000) -> 0 | DW26: =IF('Asset data'!$F26=0,0,BM26*'Asset data'!$F26/1000) -> 0 | DX26: =IF('Asset data'!$F26=0,0,BN26*'Asset data'!$F26/1000) -> 0 | DY26: =IF('Asset data'!$F26=0,0,BO26*'Asset data'!$F26/1000) -> 0 | DZ26: =IF('Asset data'!$F26=0,0,BP26*'Asset data'!$F26/1000) -> 0 | EA26: =IF('Asset data'!$F26=0,0,BQ26*'Asset data'!$F26/1000) -> 0 | EB26: =IF('Asset data'!$F26=0,0,BR26*'Asset data'!$F26/1000) -> 0
A27: ='Asset data'!A27 -> 0 | B27: ='Asset data'!B27 -> 0 | C27: ='Asset data'!C27 -> 0 | D27: ='Asset data'!E27 -> 0 | E27: 0 | F27: ='Asset data'!I27 -> 0 | G27: 0 | H27: ='Asset data'!J27 -> 0 | I27: S | J27: =IF(A27=0,0,IF('Asset data'!$D$1=1,1,IF('Asset data'!$D$1=2,2,'Asset data'!K27))) -> 0 | K27: 0 | AX27: ='Utilisation profile summary'!H27 -> 0 | AY27: =Aug_calc('Asset data'!$M$5:$FG$5,'Asset data'!M27:FG27,'Asset data'!H27/100,'Asset data'!G27,'Asset data'!I27,'Asset data'!J27,J27,20) -> 0 | AZ27: 0 | BA27: 0 | BB27: 0 | BC27: 0 | BD27: 0 | BE27: 0 | BF27: 0 | BG27: 0 | BH27: 0 | BI27: 0 | BJ27: 0 | BK27: 0 | BL27: 0 | BM27: 0 | BN27: 0 | BO27: 0 | BP27: 0 | BQ27: 0 | BR27: 0 | BS27: 0 | BT27: 0 | BU27: 0 | BV27: 0 | BW27: 0 | BX27: 0 | BY27: 0 | BZ27: 0 | CA27: 0 | CB27: 0 | CC27: 0 | CD27: 0 | CE27: 0 | CF27: 0 | CG27: 0 | CH27: 0 | CI27: 0 | CJ27: 0 | CK27: 0 | CL27: 0 | CM27: 0 | CN27: 0 | CO27: 0 | CP27: 0 | CQ27: 0 | CR27: 0 | CS27: 0 | CT27: 0 | CU27: 0 | CV27: 0 | CW27: 0 | CX27: 0 | CY27: 0 | CZ27: 0 | DA27: 0 | DB27: 0 | DC27: 0 | DD27: 0 | DE27: 0 | DF27: 0 | DG27: 0 | DH27: 0 | DI27: =IF('Asset data'!$F27=0,0,AY27*'Asset data'!$F27/1000) -> 0 | DJ27: =IF('Asset data'!$F27=0,0,AZ27*'Asset data'!$F27/1000) -> 0 | DK27: =IF('Asset data'!$F27=0,0,BA27*'Asset data'!$F27/1000) -> 0 | DL27: =IF('Asset data'!$F27=0,0,BB27*'Asset data'!$F27/1000) -> 0 | DM27: =IF('Asset data'!$F27=0,0,BC27*'Asset data'!$F27/1000) -> 0 | DN27: =IF('Asset data'!$F27=0,0,BD27*'Asset data'!$F27/1000) -> 0 | DO27: =IF('Asset data'!$F27=0,0,BE27*'Asset data'!$F27/1000) -> 0 | DP27: =IF('Asset data'!$F27=0,0,BF27*'Asset data'!$F27/1000) -> 0 | DQ27: =IF('Asset data'!$F27=0,0,BG27*'Asset data'!$F27/1000) -> 0 | DR27: =IF('Asset data'!$F27=0,0,BH27*'Asset data'!$F27/1000) -> 0 | DS27: =IF('Asset data'!$F27=0,0,BI27*'Asset data'!$F27/1000) -> 0 | DT27: =IF('Asset data'!$F27=0,0,BJ27*'Asset data'!$F27/1000) -> 0 | DU27: =IF('Asset data'!$F27=0,0,BK27*'Asset data'!$F27/1000) -> 0 | DV27: =IF('Asset data'!$F27=0,0,BL27*'Asset data'!$F27/1000) -> 0 | DW27: =IF('Asset data'!$F27=0,0,BM27*'Asset data'!$F27/1000) -> 0 | DX27: =IF('Asset data'!$F27=0,0,BN27*'Asset data'!$F27/1000) -> 0 | DY27: =IF('Asset data'!$F27=0,0,BO27*'Asset data'!$F27/1000) -> 0 | DZ27: =IF('Asset data'!$F27=0,0,BP27*'Asset data'!$F27/1000) -> 0 | EA27: =IF('Asset data'!$F27=0,0,BQ27*'Asset data'!$F27/1000) -> 0 | EB27: =IF('Asset data'!$F27=0,0,BR27*'Asset data'!$F27/1000) -> 0
A28: ='Asset data'!A28 -> 2 | B28: ='Asset data'!B28 -> 0 | C28: ='Asset data'!C28 -> 0 | D28: ='Asset data'!E28 -> HV Feeders - Rural Short | E28: HV Feeders | F28: ='Asset data'!I28 -> 86.13333333 | G28: 86.13333333 | H28: ='Asset data'!J28 -> 12.09398457 | I28: S | J28: =IF(A28=0,0,IF('Asset data'!$D$1=1,1,IF('Asset data'!$D$1=2,2,'Asset data'!K28))) -> 1 | K28: 86.13333333 | AX28: ='Utilisation profile summary'!H28 -> 214754.3757 | AY28: =Aug_calc('Asset data'!$M$5:$FG$5,'Asset data'!M28:FG28,'Asset data'!H28/100,'Asset data'!G28,'Asset data'!I28,'Asset data'!J28,J28,20) -> 181.0981988 | AZ28: 160.8643679 | BA28: 145.9524675 | BB28: 134.6675872 | BC28: 125.8247753 | BD28: 118.6150273 | BE28: 112.4984324 | BF28: 107.1228271 | BG28: 102.2634098 | BH28: 97.77860594 | BI28: 93.57830524 | BJ28: 89.60220991 | BK28: 85.80592923 | BL28: 82.15272142 | BM28: 78.6100439 | BN28: 75.14879671 | BO28: 71.7437879 | BP28: 68.37385175 | BQ28: 65.01987806 | BR28: 61.65849239 | BS28: 62.14915288 | BT28: 56.48559409 | BU28: 52.49868188 | BV28: 49.52965421 | BW28: 47.22696273 | BX28: 45.38804483 | BY28: 43.88884802 | BZ28: 42.64932741 | CA28: 41.61535072 | CB28: 40.74871246 | CC28: 40.02140866 | CD28: 39.41225598 | CE28: 38.90483708 | CF28: 38.48621202 | CG28: 38.14607944 | CH28: 37.87619594 | CI28: 37.66994883 | CJ28: 37.52202603 | CK28: 37.42815975 | CL28: 37.38494643 | CM28: 37.38977168 | CN28: 13346802.53 | CO28: 12130528.5 | CP28: 11274321.65 | CQ28: 10636709.97 | CR28: 10142196.9 | CS28: 9747281.234 | CT28: 9425322.157 | CU28: 9159129.683 | CV28: 8937078.664 | CW28: 8750964.306 | CX28: 8594772.633 | CY28: 8463954.429 | CZ28: 8354984.001 | DA28: 8265082.436 | DB28: 8192037.478 | DC28: 8134078.815 | DD28: 8089786.345 | DE28: 8058019.276 | DF28: 8037861.082 | DG28: 8028580.832 | DH28: 8029617.076 | DI28: =IF('Asset data'!$F28=0,0,AY28*'Asset data'!$F28/1000) -> 25.71528238 | DJ28: =IF('Asset data'!$F28=0,0,AZ28*'Asset data'!$F28/1000) -> 22.84215234 | DK28: =IF('Asset data'!$F28=0,0,BA28*'Asset data'!$F28/1000) -> 20.72471698 | DL28: =IF('Asset data'!$F28=0,0,BB28*'Asset data'!$F28/1000) -> 19.12230522 | DM28: =IF('Asset data'!$F28=0,0,BC28*'Asset data'!$F28/1000) -> 17.86665825 | DN28: =IF('Asset data'!$F28=0,0,BD28*'Asset data'!$F28/1000) -> 16.84290038 | DO28: =IF('Asset data'!$F28=0,0,BE28*'Asset data'!$F28/1000) -> 15.97436626 | DP28: =IF('Asset data'!$F28=0,0,BF28*'Asset data'!$F28/1000) -> 15.21104995 | DQ28: =IF('Asset data'!$F28=0,0,BG28*'Asset data'!$F28/1000) -> 14.52103045 | DR28: =IF('Asset data'!$F28=0,0,BH28*'Asset data'!$F28/1000) -> 13.8842047 | DS28: =IF('Asset data'!$F28=0,0,BI28*'Asset data'!$F28/1000) -> 13.28777735 | DT28: =IF('Asset data'!$F28=0,0,BJ28*'Asset data'!$F28/1000) -> 12.72318634 | DU28: =IF('Asset data'!$F28=0,0,BK28*'Asset data'!$F28/1000) -> 12.18412836 | DV28: =IF('Asset data'!$F28=0,0,BL28*'Asset data'!$F28/1000) -> 11.6653862 | DW28: =IF('Asset data'!$F28=0,0,BM28*'Asset data'!$F28/1000) -> 11.16233894 | DX28: =IF('Asset data'!$F28=0,0,BN28*'Asset data'!$F28/1000) -> 10.67085449 | DY28: =IF('Asset data'!$F28=0,0,BO28*'Asset data'!$F28/1000) -> 10.18735568 | DZ28: =IF('Asset data'!$F28=0,0,BP28*'Asset data'!$F28/1000) -> 9.708837067 | EA28: =IF('Asset data'!$F28=0,0,BQ28*'Asset data'!$F28/1000) -> 9.23258506 | EB28: =IF('Asset data'!$F28=0,0,BR28*'Asset data'!$F28/1000) -> 8.75528058
A29: ='Asset data'!A29 -> 2 | B29: ='Asset data'!B29 -> 0 | C29: ='Asset data'!C29 -> 0 | D29: ='Asset data'!E29 -> HV Feeders - Rural Long | E29: HV Feeders | F29: ='Asset data'!I29 -> 107 | G29: 107 | H29: ='Asset data'!J29 -> 12.09398457 | I29: S | J29: =IF(A29=0,0,IF('Asset data'!$D$1=1,1,IF('Asset data'!$D$1=2,2,'Asset data'!K29))) -> 1 | K29: 107 | AX29: ='Utilisation profile summary'!H29 -> 104376.184 | AY29: =Aug_calc('Asset data'!$M$5:$FG$5,'Asset data'!M29:FG29,'Asset data'!H29/100,'Asset data'!G29,'Asset data'!I29,'Asset data'!J29,J29,20) -> 7.825116653 | AZ29: 7.910389606 | BA29: 7.968194328 | BB29: 8.000597989 | BC29: 8.01023476 | BD29: 8.000199563 | BE29: 7.973925862 | BF29: 7.935054142 | BG29: 7.88729815 | BH29: 7.834315804 | BI29: 7.777705002 | BJ29: 7.719503814 | BK29: 7.663659577 | BL29: 7.612021097 | BM29: 7.565844506 | BN29: 7.525758906 | BO29: 7.49175431 | BP29: 7.463190703 | BQ29: 7.438826618 | BR29: 7.416865344 | BS29: 64.60938439 | BT29: 64.77469806 | BU29: 64.93887498 | BV29: 65.1037006 | BW29: 65.27079431 | BX29: 65.44157837 | BY29: 65.61725507 | BZ29: 65.79879233 | CA29: 65.98691786 | CB29: 66.18212142 | CC29: 66.38466441 | CD29: 66.59471035 | CE29: 66.81230063 | CF29: 67.03724186 | CG29: 67.26923601 | CH29: 67.50791715 | CI29: 67.75288944 | CJ29: 68.00376499 | CK29: 68.26020061 | CL29: 68.52193227 | CM29: 68.78880651 | CN29: 6743680.993 | CO29: 6760935.803 | CP29: 6778071.964 | CQ29: 6795275.833 | CR29: 6812716.436 | CS29: 6830542.225 | CT29: 6848878.689 | CU29: 6867826.855 | CV29: 6887462.68 | CW29: 6907837.283 | CX29: 6928977.946 | CY29: 6950901.74 | CZ29: 6973612.983 | DA29: 6997091.491 | DB29: 7021306.155 | DC29: 7046218.782 | DD29: 7071788.054 | DE29: 7097973.487 | DF29: 7124739.258 | DG29: 7152057.811 | DH29: 7179913.125 | DI29: =IF('Asset data'!$F29=0,0,AY29*'Asset data'!$F29/1000) -> 0.8089090014 | DJ29: =IF('Asset data'!$F29=0,0,AZ29*'Asset data'!$F29/1000) -> 0.8177239575 | DK29: =IF('Asset data'!$F29=0,0,BA29*'Asset data'!$F29/1000) -> 0.8236994288 | DL29: =IF('Asset data'!$F29=0,0,BB29*'Asset data'!$F29/1000) -> 0.8270491058 | DM29: =IF('Asset data'!$F29=0,0,BC29*'Asset data'!$F29/1000) -> 0.8280452916 | DN29: =IF('Asset data'!$F29=0,0,BD29*'Asset data'!$F29/1000) -> 0.8270079191 | DO29: =IF('Asset data'!$F29=0,0,BE29*'Asset data'!$F29/1000) -> 0.824291917 | DP29: =IF('Asset data'!$F29=0,0,BF29*'Asset data'!$F29/1000) -> 0.8202736148 | DQ29: =IF('Asset data'!$F29=0,0,BG29*'Asset data'!$F29/1000) -> 0.8153369149 | DR29: =IF('Asset data'!$F29=0,0,BH29*'Asset data'!$F29/1000) -> 0.8098599491 | DS29: =IF('Asset data'!$F29=0,0,BI29*'Asset data'!$F29/1000) -> 0.8040078974 | DT29: =IF('Asset data'!$F29=0,0,BJ29*'Asset data'!$F29/1000) -> 0.7979914421 | DU29: =IF('Asset data'!$F29=0,0,BK29*'Asset data'!$F29/1000) -> 0.7922186328 | DV29: =IF('Asset data'!$F29=0,0,BL29*'Asset data'!$F29/1000) -> 0.786880587 | DW29: =IF('Asset data'!$F29=0,0,BM29*'Asset data'!$F29/1000) -> 0.7821071551 | DX29: =IF('Asset data'!$F29=0,0,BN29*'Asset data'!$F29/1000) -> 0.77796337 | DY29: =IF('Asset data'!$F29=0,0,BO29*'Asset data'!$F29/1000) -> 0.7744481989 | DZ29: =IF('Asset data'!$F29=0,0,BP29*'Asset data'!$F29/1000) -> 0.7714954814 | EA29: =IF('Asset data'!$F29=0,0,BQ29*'Asset data'!$F29/1000) -> 0.7689768828 | EB29: =IF('Asset data'!$F29=0,0,BR29*'Asset data'!$F29/1000) -> 0.766706671
A30: ='Asset data'!A30 -> 2 | B30: ='Asset data'!B30 -> 0 | C30: ='Asset data'!C30 -> 0 | D30: ='Asset data'!E30 -> HV Feeders - Urban | E30: HV Feeders | F30: ='Asset data'!I30 -> 74.705 | G30: 74.705 | H30: ='Asset data'!J30 -> 12.09398457 | I30: S | J30: =IF(A30=0,0,IF('Asset data'!$D$1=1,1,IF('Asset data'!$D$1=2,2,'Asset data'!K30))) -> 1 | K30: 74.705 | AX30: ='Utilisation profile summary'!H30 -> 232641.9349 | AY30: =Aug_calc('Asset data'!$M$5:$FG$5,'Asset data'!M30:FG30,'Asset data'!H30/100,'Asset data'!G30,'Asset data'!I30,'Asset data'!J30,J30,20) -> 65.35089449 | AZ30: 61.10247367 | BA30: 57.63173824 | BB30: 54.73577341 | BC30: 52.24041969 | BD30: 50.06328805 | BE30: 48.16749304 | BF30: 46.53065474 | BG30: 45.13401615 | BH30: 43.95975329 | BI30: 42.78311738 | BJ30: 41.47991921 | BK30: 40.15224387 | BL30: 38.70611876 | BM30: 37.0356301 | BN30: 35.03554036 | BO30: 32.61906559 | BP30: 29.73532484 | BQ30: 26.45464563 | BR30: 22.843369 | BS30: 57.76516794 | BT30: 56.91185669 | BU30: 56.2245879 | BV30: 55.66821634 | BW30: 55.21775024 | BX30: 54.85564992 | BY30: 54.56848508 | BZ30: 54.34524985 | CA30: 54.17663985 | CB30: 54.05469066 | CC30: 53.97254522 | CD30: 53.92839311 | CE30: 53.92306292 | CF30: 53.95547339 | CG30: 54.02650236 | CH30: 54.13910063 | CI30: 54.29820255 | CJ30: 54.5103618 | CK30: 54.78313832 | CL30: 55.12299147 | CM30: 55.53552385 | CN30: 13438600.44 | CO30: 13240084.46 | CP30: 13080196.92 | CQ30: 12950761.56 | CR30: 12845964.26 | CS30: 12761724.54 | CT30: 12694917.95 | CU30: 12642984.08 | CV30: 12603758.32 | CW30: 12575387.83 | CX30: 12556277.35 | CY30: 12546005.72 | CZ30: 12544765.7 | DA30: 12552305.73 | DB30: 12568830.05 | DC30: 12595025.13 | DD30: 12632038.91 | DE30: 12681396.04 | DF30: 12744855.3 | DG30: 12823919.39 | DH30: 12919891.73 | DI30: =IF('Asset data'!$F30=0,0,AY30*'Asset data'!$F30/1000) -> 7.066521274 | DJ30: =IF('Asset data'!$F30=0,0,AZ30*'Asset data'!$F30/1000) -> 6.607131141 | DK30: =IF('Asset data'!$F30=0,0,BA30*'Asset data'!$F30/1000) -> 6.231833666 | DL30: =IF('Asset data'!$F30=0,0,BB30*'Asset data'!$F30/1000) -> 5.918687269 | DM30: =IF('Asset data'!$F30=0,0,BC30*'Asset data'!$F30/1000) -> 5.648859744 | DN30: =IF('Asset data'!$F30=0,0,BD30*'Asset data'!$F30/1000) -> 5.413442201 | DO30: =IF('Asset data'!$F30=0,0,BE30*'Asset data'!$F30/1000) -> 5.208446142 | DP30: =IF('Asset data'!$F30=0,0,BF30*'Asset data'!$F30/1000) -> 5.031451584 | DQ30: =IF('Asset data'!$F30=0,0,BG30*'Asset data'!$F30/1000) -> 4.880430296 | DR30: =IF('Asset data'!$F30=0,0,BH30*'Asset data'!$F30/1000) -> 4.753454934 | DS30: =IF('Asset data'!$F30=0,0,BI30*'Asset data'!$F30/1000) -> 4.626222969 | DT30: =IF('Asset data'!$F30=0,0,BJ30*'Asset data'!$F30/1000) -> 4.485305577 | DU30: =IF('Asset data'!$F30=0,0,BK30*'Asset data'!$F30/1000) -> 4.341741422 | DV30: =IF('Asset data'!$F30=0,0,BL30*'Asset data'!$F30/1000) -> 4.185369057 | DW30: =IF('Asset data'!$F30=0,0,BM30*'Asset data'!$F30/1000) -> 4.00473582 | DX30: =IF('Asset data'!$F30=0,0,BN30*'Asset data'!$F30/1000) -> 3.788462166 | DY30: =IF('Asset data'!$F30=0,0,BO30*'Asset data'!$F30/1000) -> 3.527163978 | DZ30: =IF('Asset data'!$F30=0,0,BP30*'Asset data'!$F30/1000) -> 3.215339396 | EA30: =IF('Asset data'!$F30=0,0,BQ30*'Asset data'!$F30/1000) -> 2.860593074 | EB30: =IF('Asset data'!$F30=0,0,BR30*'Asset data'!$F30/1000) -> 2.470098601
A31: ='Asset data'!A31 -> 0 | B31: ='Asset data'!B31 -> 0 | C31: ='Asset data'!C31 -> 0 | D31: ='Asset data'!E31 -> 0 | E31: 0 | F31: ='Asset data'!I31 -> 0 | G31: 0 | H31: ='Asset data'!J31 -> 0 | I31: S | J31: =IF(A31=0,0,IF('Asset data'!$D$1=1,1,IF('Asset data'!$D$1=2,2,'Asset data'!K31))) -> 0 | K31: 0 | AX31: ='Utilisation profile summary'!H31 -> 0 | AY31: =Aug_calc('Asset data'!$M$5:$FG$5,'Asset data'!M31:FG31,'Asset data'!H31/100,'Asset data'!G31,'Asset data'!I31,'Asset data'!J31,J31,20) -> 0 | AZ31: 0 | BA31: 0 | BB31: 0 | BC31: 0 | BD31: 0 | BE31: 0 | BF31: 0 | BG31: 0 | BH31: 0 | BI31: 0 | BJ31: 0 | BK31: 0 | BL31: 0 | BM31: 0 | BN31: 0 | BO31: 0 | BP31: 0 | BQ31: 0 | BR31: 0 | BS31: 0 | BT31: 0 | BU31: 0 | BV31: 0 | BW31: 0 | BX31: 0 | BY31: 0 | BZ31: 0 | CA31: 0 | CB31: 0 | CC31: 0 | CD31: 0 | CE31: 0 | CF31: 0 | CG31: 0 | CH31: 0 | CI31: 0 | CJ31: 0 | CK31: 0 | CL31: 0 | CM31: 0 | CN31: 0 | CO31: 0 | CP31: 0 | CQ31: 0 | CR31: 0 | CS31: 0 | CT31: 0 | CU31: 0 | CV31: 0 | CW31: 0 | CX31: 0 | CY31: 0 | CZ31: 0 | DA31: 0 | DB31: 0 | DC31: 0 | DD31: 0 | DE31: 0 | DF31: 0 | DG31: 0 | DH31: 0 | DI31: =IF('Asset data'!$F31=0,0,AY31*'Asset data'!$F31/1000) -> 0 | DJ31: =IF('Asset data'!$F31=0,0,AZ31*'Asset data'!$F31/1000) -> 0 | DK31: =IF('Asset data'!$F31=0,0,BA31*'Asset data'!$F31/1000) -> 0 | DL31: =IF('Asset data'!$F31=0,0,BB31*'Asset data'!$F31/1000) -> 0 | DM31: =IF('Asset data'!$F31=0,0,BC31*'Asset data'!$F31/1000) -> 0 | DN31: =IF('Asset data'!$F31=0,0,BD31*'Asset data'!$F31/1000) -> 0 | DO31: =IF('Asset data'!$F31=0,0,BE31*'Asset data'!$F31/1000) -> 0 | DP31: =IF('Asset data'!$F31=0,0,BF31*'Asset data'!$F31/1000) -> 0 | DQ31: =IF('Asset data'!$F31=0,0,BG31*'Asset data'!$F31/1000) -> 0 | DR31: =IF('Asset data'!$F31=0,0,BH31*'Asset data'!$F31/1000) -> 0 | DS31: =IF('Asset data'!$F31=0,0,BI31*'Asset data'!$F31/1000) -> 0 | DT31: =IF('Asset data'!$F31=0,0,BJ31*'Asset data'!$F31/1000) -> 0 | DU31: =IF('Asset data'!$F31=0,0,BK31*'Asset data'!$F31/1000) -> 0 | DV31: =IF('Asset data'!$F31=0,0,BL31*'Asset data'!$F31/1000) -> 0 | DW31: =IF('Asset data'!$F31=0,0,BM31*'Asset data'!$F31/1000) -> 0 | DX31: =IF('Asset data'!$F31=0,0,BN31*'Asset data'!$F31/1000) -> 0 | DY31: =IF('Asset data'!$F31=0,0,BO31*'Asset data'!$F31/1000) -> 0 | DZ31: =IF('Asset data'!$F31=0,0,BP31*'Asset data'!$F31/1000) -> 0 | EA31: =IF('Asset data'!$F31=0,0,BQ31*'Asset data'!$F31/1000) -> 0 | EB31: =IF('Asset data'!$F31=0,0,BR31*'Asset data'!$F31/1000) -> 0
A32: ='Asset data'!A32 -> 0 | B32: ='Asset data'!B32 -> 0 | C32: ='Asset data'!C32 -> 0 | D32: ='Asset data'!E32 -> 0 | E32: 0 | F32: ='Asset data'!I32 -> 0 | G32: 0 | H32: ='Asset data'!J32 -> 0 | I32: S | J32: =IF(A32=0,0,IF('Asset data'!$D$1=1,1,IF('Asset data'!$D$1=2,2,'Asset data'!K32))) -> 0 | K32: 0 | AX32: ='Utilisation profile summary'!H32 -> 0 | AY32: =Aug_calc('Asset data'!$M$5:$FG$5,'Asset data'!M32:FG32,'Asset data'!H32/100,'Asset data'!G32,'Asset data'!I32,'Asset data'!J32,J32,20) -> 0 | AZ32: 0 | BA32: 0 | BB32: 0 | BC32: 0 | BD32: 0 | BE32: 0 | BF32: 0 | BG32: 0 | BH32: 0 | BI32: 0 | BJ32: 0 | BK32: 0 | BL32: 0 | BM32: 0 | BN32: 0 | BO32: 0 | BP32: 0 | BQ32: 0 | BR32: 0 | BS32: 0 | BT32: 0 | BU32: 0 | BV32: 0 | BW32: 0 | BX32: 0 | BY32: 0 | BZ32: 0 | CA32: 0 | CB32: 0 | CC32: 0 | CD32: 0 | CE32: 0 | CF32: 0 | CG32: 0 | CH32: 0 | CI32: 0 | CJ32: 0 | CK32: 0 | CL32: 0 | CM32: 0 | CN32: 0 | CO32: 0 | CP32: 0 | CQ32: 0 | CR32: 0 | CS32: 0 | CT32: 0 | CU32: 0 | CV32: 0 | CW32: 0 | CX32: 0 | CY32: 0 | CZ32: 0 | DA32: 0 | DB32: 0 | DC32: 0 | DD32: 0 | DE32: 0 | DF32: 0 | DG32: 0 | DH32: 0 | DI32: =IF('Asset data'!$F32=0,0,AY32*'Asset data'!$F32/1000) -> 0 | DJ32: =IF('Asset data'!$F32=0,0,AZ32*'Asset data'!$F32/1000) -> 0 | DK32: =IF('Asset data'!$F32=0,0,BA32*'Asset data'!$F32/1000) -> 0 | DL32: =IF('Asset data'!$F32=0,0,BB32*'Asset data'!$F32/1000) -> 0 | DM32: =IF('Asset data'!$F32=0,0,BC32*'Asset data'!$F32/1000) -> 0 | DN32: =IF('Asset data'!$F32=0,0,BD32*'Asset data'!$F32/1000) -> 0 | DO32: =IF('Asset data'!$F32=0,0,BE32*'Asset data'!$F32/1000) -> 0 | DP32: =IF('Asset data'!$F32=0,0,BF32*'Asset data'!$F32/1000) -> 0 | DQ32: =IF('Asset data'!$F32=0,0,BG32*'Asset data'!$F32/1000) -> 0 | DR32: =IF('Asset data'!$F32=0,0,BH32*'Asset data'!$F32/1000) -> 0 | DS32: =IF('Asset data'!$F32=0,0,BI32*'Asset data'!$F32/1000) -> 0 | DT32: =IF('Asset data'!$F32=0,0,BJ32*'Asset data'!$F32/1000) -> 0 | DU32: =IF('Asset data'!$F32=0,0,BK32*'Asset data'!$F32/1000) -> 0 | DV32: =IF('Asset data'!$F32=0,0,BL32*'Asset data'!$F32/1000) -> 0 | DW32: =IF('Asset data'!$F32=0,0,BM32*'Asset data'!$F32/1000) -> 0 | DX32: =IF('Asset data'!$F32=0,0,BN32*'Asset data'!$F32/1000) -> 0 | DY32: =IF('Asset data'!$F32=0,0,BO32*'Asset data'!$F32/1000) -> 0 | DZ32: =IF('Asset data'!$F32=0,0,BP32*'Asset data'!$F32/1000) -> 0 | EA32: =IF('Asset data'!$F32=0,0,BQ32*'Asset data'!$F32/1000) -> 0 | EB32: =IF('Asset data'!$F32=0,0,BR32*'Asset data'!$F32/1000) -> 0
A33: ='Asset data'!A33 -> 3 | B33: ='Asset data'!B33 -> 0 | C33: ='Asset data'!C33 -> 0 | D33: ='Asset data'!E33 -> ZSS Urban | E33: Zone Substation | F33: ='Asset data'!I33 -> 82.92685702 | G33: 82.92685702 | H33: ='Asset data'!J33 -> 30.49999288 | I33: S | J33: =IF(A33=0,0,IF('Asset data'!$D$1=1,1,IF('Asset data'!$D$1=2,2,'Asset data'!K33))) -> 1 | K33: 82.92685702 | AX33: ='Utilisation profile summary'!H33 -> 265693.3695 | AY33: =Aug_calc('Asset data'!$M$5:$FG$5,'Asset data'!M33:FG33,'Asset data'!H33/100,'Asset data'!G33,'Asset data'!I33,'Asset data'!J33,J33,20) -> 28.40410729 | AZ33: 30.02348291 | BA33: 31.62514196 | BB33: 33.20075254 | BC33: 34.74484302 | BD33: 36.25555747 | BE33: 37.7352372 | BF33: 39.19071473 | BG33: 40.63320279 | BH33: 42.07767942 | BI33: 41.57374698 | BJ33: 38.72907447 | BK33: 35.43544231 | BL33: 31.79638375 | BM33: 27.94799985 | BN33: 24.04466328 | BO33: 20.24061527 | BP33: 16.67213367 | BQ33: 13.44419462 | BR33: 10.62364965 | BS33: 69.03481979 | BT33: 69.63830931 | BU33: 70.19368565 | BV33: 70.70574523 | BW33: 71.17972455 | BX33: 71.62103701 | BY33: 72.03499778 | BZ33: 72.4265551 | CA33: 72.80004797 | CB33: 73.15901155 | CC33: 73.50605068 | CD33: 73.93707956 | CE33: 74.55876765 | CF33: 75.38425526 | CG33: 76.42402382 | CH33: 77.68505645 | CI33: 79.17031778 | CJ33: 80.87865962 | CK33: 82.80515414 | CL33: 84.94177353 | CM33: 87.27829203 | CN33: 18342093.89 | CO33: 18502437.05 | CP33: 18649996.86 | CQ33: 18786047.69 | CR33: 18911980.86 | CS33: 19029234.65 | CT33: 19139221.28 | CU33: 19243255.47 | CV33: 19342490.05 | CW33: 19437864.29 | CX33: 19530070.28 | CY33: 19644591.8 | CZ33: 19809770.2 | DA33: 20029096.79 | DB33: 20305356.4 | DC33: 20640404.41 | DD33: 21035028.5 | DE33: 21488923.6 | DF33: 22000780.42 | DG33: 22568466.02 | DH33: 23189263.49 | DI33: =IF('Asset data'!$F33=0,0,AY33*'Asset data'!$F33/1000) -> 6.585900144 | DJ33: =IF('Asset data'!$F33=0,0,AZ33*'Asset data'!$F33/1000) -> 6.961375634 | DK33: =IF('Asset data'!$F33=0,0,BA33*'Asset data'!$F33/1000) -> 7.332743285 | DL33: =IF('Asset data'!$F33=0,0,BB33*'Asset data'!$F33/1000) -> 7.698071222 | DM33: =IF('Asset data'!$F33=0,0,BC33*'Asset data'!$F33/1000) -> 8.056090771 | DN33: =IF('Asset data'!$F33=0,0,BD33*'Asset data'!$F33/1000) -> 8.40637161 | DO33: =IF('Asset data'!$F33=0,0,BE33*'Asset data'!$F33/1000) -> 8.749456603 | DP33: =IF('Asset data'!$F33=0,0,BF33*'Asset data'!$F33/1000) -> 9.086929968 | DQ33: =IF('Asset data'!$F33=0,0,BG33*'Asset data'!$F33/1000) -> 9.421391539 | DR33: =IF('Asset data'!$F33=0,0,BH33*'Asset data'!$F33/1000) -> 9.756314188 | DS33: =IF('Asset data'!$F33=0,0,BI33*'Asset data'!$F33/1000) -> 9.639470214 | DT33: =IF('Asset data'!$F33=0,0,BJ33*'Asset data'!$F33/1000) -> 8.979892045 | DU33: =IF('Asset data'!$F33=0,0,BK33*'Asset data'!$F33/1000) -> 8.216216133 | DV33: =IF('Asset data'!$F33=0,0,BL33*'Asset data'!$F33/1000) -> 7.372448153 | DW33: =IF('Asset data'!$F33=0,0,BM33*'Asset data'!$F33/1000) -> 6.480145084 | DX33: =IF('Asset data'!$F33=0,0,BN33*'Asset data'!$F33/1000) -> 5.57510045 | DY33: =IF('Asset data'!$F33=0,0,BO33*'Asset data'!$F33/1000) -> 4.693077295 | DZ33: =IF('Asset data'!$F33=0,0,BP33*'Asset data'!$F33/1000) -> 3.865673595 | EA33: =IF('Asset data'!$F33=0,0,BQ33*'Asset data'!$F33/1000) -> 3.117229573 | EB33: =IF('Asset data'!$F33=0,0,BR33*'Asset data'!$F33/1000) -> 2.463245722
A34: ='Asset data'!A34 -> 3 | B34: ='Asset data'!B34 -> 0 | C34: ='Asset data'!C34 -> 0 | D34: ='Asset data'!E34 -> ZSS Rural | E34: Zone Substation | F34: ='Asset data'!I34 -> 79.32171007 | G34: 79.32171007 | H34: ='Asset data'!J34 -> 30.49999288 | I34: S | J34: =IF(A34=0,0,IF('Asset data'!$D$1=1,1,IF('Asset data'!$D$1=2,2,'Asset data'!K34))) -> 1 | K34: 79.32171007 | AX34: ='Utilisation profile summary'!H34 -> 285958.3145 | AY34: =Aug_calc('Asset data'!$M$5:$FG$5,'Asset data'!M34:FG34,'Asset data'!H34/100,'Asset data'!G34,'Asset data'!I34,'Asset data'!J34,J34,20) -> 31.05880083 | AZ34: 31.79983232 | BA34: 32.54394332 | BB34: 33.29500244 | BC34: 34.05674945 | BD34: 34.8325222 | BE34: 35.62516856 | BF34: 36.4372431 | BG34: 37.2714356 | BH34: 38.13105066 | BI34: 37.31561958 | BJ34: 34.56795923 | BK34: 31.54059915 | BL34: 28.3034501 | BM34: 24.96100153 | BN34: 21.64508095 | BO34: 18.49211698 | BP34: 15.61025867 | BQ34: 13.05827492 | BR34: 10.85165159 | BS34: 68.11862483 | BT34: 68.32809271 | BU34: 68.54037999 | BV34: 68.75620823 | BW34: 68.97606113 | BX34: 69.20021395 | BY34: 69.42877372 | BZ34: 69.66171967 | CA34: 69.89893021 | CB34: 70.14018774 | CC34: 70.38516195 | CD34: 70.70790781 | CE34: 71.18837692 | CF34: 71.83264701 | CG34: 72.64550766 | CH34: 73.629267 | CI34: 74.78269074 | CJ34: 76.10064211 | CK34: 77.57486343 | CL34: 79.19553585 | CM34: 80.95262073 | CN34: 19479087.14 | CO34: 19538986.23 | CP34: 19599691.54 | CQ34: 19661409.42 | CR34: 19724278.19 | CS34: 19788376.55 | CT34: 19853735.11 | CU34: 19920347.95 | CV34: 19988180.27 | CW34: 20057169.87 | CX34: 20127222.28 | CY34: 20219514.14 | CZ34: 20356908.28 | DA34: 20541142.67 | DB34: 20773586.93 | DC34: 21054901.09 | DD34: 21384732.2 | DE34: 21761611.35 | DF34: 22183177.2 | DG34: 22646621.95 | DH34: 23149074.98 | DI34: =IF('Asset data'!$F34=0,0,AY34*'Asset data'!$F34/1000) -> 7.201428961 | DJ34: =IF('Asset data'!$F34=0,0,AZ34*'Asset data'!$F34/1000) -> 7.373247752 | DK34: =IF('Asset data'!$F34=0,0,BA34*'Asset data'!$F34/1000) -> 7.545780573 | DL34: =IF('Asset data'!$F34=0,0,BB34*'Asset data'!$F34/1000) -> 7.719924414 | DM34: =IF('Asset data'!$F34=0,0,BC34*'Asset data'!$F34/1000) -> 7.896546398 | DN34: =IF('Asset data'!$F34=0,0,BD34*'Asset data'!$F34/1000) -> 8.07642045 | DO34: =IF('Asset data'!$F34=0,0,BE34*'Asset data'!$F34/1000) -> 8.26020689 | DP34: =IF('Asset data'!$F34=0,0,BF34*'Asset data'!$F34/1000) -> 8.448498031 | DQ34: =IF('Asset data'!$F34=0,0,BG34*'Asset data'!$F34/1000) -> 8.641917541 | DR34: =IF('Asset data'!$F34=0,0,BH34*'Asset data'!$F34/1000) -> 8.841231636 | DS34: =IF('Asset data'!$F34=0,0,BI34*'Asset data'!$F34/1000) -> 8.652162233 | DT34: =IF('Asset data'!$F34=0,0,BJ34*'Asset data'!$F34/1000) -> 8.015077725 | DU34: =IF('Asset data'!$F34=0,0,BK34*'Asset data'!$F34/1000) -> 7.313140819 | DV34: =IF('Asset data'!$F34=0,0,BL34*'Asset data'!$F34/1000) -> 6.562561328 | DW34: =IF('Asset data'!$F34=0,0,BM34*'Asset data'!$F34/1000) -> 5.787566631 | DX34: =IF('Asset data'!$F34=0,0,BN34*'Asset data'!$F34/1000) -> 5.018722831 | DY34: =IF('Asset data'!$F34=0,0,BO34*'Asset data'!$F34/1000) -> 4.287662858 | DZ34: =IF('Asset data'!$F34=0,0,BP34*'Asset data'!$F34/1000) -> 3.619462627 | EA34: =IF('Asset data'!$F34=0,0,BQ34*'Asset data'!$F34/1000) -> 3.027748551 | EB34: =IF('Asset data'!$F34=0,0,BR34*'Asset data'!$F34/1000) -> 2.516111245
A35: ='Asset data'!A35 -> 0 | B35: ='Asset data'!B35 -> 0 | C35: ='Asset data'!C35 -> 0 | D35: ='Asset data'!E35 -> 0 | E35: 0 | F35: ='Asset data'!I35 -> 0 | G35: 0 | H35: ='Asset data'!J35 -> 0 | I35: S | J35: =IF(A35=0,0,IF('Asset data'!$D$1=1,1,IF('Asset data'!$D$1=2,2,'Asset data'!K35))) -> 0 | K35: 0 | AX35: ='Utilisation profile summary'!H35 -> 0 | AY35: =Aug_calc('Asset data'!$M$5:$FG$5,'Asset data'!M35:FG35,'Asset data'!H35/100,'Asset data'!G35,'Asset data'!I35,'Asset data'!J35,J35,20) -> 0 | AZ35: 0 | BA35: 0 | BB35: 0 | BC35: 0 | BD35: 0 | BE35: 0 | BF35: 0 | BG35: 0 | BH35: 0 | BI35: 0 | BJ35: 0 | BK35: 0 | BL35: 0 | BM35: 0 | BN35: 0 | BO35: 0 | BP35: 0 | BQ35: 0 | BR35: 0 | BS35: 0 | BT35: 0 | BU35: 0 | BV35: 0 | BW35: 0 | BX35: 0 | BY35: 0 | BZ35: 0 | CA35: 0 | CB35: 0 | CC35: 0 | CD35: 0 | CE35: 0 | CF35: 0 | CG35: 0 | CH35: 0 | CI35: 0 | CJ35: 0 | CK35: 0 | CL35: 0 | CM35: 0 | CN35: 0 | CO35: 0 | CP35: 0 | CQ35: 0 | CR35: 0 | CS35: 0 | CT35: 0 | CU35: 0 | CV35: 0 | CW35: 0 | CX35: 0 | CY35: 0 | CZ35: 0 | DA35: 0 | DB35: 0 | DC35: 0 | DD35: 0 | DE35: 0 | DF35: 0 | DG35: 0 | DH35: 0 | DI35: =IF('Asset data'!$F35=0,0,AY35*'Asset data'!$F35/1000) -> 0 | DJ35: =IF('Asset data'!$F35=0,0,AZ35*'Asset data'!$F35/1000) -> 0 | DK35: =IF('Asset data'!$F35=0,0,BA35*'Asset data'!$F35/1000) -> 0 | DL35: =IF('Asset data'!$F35=0,0,BB35*'Asset data'!$F35/1000) -> 0 | DM35: =IF('Asset data'!$F35=0,0,BC35*'Asset data'!$F35/1000) -> 0 | DN35: =IF('Asset data'!$F35=0,0,BD35*'Asset data'!$F35/1000) -> 0 | DO35: =IF('Asset data'!$F35=0,0,BE35*'Asset data'!$F35/1000) -> 0 | DP35: =IF('Asset data'!$F35=0,0,BF35*'Asset data'!$F35/1000) -> 0 | DQ35: =IF('Asset data'!$F35=0,0,BG35*'Asset data'!$F35/1000) -> 0 | DR35: =IF('Asset data'!$F35=0,0,BH35*'Asset data'!$F35/1000) -> 0 | DS35: =IF('Asset data'!$F35=0,0,BI35*'Asset data'!$F35/1000) -> 0 | DT35: =IF('Asset data'!$F35=0,0,BJ35*'Asset data'!$F35/1000) -> 0 | DU35: =IF('Asset data'!$F35=0,0,BK35*'Asset data'!$F35/1000) -> 0 | DV35: =IF('Asset data'!$F35=0,0,BL35*'Asset data'!$F35/1000) -> 0 | DW35: =IF('Asset data'!$F35=0,0,BM35*'Asset data'!$F35/1000) -> 0 | DX35: =IF('Asset data'!$F35=0,0,BN35*'Asset data'!$F35/1000) -> 0 | DY35: =IF('Asset data'!$F35=0,0,BO35*'Asset data'!$F35/1000) -> 0 | DZ35: =IF('Asset data'!$F35=0,0,BP35*'Asset data'!$F35/1000) -> 0 | EA35: =IF('Asset data'!$F35=0,0,BQ35*'Asset data'!$F35/1000) -> 0 | EB35: =IF('Asset data'!$F35=0,0,BR35*'Asset data'!$F35/1000) -> 0
A36: ='Asset data'!A36 -> 0 | B36: ='Asset data'!B36 -> 0 | C36: ='Asset data'!C36 -> 0 | D36: ='Asset data'!E36 -> 0 | E36: 0 | F36: ='Asset data'!I36 -> 0 | G36: 0 | H36: ='Asset data'!J36 -> 0 | I36: S | J36: =IF(A36=0,0,IF('Asset data'!$D$1=1,1,IF('Asset data'!$D$1=2,2,'Asset data'!K36))) -> 0 | K36: 0 | AX36: ='Utilisation profile summary'!H36 -> 0 | AY36: =Aug_calc('Asset data'!$M$5:$FG$5,'Asset data'!M36:FG36,'Asset data'!H36/100,'Asset data'!G36,'Asset data'!I36,'Asset data'!J36,J36,20) -> 0 | AZ36: 0 | BA36: 0 | BB36: 0 | BC36: 0 | BD36: 0 | BE36: 0 | BF36: 0 | BG36: 0 | BH36: 0 | BI36: 0 | BJ36: 0 | BK36: 0 | BL36: 0 | BM36: 0 | BN36: 0 | BO36: 0 | BP36: 0 | BQ36: 0 | BR36: 0 | BS36: 0 | BT36: 0 | BU36: 0 | BV36: 0 | BW36: 0 | BX36: 0 | BY36: 0 | BZ36: 0 | CA36: 0 | CB36: 0 | CC36: 0 | CD36: 0 | CE36: 0 | CF36: 0 | CG36: 0 | CH36: 0 | CI36: 0 | CJ36: 0 | CK36: 0 | CL36: 0 | CM36: 0 | CN36: 0 | CO36: 0 | CP36: 0 | CQ36: 0 | CR36: 0 | CS36: 0 | CT36: 0 | CU36: 0 | CV36: 0 | CW36: 0 | CX36: 0 | CY36: 0 | CZ36: 0 | DA36: 0 | DB36: 0 | DC36: 0 | DD36: 0 | DE36: 0 | DF36: 0 | DG36: 0 | DH36: 0 | DI36: =IF('Asset data'!$F36=0,0,AY36*'Asset data'!$F36/1000) -> 0 | DJ36: =IF('Asset data'!$F36=0,0,AZ36*'Asset data'!$F36/1000) -> 0 | DK36: =IF('Asset data'!$F36=0,0,BA36*'Asset data'!$F36/1000) -> 0 | DL36: =IF('Asset data'!$F36=0,0,BB36*'Asset data'!$F36/1000) -> 0 | DM36: =IF('Asset data'!$F36=0,0,BC36*'Asset data'!$F36/1000) -> 0 | DN36: =IF('Asset data'!$F36=0,0,BD36*'Asset data'!$F36/1000) -> 0 | DO36: =IF('Asset data'!$F36=0,0,BE36*'Asset data'!$F36/1000) -> 0 | DP36: =IF('Asset data'!$F36=0,0,BF36*'Asset data'!$F36/1000) -> 0 | DQ36: =IF('Asset data'!$F36=0,0,BG36*'Asset data'!$F36/1000) -> 0 | DR36: =IF('Asset data'!$F36=0,0,BH36*'Asset data'!$F36/1000) -> 0 | DS36: =IF('Asset data'!$F36=0,0,BI36*'Asset data'!$F36/1000) -> 0 | DT36: =IF('Asset data'!$F36=0,0,BJ36*'Asset data'!$F36/1000) -> 0 | DU36: =IF('Asset data'!$F36=0,0,BK36*'Asset data'!$F36/1000) -> 0 | DV36: =IF('Asset data'!$F36=0,0,BL36*'Asset data'!$F36/1000) -> 0 | DW36: =IF('Asset data'!$F36=0,0,BM36*'Asset data'!$F36/1000) -> 0 | DX36: =IF('Asset data'!$F36=0,0,BN36*'Asset data'!$F36/1000) -> 0 | DY36: =IF('Asset data'!$F36=0,0,BO36*'Asset data'!$F36/1000) -> 0 | DZ36: =IF('Asset data'!$F36=0,0,BP36*'Asset data'!$F36/1000) -> 0 | EA36: =IF('Asset data'!$F36=0,0,BQ36*'Asset data'!$F36/1000) -> 0 | EB36: =IF('Asset data'!$F36=0,0,BR36*'Asset data'!$F36/1000) -> 0
A37: ='Asset data'!A37 -> 4 | B37: ='Asset data'!B37 -> 0 | C37: ='Asset data'!C37 -> 0 | D37: ='Asset data'!E37 -> DB Substations and LV | E37: Distribution Substations and LV Feeders | F37: ='Asset data'!I37 -> 137 | G37: 137 | H37: ='Asset data'!J37 -> 20 | I37: S | J37: =IF(A37=0,0,IF('Asset data'!$D$1=1,1,IF('Asset data'!$D$1=2,2,'Asset data'!K37))) -> 1 | K37: 137 | AX37: ='Utilisation profile summary'!H37 -> 333972.3905 | AY37: =Aug_calc('Asset data'!$M$5:$FG$5,'Asset data'!M37:FG37,'Asset data'!H37/100,'Asset data'!G37,'Asset data'!I37,'Asset data'!J37,J37,20) -> 36.26655349 | AZ37: 35.90605798 | BA37: 35.38717205 | BB37: 34.74632983 | BC37: 34.02362301 | BD37: 33.26063058 | BE37: 32.49817921 | BF37: 31.77421967 | BG37: 31.12199631 | BH37: 30.56865804 | BI37: 30.11716603 | BJ37: 29.7701288 | BK37: 29.54337145 | BL37: 29.43071615 | BM37: 29.41927081 | BN37: 29.49049926 | BO37: 29.62138316 | BP37: 29.78556593 | BQ37: 29.9544011 | BR37: 30.09786703 | BS37: 72.71137442 | BT37: 72.91672471 | BU37: 73.14111302 | BV37: 73.38786256 | BW37: 73.6593822 | BX37: 73.95713191 | BY37: 74.28163202 | BZ37: 74.63251424 | CA37: 75.00861007 | CB37: 75.40806972 | CC37: 75.82850314 | CD37: 76.26751689 | CE37: 76.72271116 | CF37: 77.1913776 | CG37: 77.67098148 | CH37: 78.15930145 | CI37: 78.65454641 | CJ37: 79.15544724 | CK37: 79.66132384 | CL37: 80.17212929 | CM37: 80.68847393 | CN37: 24283591.53 | CO37: 24352172.86 | CP37: 24427112.36 | CQ37: 24509519.89 | CR37: 24600199.95 | CS37: 24699640.14 | CT37: 24808014.21 | CU37: 24925199.19 | CV37: 25050804.81 | CW37: 25184213.31 | CX37: 25324626.46 | CY37: 25471244.93 | CZ37: 25623267.25 | DA37: 25779788.9 | DB37: 25939963.35 | DC37: 26103048.74 | DD37: 26268446.89 | DE37: 26435733.93 | DF37: 26604682.75 | DG37: 26775277.67 | DH37: 26947722.52 | DI37: =IF('Asset data'!$F37=0,0,AY37*'Asset data'!$F37/1000) -> 3.953054331 | DJ37: =IF('Asset data'!$F37=0,0,AZ37*'Asset data'!$F37/1000) -> 3.913760319 | DK37: =IF('Asset data'!$F37=0,0,BA37*'Asset data'!$F37/1000) -> 3.857201753 | DL37: =IF('Asset data'!$F37=0,0,BB37*'Asset data'!$F37/1000) -> 3.787349952 | DM37: =IF('Asset data'!$F37=0,0,BC37*'Asset data'!$F37/1000) -> 3.708574909 | DN37: =IF('Asset data'!$F37=0,0,BD37*'Asset data'!$F37/1000) -> 3.625408734 | DO37: =IF('Asset data'!$F37=0,0,BE37*'Asset data'!$F37/1000) -> 3.542301534 | DP37: =IF('Asset data'!$F37=0,0,BF37*'Asset data'!$F37/1000) -> 3.463389944 | DQ37: =IF('Asset data'!$F37=0,0,BG37*'Asset data'!$F37/1000) -> 3.392297597 | DR37: =IF('Asset data'!$F37=0,0,BH37*'Asset data'!$F37/1000) -> 3.331983726 | DS37: =IF('Asset data'!$F37=0,0,BI37*'Asset data'!$F37/1000) -> 3.282771097 | DT37: =IF('Asset data'!$F37=0,0,BJ37*'Asset data'!$F37/1000) -> 3.24494404 | DU37: =IF('Asset data'!$F37=0,0,BK37*'Asset data'!$F37/1000) -> 3.220227489 | DV37: =IF('Asset data'!$F37=0,0,BL37*'Asset data'!$F37/1000) -> 3.20794806 | DW37: =IF('Asset data'!$F37=0,0,BM37*'Asset data'!$F37/1000) -> 3.206700518 | DX37: =IF('Asset data'!$F37=0,0,BN37*'Asset data'!$F37/1000) -> 3.214464419 | DY37: =IF('Asset data'!$F37=0,0,BO37*'Asset data'!$F37/1000) -> 3.228730764 | DZ37: =IF('Asset data'!$F37=0,0,BP37*'Asset data'!$F37/1000) -> 3.246626686 | EA37: =IF('Asset data'!$F37=0,0,BQ37*'Asset data'!$F37/1000) -> 3.26502972 | EB37: =IF('Asset data'!$F37=0,0,BR37*'Asset data'!$F37/1000) -> 3.280667506
A38: ='Asset data'!A38 -> 0 | B38: ='Asset data'!B38 -> 0 | C38: ='Asset data'!C38 -> 0 | D38: ='Asset data'!E38 -> 0 | E38: 0 | F38: ='Asset data'!I38 -> 0 | G38: 0 | H38: ='Asset data'!J38 -> 0 | I38: S | J38: =IF(A38=0,0,IF('Asset data'!$D$1=1,1,IF('Asset data'!$D$1=2,2,'Asset data'!K38))) -> 0 | K38: 0 | AX38: ='Utilisation profile summary'!H38 -> 0 | AY38: =Aug_calc('Asset data'!$M$5:$FG$5,'Asset data'!M38:FG38,'Asset data'!H38/100,'Asset data'!G38,'Asset data'!I38,'Asset data'!J38,J38,20) -> 0 | AZ38: 0 | BA38: 0 | BB38: 0 | BC38: 0 | BD38: 0 | BE38: 0 | BF38: 0 | BG38: 0 | BH38: 0 | BI38: 0 | BJ38: 0 | BK38: 0 | BL38: 0 | BM38: 0 | BN38: 0 | BO38: 0 | BP38: 0 | BQ38: 0 | BR38: 0 | BS38: 0 | BT38: 0 | BU38: 0 | BV38: 0 | BW38: 0 | BX38: 0 | BY38: 0 | BZ38: 0 | CA38: 0 | CB38: 0 | CC38: 0 | CD38: 0 | CE38: 0 | CF38: 0 | CG38: 0 | CH38: 0 | CI38: 0 | CJ38: 0 | CK38: 0 | CL38: 0 | CM38: 0 | CN38: 0 | CO38: 0 | CP38: 0 | CQ38: 0 | CR38: 0 | CS38: 0 | CT38: 0 | CU38: 0 | CV38: 0 | CW38: 0 | CX38: 0 | CY38: 0 | CZ38: 0 | DA38: 0 | DB38: 0 | DC38: 0 | DD38: 0 | DE38: 0 | DF38: 0 | DG38: 0 | DH38: 0 | DI38: =IF('Asset data'!$F38=0,0,AY38*'Asset data'!$F38/1000) -> 0 | DJ38: =IF('Asset data'!$F38=0,0,AZ38*'Asset data'!$F38/1000) -> 0 | DK38: =IF('Asset data'!$F38=0,0,BA38*'Asset data'!$F38/1000) -> 0 | DL38: =IF('Asset data'!$F38=0,0,BB38*'Asset data'!$F38/1000) -> 0 | DM38: =IF('Asset data'!$F38=0,0,BC38*'Asset data'!$F38/1000) -> 0 | DN38: =IF('Asset data'!$F38=0,0,BD38*'Asset data'!$F38/1000) -> 0 | DO38: =IF('Asset data'!$F38=0,0,BE38*'Asset data'!$F38/1000) -> 0 | DP38: =IF('Asset data'!$F38=0,0,BF38*'Asset data'!$F38/1000) -> 0 | DQ38: =IF('Asset data'!$F38=0,0,BG38*'Asset data'!$F38/1000) -> 0 | DR38: =IF('Asset data'!$F38=0,0,BH38*'Asset data'!$F38/1000) -> 0 | DS38: =IF('Asset data'!$F38=0,0,BI38*'Asset data'!$F38/1000) -> 0 | DT38: =IF('Asset data'!$F38=0,0,BJ38*'Asset data'!$F38/1000) -> 0 | DU38: =IF('Asset data'!$F38=0,0,BK38*'Asset data'!$F38/1000) -> 0 | DV38: =IF('Asset data'!$F38=0,0,BL38*'Asset data'!$F38/1000) -> 0 | DW38: =IF('Asset data'!$F38=0,0,BM38*'Asset data'!$F38/1000) -> 0 | DX38: =IF('Asset data'!$F38=0,0,BN38*'Asset data'!$F38/1000) -> 0 | DY38: =IF('Asset data'!$F38=0,0,BO38*'Asset data'!$F38/1000) -> 0 | DZ38: =IF('Asset data'!$F38=0,0,BP38*'Asset data'!$F38/1000) -> 0 | EA38: =IF('Asset data'!$F38=0,0,BQ38*'Asset data'!$F38/1000) -> 0 | EB38: =IF('Asset data'!$F38=0,0,BR38*'Asset data'!$F38/1000) -> 0
A39: ='Asset data'!A39 -> 0 | B39: ='Asset data'!B39 -> 0 | C39: ='Asset data'!C39 -> 0 | D39: ='Asset data'!E39 -> 0 | E39: 0 | F39: ='Asset data'!I39 -> 0 | G39: 0 | H39: ='Asset data'!J39 -> 0 | I39: S | J39: =IF(A39=0,0,IF('Asset data'!$D$1=1,1,IF('Asset data'!$D$1=2,2,'Asset data'!K39))) -> 0 | K39: 0 | AX39: ='Utilisation profile summary'!H39 -> 0 | AY39: =Aug_calc('Asset data'!$M$5:$FG$5,'Asset data'!M39:FG39,'Asset data'!H39/100,'Asset data'!G39,'Asset data'!I39,'Asset data'!J39,J39,20) -> 0 | AZ39: 0 | BA39: 0 | BB39: 0 | BC39: 0 | BD39: 0 | BE39: 0 | BF39: 0 | BG39: 0 | BH39: 0 | BI39: 0 | BJ39: 0 | BK39: 0 | BL39: 0 | BM39: 0 | BN39: 0 | BO39: 0 | BP39: 0 | BQ39: 0 | BR39: 0 | BS39: 0 | BT39: 0 | BU39: 0 | BV39: 0 | BW39: 0 | BX39: 0 | BY39: 0 | BZ39: 0 | CA39: 0 | CB39: 0 | CC39: 0 | CD39: 0 | CE39: 0 | CF39: 0 | CG39: 0 | CH39: 0 | CI39: 0 | CJ39: 0 | CK39: 0 | CL39: 0 | CM39: 0 | CN39: 0 | CO39: 0 | CP39: 0 | CQ39: 0 | CR39: 0 | CS39: 0 | CT39: 0 | CU39: 0 | CV39: 0 | CW39: 0 | CX39: 0 | CY39: 0 | CZ39: 0 | DA39: 0 | DB39: 0 | DC39: 0 | DD39: 0 | DE39: 0 | DF39: 0 | DG39: 0 | DH39: 0 | DI39: =IF('Asset data'!$F39=0,0,AY39*'Asset data'!$F39/1000) -> 0 | DJ39: =IF('Asset data'!$F39=0,0,AZ39*'Asset data'!$F39/1000) -> 0 | DK39: =IF('Asset data'!$F39=0,0,BA39*'Asset data'!$F39/1000) -> 0 | DL39: =IF('Asset data'!$F39=0,0,BB39*'Asset data'!$F39/1000) -> 0 | DM39: =IF('Asset data'!$F39=0,0,BC39*'Asset data'!$F39/1000) -> 0 | DN39: =IF('Asset data'!$F39=0,0,BD39*'Asset data'!$F39/1000) -> 0 | DO39: =IF('Asset data'!$F39=0,0,BE39*'Asset data'!$F39/1000) -> 0 | DP39: =IF('Asset data'!$F39=0,0,BF39*'Asset data'!$F39/1000) -> 0 | DQ39: =IF('Asset data'!$F39=0,0,BG39*'Asset data'!$F39/1000) -> 0 | DR39: =IF('Asset data'!$F39=0,0,BH39*'Asset data'!$F39/1000) -> 0 | DS39: =IF('Asset data'!$F39=0,0,BI39*'Asset data'!$F39/1000) -> 0 | DT39: =IF('Asset data'!$F39=0,0,BJ39*'Asset data'!$F39/1000) -> 0 | DU39: =IF('Asset data'!$F39=0,0,BK39*'Asset data'!$F39/1000) -> 0 | DV39: =IF('Asset data'!$F39=0,0,BL39*'Asset data'!$F39/1000) -> 0 | DW39: =IF('Asset data'!$F39=0,0,BM39*'Asset data'!$F39/1000) -> 0 | DX39: =IF('Asset data'!$F39=0,0,BN39*'Asset data'!$F39/1000) -> 0 | DY39: =IF('Asset data'!$F39=0,0,BO39*'Asset data'!$F39/1000) -> 0 | DZ39: =IF('Asset data'!$F39=0,0,BP39*'Asset data'!$F39/1000) -> 0 | EA39: =IF('Asset data'!$F39=0,0,BQ39*'Asset data'!$F39/1000) -> 0 | EB39: =IF('Asset data'!$F39=0,0,BR39*'Asset data'!$F39/1000) -> 0
A40: ='Asset data'!A40 -> 0 | B40: ='Asset data'!B40 -> 0 | C40: ='Asset data'!C40 -> 0 | D40: ='Asset data'!E40 -> 0 | E40: 0 | F40: ='Asset data'!I40 -> 0 | G40: 0 | H40: ='Asset data'!J40 -> 0 | I40: S | J40: =IF(A40=0,0,IF('Asset data'!$D$1=1,1,IF('Asset data'!$D$1=2,2,'Asset data'!K40))) -> 0 | K40: 0 | AX40: ='Utilisation profile summary'!H40 -> 0 | AY40: =Aug_calc('Asset data'!$M$5:$FG$5,'Asset data'!M40:FG40,'Asset data'!H40/100,'Asset data'!G40,'Asset data'!I40,'Asset data'!J40,J40,20) -> 0 | AZ40: 0 | BA40: 0 | BB40: 0 | BC40: 0 | BD40: 0 | BE40: 0 | BF40: 0 | BG40: 0 | BH40: 0 | BI40: 0 | BJ40: 0 | BK40: 0 | BL40: 0 | BM40: 0 | BN40: 0 | BO40: 0 | BP40: 0 | BQ40: 0 | BR40: 0 | BS40: 0 | BT40: 0 | BU40: 0 | BV40: 0 | BW40: 0 | BX40: 0 | BY40: 0 | BZ40: 0 | CA40: 0 | CB40: 0 | CC40: 0 | CD40: 0 | CE40: 0 | CF40: 0 | CG40: 0 | CH40: 0 | CI40: 0 | CJ40: 0 | CK40: 0 | CL40: 0 | CM40: 0 | CN40: 0 | CO40: 0 | CP40: 0 | CQ40: 0 | CR40: 0 | CS40: 0 | CT40: 0 | CU40: 0 | CV40: 0 | CW40: 0 | CX40: 0 | CY40: 0 | CZ40: 0 | DA40: 0 | DB40: 0 | DC40: 0 | DD40: 0 | DE40: 0 | DF40: 0 | DG40: 0 | DH40: 0 | DI40: =IF('Asset data'!$F40=0,0,AY40*'Asset data'!$F40/1000) -> 0 | DJ40: =IF('Asset data'!$F40=0,0,AZ40*'Asset data'!$F40/1000) -> 0 | DK40: =IF('Asset data'!$F40=0,0,BA40*'Asset data'!$F40/1000) -> 0 | DL40: =IF('Asset data'!$F40=0,0,BB40*'Asset data'!$F40/1000) -> 0 | DM40: =IF('Asset data'!$F40=0,0,BC40*'Asset data'!$F40/1000) -> 0 | DN40: =IF('Asset data'!$F40=0,0,BD40*'Asset data'!$F40/1000) -> 0 | DO40: =IF('Asset data'!$F40=0,0,BE40*'Asset data'!$F40/1000) -> 0 | DP40: =IF('Asset data'!$F40=0,0,BF40*'Asset data'!$F40/1000) -> 0 | DQ40: =IF('Asset data'!$F40=0,0,BG40*'Asset data'!$F40/1000) -> 0 | DR40: =IF('Asset data'!$F40=0,0,BH40*'Asset data'!$F40/1000) -> 0 | DS40: =IF('Asset data'!$F40=0,0,BI40*'Asset data'!$F40/1000) -> 0 | DT40: =IF('Asset data'!$F40=0,0,BJ40*'Asset data'!$F40/1000) -> 0 | DU40: =IF('Asset data'!$F40=0,0,BK40*'Asset data'!$F40/1000) -> 0 | DV40: =IF('Asset data'!$F40=0,0,BL40*'Asset data'!$F40/1000) -> 0 | DW40: =IF('Asset data'!$F40=0,0,BM40*'Asset data'!$F40/1000) -> 0 | DX40: =IF('Asset data'!$F40=0,0,BN40*'Asset data'!$F40/1000) -> 0 | DY40: =IF('Asset data'!$F40=0,0,BO40*'Asset data'!$F40/1000) -> 0 | DZ40: =IF('Asset data'!$F40=0,0,BP40*'Asset data'!$F40/1000) -> 0 | EA40: =IF('Asset data'!$F40=0,0,BQ40*'Asset data'!$F40/1000) -> 0 | EB40: =IF('Asset data'!$F40=0,0,BR40*'Asset data'!$F40/1000) -> 0
A41: ='Asset data'!A41 -> 0 | B41: ='Asset data'!B41 -> 0 | C41: ='Asset data'!C41 -> 0 | D41: ='Asset data'!E41 -> 0 | E41: 0 | F41: ='Asset data'!I41 -> 0 | G41: 0 | H41: ='Asset data'!J41 -> 0 | I41: S | J41: =IF(A41=0,0,IF('Asset data'!$D$1=1,1,IF('Asset data'!$D$1=2,2,'Asset data'!K41))) -> 0 | K41: 0 | AX41: ='Utilisation profile summary'!H41 -> 0 | AY41: =Aug_calc('Asset data'!$M$5:$FG$5,'Asset data'!M41:FG41,'Asset data'!H41/100,'Asset data'!G41,'Asset data'!I41,'Asset data'!J41,J41,20) -> 0 | AZ41: 0 | BA41: 0 | BB41: 0 | BC41: 0 | BD41: 0 | BE41: 0 | BF41: 0 | BG41: 0 | BH41: 0 | BI41: 0 | BJ41: 0 | BK41: 0 | BL41: 0 | BM41: 0 | BN41: 0 | BO41: 0 | BP41: 0 | BQ41: 0 | BR41: 0 | BS41: 0 | BT41: 0 | BU41: 0 | BV41: 0 | BW41: 0 | BX41: 0 | BY41: 0 | BZ41: 0 | CA41: 0 | CB41: 0 | CC41: 0 | CD41: 0 | CE41: 0 | CF41: 0 | CG41: 0 | CH41: 0 | CI41: 0 | CJ41: 0 | CK41: 0 | CL41: 0 | CM41: 0 | CN41: 0 | CO41: 0 | CP41: 0 | CQ41: 0 | CR41: 0 | CS41: 0 | CT41: 0 | CU41: 0 | CV41: 0 | CW41: 0 | CX41: 0 | CY41: 0 | CZ41: 0 | DA41: 0 | DB41: 0 | DC41: 0 | DD41: 0 | DE41: 0 | DF41: 0 | DG41: 0 | DH41: 0 | DI41: =IF('Asset data'!$F41=0,0,AY41*'Asset data'!$F41/1000) -> 0 | DJ41: =IF('Asset data'!$F41=0,0,AZ41*'Asset data'!$F41/1000) -> 0 | DK41: =IF('Asset data'!$F41=0,0,BA41*'Asset data'!$F41/1000) -> 0 | DL41: =IF('Asset data'!$F41=0,0,BB41*'Asset data'!$F41/1000) -> 0 | DM41: =IF('Asset data'!$F41=0,0,BC41*'Asset data'!$F41/1000) -> 0 | DN41: =IF('Asset data'!$F41=0,0,BD41*'Asset data'!$F41/1000) -> 0 | DO41: =IF('Asset data'!$F41=0,0,BE41*'Asset data'!$F41/1000) -> 0 | DP41: =IF('Asset data'!$F41=0,0,BF41*'Asset data'!$F41/1000) -> 0 | DQ41: =IF('Asset data'!$F41=0,0,BG41*'Asset data'!$F41/1000) -> 0 | DR41: =IF('Asset data'!$F41=0,0,BH41*'Asset data'!$F41/1000) -> 0 | DS41: =IF('Asset data'!$F41=0,0,BI41*'Asset data'!$F41/1000) -> 0 | DT41: =IF('Asset data'!$F41=0,0,BJ41*'Asset data'!$F41/1000) -> 0 | DU41: =IF('Asset data'!$F41=0,0,BK41*'Asset data'!$F41/1000) -> 0 | DV41: =IF('Asset data'!$F41=0,0,BL41*'Asset data'!$F41/1000) -> 0 | DW41: =IF('Asset data'!$F41=0,0,BM41*'Asset data'!$F41/1000) -> 0 | DX41: =IF('Asset data'!$F41=0,0,BN41*'Asset data'!$F41/1000) -> 0 | DY41: =IF('Asset data'!$F41=0,0,BO41*'Asset data'!$F41/1000) -> 0 | DZ41: =IF('Asset data'!$F41=0,0,BP41*'Asset data'!$F41/1000) -> 0 | EA41: =IF('Asset data'!$F41=0,0,BQ41*'Asset data'!$F41/1000) -> 0 | EB41: =IF('Asset data'!$F41=0,0,BR41*'Asset data'!$F41/1000) -> 0
A42: ='Asset data'!A42 -> 0 | B42: ='Asset data'!B42 -> 0 | C42: ='Asset data'!C42 -> 0 | D42: ='Asset data'!E42 -> 0 | E42: 0 | F42: ='Asset data'!I42 -> 0 | G42: 0 | H42: ='Asset data'!J42 -> 0 | I42: S | J42: =IF(A42=0,0,IF('Asset data'!$D$1=1,1,IF('Asset data'!$D$1=2,2,'Asset data'!K42))) -> 0 | K42: 0 | AX42: ='Utilisation profile summary'!H42 -> 0 | AY42: =Aug_calc('Asset data'!$M$5:$FG$5,'Asset data'!M42:FG42,'Asset data'!H42/100,'Asset data'!G42,'Asset data'!I42,'Asset data'!J42,J42,20) -> 0 | AZ42: 0 | BA42: 0 | BB42: 0 | BC42: 0 | BD42: 0 | BE42: 0 | BF42: 0 | BG42: 0 | BH42: 0 | BI42: 0 | BJ42: 0 | BK42: 0 | BL42: 0 | BM42: 0 | BN42: 0 | BO42: 0 | BP42: 0 | BQ42: 0 | BR42: 0 | BS42: 0 | BT42: 0 | BU42: 0 | BV42: 0 | BW42: 0 | BX42: 0 | BY42: 0 | BZ42: 0 | CA42: 0 | CB42: 0 | CC42: 0 | CD42: 0 | CE42: 0 | CF42: 0 | CG42: 0 | CH42: 0 | CI42: 0 | CJ42: 0 | CK42: 0 | CL42: 0 | CM42: 0 | CN42: 0 | CO42: 0 | CP42: 0 | CQ42: 0 | CR42: 0 | CS42: 0 | CT42: 0 | CU42: 0 | CV42: 0 | CW42: 0 | CX42: 0 | CY42: 0 | CZ42: 0 | DA42: 0 | DB42: 0 | DC42: 0 | DD42: 0 | DE42: 0 | DF42: 0 | DG42: 0 | DH42: 0 | DI42: =IF('Asset data'!$F42=0,0,AY42*'Asset data'!$F42/1000) -> 0 | DJ42: =IF('Asset data'!$F42=0,0,AZ42*'Asset data'!$F42/1000) -> 0 | DK42: =IF('Asset data'!$F42=0,0,BA42*'Asset data'!$F42/1000) -> 0 | DL42: =IF('Asset data'!$F42=0,0,BB42*'Asset data'!$F42/1000) -> 0 | DM42: =IF('Asset data'!$F42=0,0,BC42*'Asset data'!$F42/1000) -> 0 | DN42: =IF('Asset data'!$F42=0,0,BD42*'Asset data'!$F42/1000) -> 0 | DO42: =IF('Asset data'!$F42=0,0,BE42*'Asset data'!$F42/1000) -> 0 | DP42: =IF('Asset data'!$F42=0,0,BF42*'Asset data'!$F42/1000) -> 0 | DQ42: =IF('Asset data'!$F42=0,0,BG42*'Asset data'!$F42/1000) -> 0 | DR42: =IF('Asset data'!$F42=0,0,BH42*'Asset data'!$F42/1000) -> 0 | DS42: =IF('Asset data'!$F42=0,0,BI42*'Asset data'!$F42/1000) -> 0 | DT42: =IF('Asset data'!$F42=0,0,BJ42*'Asset data'!$F42/1000) -> 0 | DU42: =IF('Asset data'!$F42=0,0,BK42*'Asset data'!$F42/1000) -> 0 | DV42: =IF('Asset data'!$F42=0,0,BL42*'Asset data'!$F42/1000) -> 0 | DW42: =IF('Asset data'!$F42=0,0,BM42*'Asset data'!$F42/1000) -> 0 | DX42: =IF('Asset data'!$F42=0,0,BN42*'Asset data'!$F42/1000) -> 0 | DY42: =IF('Asset data'!$F42=0,0,BO42*'Asset data'!$F42/1000) -> 0 | DZ42: =IF('Asset data'!$F42=0,0,BP42*'Asset data'!$F42/1000) -> 0 | EA42: =IF('Asset data'!$F42=0,0,BQ42*'Asset data'!$F42/1000) -> 0 | EB42: =IF('Asset data'!$F42=0,0,BR42*'Asset data'!$F42/1000) -> 0
A43: ='Asset data'!A43 -> 0 | B43: ='Asset data'!B43 -> 0 | C43: ='Asset data'!C43 -> 0 | D43: ='Asset data'!E43 -> 0 | E43: 0 | F43: ='Asset data'!I43 -> 0 | G43: 0 | H43: ='Asset data'!J43 -> 0 | I43: S | J43: =IF(A43=0,0,IF('Asset data'!$D$1=1,1,IF('Asset data'!$D$1=2,2,'Asset data'!K43))) -> 0 | K43: 0 | AX43: ='Utilisation profile summary'!H43 -> 0 | AY43: =Aug_calc('Asset data'!$M$5:$FG$5,'Asset data'!M43:FG43,'Asset data'!H43/100,'Asset data'!G43,'Asset data'!I43,'Asset data'!J43,J43,20) -> 0 | AZ43: 0 | BA43: 0 | BB43: 0 | BC43: 0 | BD43: 0 | BE43: 0 | BF43: 0 | BG43: 0 | BH43: 0 | BI43: 0 | BJ43: 0 | BK43: 0 | BL43: 0 | BM43: 0 | BN43: 0 | BO43: 0 | BP43: 0 | BQ43: 0 | BR43: 0 | BS43: 0 | BT43: 0 | BU43: 0 | BV43: 0 | BW43: 0 | BX43: 0 | BY43: 0 | BZ43: 0 | CA43: 0 | CB43: 0 | CC43: 0 | CD43: 0 | CE43: 0 | CF43: 0 | CG43: 0 | CH43: 0 | CI43: 0 | CJ43: 0 | CK43: 0 | CL43: 0 | CM43: 0 | CN43: 0 | CO43: 0 | CP43: 0 | CQ43: 0 | CR43: 0 | CS43: 0 | CT43: 0 | CU43: 0 | CV43: 0 | CW43: 0 | CX43: 0 | CY43: 0 | CZ43: 0 | DA43: 0 | DB43: 0 | DC43: 0 | DD43: 0 | DE43: 0 | DF43: 0 | DG43: 0 | DH43: 0 | DI43: =IF('Asset data'!$F43=0,0,AY43*'Asset data'!$F43/1000) -> 0 | DJ43: =IF('Asset data'!$F43=0,0,AZ43*'Asset data'!$F43/1000) -> 0 | DK43: =IF('Asset data'!$F43=0,0,BA43*'Asset data'!$F43/1000) -> 0 | DL43: =IF('Asset data'!$F43=0,0,BB43*'Asset data'!$F43/1000) -> 0 | DM43: =IF('Asset data'!$F43=0,0,BC43*'Asset data'!$F43/1000) -> 0 | DN43: =IF('Asset data'!$F43=0,0,BD43*'Asset data'!$F43/1000) -> 0 | DO43: =IF('Asset data'!$F43=0,0,BE43*'Asset data'!$F43/1000) -> 0 | DP43: =IF('Asset data'!$F43=0,0,BF43*'Asset data'!$F43/1000) -> 0 | DQ43: =IF('Asset data'!$F43=0,0,BG43*'Asset data'!$F43/1000) -> 0 | DR43: =IF('Asset data'!$F43=0,0,BH43*'Asset data'!$F43/1000) -> 0 | DS43: =IF('Asset data'!$F43=0,0,BI43*'Asset data'!$F43/1000) -> 0 | DT43: =IF('Asset data'!$F43=0,0,BJ43*'Asset data'!$F43/1000) -> 0 | DU43: =IF('Asset data'!$F43=0,0,BK43*'Asset data'!$F43/1000) -> 0 | DV43: =IF('Asset data'!$F43=0,0,BL43*'Asset data'!$F43/1000) -> 0 | DW43: =IF('Asset data'!$F43=0,0,BM43*'Asset data'!$F43/1000) -> 0 | DX43: =IF('Asset data'!$F43=0,0,BN43*'Asset data'!$F43/1000) -> 0 | DY43: =IF('Asset data'!$F43=0,0,BO43*'Asset data'!$F43/1000) -> 0 | DZ43: =IF('Asset data'!$F43=0,0,BP43*'Asset data'!$F43/1000) -> 0 | EA43: =IF('Asset data'!$F43=0,0,BQ43*'Asset data'!$F43/1000) -> 0 | EB43: =IF('Asset data'!$F43=0,0,BR43*'Asset data'!$F43/1000) -> 0
A44: ='Asset data'!A44 -> 0 | B44: ='Asset data'!B44 -> 0 | C44: ='Asset data'!C44 -> 0 | D44: ='Asset data'!E44 -> 0 | E44: 0 | F44: ='Asset data'!I44 -> 0 | G44: 0 | H44: ='Asset data'!J44 -> 0 | I44: S | J44: =IF(A44=0,0,IF('Asset data'!$D$1=1,1,IF('Asset data'!$D$1=2,2,'Asset data'!K44))) -> 0 | K44: 0 | AX44: ='Utilisation profile summary'!H44 -> 0 | AY44: =Aug_calc('Asset data'!$M$5:$FG$5,'Asset data'!M44:FG44,'Asset data'!H44/100,'Asset data'!G44,'Asset data'!I44,'Asset data'!J44,J44,20) -> 0 | AZ44: 0 | BA44: 0 | BB44: 0 | BC44: 0 | BD44: 0 | BE44: 0 | BF44: 0 | BG44: 0 | BH44: 0 | BI44: 0 | BJ44: 0 | BK44: 0 | BL44: 0 | BM44: 0 | BN44: 0 | BO44: 0 | BP44: 0 | BQ44: 0 | BR44: 0 | BS44: 0 | BT44: 0 | BU44: 0 | BV44: 0 | BW44: 0 | BX44: 0 | BY44: 0 | BZ44: 0 | CA44: 0 | CB44: 0 | CC44: 0 | CD44: 0 | CE44: 0 | CF44: 0 | CG44: 0 | CH44: 0 | CI44: 0 | CJ44: 0 | CK44: 0 | CL44: 0 | CM44: 0 | CN44: 0 | CO44: 0 | CP44: 0 | CQ44: 0 | CR44: 0 | CS44: 0 | CT44: 0 | CU44: 0 | CV44: 0 | CW44: 0 | CX44: 0 | CY44: 0 | CZ44: 0 | DA44: 0 | DB44: 0 | DC44: 0 | DD44: 0 | DE44: 0 | DF44: 0 | DG44: 0 | DH44: 0 | DI44: =IF('Asset data'!$F44=0,0,AY44*'Asset data'!$F44/1000) -> 0 | DJ44: =IF('Asset data'!$F44=0,0,AZ44*'Asset data'!$F44/1000) -> 0 | DK44: =IF('Asset data'!$F44=0,0,BA44*'Asset data'!$F44/1000) -> 0 | DL44: =IF('Asset data'!$F44=0,0,BB44*'Asset data'!$F44/1000) -> 0 | DM44: =IF('Asset data'!$F44=0,0,BC44*'Asset data'!$F44/1000) -> 0 | DN44: =IF('Asset data'!$F44=0,0,BD44*'Asset data'!$F44/1000) -> 0 | DO44: =IF('Asset data'!$F44=0,0,BE44*'Asset data'!$F44/1000) -> 0 | DP44: =IF('Asset data'!$F44=0,0,BF44*'Asset data'!$F44/1000) -> 0 | DQ44: =IF('Asset data'!$F44=0,0,BG44*'Asset data'!$F44/1000) -> 0 | DR44: =IF('Asset data'!$F44=0,0,BH44*'Asset data'!$F44/1000) -> 0 | DS44: =IF('Asset data'!$F44=0,0,BI44*'Asset data'!$F44/1000) -> 0 | DT44: =IF('Asset data'!$F44=0,0,BJ44*'Asset data'!$F44/1000) -> 0 | DU44: =IF('Asset data'!$F44=0,0,BK44*'Asset data'!$F44/1000) -> 0 | DV44: =IF('Asset data'!$F44=0,0,BL44*'Asset data'!$F44/1000) -> 0 | DW44: =IF('Asset data'!$F44=0,0,BM44*'Asset data'!$F44/1000) -> 0 | DX44: =IF('Asset data'!$F44=0,0,BN44*'Asset data'!$F44/1000) -> 0 | DY44: =IF('Asset data'!$F44=0,0,BO44*'Asset data'!$F44/1000) -> 0 | DZ44: =IF('Asset data'!$F44=0,0,BP44*'Asset data'!$F44/1000) -> 0 | EA44: =IF('Asset data'!$F44=0,0,BQ44*'Asset data'!$F44/1000) -> 0 | EB44: =IF('Asset data'!$F44=0,0,BR44*'Asset data'!$F44/1000) -> 0
A45: ='Asset data'!A45 -> 0 | B45: ='Asset data'!B45 -> 0 | C45: ='Asset data'!C45 -> 0 | D45: ='Asset data'!E45 -> 0 | E45: 0 | F45: ='Asset data'!I45 -> 0 | G45: 0 | H45: ='Asset data'!J45 -> 0 | I45: S | J45: =IF(A45=0,0,IF('Asset data'!$D$1=1,1,IF('Asset data'!$D$1=2,2,'Asset data'!K45))) -> 0 | K45: 0 | AX45: ='Utilisation profile summary'!H45 -> 0 | AY45: =Aug_calc('Asset data'!$M$5:$FG$5,'Asset data'!M45:FG45,'Asset data'!H45/100,'Asset data'!G45,'Asset data'!I45,'Asset data'!J45,J45,20) -> 0 | AZ45: 0 | BA45: 0 | BB45: 0 | BC45: 0 | BD45: 0 | BE45: 0 | BF45: 0 | BG45: 0 | BH45: 0 | BI45: 0 | BJ45: 0 | BK45: 0 | BL45: 0 | BM45: 0 | BN45: 0 | BO45: 0 | BP45: 0 | BQ45: 0 | BR45: 0 | BS45: 0 | BT45: 0 | BU45: 0 | BV45: 0 | BW45: 0 | BX45: 0 | BY45: 0 | BZ45: 0 | CA45: 0 | CB45: 0 | CC45: 0 | CD45: 0 | CE45: 0 | CF45: 0 | CG45: 0 | CH45: 0 | CI45: 0 | CJ45: 0 | CK45: 0 | CL45: 0 | CM45: 0 | CN45: 0 | CO45: 0 | CP45: 0 | CQ45: 0 | CR45: 0 | CS45: 0 | CT45: 0 | CU45: 0 | CV45: 0 | CW45: 0 | CX45: 0 | CY45: 0 | CZ45: 0 | DA45: 0 | DB45: 0 | DC45: 0 | DD45: 0 | DE45: 0 | DF45: 0 | DG45: 0 | DH45: 0 | DI45: =IF('Asset data'!$F45=0,0,AY45*'Asset data'!$F45/1000) -> 0 | DJ45: =IF('Asset data'!$F45=0,0,AZ45*'Asset data'!$F45/1000) -> 0 | DK45: =IF('Asset data'!$F45=0,0,BA45*'Asset data'!$F45/1000) -> 0 | DL45: =IF('Asset data'!$F45=0,0,BB45*'Asset data'!$F45/1000) -> 0 | DM45: =IF('Asset data'!$F45=0,0,BC45*'Asset data'!$F45/1000) -> 0 | DN45: =IF('Asset data'!$F45=0,0,BD45*'Asset data'!$F45/1000) -> 0 | DO45: =IF('Asset data'!$F45=0,0,BE45*'Asset data'!$F45/1000) -> 0 | DP45: =IF('Asset data'!$F45=0,0,BF45*'Asset data'!$F45/1000) -> 0 | DQ45: =IF('Asset data'!$F45=0,0,BG45*'Asset data'!$F45/1000) -> 0 | DR45: =IF('Asset data'!$F45=0,0,BH45*'Asset data'!$F45/1000) -> 0 | DS45: =IF('Asset data'!$F45=0,0,BI45*'Asset data'!$F45/1000) -> 0 | DT45: =IF('Asset data'!$F45=0,0,BJ45*'Asset data'!$F45/1000) -> 0 | DU45: =IF('Asset data'!$F45=0,0,BK45*'Asset data'!$F45/1000) -> 0 | DV45: =IF('Asset data'!$F45=0,0,BL45*'Asset data'!$F45/1000) -> 0 | DW45: =IF('Asset data'!$F45=0,0,BM45*'Asset data'!$F45/1000) -> 0 | DX45: =IF('Asset data'!$F45=0,0,BN45*'Asset data'!$F45/1000) -> 0 | DY45: =IF('Asset data'!$F45=0,0,BO45*'Asset data'!$F45/1000) -> 0 | DZ45: =IF('Asset data'!$F45=0,0,BP45*'Asset data'!$F45/1000) -> 0 | EA45: =IF('Asset data'!$F45=0,0,BQ45*'Asset data'!$F45/1000) -> 0 | EB45: =IF('Asset data'!$F45=0,0,BR45*'Asset data'!$F45/1000) -> 0
A46: ='Asset data'!A46 -> 0 | B46: ='Asset data'!B46 -> 0 | C46: ='Asset data'!C46 -> 0 | D46: ='Asset data'!E46 -> 0 | E46: 0 | F46: ='Asset data'!I46 -> 0 | G46: 0 | H46: ='Asset data'!J46 -> 0 | I46: S | J46: =IF(A46=0,0,IF('Asset data'!$D$1=1,1,IF('Asset data'!$D$1=2,2,'Asset data'!K46))) -> 0 | K46: 0 | AX46: ='Utilisation profile summary'!H46 -> 0 | AY46: =Aug_calc('Asset data'!$M$5:$FG$5,'Asset data'!M46:FG46,'Asset data'!H46/100,'Asset data'!G46,'Asset data'!I46,'Asset data'!J46,J46,20) -> 0 | AZ46: 0 | BA46: 0 | BB46: 0 | BC46: 0 | BD46: 0 | BE46: 0 | BF46: 0 | BG46: 0 | BH46: 0 | BI46: 0 | BJ46: 0 | BK46: 0 | BL46: 0 | BM46: 0 | BN46: 0 | BO46: 0 | BP46: 0 | BQ46: 0 | BR46: 0 | BS46: 0 | BT46: 0 | BU46: 0 | BV46: 0 | BW46: 0 | BX46: 0 | BY46: 0 | BZ46: 0 | CA46: 0 | CB46: 0 | CC46: 0 | CD46: 0 | CE46: 0 | CF46: 0 | CG46: 0 | CH46: 0 | CI46: 0 | CJ46: 0 | CK46: 0 | CL46: 0 | CM46: 0 | CN46: 0 | CO46: 0 | CP46: 0 | CQ46: 0 | CR46: 0 | CS46: 0 | CT46: 0 | CU46: 0 | CV46: 0 | CW46: 0 | CX46: 0 | CY46: 0 | CZ46: 0 | DA46: 0 | DB46: 0 | DC46: 0 | DD46: 0 | DE46: 0 | DF46: 0 | DG46: 0 | DH46: 0 | DI46: =IF('Asset data'!$F46=0,0,AY46*'Asset data'!$F46/1000) -> 0 | DJ46: =IF('Asset data'!$F46=0,0,AZ46*'Asset data'!$F46/1000) -> 0 | DK46: =IF('Asset data'!$F46=0,0,BA46*'Asset data'!$F46/1000) -> 0 | DL46: =IF('Asset data'!$F46=0,0,BB46*'Asset data'!$F46/1000) -> 0 | DM46: =IF('Asset data'!$F46=0,0,BC46*'Asset data'!$F46/1000) -> 0 | DN46: =IF('Asset data'!$F46=0,0,BD46*'Asset data'!$F46/1000) -> 0 | DO46: =IF('Asset data'!$F46=0,0,BE46*'Asset data'!$F46/1000) -> 0 | DP46: =IF('Asset data'!$F46=0,0,BF46*'Asset data'!$F46/1000) -> 0 | DQ46: =IF('Asset data'!$F46=0,0,BG46*'Asset data'!$F46/1000) -> 0 | DR46: =IF('Asset data'!$F46=0,0,BH46*'Asset data'!$F46/1000) -> 0 | DS46: =IF('Asset data'!$F46=0,0,BI46*'Asset data'!$F46/1000) -> 0 | DT46: =IF('Asset data'!$F46=0,0,BJ46*'Asset data'!$F46/1000) -> 0 | DU46: =IF('Asset data'!$F46=0,0,BK46*'Asset data'!$F46/1000) -> 0 | DV46: =IF('Asset data'!$F46=0,0,BL46*'Asset data'!$F46/1000) -> 0 | DW46: =IF('Asset data'!$F46=0,0,BM46*'Asset data'!$F46/1000) -> 0 | DX46: =IF('Asset data'!$F46=0,0,BN46*'Asset data'!$F46/1000) -> 0 | DY46: =IF('Asset data'!$F46=0,0,BO46*'Asset data'!$F46/1000) -> 0 | DZ46: =IF('Asset data'!$F46=0,0,BP46*'Asset data'!$F46/1000) -> 0 | EA46: =IF('Asset data'!$F46=0,0,BQ46*'Asset data'!$F46/1000) -> 0 | EB46: =IF('Asset data'!$F46=0,0,BR46*'Asset data'!$F46/1000) -> 0
A47: ='Asset data'!A47 -> 0 | B47: ='Asset data'!B47 -> 0 | C47: ='Asset data'!C47 -> 0 | D47: ='Asset data'!E47 -> 0 | E47: 0 | F47: ='Asset data'!I47 -> 0 | G47: 0 | H47: ='Asset data'!J47 -> 0 | I47: S | J47: =IF(A47=0,0,IF('Asset data'!$D$1=1,1,IF('Asset data'!$D$1=2,2,'Asset data'!K47))) -> 0 | K47: 0 | AX47: ='Utilisation profile summary'!H47 -> 0 | AY47: =Aug_calc('Asset data'!$M$5:$FG$5,'Asset data'!M47:FG47,'Asset data'!H47/100,'Asset data'!G47,'Asset data'!I47,'Asset data'!J47,J47,20) -> 0 | AZ47: 0 | BA47: 0 | BB47: 0 | BC47: 0 | BD47: 0 | BE47: 0 | BF47: 0 | BG47: 0 | BH47: 0 | BI47: 0 | BJ47: 0 | BK47: 0 | BL47: 0 | BM47: 0 | BN47: 0 | BO47: 0 | BP47: 0 | BQ47: 0 | BR47: 0 | BS47: 0 | BT47: 0 | BU47: 0 | BV47: 0 | BW47: 0 | BX47: 0 | BY47: 0 | BZ47: 0 | CA47: 0 | CB47: 0 | CC47: 0 | CD47: 0 | CE47: 0 | CF47: 0 | CG47: 0 | CH47: 0 | CI47: 0 | CJ47: 0 | CK47: 0 | CL47: 0 | CM47: 0 | CN47: 0 | CO47: 0 | CP47: 0 | CQ47: 0 | CR47: 0 | CS47: 0 | CT47: 0 | CU47: 0 | CV47: 0 | CW47: 0 | CX47: 0 | CY47: 0 | CZ47: 0 | DA47: 0 | DB47: 0 | DC47: 0 | DD47: 0 | DE47: 0 | DF47: 0 | DG47: 0 | DH47: 0 | DI47: =IF('Asset data'!$F47=0,0,AY47*'Asset data'!$F47/1000) -> 0 | DJ47: =IF('Asset data'!$F47=0,0,AZ47*'Asset data'!$F47/1000) -> 0 | DK47: =IF('Asset data'!$F47=0,0,BA47*'Asset data'!$F47/1000) -> 0 | DL47: =IF('Asset data'!$F47=0,0,BB47*'Asset data'!$F47/1000) -> 0 | DM47: =IF('Asset data'!$F47=0,0,BC47*'Asset data'!$F47/1000) -> 0 | DN47: =IF('Asset data'!$F47=0,0,BD47*'Asset data'!$F47/1000) -> 0 | DO47: =IF('Asset data'!$F47=0,0,BE47*'Asset data'!$F47/1000) -> 0 | DP47: =IF('Asset data'!$F47=0,0,BF47*'Asset data'!$F47/1000) -> 0 | DQ47: =IF('Asset data'!$F47=0,0,BG47*'Asset data'!$F47/1000) -> 0 | DR47: =IF('Asset data'!$F47=0,0,BH47*'Asset data'!$F47/1000) -> 0 | DS47: =IF('Asset data'!$F47=0,0,BI47*'Asset data'!$F47/1000) -> 0 | DT47: =IF('Asset data'!$F47=0,0,BJ47*'Asset data'!$F47/1000) -> 0 | DU47: =IF('Asset data'!$F47=0,0,BK47*'Asset data'!$F47/1000) -> 0 | DV47: =IF('Asset data'!$F47=0,0,BL47*'Asset data'!$F47/1000) -> 0 | DW47: =IF('Asset data'!$F47=0,0,BM47*'Asset data'!$F47/1000) -> 0 | DX47: =IF('Asset data'!$F47=0,0,BN47*'Asset data'!$F47/1000) -> 0 | DY47: =IF('Asset data'!$F47=0,0,BO47*'Asset data'!$F47/1000) -> 0 | DZ47: =IF('Asset data'!$F47=0,0,BP47*'Asset data'!$F47/1000) -> 0 | EA47: =IF('Asset data'!$F47=0,0,BQ47*'Asset data'!$F47/1000) -> 0 | EB47: =IF('Asset data'!$F47=0,0,BR47*'Asset data'!$F47/1000) -> 0
A48: ='Asset data'!A48 -> 0 | B48: ='Asset data'!B48 -> 0 | C48: ='Asset data'!C48 -> 0 | D48: ='Asset data'!E48 -> 0 | E48: 0 | F48: ='Asset data'!I48 -> 0 | G48: 0 | H48: ='Asset data'!J48 -> 0 | I48: S | J48: =IF(A48=0,0,IF('Asset data'!$D$1=1,1,IF('Asset data'!$D$1=2,2,'Asset data'!K48))) -> 0 | K48: 0 | AX48: ='Utilisation profile summary'!H48 -> 0 | AY48: =Aug_calc('Asset data'!$M$5:$FG$5,'Asset data'!M48:FG48,'Asset data'!H48/100,'Asset data'!G48,'Asset data'!I48,'Asset data'!J48,J48,20) -> 0 | AZ48: 0 | BA48: 0 | BB48: 0 | BC48: 0 | BD48: 0 | BE48: 0 | BF48: 0 | BG48: 0 | BH48: 0 | BI48: 0 | BJ48: 0 | BK48: 0 | BL48: 0 | BM48: 0 | BN48: 0 | BO48: 0 | BP48: 0 | BQ48: 0 | BR48: 0 | BS48: 0 | BT48: 0 | BU48: 0 | BV48: 0 | BW48: 0 | BX48: 0 | BY48: 0 | BZ48: 0 | CA48: 0 | CB48: 0 | CC48: 0 | CD48: 0 | CE48: 0 | CF48: 0 | CG48: 0 | CH48: 0 | CI48: 0 | CJ48: 0 | CK48: 0 | CL48: 0 | CM48: 0 | CN48: 0 | CO48: 0 | CP48: 0 | CQ48: 0 | CR48: 0 | CS48: 0 | CT48: 0 | CU48: 0 | CV48: 0 | CW48: 0 | CX48: 0 | CY48: 0 | CZ48: 0 | DA48: 0 | DB48: 0 | DC48: 0 | DD48: 0 | DE48: 0 | DF48: 0 | DG48: 0 | DH48: 0 | DI48: =IF('Asset data'!$F48=0,0,AY48*'Asset data'!$F48/1000) -> 0 | DJ48: =IF('Asset data'!$F48=0,0,AZ48*'Asset data'!$F48/1000) -> 0 | DK48: =IF('Asset data'!$F48=0,0,BA48*'Asset data'!$F48/1000) -> 0 | DL48: =IF('Asset data'!$F48=0,0,BB48*'Asset data'!$F48/1000) -> 0 | DM48: =IF('Asset data'!$F48=0,0,BC48*'Asset data'!$F48/1000) -> 0 | DN48: =IF('Asset data'!$F48=0,0,BD48*'Asset data'!$F48/1000) -> 0 | DO48: =IF('Asset data'!$F48=0,0,BE48*'Asset data'!$F48/1000) -> 0 | DP48: =IF('Asset data'!$F48=0,0,BF48*'Asset data'!$F48/1000) -> 0 | DQ48: =IF('Asset data'!$F48=0,0,BG48*'Asset data'!$F48/1000) -> 0 | DR48: =IF('Asset data'!$F48=0,0,BH48*'Asset data'!$F48/1000) -> 0 | DS48: =IF('Asset data'!$F48=0,0,BI48*'Asset data'!$F48/1000) -> 0 | DT48: =IF('Asset data'!$F48=0,0,BJ48*'Asset data'!$F48/1000) -> 0 | DU48: =IF('Asset data'!$F48=0,0,BK48*'Asset data'!$F48/1000) -> 0 | DV48: =IF('Asset data'!$F48=0,0,BL48*'Asset data'!$F48/1000) -> 0 | DW48: =IF('Asset data'!$F48=0,0,BM48*'Asset data'!$F48/1000) -> 0 | DX48: =IF('Asset data'!$F48=0,0,BN48*'Asset data'!$F48/1000) -> 0 | DY48: =IF('Asset data'!$F48=0,0,BO48*'Asset data'!$F48/1000) -> 0 | DZ48: =IF('Asset data'!$F48=0,0,BP48*'Asset data'!$F48/1000) -> 0 | EA48: =IF('Asset data'!$F48=0,0,BQ48*'Asset data'!$F48/1000) -> 0 | EB48: =IF('Asset data'!$F48=0,0,BR48*'Asset data'!$F48/1000) -> 0
A49: ='Asset data'!A49 -> 0 | B49: ='Asset data'!B49 -> 0 | C49: ='Asset data'!C49 -> 0 | D49: ='Asset data'!E49 -> 0 | E49: 0 | F49: ='Asset data'!I49 -> 0 | G49: 0 | H49: ='Asset data'!J49 -> 0 | I49: S | J49: =IF(A49=0,0,IF('Asset data'!$D$1=1,1,IF('Asset data'!$D$1=2,2,'Asset data'!K49))) -> 0 | K49: 0 | AX49: ='Utilisation profile summary'!H49 -> 0 | AY49: =Aug_calc('Asset data'!$M$5:$FG$5,'Asset data'!M49:FG49,'Asset data'!H49/100,'Asset data'!G49,'Asset data'!I49,'Asset data'!J49,J49,20) -> 0 | AZ49: 0 | BA49: 0 | BB49: 0 | BC49: 0 | BD49: 0 | BE49: 0 | BF49: 0 | BG49: 0 | BH49: 0 | BI49: 0 | BJ49: 0 | BK49: 0 | BL49: 0 | BM49: 0 | BN49: 0 | BO49: 0 | BP49: 0 | BQ49: 0 | BR49: 0 | BS49: 0 | BT49: 0 | BU49: 0 | BV49: 0 | BW49: 0 | BX49: 0 | BY49: 0 | BZ49: 0 | CA49: 0 | CB49: 0 | CC49: 0 | CD49: 0 | CE49: 0 | CF49: 0 | CG49: 0 | CH49: 0 | CI49: 0 | CJ49: 0 | CK49: 0 | CL49: 0 | CM49: 0 | CN49: 0 | CO49: 0 | CP49: 0 | CQ49: 0 | CR49: 0 | CS49: 0 | CT49: 0 | CU49: 0 | CV49: 0 | CW49: 0 | CX49: 0 | CY49: 0 | CZ49: 0 | DA49: 0 | DB49: 0 | DC49: 0 | DD49: 0 | DE49: 0 | DF49: 0 | DG49: 0 | DH49: 0 | DI49: =IF('Asset data'!$F49=0,0,AY49*'Asset data'!$F49/1000) -> 0 | DJ49: =IF('Asset data'!$F49=0,0,AZ49*'Asset data'!$F49/1000) -> 0 | DK49: =IF('Asset data'!$F49=0,0,BA49*'Asset data'!$F49/1000) -> 0 | DL49: =IF('Asset data'!$F49=0,0,BB49*'Asset data'!$F49/1000) -> 0 | DM49: =IF('Asset data'!$F49=0,0,BC49*'Asset data'!$F49/1000) -> 0 | DN49: =IF('Asset data'!$F49=0,0,BD49*'Asset data'!$F49/1000) -> 0 | DO49: =IF('Asset data'!$F49=0,0,BE49*'Asset data'!$F49/1000) -> 0 | DP49: =IF('Asset data'!$F49=0,0,BF49*'Asset data'!$F49/1000) -> 0 | DQ49: =IF('Asset data'!$F49=0,0,BG49*'Asset data'!$F49/1000) -> 0 | DR49: =IF('Asset data'!$F49=0,0,BH49*'Asset data'!$F49/1000) -> 0 | DS49: =IF('Asset data'!$F49=0,0,BI49*'Asset data'!$F49/1000) -> 0 | DT49: =IF('Asset data'!$F49=0,0,BJ49*'Asset data'!$F49/1000) -> 0 | DU49: =IF('Asset data'!$F49=0,0,BK49*'Asset data'!$F49/1000) -> 0 | DV49: =IF('Asset data'!$F49=0,0,BL49*'Asset data'!$F49/1000) -> 0 | DW49: =IF('Asset data'!$F49=0,0,BM49*'Asset data'!$F49/1000) -> 0 | DX49: =IF('Asset data'!$F49=0,0,BN49*'Asset data'!$F49/1000) -> 0 | DY49: =IF('Asset data'!$F49=0,0,BO49*'Asset data'!$F49/1000) -> 0 | DZ49: =IF('Asset data'!$F49=0,0,BP49*'Asset data'!$F49/1000) -> 0 | EA49: =IF('Asset data'!$F49=0,0,BQ49*'Asset data'!$F49/1000) -> 0 | EB49: =IF('Asset data'!$F49=0,0,BR49*'Asset data'!$F49/1000) -> 0
A50: ='Asset data'!A50 -> 0 | B50: ='Asset data'!B50 -> 0 | C50: ='Asset data'!C50 -> 0 | D50: ='Asset data'!E50 -> 0 | E50: 0 | F50: ='Asset data'!I50 -> 0 | G50: 0 | H50: ='Asset data'!J50 -> 0 | I50: S | J50: =IF(A50=0,0,IF('Asset data'!$D$1=1,1,IF('Asset data'!$D$1=2,2,'Asset data'!K50))) -> 0 | K50: 0 | AX50: ='Utilisation profile summary'!H50 -> 0 | AY50: =Aug_calc('Asset data'!$M$5:$FG$5,'Asset data'!M50:FG50,'Asset data'!H50/100,'Asset data'!G50,'Asset data'!I50,'Asset data'!J50,J50,20) -> 0 | AZ50: 0 | BA50: 0 | BB50: 0 | BC50: 0 | BD50: 0 | BE50: 0 | BF50: 0 | BG50: 0 | BH50: 0 | BI50: 0 | BJ50: 0 | BK50: 0 | BL50: 0 | BM50: 0 | BN50: 0 | BO50: 0 | BP50: 0 | BQ50: 0 | BR50: 0 | BS50: 0 | BT50: 0 | BU50: 0 | BV50: 0 | BW50: 0 | BX50: 0 | BY50: 0 | BZ50: 0 | CA50: 0 | CB50: 0 | CC50: 0 | CD50: 0 | CE50: 0 | CF50: 0 | CG50: 0 | CH50: 0 | CI50: 0 | CJ50: 0 | CK50: 0 | CL50: 0 | CM50: 0 | CN50: 0 | CO50: 0 | CP50: 0 | CQ50: 0 | CR50: 0 | CS50: 0 | CT50: 0 | CU50: 0 | CV50: 0 | CW50: 0 | CX50: 0 | CY50: 0 | CZ50: 0 | DA50: 0 | DB50: 0 | DC50: 0 | DD50: 0 | DE50: 0 | DF50: 0 | DG50: 0 | DH50: 0 | DI50: =IF('Asset data'!$F50=0,0,AY50*'Asset data'!$F50/1000) -> 0 | DJ50: =IF('Asset data'!$F50=0,0,AZ50*'Asset data'!$F50/1000) -> 0 | DK50: =IF('Asset data'!$F50=0,0,BA50*'Asset data'!$F50/1000) -> 0 | DL50: =IF('Asset data'!$F50=0,0,BB50*'Asset data'!$F50/1000) -> 0 | DM50: =IF('Asset data'!$F50=0,0,BC50*'Asset data'!$F50/1000) -> 0 | DN50: =IF('Asset data'!$F50=0,0,BD50*'Asset data'!$F50/1000) -> 0 | DO50: =IF('Asset data'!$F50=0,0,BE50*'Asset data'!$F50/1000) -> 0 | DP50: =IF('Asset data'!$F50=0,0,BF50*'Asset data'!$F50/1000) -> 0 | DQ50: =IF('Asset data'!$F50=0,0,BG50*'Asset data'!$F50/1000) -> 0 | DR50: =IF('Asset data'!$F50=0,0,BH50*'Asset data'!$F50/1000) -> 0 | DS50: =IF('Asset data'!$F50=0,0,BI50*'Asset data'!$F50/1000) -> 0 | DT50: =IF('Asset data'!$F50=0,0,BJ50*'Asset data'!$F50/1000) -> 0 | DU50: =IF('Asset data'!$F50=0,0,BK50*'Asset data'!$F50/1000) -> 0 | DV50: =IF('Asset data'!$F50=0,0,BL50*'Asset data'!$F50/1000) -> 0 | DW50: =IF('Asset data'!$F50=0,0,BM50*'Asset data'!$F50/1000) -> 0 | DX50: =IF('Asset data'!$F50=0,0,BN50*'Asset data'!$F50/1000) -> 0 | DY50: =IF('Asset data'!$F50=0,0,BO50*'Asset data'!$F50/1000) -> 0 | DZ50: =IF('Asset data'!$F50=0,0,BP50*'Asset data'!$F50/1000) -> 0 | EA50: =IF('Asset data'!$F50=0,0,BQ50*'Asset data'!$F50/1000) -> 0 | EB50: =IF('Asset data'!$F50=0,0,BR50*'Asset data'!$F50/1000) -> 0
A51: ='Asset data'!A51 -> 0 | B51: ='Asset data'!B51 -> 0 | C51: ='Asset data'!C51 -> 0 | D51: ='Asset data'!E51 -> 0 | E51: 0 | F51: ='Asset data'!I51 -> 0 | G51: 0 | H51: ='Asset data'!J51 -> 0 | I51: S | J51: =IF(A51=0,0,IF('Asset data'!$D$1=1,1,IF('Asset data'!$D$1=2,2,'Asset data'!K51))) -> 0 | K51: 0 | AX51: ='Utilisation profile summary'!H51 -> 0 | AY51: =Aug_calc('Asset data'!$M$5:$FG$5,'Asset data'!M51:FG51,'Asset data'!H51/100,'Asset data'!G51,'Asset data'!I51,'Asset data'!J51,J51,20) -> 0 | AZ51: 0 | BA51: 0 | BB51: 0 | BC51: 0 | BD51: 0 | BE51: 0 | BF51: 0 | BG51: 0 | BH51: 0 | BI51: 0 | BJ51: 0 | BK51: 0 | BL51: 0 | BM51: 0 | BN51: 0 | BO51: 0 | BP51: 0 | BQ51: 0 | BR51: 0 | BS51: 0 | BT51: 0 | BU51: 0 | BV51: 0 | BW51: 0 | BX51: 0 | BY51: 0 | BZ51: 0 | CA51: 0 | CB51: 0 | CC51: 0 | CD51: 0 | CE51: 0 | CF51: 0 | CG51: 0 | CH51: 0 | CI51: 0 | CJ51: 0 | CK51: 0 | CL51: 0 | CM51: 0 | CN51: 0 | CO51: 0 | CP51: 0 | CQ51: 0 | CR51: 0 | CS51: 0 | CT51: 0 | CU51: 0 | CV51: 0 | CW51: 0 | CX51: 0 | CY51: 0 | CZ51: 0 | DA51: 0 | DB51: 0 | DC51: 0 | DD51: 0 | DE51: 0 | DF51: 0 | DG51: 0 | DH51: 0 | DI51: =IF('Asset data'!$F51=0,0,AY51*'Asset data'!$F51/1000) -> 0 | DJ51: =IF('Asset data'!$F51=0,0,AZ51*'Asset data'!$F51/1000) -> 0 | DK51: =IF('Asset data'!$F51=0,0,BA51*'Asset data'!$F51/1000) -> 0 | DL51: =IF('Asset data'!$F51=0,0,BB51*'Asset data'!$F51/1000) -> 0 | DM51: =IF('Asset data'!$F51=0,0,BC51*'Asset data'!$F51/1000) -> 0 | DN51: =IF('Asset data'!$F51=0,0,BD51*'Asset data'!$F51/1000) -> 0 | DO51: =IF('Asset data'!$F51=0,0,BE51*'Asset data'!$F51/1000) -> 0 | DP51: =IF('Asset data'!$F51=0,0,BF51*'Asset data'!$F51/1000) -> 0 | DQ51: =IF('Asset data'!$F51=0,0,BG51*'Asset data'!$F51/1000) -> 0 | DR51: =IF('Asset data'!$F51=0,0,BH51*'Asset data'!$F51/1000) -> 0 | DS51: =IF('Asset data'!$F51=0,0,BI51*'Asset data'!$F51/1000) -> 0 | DT51: =IF('Asset data'!$F51=0,0,BJ51*'Asset data'!$F51/1000) -> 0 | DU51: =IF('Asset data'!$F51=0,0,BK51*'Asset data'!$F51/1000) -> 0 | DV51: =IF('Asset data'!$F51=0,0,BL51*'Asset data'!$F51/1000) -> 0 | DW51: =IF('Asset data'!$F51=0,0,BM51*'Asset data'!$F51/1000) -> 0 | DX51: =IF('Asset data'!$F51=0,0,BN51*'Asset data'!$F51/1000) -> 0 | DY51: =IF('Asset data'!$F51=0,0,BO51*'Asset data'!$F51/1000) -> 0 | DZ51: =IF('Asset data'!$F51=0,0,BP51*'Asset data'!$F51/1000) -> 0 | EA51: =IF('Asset data'!$F51=0,0,BQ51*'Asset data'!$F51/1000) -> 0 | EB51: =IF('Asset data'!$F51=0,0,BR51*'Asset data'!$F51/1000) -> 0
A52: ='Asset data'!A52 -> 0 | B52: ='Asset data'!B52 -> 0 | C52: ='Asset data'!C52 -> 0 | D52: ='Asset data'!E52 -> 0 | E52: 0 | F52: ='Asset data'!I52 -> 0 | G52: 0 | H52: ='Asset data'!J52 -> 0 | I52: S | J52: =IF(A52=0,0,IF('Asset data'!$D$1=1,1,IF('Asset data'!$D$1=2,2,'Asset data'!K52))) -> 0 | K52: 0 | AX52: ='Utilisation profile summary'!H52 -> 0 | AY52: =Aug_calc('Asset data'!$M$5:$FG$5,'Asset data'!M52:FG52,'Asset data'!H52/100,'Asset data'!G52,'Asset data'!I52,'Asset data'!J52,J52,20) -> 0 | AZ52: 0 | BA52: 0 | BB52: 0 | BC52: 0 | BD52: 0 | BE52: 0 | BF52: 0 | BG52: 0 | BH52: 0 | BI52: 0 | BJ52: 0 | BK52: 0 | BL52: 0 | BM52: 0 | BN52: 0 | BO52: 0 | BP52: 0 | BQ52: 0 | BR52: 0 | BS52: 0 | BT52: 0 | BU52: 0 | BV52: 0 | BW52: 0 | BX52: 0 | BY52: 0 | BZ52: 0 | CA52: 0 | CB52: 0 | CC52: 0 | CD52: 0 | CE52: 0 | CF52: 0 | CG52: 0 | CH52: 0 | CI52: 0 | CJ52: 0 | CK52: 0 | CL52: 0 | CM52: 0 | CN52: 0 | CO52: 0 | CP52: 0 | CQ52: 0 | CR52: 0 | CS52: 0 | CT52: 0 | CU52: 0 | CV52: 0 | CW52: 0 | CX52: 0 | CY52: 0 | CZ52: 0 | DA52: 0 | DB52: 0 | DC52: 0 | DD52: 0 | DE52: 0 | DF52: 0 | DG52: 0 | DH52: 0 | DI52: =IF('Asset data'!$F52=0,0,AY52*'Asset data'!$F52/1000) -> 0 | DJ52: =IF('Asset data'!$F52=0,0,AZ52*'Asset data'!$F52/1000) -> 0 | DK52: =IF('Asset data'!$F52=0,0,BA52*'Asset data'!$F52/1000) -> 0 | DL52: =IF('Asset data'!$F52=0,0,BB52*'Asset data'!$F52/1000) -> 0 | DM52: =IF('Asset data'!$F52=0,0,BC52*'Asset data'!$F52/1000) -> 0 | DN52: =IF('Asset data'!$F52=0,0,BD52*'Asset data'!$F52/1000) -> 0 | DO52: =IF('Asset data'!$F52=0,0,BE52*'Asset data'!$F52/1000) -> 0 | DP52: =IF('Asset data'!$F52=0,0,BF52*'Asset data'!$F52/1000) -> 0 | DQ52: =IF('Asset data'!$F52=0,0,BG52*'Asset data'!$F52/1000) -> 0 | DR52: =IF('Asset data'!$F52=0,0,BH52*'Asset data'!$F52/1000) -> 0 | DS52: =IF('Asset data'!$F52=0,0,BI52*'Asset data'!$F52/1000) -> 0 | DT52: =IF('Asset data'!$F52=0,0,BJ52*'Asset data'!$F52/1000) -> 0 | DU52: =IF('Asset data'!$F52=0,0,BK52*'Asset data'!$F52/1000) -> 0 | DV52: =IF('Asset data'!$F52=0,0,BL52*'Asset data'!$F52/1000) -> 0 | DW52: =IF('Asset data'!$F52=0,0,BM52*'Asset data'!$F52/1000) -> 0 | DX52: =IF('Asset data'!$F52=0,0,BN52*'Asset data'!$F52/1000) -> 0 | DY52: =IF('Asset data'!$F52=0,0,BO52*'Asset data'!$F52/1000) -> 0 | DZ52: =IF('Asset data'!$F52=0,0,BP52*'Asset data'!$F52/1000) -> 0 | EA52: =IF('Asset data'!$F52=0,0,BQ52*'Asset data'!$F52/1000) -> 0 | EB52: =IF('Asset data'!$F52=0,0,BR52*'Asset data'!$F52/1000) -> 0
A53: ='Asset data'!A53 -> 0 | B53: ='Asset data'!B53 -> 0 | C53: ='Asset data'!C53 -> 0 | D53: ='Asset data'!E53 -> 0 | E53: 0 | F53: ='Asset data'!I53 -> 0 | G53: 0 | H53: ='Asset data'!J53 -> 0 | I53: S | J53: =IF(A53=0,0,IF('Asset data'!$D$1=1,1,IF('Asset data'!$D$1=2,2,'Asset data'!K53))) -> 0 | K53: 0 | AX53: ='Utilisation profile summary'!H53 -> 0 | AY53: =Aug_calc('Asset data'!$M$5:$FG$5,'Asset data'!M53:FG53,'Asset data'!H53/100,'Asset data'!G53,'Asset data'!I53,'Asset data'!J53,J53,20) -> 0 | AZ53: 0 | BA53: 0 | BB53: 0 | BC53: 0 | BD53: 0 | BE53: 0 | BF53: 0 | BG53: 0 | BH53: 0 | BI53: 0 | BJ53: 0 | BK53: 0 | BL53: 0 | BM53: 0 | BN53: 0 | BO53: 0 | BP53: 0 | BQ53: 0 | BR53: 0 | BS53: 0 | BT53: 0 | BU53: 0 | BV53: 0 | BW53: 0 | BX53: 0 | BY53: 0 | BZ53: 0 | CA53: 0 | CB53: 0 | CC53: 0 | CD53: 0 | CE53: 0 | CF53: 0 | CG53: 0 | CH53: 0 | CI53: 0 | CJ53: 0 | CK53: 0 | CL53: 0 | CM53: 0 | CN53: 0 | CO53: 0 | CP53: 0 | CQ53: 0 | CR53: 0 | CS53: 0 | CT53: 0 | CU53: 0 | CV53: 0 | CW53: 0 | CX53: 0 | CY53: 0 | CZ53: 0 | DA53: 0 | DB53: 0 | DC53: 0 | DD53: 0 | DE53: 0 | DF53: 0 | DG53: 0 | DH53: 0 | DI53: =IF('Asset data'!$F53=0,0,AY53*'Asset data'!$F53/1000) -> 0 | DJ53: =IF('Asset data'!$F53=0,0,AZ53*'Asset data'!$F53/1000) -> 0 | DK53: =IF('Asset data'!$F53=0,0,BA53*'Asset data'!$F53/1000) -> 0 | DL53: =IF('Asset data'!$F53=0,0,BB53*'Asset data'!$F53/1000) -> 0 | DM53: =IF('Asset data'!$F53=0,0,BC53*'Asset data'!$F53/1000) -> 0 | DN53: =IF('Asset data'!$F53=0,0,BD53*'Asset data'!$F53/1000) -> 0 | DO53: =IF('Asset data'!$F53=0,0,BE53*'Asset data'!$F53/1000) -> 0 | DP53: =IF('Asset data'!$F53=0,0,BF53*'Asset data'!$F53/1000) -> 0 | DQ53: =IF('Asset data'!$F53=0,0,BG53*'Asset data'!$F53/1000) -> 0 | DR53: =IF('Asset data'!$F53=0,0,BH53*'Asset data'!$F53/1000) -> 0 | DS53: =IF('Asset data'!$F53=0,0,BI53*'Asset data'!$F53/1000) -> 0 | DT53: =IF('Asset data'!$F53=0,0,BJ53*'Asset data'!$F53/1000) -> 0 | DU53: =IF('Asset data'!$F53=0,0,BK53*'Asset data'!$F53/1000) -> 0 | DV53: =IF('Asset data'!$F53=0,0,BL53*'Asset data'!$F53/1000) -> 0 | DW53: =IF('Asset data'!$F53=0,0,BM53*'Asset data'!$F53/1000) -> 0 | DX53: =IF('Asset data'!$F53=0,0,BN53*'Asset data'!$F53/1000) -> 0 | DY53: =IF('Asset data'!$F53=0,0,BO53*'Asset data'!$F53/1000) -> 0 | DZ53: =IF('Asset data'!$F53=0,0,BP53*'Asset data'!$F53/1000) -> 0 | EA53: =IF('Asset data'!$F53=0,0,BQ53*'Asset data'!$F53/1000) -> 0 | EB53: =IF('Asset data'!$F53=0,0,BR53*'Asset data'!$F53/1000) -> 0
A54: ='Asset data'!A54 -> 0 | B54: ='Asset data'!B54 -> 0 | C54: ='Asset data'!C54 -> 0 | D54: ='Asset data'!E54 -> 0 | E54: 0 | F54: ='Asset data'!I54 -> 0 | G54: 0 | H54: ='Asset data'!J54 -> 0 | I54: S | J54: =IF(A54=0,0,IF('Asset data'!$D$1=1,1,IF('Asset data'!$D$1=2,2,'Asset data'!K54))) -> 0 | K54: 0 | AX54: ='Utilisation profile summary'!H54 -> 0 | AY54: =Aug_calc('Asset data'!$M$5:$FG$5,'Asset data'!M54:FG54,'Asset data'!H54/100,'Asset data'!G54,'Asset data'!I54,'Asset data'!J54,J54,20) -> 0 | AZ54: 0 | BA54: 0 | BB54: 0 | BC54: 0 | BD54: 0 | BE54: 0 | BF54: 0 | BG54: 0 | BH54: 0 | BI54: 0 | BJ54: 0 | BK54: 0 | BL54: 0 | BM54: 0 | BN54: 0 | BO54: 0 | BP54: 0 | BQ54: 0 | BR54: 0 | BS54: 0 | BT54: 0 | BU54: 0 | BV54: 0 | BW54: 0 | BX54: 0 | BY54: 0 | BZ54: 0 | CA54: 0 | CB54: 0 | CC54: 0 | CD54: 0 | CE54: 0 | CF54: 0 | CG54: 0 | CH54: 0 | CI54: 0 | CJ54: 0 | CK54: 0 | CL54: 0 | CM54: 0 | CN54: 0 | CO54: 0 | CP54: 0 | CQ54: 0 | CR54: 0 | CS54: 0 | CT54: 0 | CU54: 0 | CV54: 0 | CW54: 0 | CX54: 0 | CY54: 0 | CZ54: 0 | DA54: 0 | DB54: 0 | DC54: 0 | DD54: 0 | DE54: 0 | DF54: 0 | DG54: 0 | DH54: 0 | DI54: =IF('Asset data'!$F54=0,0,AY54*'Asset data'!$F54/1000) -> 0 | DJ54: =IF('Asset data'!$F54=0,0,AZ54*'Asset data'!$F54/1000) -> 0 | DK54: =IF('Asset data'!$F54=0,0,BA54*'Asset data'!$F54/1000) -> 0 | DL54: =IF('Asset data'!$F54=0,0,BB54*'Asset data'!$F54/1000) -> 0 | DM54: =IF('Asset data'!$F54=0,0,BC54*'Asset data'!$F54/1000) -> 0 | DN54: =IF('Asset data'!$F54=0,0,BD54*'Asset data'!$F54/1000) -> 0 | DO54: =IF('Asset data'!$F54=0,0,BE54*'Asset data'!$F54/1000) -> 0 | DP54: =IF('Asset data'!$F54=0,0,BF54*'Asset data'!$F54/1000) -> 0 | DQ54: =IF('Asset data'!$F54=0,0,BG54*'Asset data'!$F54/1000) -> 0 | DR54: =IF('Asset data'!$F54=0,0,BH54*'Asset data'!$F54/1000) -> 0 | DS54: =IF('Asset data'!$F54=0,0,BI54*'Asset data'!$F54/1000) -> 0 | DT54: =IF('Asset data'!$F54=0,0,BJ54*'Asset data'!$F54/1000) -> 0 | DU54: =IF('Asset data'!$F54=0,0,BK54*'Asset data'!$F54/1000) -> 0 | DV54: =IF('Asset data'!$F54=0,0,BL54*'Asset data'!$F54/1000) -> 0 | DW54: =IF('Asset data'!$F54=0,0,BM54*'Asset data'!$F54/1000) -> 0 | DX54: =IF('Asset data'!$F54=0,0,BN54*'Asset data'!$F54/1000) -> 0 | DY54: =IF('Asset data'!$F54=0,0,BO54*'Asset data'!$F54/1000) -> 0 | DZ54: =IF('Asset data'!$F54=0,0,BP54*'Asset data'!$F54/1000) -> 0 | EA54: =IF('Asset data'!$F54=0,0,BQ54*'Asset data'!$F54/1000) -> 0 | EB54: =IF('Asset data'!$F54=0,0,BR54*'Asset data'!$F54/1000) -> 0
A55: ='Asset data'!A55 -> 0 | B55: ='Asset data'!B55 -> 0 | C55: ='Asset data'!C55 -> 0 | D55: ='Asset data'!E55 -> 0 | E55: 0 | F55: ='Asset data'!I55 -> 0 | G55: 0 | H55: ='Asset data'!J55 -> 0 | I55: S | J55: =IF(A55=0,0,IF('Asset data'!$D$1=1,1,IF('Asset data'!$D$1=2,2,'Asset data'!K55))) -> 0 | K55: 0 | AX55: ='Utilisation profile summary'!H55 -> 0 | AY55: =Aug_calc('Asset data'!$M$5:$FG$5,'Asset data'!M55:FG55,'Asset data'!H55/100,'Asset data'!G55,'Asset data'!I55,'Asset data'!J55,J55,20) -> 0 | AZ55: 0 | BA55: 0 | BB55: 0 | BC55: 0 | BD55: 0 | BE55: 0 | BF55: 0 | BG55: 0 | BH55: 0 | BI55: 0 | BJ55: 0 | BK55: 0 | BL55: 0 | BM55: 0 | BN55: 0 | BO55: 0 | BP55: 0 | BQ55: 0 | BR55: 0 | BS55: 0 | BT55: 0 | BU55: 0 | BV55: 0 | BW55: 0 | BX55: 0 | BY55: 0 | BZ55: 0 | CA55: 0 | CB55: 0 | CC55: 0 | CD55: 0 | CE55: 0 | CF55: 0 | CG55: 0 | CH55: 0 | CI55: 0 | CJ55: 0 | CK55: 0 | CL55: 0 | CM55: 0 | CN55: 0 | CO55: 0 | CP55: 0 | CQ55: 0 | CR55: 0 | CS55: 0 | CT55: 0 | CU55: 0 | CV55: 0 | CW55: 0 | CX55: 0 | CY55: 0 | CZ55: 0 | DA55: 0 | DB55: 0 | DC55: 0 | DD55: 0 | DE55: 0 | DF55: 0 | DG55: 0 | DH55: 0 | DI55: =IF('Asset data'!$F55=0,0,AY55*'Asset data'!$F55/1000) -> 0 | DJ55: =IF('Asset data'!$F55=0,0,AZ55*'Asset data'!$F55/1000) -> 0 | DK55: =IF('Asset data'!$F55=0,0,BA55*'Asset data'!$F55/1000) -> 0 | DL55: =IF('Asset data'!$F55=0,0,BB55*'Asset data'!$F55/1000) -> 0 | DM55: =IF('Asset data'!$F55=0,0,BC55*'Asset data'!$F55/1000) -> 0 | DN55: =IF('Asset data'!$F55=0,0,BD55*'Asset data'!$F55/1000) -> 0 | DO55: =IF('Asset data'!$F55=0,0,BE55*'Asset data'!$F55/1000) -> 0 | DP55: =IF('Asset data'!$F55=0,0,BF55*'Asset data'!$F55/1000) -> 0 | DQ55: =IF('Asset data'!$F55=0,0,BG55*'Asset data'!$F55/1000) -> 0 | DR55: =IF('Asset data'!$F55=0,0,BH55*'Asset data'!$F55/1000) -> 0 | DS55: =IF('Asset data'!$F55=0,0,BI55*'Asset data'!$F55/1000) -> 0 | DT55: =IF('Asset data'!$F55=0,0,BJ55*'Asset data'!$F55/1000) -> 0 | DU55: =IF('Asset data'!$F55=0,0,BK55*'Asset data'!$F55/1000) -> 0 | DV55: =IF('Asset data'!$F55=0,0,BL55*'Asset data'!$F55/1000) -> 0 | DW55: =IF('Asset data'!$F55=0,0,BM55*'Asset data'!$F55/1000) -> 0 | DX55: =IF('Asset data'!$F55=0,0,BN55*'Asset data'!$F55/1000) -> 0 | DY55: =IF('Asset data'!$F55=0,0,BO55*'Asset data'!$F55/1000) -> 0 | DZ55: =IF('Asset data'!$F55=0,0,BP55*'Asset data'!$F55/1000) -> 0 | EA55: =IF('Asset data'!$F55=0,0,BQ55*'Asset data'!$F55/1000) -> 0 | EB55: =IF('Asset data'!$F55=0,0,BR55*'Asset data'!$F55/1000) -> 0
A56: ='Asset data'!A56 -> 0 | B56: ='Asset data'!B56 -> 0 | C56: ='Asset data'!C56 -> 0 | D56: ='Asset data'!E56 -> 0 | E56: 0 | F56: ='Asset data'!I56 -> 0 | G56: 0 | H56: ='Asset data'!J56 -> 0 | I56: S | J56: =IF(A56=0,0,IF('Asset data'!$D$1=1,1,IF('Asset data'!$D$1=2,2,'Asset data'!K56))) -> 0 | K56: 0 | AX56: ='Utilisation profile summary'!H56 -> 0 | AY56: =Aug_calc('Asset data'!$M$5:$FG$5,'Asset data'!M56:FG56,'Asset data'!H56/100,'Asset data'!G56,'Asset data'!I56,'Asset data'!J56,J56,20) -> 0 | AZ56: 0 | BA56: 0 | BB56: 0 | BC56: 0 | BD56: 0 | BE56: 0 | BF56: 0 | BG56: 0 | BH56: 0 | BI56: 0 | BJ56: 0 | BK56: 0 | BL56: 0 | BM56: 0 | BN56: 0 | BO56: 0 | BP56: 0 | BQ56: 0 | BR56: 0 | BS56: 0 | BT56: 0 | BU56: 0 | BV56: 0 | BW56: 0 | BX56: 0 | BY56: 0 | BZ56: 0 | CA56: 0 | CB56: 0 | CC56: 0 | CD56: 0 | CE56: 0 | CF56: 0 | CG56: 0 | CH56: 0 | CI56: 0 | CJ56: 0 | CK56: 0 | CL56: 0 | CM56: 0 | CN56: 0 | CO56: 0 | CP56: 0 | CQ56: 0 | CR56: 0 | CS56: 0 | CT56: 0 | CU56: 0 | CV56: 0 | CW56: 0 | CX56: 0 | CY56: 0 | CZ56: 0 | DA56: 0 | DB56: 0 | DC56: 0 | DD56: 0 | DE56: 0 | DF56: 0 | DG56: 0 | DH56: 0 | DI56: =IF('Asset data'!$F56=0,0,AY56*'Asset data'!$F56/1000) -> 0 | DJ56: =IF('Asset data'!$F56=0,0,AZ56*'Asset data'!$F56/1000) -> 0 | DK56: =IF('Asset data'!$F56=0,0,BA56*'Asset data'!$F56/1000) -> 0 | DL56: =IF('Asset data'!$F56=0,0,BB56*'Asset data'!$F56/1000) -> 0 | DM56: =IF('Asset data'!$F56=0,0,BC56*'Asset data'!$F56/1000) -> 0 | DN56: =IF('Asset data'!$F56=0,0,BD56*'Asset data'!$F56/1000) -> 0 | DO56: =IF('Asset data'!$F56=0,0,BE56*'Asset data'!$F56/1000) -> 0 | DP56: =IF('Asset data'!$F56=0,0,BF56*'Asset data'!$F56/1000) -> 0 | DQ56: =IF('Asset data'!$F56=0,0,BG56*'Asset data'!$F56/1000) -> 0 | DR56: =IF('Asset data'!$F56=0,0,BH56*'Asset data'!$F56/1000) -> 0 | DS56: =IF('Asset data'!$F56=0,0,BI56*'Asset data'!$F56/1000) -> 0 | DT56: =IF('Asset data'!$F56=0,0,BJ56*'Asset data'!$F56/1000) -> 0 | DU56: =IF('Asset data'!$F56=0,0,BK56*'Asset data'!$F56/1000) -> 0 | DV56: =IF('Asset data'!$F56=0,0,BL56*'Asset data'!$F56/1000) -> 0 | DW56: =IF('Asset data'!$F56=0,0,BM56*'Asset data'!$F56/1000) -> 0 | DX56: =IF('Asset data'!$F56=0,0,BN56*'Asset data'!$F56/1000) -> 0 | DY56: =IF('Asset data'!$F56=0,0,BO56*'Asset data'!$F56/1000) -> 0 | DZ56: =IF('Asset data'!$F56=0,0,BP56*'Asset data'!$F56/1000) -> 0 | EA56: =IF('Asset data'!$F56=0,0,BQ56*'Asset data'!$F56/1000) -> 0 | EB56: =IF('Asset data'!$F56=0,0,BR56*'Asset data'!$F56/1000) -> 0
A57: ='Asset data'!A57 -> 0 | B57: ='Asset data'!B57 -> 0 | C57: ='Asset data'!C57 -> 0 | D57: ='Asset data'!E57 -> 0 | E57: 0 | F57: ='Asset data'!I57 -> 0 | G57: 0 | H57: ='Asset data'!J57 -> 0 | I57: S | J57: =IF(A57=0,0,IF('Asset data'!$D$1=1,1,IF('Asset data'!$D$1=2,2,'Asset data'!K57))) -> 0 | K57: 0 | AX57: ='Utilisation profile summary'!H57 -> 0 | AY57: =Aug_calc('Asset data'!$M$5:$FG$5,'Asset data'!M57:FG57,'Asset data'!H57/100,'Asset data'!G57,'Asset data'!I57,'Asset data'!J57,J57,20) -> 0 | AZ57: 0 | BA57: 0 | BB57: 0 | BC57: 0 | BD57: 0 | BE57: 0 | BF57: 0 | BG57: 0 | BH57: 0 | BI57: 0 | BJ57: 0 | BK57: 0 | BL57: 0 | BM57: 0 | BN57: 0 | BO57: 0 | BP57: 0 | BQ57: 0 | BR57: 0 | BS57: 0 | BT57: 0 | BU57: 0 | BV57: 0 | BW57: 0 | BX57: 0 | BY57: 0 | BZ57: 0 | CA57: 0 | CB57: 0 | CC57: 0 | CD57: 0 | CE57: 0 | CF57: 0 | CG57: 0 | CH57: 0 | CI57: 0 | CJ57: 0 | CK57: 0 | CL57: 0 | CM57: 0 | CN57: 0 | CO57: 0 | CP57: 0 | CQ57: 0 | CR57: 0 | CS57: 0 | CT57: 0 | CU57: 0 | CV57: 0 | CW57: 0 | CX57: 0 | CY57: 0 | CZ57: 0 | DA57: 0 | DB57: 0 | DC57: 0 | DD57: 0 | DE57: 0 | DF57: 0 | DG57: 0 | DH57: 0 | DI57: =IF('Asset data'!$F57=0,0,AY57*'Asset data'!$F57/1000) -> 0 | DJ57: =IF('Asset data'!$F57=0,0,AZ57*'Asset data'!$F57/1000) -> 0 | DK57: =IF('Asset data'!$F57=0,0,BA57*'Asset data'!$F57/1000) -> 0 | DL57: =IF('Asset data'!$F57=0,0,BB57*'Asset data'!$F57/1000) -> 0 | DM57: =IF('Asset data'!$F57=0,0,BC57*'Asset data'!$F57/1000) -> 0 | DN57: =IF('Asset data'!$F57=0,0,BD57*'Asset data'!$F57/1000) -> 0 | DO57: =IF('Asset data'!$F57=0,0,BE57*'Asset data'!$F57/1000) -> 0 | DP57: =IF('Asset data'!$F57=0,0,BF57*'Asset data'!$F57/1000) -> 0 | DQ57: =IF('Asset data'!$F57=0,0,BG57*'Asset data'!$F57/1000) -> 0 | DR57: =IF('Asset data'!$F57=0,0,BH57*'Asset data'!$F57/1000) -> 0 | DS57: =IF('Asset data'!$F57=0,0,BI57*'Asset data'!$F57/1000) -> 0 | DT57: =IF('Asset data'!$F57=0,0,BJ57*'Asset data'!$F57/1000) -> 0 | DU57: =IF('Asset data'!$F57=0,0,BK57*'Asset data'!$F57/1000) -> 0 | DV57: =IF('Asset data'!$F57=0,0,BL57*'Asset data'!$F57/1000) -> 0 | DW57: =IF('Asset data'!$F57=0,0,BM57*'Asset data'!$F57/1000) -> 0 | DX57: =IF('Asset data'!$F57=0,0,BN57*'Asset data'!$F57/1000) -> 0 | DY57: =IF('Asset data'!$F57=0,0,BO57*'Asset data'!$F57/1000) -> 0 | DZ57: =IF('Asset data'!$F57=0,0,BP57*'Asset data'!$F57/1000) -> 0 | EA57: =IF('Asset data'!$F57=0,0,BQ57*'Asset data'!$F57/1000) -> 0 | EB57: =IF('Asset data'!$F57=0,0,BR57*'Asset data'!$F57/1000) -> 0
A58: ='Asset data'!A58 -> 0 | B58: ='Asset data'!B58 -> 0 | C58: ='Asset data'!C58 -> 0 | D58: ='Asset data'!E58 -> 0 | E58: 0 | F58: ='Asset data'!I58 -> 0 | G58: 0 | H58: ='Asset data'!J58 -> 0 | I58: S | J58: =IF(A58=0,0,IF('Asset data'!$D$1=1,1,IF('Asset data'!$D$1=2,2,'Asset data'!K58))) -> 0 | K58: 0 | AX58: ='Utilisation profile summary'!H58 -> 0 | AY58: =Aug_calc('Asset data'!$M$5:$FG$5,'Asset data'!M58:FG58,'Asset data'!H58/100,'Asset data'!G58,'Asset data'!I58,'Asset data'!J58,J58,20) -> 0 | AZ58: 0 | BA58: 0 | BB58: 0 | BC58: 0 | BD58: 0 | BE58: 0 | BF58: 0 | BG58: 0 | BH58: 0 | BI58: 0 | BJ58: 0 | BK58: 0 | BL58: 0 | BM58: 0 | BN58: 0 | BO58: 0 | BP58: 0 | BQ58: 0 | BR58: 0 | BS58: 0 | BT58: 0 | BU58: 0 | BV58: 0 | BW58: 0 | BX58: 0 | BY58: 0 | BZ58: 0 | CA58: 0 | CB58: 0 | CC58: 0 | CD58: 0 | CE58: 0 | CF58: 0 | CG58: 0 | CH58: 0 | CI58: 0 | CJ58: 0 | CK58: 0 | CL58: 0 | CM58: 0 | CN58: 0 | CO58: 0 | CP58: 0 | CQ58: 0 | CR58: 0 | CS58: 0 | CT58: 0 | CU58: 0 | CV58: 0 | CW58: 0 | CX58: 0 | CY58: 0 | CZ58: 0 | DA58: 0 | DB58: 0 | DC58: 0 | DD58: 0 | DE58: 0 | DF58: 0 | DG58: 0 | DH58: 0 | DI58: =IF('Asset data'!$F58=0,0,AY58*'Asset data'!$F58/1000) -> 0 | DJ58: =IF('Asset data'!$F58=0,0,AZ58*'Asset data'!$F58/1000) -> 0 | DK58: =IF('Asset data'!$F58=0,0,BA58*'Asset data'!$F58/1000) -> 0 | DL58: =IF('Asset data'!$F58=0,0,BB58*'Asset data'!$F58/1000) -> 0 | DM58: =IF('Asset data'!$F58=0,0,BC58*'Asset data'!$F58/1000) -> 0 | DN58: =IF('Asset data'!$F58=0,0,BD58*'Asset data'!$F58/1000) -> 0 | DO58: =IF('Asset data'!$F58=0,0,BE58*'Asset data'!$F58/1000) -> 0 | DP58: =IF('Asset data'!$F58=0,0,BF58*'Asset data'!$F58/1000) -> 0 | DQ58: =IF('Asset data'!$F58=0,0,BG58*'Asset data'!$F58/1000) -> 0 | DR58: =IF('Asset data'!$F58=0,0,BH58*'Asset data'!$F58/1000) -> 0 | DS58: =IF('Asset data'!$F58=0,0,BI58*'Asset data'!$F58/1000) -> 0 | DT58: =IF('Asset data'!$F58=0,0,BJ58*'Asset data'!$F58/1000) -> 0 | DU58: =IF('Asset data'!$F58=0,0,BK58*'Asset data'!$F58/1000) -> 0 | DV58: =IF('Asset data'!$F58=0,0,BL58*'Asset data'!$F58/1000) -> 0 | DW58: =IF('Asset data'!$F58=0,0,BM58*'Asset data'!$F58/1000) -> 0 | DX58: =IF('Asset data'!$F58=0,0,BN58*'Asset data'!$F58/1000) -> 0 | DY58: =IF('Asset data'!$F58=0,0,BO58*'Asset data'!$F58/1000) -> 0 | DZ58: =IF('Asset data'!$F58=0,0,BP58*'Asset data'!$F58/1000) -> 0 | EA58: =IF('Asset data'!$F58=0,0,BQ58*'Asset data'!$F58/1000) -> 0 | EB58: =IF('Asset data'!$F58=0,0,BR58*'Asset data'!$F58/1000) -> 0
A59: ='Asset data'!A59 -> 0 | B59: ='Asset data'!B59 -> 0 | C59: ='Asset data'!C59 -> 0 | D59: ='Asset data'!E59 -> 0 | E59: 0 | F59: ='Asset data'!I59 -> 0 | G59: 0 | H59: ='Asset data'!J59 -> 0 | I59: S | J59: =IF(A59=0,0,IF('Asset data'!$D$1=1,1,IF('Asset data'!$D$1=2,2,'Asset data'!K59))) -> 0 | K59: 0 | AX59: ='Utilisation profile summary'!H59 -> 0 | AY59: =Aug_calc('Asset data'!$M$5:$FG$5,'Asset data'!M59:FG59,'Asset data'!H59/100,'Asset data'!G59,'Asset data'!I59,'Asset data'!J59,J59,20) -> 0 | AZ59: 0 | BA59: 0 | BB59: 0 | BC59: 0 | BD59: 0 | BE59: 0 | BF59: 0 | BG59: 0 | BH59: 0 | BI59: 0 | BJ59: 0 | BK59: 0 | BL59: 0 | BM59: 0 | BN59: 0 | BO59: 0 | BP59: 0 | BQ59: 0 | BR59: 0 | BS59: 0 | BT59: 0 | BU59: 0 | BV59: 0 | BW59: 0 | BX59: 0 | BY59: 0 | BZ59: 0 | CA59: 0 | CB59: 0 | CC59: 0 | CD59: 0 | CE59: 0 | CF59: 0 | CG59: 0 | CH59: 0 | CI59: 0 | CJ59: 0 | CK59: 0 | CL59: 0 | CM59: 0 | CN59: 0 | CO59: 0 | CP59: 0 | CQ59: 0 | CR59: 0 | CS59: 0 | CT59: 0 | CU59: 0 | CV59: 0 | CW59: 0 | CX59: 0 | CY59: 0 | CZ59: 0 | DA59: 0 | DB59: 0 | DC59: 0 | DD59: 0 | DE59: 0 | DF59: 0 | DG59: 0 | DH59: 0 | DI59: =IF('Asset data'!$F59=0,0,AY59*'Asset data'!$F59/1000) -> 0 | DJ59: =IF('Asset data'!$F59=0,0,AZ59*'Asset data'!$F59/1000) -> 0 | DK59: =IF('Asset data'!$F59=0,0,BA59*'Asset data'!$F59/1000) -> 0 | DL59: =IF('Asset data'!$F59=0,0,BB59*'Asset data'!$F59/1000) -> 0 | DM59: =IF('Asset data'!$F59=0,0,BC59*'Asset data'!$F59/1000) -> 0 | DN59: =IF('Asset data'!$F59=0,0,BD59*'Asset data'!$F59/1000) -> 0 | DO59: =IF('Asset data'!$F59=0,0,BE59*'Asset data'!$F59/1000) -> 0 | DP59: =IF('Asset data'!$F59=0,0,BF59*'Asset data'!$F59/1000) -> 0 | DQ59: =IF('Asset data'!$F59=0,0,BG59*'Asset data'!$F59/1000) -> 0 | DR59: =IF('Asset data'!$F59=0,0,BH59*'Asset data'!$F59/1000) -> 0 | DS59: =IF('Asset data'!$F59=0,0,BI59*'Asset data'!$F59/1000) -> 0 | DT59: =IF('Asset data'!$F59=0,0,BJ59*'Asset data'!$F59/1000) -> 0 | DU59: =IF('Asset data'!$F59=0,0,BK59*'Asset data'!$F59/1000) -> 0 | DV59: =IF('Asset data'!$F59=0,0,BL59*'Asset data'!$F59/1000) -> 0 | DW59: =IF('Asset data'!$F59=0,0,BM59*'Asset data'!$F59/1000) -> 0 | DX59: =IF('Asset data'!$F59=0,0,BN59*'Asset data'!$F59/1000) -> 0 | DY59: =IF('Asset data'!$F59=0,0,BO59*'Asset data'!$F59/1000) -> 0 | DZ59: =IF('Asset data'!$F59=0,0,BP59*'Asset data'!$F59/1000) -> 0 | EA59: =IF('Asset data'!$F59=0,0,BQ59*'Asset data'!$F59/1000) -> 0 | EB59: =IF('Asset data'!$F59=0,0,BR59*'Asset data'!$F59/1000) -> 0
A60: ='Asset data'!A60 -> 0 | B60: ='Asset data'!B60 -> 0 | C60: ='Asset data'!C60 -> 0 | D60: ='Asset data'!E60 -> 0 | E60: 0 | F60: ='Asset data'!I60 -> 0 | G60: 0 | H60: ='Asset data'!J60 -> 0 | I60: S | J60: =IF(A60=0,0,IF('Asset data'!$D$1=1,1,IF('Asset data'!$D$1=2,2,'Asset data'!K60))) -> 0 | K60: 0 | AX60: ='Utilisation profile summary'!H60 -> 0 | AY60: =Aug_calc('Asset data'!$M$5:$FG$5,'Asset data'!M60:FG60,'Asset data'!H60/100,'Asset data'!G60,'Asset data'!I60,'Asset data'!J60,J60,20) -> 0 | AZ60: 0 | BA60: 0 | BB60: 0 | BC60: 0 | BD60: 0 | BE60: 0 | BF60: 0 | BG60: 0 | BH60: 0 | BI60: 0 | BJ60: 0 | BK60: 0 | BL60: 0 | BM60: 0 | BN60: 0 | BO60: 0 | BP60: 0 | BQ60: 0 | BR60: 0 | BS60: 0 | BT60: 0 | BU60: 0 | BV60: 0 | BW60: 0 | BX60: 0 | BY60: 0 | BZ60: 0 | CA60: 0 | CB60: 0 | CC60: 0 | CD60: 0 | CE60: 0 | CF60: 0 | CG60: 0 | CH60: 0 | CI60: 0 | CJ60: 0 | CK60: 0 | CL60: 0 | CM60: 0 | CN60: 0 | CO60: 0 | CP60: 0 | CQ60: 0 | CR60: 0 | CS60: 0 | CT60: 0 | CU60: 0 | CV60: 0 | CW60: 0 | CX60: 0 | CY60: 0 | CZ60: 0 | DA60: 0 | DB60: 0 | DC60: 0 | DD60: 0 | DE60: 0 | DF60: 0 | DG60: 0 | DH60: 0 | DI60: =IF('Asset data'!$F60=0,0,AY60*'Asset data'!$F60/1000) -> 0 | DJ60: =IF('Asset data'!$F60=0,0,AZ60*'Asset data'!$F60/1000) -> 0 | DK60: =IF('Asset data'!$F60=0,0,BA60*'Asset data'!$F60/1000) -> 0 | DL60: =IF('Asset data'!$F60=0,0,BB60*'Asset data'!$F60/1000) -> 0 | DM60: =IF('Asset data'!$F60=0,0,BC60*'Asset data'!$F60/1000) -> 0 | DN60: =IF('Asset data'!$F60=0,0,BD60*'Asset data'!$F60/1000) -> 0 | DO60: =IF('Asset data'!$F60=0,0,BE60*'Asset data'!$F60/1000) -> 0 | DP60: =IF('Asset data'!$F60=0,0,BF60*'Asset data'!$F60/1000) -> 0 | DQ60: =IF('Asset data'!$F60=0,0,BG60*'Asset data'!$F60/1000) -> 0 | DR60: =IF('Asset data'!$F60=0,0,BH60*'Asset data'!$F60/1000) -> 0 | DS60: =IF('Asset data'!$F60=0,0,BI60*'Asset data'!$F60/1000) -> 0 | DT60: =IF('Asset data'!$F60=0,0,BJ60*'Asset data'!$F60/1000) -> 0 | DU60: =IF('Asset data'!$F60=0,0,BK60*'Asset data'!$F60/1000) -> 0 | DV60: =IF('Asset data'!$F60=0,0,BL60*'Asset data'!$F60/1000) -> 0 | DW60: =IF('Asset data'!$F60=0,0,BM60*'Asset data'!$F60/1000) -> 0 | DX60: =IF('Asset data'!$F60=0,0,BN60*'Asset data'!$F60/1000) -> 0 | DY60: =IF('Asset data'!$F60=0,0,BO60*'Asset data'!$F60/1000) -> 0 | DZ60: =IF('Asset data'!$F60=0,0,BP60*'Asset data'!$F60/1000) -> 0 | EA60: =IF('Asset data'!$F60=0,0,BQ60*'Asset data'!$F60/1000) -> 0 | EB60: =IF('Asset data'!$F60=0,0,BR60*'Asset data'!$F60/1000) -> 0
A61: ='Asset data'!A61 -> 0 | B61: ='Asset data'!B61 -> 0 | C61: ='Asset data'!C61 -> 0 | D61: ='Asset data'!E61 -> 0 | E61: 0 | F61: ='Asset data'!I61 -> 0 | G61: 0 | H61: ='Asset data'!J61 -> 0 | I61: S | J61: =IF(A61=0,0,IF('Asset data'!$D$1=1,1,IF('Asset data'!$D$1=2,2,'Asset data'!K61))) -> 0 | K61: 0 | AX61: ='Utilisation profile summary'!H61 -> 0 | AY61: =Aug_calc('Asset data'!$M$5:$FG$5,'Asset data'!M61:FG61,'Asset data'!H61/100,'Asset data'!G61,'Asset data'!I61,'Asset data'!J61,J61,20) -> 0 | AZ61: 0 | BA61: 0 | BB61: 0 | BC61: 0 | BD61: 0 | BE61: 0 | BF61: 0 | BG61: 0 | BH61: 0 | BI61: 0 | BJ61: 0 | BK61: 0 | BL61: 0 | BM61: 0 | BN61: 0 | BO61: 0 | BP61: 0 | BQ61: 0 | BR61: 0 | BS61: 0 | BT61: 0 | BU61: 0 | BV61: 0 | BW61: 0 | BX61: 0 | BY61: 0 | BZ61: 0 | CA61: 0 | CB61: 0 | CC61: 0 | CD61: 0 | CE61: 0 | CF61: 0 | CG61: 0 | CH61: 0 | CI61: 0 | CJ61: 0 | CK61: 0 | CL61: 0 | CM61: 0 | CN61: 0 | CO61: 0 | CP61: 0 | CQ61: 0 | CR61: 0 | CS61: 0 | CT61: 0 | CU61: 0 | CV61: 0 | CW61: 0 | CX61: 0 | CY61: 0 | CZ61: 0 | DA61: 0 | DB61: 0 | DC61: 0 | DD61: 0 | DE61: 0 | DF61: 0 | DG61: 0 | DH61: 0 | DI61: =IF('Asset data'!$F61=0,0,AY61*'Asset data'!$F61/1000) -> 0 | DJ61: =IF('Asset data'!$F61=0,0,AZ61*'Asset data'!$F61/1000) -> 0 | DK61: =IF('Asset data'!$F61=0,0,BA61*'Asset data'!$F61/1000) -> 0 | DL61: =IF('Asset data'!$F61=0,0,BB61*'Asset data'!$F61/1000) -> 0 | DM61: =IF('Asset data'!$F61=0,0,BC61*'Asset data'!$F61/1000) -> 0 | DN61: =IF('Asset data'!$F61=0,0,BD61*'Asset data'!$F61/1000) -> 0 | DO61: =IF('Asset data'!$F61=0,0,BE61*'Asset data'!$F61/1000) -> 0 | DP61: =IF('Asset data'!$F61=0,0,BF61*'Asset data'!$F61/1000) -> 0 | DQ61: =IF('Asset data'!$F61=0,0,BG61*'Asset data'!$F61/1000) -> 0 | DR61: =IF('Asset data'!$F61=0,0,BH61*'Asset data'!$F61/1000) -> 0 | DS61: =IF('Asset data'!$F61=0,0,BI61*'Asset data'!$F61/1000) -> 0 | DT61: =IF('Asset data'!$F61=0,0,BJ61*'Asset data'!$F61/1000) -> 0 | DU61: =IF('Asset data'!$F61=0,0,BK61*'Asset data'!$F61/1000) -> 0 | DV61: =IF('Asset data'!$F61=0,0,BL61*'Asset data'!$F61/1000) -> 0 | DW61: =IF('Asset data'!$F61=0,0,BM61*'Asset data'!$F61/1000) -> 0 | DX61: =IF('Asset data'!$F61=0,0,BN61*'Asset data'!$F61/1000) -> 0 | DY61: =IF('Asset data'!$F61=0,0,BO61*'Asset data'!$F61/1000) -> 0 | DZ61: =IF('Asset data'!$F61=0,0,BP61*'Asset data'!$F61/1000) -> 0 | EA61: =IF('Asset data'!$F61=0,0,BQ61*'Asset data'!$F61/1000) -> 0 | EB61: =IF('Asset data'!$F61=0,0,BR61*'Asset data'!$F61/1000) -> 0
G206: =F206+VLOOKUP(A206,IDtable,5) -> 

Sheet Tables
A1: ID | B1: Asset cat
A2: 1 | B2: Subtransmission Lines
A3: 2 | B3: HV Feeders
A4: 3 | B4: Zone Substation
A5: 4 | B5: Distribution Substations and LV Feeders
A6: 5
A7: 6
A8: 7
A9: 8
A10: 9
A11: 10
A12: 11
A13: 12
A17: Now | B17: 2014 | C17: latest utilisation profile data (the model assumes the first year of the forecast is the subsequent year)

Sheet Utilisation profile (Inst)
A1: Asset calcs
F3: Installation date
E4: St life | F4: Quantity
A5: ID | B5: ID | C5: ID | D5: EDB ID | F5: 0 | G5: =F5+1 -> 1 | H5: =G5+1 -> 2 | I5: 3 | J5: 4 | K5: 5 | L5: 6 | M5: 7 | N5: 8 | O5: 9 | P5: 10 | Q5: 11 | R5: 12 | S5: 13 | T5: 14 | U5: 15 | V5: 16 | W5: 17 | X5: 18 | Y5: 19 | Z5: 20 | AA5: 21 | AB5: 22 | AC5: 23 | AD5: 24 | AE5: 25 | AF5: 26 | AG5: 27 | AH5: 28 | AI5: 29 | AJ5: 30 | AK5: 31 | AL5: 32 | AM5: 33 | AN5: 34 | AO5: 35 | AP5: 36 | AQ5: 37 | AR5: 38 | AS5: 39 | AT5: 40 | AU5: 41 | AV5: 42 | AW5: 43 | AX5: 44 | AY5: 45 | AZ5: 46 | BA5: 47 | BB5: 48 | BC5: 49 | BD5: 50 | BE5: 51 | BF5: 52 | BG5: 53 | BH5: 54 | BI5: 55 | BJ5: 56 | BK5: 57 | BL5: 58 | BM5: 59 | BN5: 60 | BO5: 61 | BP5: 62 | BQ5: 63 | BR5: 64 | BS5: 65 | BT5: =BS5+1 -> 66 | BU5: 67 | BV5: 68 | BW5: 69 | BX5: 70 | BY5: 71 | BZ5: 72 | CA5: 73 | CB5: 74 | CC5: 75 | CD5: 76 | CE5: 77 | CF5: 78 | CG5: 79 | CH5: 80 | CI5: 81 | CJ5: 82 | CK5: 83 | CL5: 84 | CM5: 85 | CN5: 86 | CO5: 87 | CP5: 88 | CQ5: 89 | CR5: =CQ5+1 -> 90 | CS5: 91 | CT5: 92 | CU5: 93 | CV5: 94 | CW5: 95 | CX5: 96 | CY5: 97 | CZ5: 98 | DA5: 99 | DB5: 100 | DC5: 101 | DD5: 102 | DE5: 103 | DF5: 104 | DG5: 105 | DH5: 106 | DI5: 107 | DJ5: 108 | DK5: 109 | DL5: 110 | DM5: 111 | DN5: 112 | DO5: 113 | DP5: 114 | DQ5: 115 | DR5: 116 | DS5: 117 | DT5: 118 | DU5: 119 | DV5: 120 | DW5: 121 | DX5: =DW5+1 -> 122 | DY5: 123 | DZ5: 124 | EA5: 125 | EB5: 126 | EC5: 127 | ED5: 128 | EE5: 129 | EF5: 130 | EG5: 131 | EH5: 132 | EI5: 133 | EJ5: 134 | EK5: 135 | EL5: 136 | EM5: 137 | EN5: 138 | EO5: 139 | EP5: 140 | EQ5: 141 | ER5: 142 | ES5: 143 | ET5: 144 | EU5: 145 | EV5: 146 | EW5: 147 | EX5: 148 | EY5: 149 | EZ5: 150 | FA5: 151
A6: 1 | D6: =VLOOKUP(A6,IDtable,2) -> Subtransmission Lines | E6: =0.5*SUM(G6:K6)/5 -> 8.573651497 | F6: =SUMIF($A$19:$A$205,$A6,F$19:F$205) -> 0 | G6: =SUMIF($A$19:$A$205,$A6,G$19:G$205) -> 0 | H6: 0 | I6: 0 | J6: 0 | K6: 85.73651497 | L6: 0 | M6: 0 | N6: 0 | O6: 0 | P6: 0 | Q6: 0 | R6: 0 | S6: 0 | T6: 0 | U6: 0 | V6: 0 | W6: 0 | X6: 117.7448139 | Y6: 104.5985483 | Z6: 0 | AA6: 109.7427392 | AB6: 0 | AC6: 0 | AD6: 0 | AE6: 174.9024905 | AF6: 104.0269715 | AG6: 0 | AH6: 119.4595442 | AI6: 104.0269715 | AJ6: 38.29564336 | AK6: 0 | AL6: 0 | AM6: 0 | AN6: 294.3620348 | AO6: 340.0881761 | AP6: 104.5985483 | AQ6: 0 | AR6: 0 | AS6: 281.2157692 | AT6: 65.15975138 | AU6: 0 | AV6: 32.57987569 | AW6: 135.4636937 | AX6: 97.1680503 | AY6: 208.6255198 | AZ6: 104.0269715 | BA6: 0 | BB6: 0 | BC6: 0 | BD6: 0 | BE6: 0 | BF6: 238.3475117 | BG6: 80.02074731 | BH6: 0 | BI6: 0 | BJ6: 123.4605816 | BK6: 246.3495864 | BL6: 31.43672216 | BM6: 0 | BN6: 0 | BO6: 0 | BP6: 160.0414946 | BQ6: 40.01037365 | BR6: 64.01659785 | BS6: =SUMIF($A$19:$A$205,$A6,BS$19:BS$205) -> 117.1732371 | BT6: 239.4906652 | BU6: 270.9273874 | BV6: 104.0269715 | BW6: 289.2178438 | BX6: 0 | BY6: 0 | BZ6: 62.87344431 | CA6: 121.7458513 | CB6: 246.3495864 | CC6: 92.59543617 | CD6: 121.7458513 | CE6: 415.5363092 | CF6: 206.3392127 | CG6: 135.4636937 | CH6: 273.7852711 | CI6: 437.2562264 | CJ6: 0 | CK6: 197.1939845 | CL6: 120.031121 | CM6: 116.6016604 | CN6: 49.72717869 | CO6: 282.3589227 | CP6: 0 | CQ6: 74.30497964 | CR6: 0 | CS6: 216.6275945 | CT6: =SUMIF($A$19:$A$205,$A6,CT$19:CT$205) -> 83.45020791 | CU6: 0 | CV6: 94.31016647 | CW6: 112.600623 | CX6: 38.86722012 | CY6: 0 | CZ6: 0 | DA6: 0 | DB6: 0 | DC6: 38.86722012 | DD6: 0 | DE6: 0 | DF6: 0 | DG6: 0 | DH6: 0 | DI6: 140.0363078 | DJ6: 0 | DK6: 0 | DL6: 0 | DM6: 0 | DN6: 0 | DO6: 0 | DP6: 0 | DQ6: 0 | DR6: 0 | DS6: 0 | DT6: 26.29253126 | DU6: 78.87759378 | DV6: 0 | DW6: 0 | DX6: 0 | DY6: 0 | DZ6: 0 | EA6: 0 | EB6: 0 | EC6: 0 | ED6: 0 | EE6: 64.01659785 | EF6: 0 | EG6: 0 | EH6: 0 | EI6: 0 | EJ6: 0 | EK6: =SUMIF($A$19:$A$205,$A6,EK$19:EK$205) -> 78.87759378 | EL6: 0 | EM6: 20.00518683 | EN6: 78.87759378 | EO6: 78.87759378 | EP6: 0 | EQ6: 0 | ER6: 0 | ES6: 0 | ET6: 0 | EU6: 0 | EV6: 0 | EW6: 0 | EX6: 0 | EY6: 0 | EZ6: 0 | FA6: =SUMIF($A$19:$A$205,$A6,FA$19:FA$205) -> 106.3132786
A7: 2 | D7: HV Feeders | E7: =0.5*SUM(G7:K7)/5 -> 13.21494144 | F7: 0 | G7: =SUMIF($A$19:$A$205,$A7,G$19:G$205) -> 49.81118315 | H7: 0 | I7: 40.08311979 | J7: 19.35047162 | K7: 22.90463988 | L7: 0 | M7: 48.96854043 | N7: 0 | O7: 9.162548772 | P7: 0 | Q7: 26.93339006 | R7: 16.14704365 | S7: 15.99375716 | T7: 19.04909478 | U7: 5.975575286 | V7: 19.23269217 | W7: 11.47241173 | X7: 14.86965618 | Y7: 16.38935756 | Z7: 52.84227206 | AA7: 30.37324296 | AB7: 0 | AC7: 59.6310452 | AD7: 17.17847991 | AE7: 14.41412682 | AF7: 26.590444 | AG7: 0 | AH7: 10.66250477 | AI7: 57.85205582 | AJ7: 28.55805372 | AK7: 9.162548772 | AL7: 0 | AM7: 68.16139543 | AN7: 34.75879561 | AO7: 80.82008876 | AP7: 26.6519318 | AQ7: 26.02440979 | AR7: 63.70223063 | AS7: 22.66734892 | AT7: 41.44277967 | AU7: 43.93346873 | AV7: 14.41412682 | AW7: 6.9715045 | AX7: 68.59232967 | AY7: 49.35651981 | AZ7: 34.15950603 | BA7: 52.85179834 | BB7: 81.62376033 | BC7: 14.41412682 | BD7: 37.33158388 | BE7: 39.56350455 | BF7: 73.2434057 | BG7: 76.72171014 | BH7: 46.23856855 | BI7: 115.2904979 | BJ7: 50.38639722 | BK7: 65.71054354 | BL7: 75.97554265 | BM7: 147.3209671 | BN7: 58.96074154 | BO7: 29.04995614 | BP7: 43.86938285 | BQ7: 65.15975138 | BR7: 93.79609379 | BS7: 111.8489129 | BT7: 47.1914563 | BU7: 83.25708424 | BV7: 68.24921041 | BW7: 177.4834195 | BX7: 133.9161063 | BY7: 81.64263969 | BZ7: 79.42145773 | CA7: 22.80591298 | CB7: 81.48675511 | CC7: 29.21415456 | CD7: 82.36611731 | CE7: 55.74259114 | CF7: 72.42605093 | CG7: 151.5147817 | CH7: 51.03262538 | CI7: 18.1259117 | CJ7: 56.76969727 | CK7: 19.74537921 | CL7: 79.94904041 | CM7: 58.8026919 | CN7: 46.79654872 | CO7: 62.99157018 | CP7: 50.15326318 | CQ7: 92.2794235 | CR7: 19.89000545 | CS7: 51.47221987 | CT7: 0 | CU7: 27.31097713 | CV7: 12.63704269 | CW7: 70.02594812 | CX7: 19.90334224 | CY7: 7.898151683 | CZ7: 19.50479735 | DA7: 23.85969269 | DB7: 9.937641508 | DC7: 0 | DD7: 19.15301783 | DE7: 20.33774058 | DF7: 11.25486615 | DG7: 19.50895427 | DH7: 7.898151683 | DI7: 6.121067554 | DJ7: 21.32500954 | DK7: 11.35359304 | DL7: 16.09248405 | DM7: 0 | DN7: 8.095605475 | DO7: 8.166619558 | DP7: 0 | DQ7: 0 | DR7: 27.2486233 | DS7: 11.45231994 | DT7: 0 | DU7: 0 | DV7: 0 | DW7: 0 | DX7: 0 | DY7: 0 | DZ7: 0 | EA7: 0 | EB7: 0 | EC7: 0 | ED7: 0 | EE7: 9.082874435 | EF7: 0 | EG7: 0 | EH7: 0 | EI7: 0 | EJ7: 0 | EK7: 0 | EL7: 0 | EM7: 0 | EN7: 0 | EO7: 0 | EP7: 0 | EQ7: 0 | ER7: 0 | ES7: 0 | ET7: 0 | EU7: 0 | EV7: 0 | EW7: 0 | EX7: 0 | EY7: 0 | EZ7: 0 | FA7: 6.040527191
A8: 3 | D8: Zone Substation | E8: 3 | F8: 0 | G8: =SUMIF($A$19:$A$205,$A8,G$19:G$205) -> 0 | H8: 0 | I8: 0 | J8: 0 | K8: 30 | L8: 0 | M8: 0 | N8: 36.9 | O8: 0 | P8: 0 | Q8: 0 | R8: 0 | S8: 0 | T8: 0 | U8: 0 | V8: 0 | W8: 0 | X8: 0 | Y8: 0 | Z8: 0 | AA8: 0 | AB8: 0 | AC8: 0 | AD8: 0 | AE8: 0 | AF8: 0 | AG8: 0 | AH8: 0 | AI8: 0 | AJ8: 49.5 | AK8: 0 | AL8: 36.6 | AM8: 42 | AN8: 15.2 | AO8: 43 | AP8: 0 | AQ8: 0 | AR8: 54.8 | AS8: 0 | AT8: 32.5 | AU8: 87.2 | AV8: 34.3 | AW8: 0 | AX8: 0 | AY8: 38.3 | AZ8: 47.2 | BA8: 0 | BB8: 0 | BC8: 0 | BD8: 0 | BE8: 0 | BF8: 0 | BG8: 0 | BH8: 93 | BI8: 80.4 | BJ8: 50.4 | BK8: 15 | BL8: 0 | BM8: 0 | BN8: 0 | BO8: 87.1 | BP8: 22.1 | BQ8: 65.1 | BR8: 0 | BS8: 0 | BT8: 96.4 | BU8: 37 | BV8: 18.5 | BW8: 0 | BX8: 0 | BY8: 89.7 | BZ8: 0 | CA8: 123.6 | CB8: 33.8 | CC8: 69 | CD8: 0 | CE8: 79.7 | CF8: 0 | CG8: 58.8 | CH8: 34.2 | CI8: 0 | CJ8: 0 | CK8: 58.2 | CL8: 0 | CM8: 77.9 | CN8: 0 | CO8: 36.4 | CP8: 32.7 | CQ8: 0 | CR8: 94.2 | CS8: 0 | CT8: 0 | CU8: 16.4 | CV8: 209.8 | CW8: 82.8 | CX8: 36.7 | CY8: 0 | CZ8: 0 | DA8: 39.7 | DB8: 0 | DC8: 0 | DD8: 0 | DE8: 0 | DF8: 19.1 | DG8: 0 | DH8: 0 | DI8: 0 | DJ8: 0 | DK8: 18.8 | DL8: 0 | DM8: 0 | DN8: 0 | DO8: 0 | DP8: 0 | DQ8: 0 | DR8: 0 | DS8: 0 | DT8: 0 | DU8: 0 | DV8: 0 | DW8: 34.8 | DX8: 0 | DY8: 0 | DZ8: 0 | EA8: 0 | EB8: 0 | EC8: 0 | ED8: 0 | EE8: 0 | EF8: 0 | EG8: 0 | EH8: 0 | EI8: 0 | EJ8: 0 | EK8: 0 | EL8: 0 | EM8: 0 | EN8: 0 | EO8: 0 | EP8: 0 | EQ8: 0 | ER8: 0 | ES8: 0 | ET8: 20.4 | EU8: 0 | EV8: 0 | EW8: 0 | EX8: 0 | EY8: 0 | EZ8: 0 | FA8: 0
A9: 4 | D9: Distribution Substations and LV Feeders | E9: 2.393702414 | F9: 4.787404829 | G9: 4.787404829 | H9: 4.787404829 | I9: 4.787404829 | J9: 4.787404829 | K9: 4.787404829 | L9: 4.787404829 | M9: 4.787404829 | N9: 4.787404829 | O9: 4.787404829 | P9: 4.787404829 | Q9: 4.787404829 | R9: 4.787404829 | S9: 4.787404829 | T9: 4.787404829 | U9: 4.787404829 | V9: 4.787404829 | W9: 4.787404829 | X9: 4.787404829 | Y9: 4.787404829 | Z9: 20.90793787 | AA9: 20.90793787 | AB9: 20.90793787 | AC9: 20.90793787 | AD9: 20.90793787 | AE9: 20.90793787 | AF9: 20.90793787 | AG9: 20.90793787 | AH9: 20.90793787 | AI9: 20.90793787 | AJ9: 20.90793787 | AK9: 20.90793787 | AL9: 20.90793787 | AM9: 20.90793787 | AN9: 20.90793787 | AO9: 20.90793787 | AP9: 20.90793787 | AQ9: 20.90793787 | AR9: 20.90793787 | AS9: 20.90793787 | AT9: 33.29037541 | AU9: 33.29037541 | AV9: 33.29037541 | AW9: 33.29037541 | AX9: 33.29037541 | AY9: 33.29037541 | AZ9: 33.29037541 | BA9: 33.29037541 | BB9: 33.29037541 | BC9: 33.29037541 | BD9: 33.29037541 | BE9: 33.29037541 | BF9: 33.29037541 | BG9: 33.29037541 | BH9: 33.29037541 | BI9: 33.29037541 | BJ9: 33.29037541 | BK9: 33.29037541 | BL9: 33.29037541 | BM9: 33.29037541 | BN9: 36.14021042 | BO9: 36.14021042 | BP9: 36.14021042 | BQ9: 36.14021042 | BR9: 36.14021042 | BS9: 36.14021042 | BT9: 36.14021042 | BU9: 36.14021042 | BV9: 36.14021042 | BW9: 36.14021042 | BX9: 36.14021042 | BY9: 36.14021042 | BZ9: 36.14021042 | CA9: 36.14021042 | CB9: 36.14021042 | CC9: 36.14021042 | CD9: 36.14021042 | CE9: 36.14021042 | CF9: 36.14021042 | CG9: 36.14021042 | CH9: 26.96858194 | CI9: 26.96858194 | CJ9: 26.96858194 | CK9: 26.96858194 | CL9: 26.96858194 | CM9: 26.96858194 | CN9: 26.96858194 | CO9: 26.96858194 | CP9: 26.96858194 | CQ9: 26.96858194 | CR9: 26.96858194 | CS9: 26.96858194 | CT9: 26.96858194 | CU9: 26.96858194 | CV9: 26.96858194 | CW9: 26.96858194 | CX9: 26.96858194 | CY9: 26.96858194 | CZ9: 26.96858194 | DA9: 26.96858194 | DB9: 15.3499534 | DC9: 15.3499534 | DD9: 15.3499534 | DE9: 15.3499534 | DF9: 15.3499534 | DG9: 15.3499534 | DH9: 15.3499534 | DI9: 15.3499534 | DJ9: 15.3499534 | DK9: 15.3499534 | DL9: 15.3499534 | DM9: 15.3499534 | DN9: 15.3499534 | DO9: 15.3499534 | DP9: 15.3499534 | DQ9: 15.3499534 | DR9: 15.3499534 | DS9: 15.3499534 | DT9: 15.3499534 | DU9: 15.3499534 | DV9: 7.40693791 | DW9: 7.40693791 | DX9: 7.40693791 | DY9: 7.40693791 | DZ9: 7.40693791 | EA9: 7.40693791 | EB9: 7.40693791 | EC9: 7.40693791 | ED9: 7.40693791 | EE9: 7.40693791 | EF9: 7.40693791 | EG9: 7.40693791 | EH9: 7.40693791 | EI9: 7.40693791 | EJ9: 7.40693791 | EK9: 7.40693791 | EL9: 7.40693791 | EM9: 7.40693791 | EN9: 7.40693791 | EO9: 7.40693791 | EP9: 4.278861442 | EQ9: 4.278861442 | ER9: 4.278861442 | ES9: 4.278861442 | ET9: 4.278861442 | EU9: 4.278861442 | EV9: 4.278861442 | EW9: 4.278861442 | EX9: 4.278861442 | EY9: 4.278861442 | EZ9: 4.278861442 | FA9: 119.8713735
A10: 5 | D10: 0 | E10: 0 | F10: 0 | G10: 0 | H10: 0 | I10: 0 | J10: 0 | K10: 0 | L10: 0 | M10: 0 | N10: 0 | O10: 0 | P10: 0 | Q10: 0 | R10: 0 | S10: 0 | T10: 0 | U10: 0 | V10: 0 | W10: 0 | X10: 0 | Y10: 0 | Z10: 0 | AA10: 0 | AB10: 0 | AC10: 0 | AD10: 0 | AE10: 0 | AF10: 0 | AG10: 0 | AH10: 0 | AI10: 0 | AJ10: 0 | AK10: 0 | AL10: 0 | AM10: 0 | AN10: 0 | AO10: 0 | AP10: 0 | AQ10: 0 | AR10: 0 | AS10: 0 | AT10: 0 | AU10: 0 | AV10: 0 | AW10: 0 | AX10: 0 | AY10: 0 | AZ10: 0 | BA10: 0 | BB10: 0 | BC10: 0 | BD10: 0 | BE10: 0 | BF10: 0 | BG10: 0 | BH10: 0 | BI10: 0 | BJ10: 0 | BK10: 0 | BL10: 0 | BM10: 0 | BN10: 0 | BO10: 0 | BP10: 0 | BQ10: 0 | BR10: 0 | BS10: 0 | BT10: 0 | BU10: 0 | BV10: 0 | BW10: 0 | BX10: 0 | BY10: 0 | BZ10: 0 | CA10: 0 | CB10: 0 | CC10: 0 | CD10: 0 | CE10: 0 | CF10: 0 | CG10: 0 | CH10: 0 | CI10: 0 | CJ10: 0 | CK10: 0 | CL10: 0 | CM10: 0 | CN10: 0 | CO10: 0 | CP10: 0 | CQ10: 0 | CR10: 0 | CS10: 0 | CT10: 0 | CU10: 0 | CV10: 0 | CW10: 0 | CX10: 0 | CY10: 0 | CZ10: 0 | DA10: 0 | DB10: 0 | DC10: 0 | DD10: 0 | DE10: 0 | DF10: 0 | DG10: 0 | DH10: 0 | DI10: 0 | DJ10: 0 | DK10: 0 | DL10: 0 | DM10: 0 | DN10: 0 | DO10: 0 | DP10: 0 | DQ10: 0 | DR10: 0 | DS10: 0 | DT10: 0 | DU10: 0 | DV10: 0 | DW10: 0 | DX10: 0 | DY10: 0 | DZ10: 0 | EA10: 0 | EB10: 0 | EC10: 0 | ED10: 0 | EE10: 0 | EF10: 0 | EG10: 0 | EH10: 0 | EI10: 0 | EJ10: 0 | EK10: 0 | EL10: 0 | EM10: 0 | EN10: 0 | EO10: 0 | EP10: 0 | EQ10: 0 | ER10: 0 | ES10: 0 | ET10: 0 | EU10: 0 | EV10: 0 | EW10: 0 | EX10: 0 | EY10: 0 | EZ10: 0 | FA10: 0
A11: 6 | D11: 0 | E11: 0 | F11: 0 | G11: 0 | H11: 0 | I11: 0 | J11: 0 | K11: 0 | L11: 0 | M11: 0 | N11: 0 | O11: 0 | P11: 0 | Q11: 0 | R11: 0 | S11: 0 | T11: 0 | U11: 0 | V11: 0 | W11: 0 | X11: 0 | Y11: 0 | Z11: 0 | AA11: 0 | AB11: 0 | AC11: 0 | AD11: 0 | AE11: 0 | AF11: 0 | AG11: 0 | AH11: 0 | AI11: 0 | AJ11: 0 | AK11: 0 | AL11: 0 | AM11: 0 | AN11: 0 | AO11: 0 | AP11: 0 | AQ11: 0 | AR11: 0 | AS11: 0 | AT11: 0 | AU11: 0 | AV11: 0 | AW11: 0 | AX11: 0 | AY11: 0 | AZ11: 0 | BA11: 0 | BB11: 0 | BC11: 0 | BD11: 0 | BE11: 0 | BF11: 0 | BG11: 0 | BH11: 0 | BI11: 0 | BJ11: 0 | BK11: 0 | BL11: 0 | BM11: 0 | BN11: 0 | BO11: 0 | BP11: 0 | BQ11: 0 | BR11: =SUMIF($A$19:$A$205,$A11,BR$19:BR$205) -> 0 | BS11: 0 | BT11: 0 | BU11: 0 | BV11: 0 | BW11: 0 | BX11: 0 | BY11: 0 | BZ11: 0 | CA11: 0 | CB11: 0 | CC11: 0 | CD11: 0 | CE11: 0 | CF11: 0 | CG11: 0 | CH11: 0 | CI11: 0 | CJ11: 0 | CK11: 0 | CL11: 0 | CM11: 0 | CN11: 0 | CO11: 0 | CP11: 0 | CQ11: 0 | CR11: 0 | CS11: 0 | CT11: 0 | CU11: 0 | CV11: 0 | CW11: 0 | CX11: 0 | CY11: 0 | CZ11: 0 | DA11: 0 | DB11: 0 | DC11: 0 | DD11: 0 | DE11: 0 | DF11: 0 | DG11: 0 | DH11: 0 | DI11: 0 | DJ11: 0 | DK11: 0 | DL11: 0 | DM11: 0 | DN11: 0 | DO11: 0 | DP11: 0 | DQ11: 0 | DR11: 0 | DS11: 0 | DT11: 0 | DU11: 0 | DV11: 0 | DW11: 0 | DX11: 0 | DY11: 0 | DZ11: =SUMIF($A$19:$A$205,$A11,DZ$19:DZ$205) -> 0 | EA11: 0 | EB11: 0 | EC11: 0 | ED11: 0 | EE11: 0 | EF11: 0 | EG11: 0 | EH11: 0 | EI11: 0 | EJ11: 0 | EK11: 0 | EL11: 0 | EM11: 0 | EN11: 0 | EO11: 0 | EP11: 0 | EQ11: 0 | ER11: 0 | ES11: 0 | ET11: 0 | EU11: 0 | EV11: 0 | EW11: 0 | EX11: 0 | EY11: 0 | EZ11: 0 | FA11: 0
A12: 7 | D12: 0 | E12: 0 | F12: 0 | G12: =SUMIF($A$19:$A$205,$A12,G$19:G$205) -> 0 | H12: 0 | I12: 0 | J12: 0 | K12: 0 | L12: 0 | M12: 0 | N12: 0 | O12: 0 | P12: 0 | Q12: 0 | R12: 0 | S12: 0 | T12: 0 | U12: 0 | V12: 0 | W12: 0 | X12: 0 | Y12: 0 | Z12: 0 | AA12: 0 | AB12: 0 | AC12: 0 | AD12: 0 | AE12: 0 | AF12: 0 | AG12: 0 | AH12: 0 | AI12: 0 | AJ12: 0 | AK12: 0 | AL12: 0 | AM12: 0 | AN12: 0 | AO12: 0 | AP12: 0 | AQ12: 0 | AR12: 0 | AS12: 0 | AT12: 0 | AU12: 0 | AV12: 0 | AW12: 0 | AX12: 0 | AY12: 0 | AZ12: 0 | BA12: 0 | BB12: 0 | BC12: 0 | BD12: 0 | BE12: 0 | BF12: 0 | BG12: 0 | BH12: 0 | BI12: 0 | BJ12: 0 | BK12: 0 | BL12: 0 | BM12: 0 | BN12: 0 | BO12: 0 | BP12: 0 | BQ12: 0 | BR12: 0 | BS12: 0 | BT12: 0 | BU12: 0 | BV12: 0 | BW12: 0 | BX12: 0 | BY12: 0 | BZ12: 0 | CA12: 0 | CB12: 0 | CC12: 0 | CD12: 0 | CE12: 0 | CF12: 0 | CG12: 0 | CH12: 0 | CI12: 0 | CJ12: 0 | CK12: 0 | CL12: 0 | CM12: 0 | CN12: 0 | CO12: 0 | CP12: 0 | CQ12: 0 | CR12: 0 | CS12: 0 | CT12: 0 | CU12: 0 | CV12: 0 | CW12: 0 | CX12: 0 | CY12: 0 | CZ12: 0 | DA12: 0 | DB12: 0 | DC12: 0 | DD12: 0 | DE12: 0 | DF12: 0 | DG12: 0 | DH12: 0 | DI12: 0 | DJ12: 0 | DK12: 0 | DL12: 0 | DM12: 0 | DN12: 0 | DO12: 0 | DP12: 0 | DQ12: 0 | DR12: 0 | DS12: 0 | DT12: 0 | DU12: 0 | DV12: 0 | DW12: 0 | DX12: 0 | DY12: 0 | DZ12: 0 | EA12: 0 | EB12: 0 | EC12: 0 | ED12: 0 | EE12: 0 | EF12: 0 | EG12: 0 | EH12: 0 | EI12: 0 | EJ12: 0 | EK12: 0 | EL12: 0 | EM12: 0 | EN12: 0 | EO12: 0 | EP12: 0 | EQ12: 0 | ER12: 0 | ES12: 0 | ET12: 0 | EU12: 0 | EV12: 0 | EW12: 0 | EX12: 0 | EY12: 0 | EZ12: 0 | FA12: 0
A13: 8 | D13: 0 | E13: 0 | F13: 0 | G13: 0 | H13: 0 | I13: 0 | J13: 0 | K13: 0 | L13: 0 | M13: 0 | N13: 0 | O13: 0 | P13: 0 | Q13: 0 | R13: 0 | S13: 0 | T13: 0 | U13: 0 | V13: 0 | W13: 0 | X13: 0 | Y13: 0 | Z13: 0 | AA13: 0 | AB13: 0 | AC13: 0 | AD13: 0 | AE13: 0 | AF13: 0 | AG13: 0 | AH13: 0 | AI13: 0 | AJ13: 0 | AK13: 0 | AL13: 0 | AM13: 0 | AN13: 0 | AO13: 0 | AP13: 0 | AQ13: 0 | AR13: 0 | AS13: 0 | AT13: 0 | AU13: 0 | AV13: 0 | AW13: 0 | AX13: 0 | AY13: 0 | AZ13: 0 | BA13: 0 | BB13: 0 | BC13: 0 | BD13: 0 | BE13: 0 | BF13: 0 | BG13: 0 | BH13: 0 | BI13: 0 | BJ13: 0 | BK13: 0 | BL13: 0 | BM13: 0 | BN13: 0 | BO13: 0 | BP13: 0 | BQ13: 0 | BR13: 0 | BS13: 0 | BT13: 0 | BU13: 0 | BV13: 0 | BW13: 0 | BX13: 0 | BY13: 0 | BZ13: 0 | CA13: 0 | CB13: 0 | CC13: 0 | CD13: 0 | CE13: 0 | CF13: 0 | CG13: 0 | CH13: 0 | CI13: 0 | CJ13: 0 | CK13: 0 | CL13: 0 | CM13: 0 | CN13: 0 | CO13: 0 | CP13: 0 | CQ13: 0 | CR13: 0 | CS13: 0 | CT13: 0 | CU13: 0 | CV13: 0 | CW13: 0 | CX13: 0 | CY13: 0 | CZ13: 0 | DA13: 0 | DB13: 0 | DC13: 0 | DD13: 0 | DE13: 0 | DF13: 0 | DG13: 0 | DH13: 0 | DI13: 0 | DJ13: 0 | DK13: 0 | DL13: 0 | DM13: 0 | DN13: 0 | DO13: 0 | DP13: 0 | DQ13: 0 | DR13: 0 | DS13: 0 | DT13: 0 | DU13: 0 | DV13: 0 | DW13: 0 | DX13: 0 | DY13: 0 | DZ13: 0 | EA13: 0 | EB13: 0 | EC13: 0 | ED13: 0 | EE13: 0 | EF13: 0 | EG13: 0 | EH13: 0 | EI13: 0 | EJ13: 0 | EK13: 0 | EL13: 0 | EM13: 0 | EN13: 0 | EO13: 0 | EP13: 0 | EQ13: 0 | ER13: 0 | ES13: 0 | ET13: 0 | EU13: 0 | EV13: 0 | EW13: 0 | EX13: 0 | EY13: 0 | EZ13: 0 | FA13: 0
A14: 9 | D14: =VLOOKUP(A14,IDtable,2) -> 0 | E14: 0 | F14: 0 | G14: =SUMIF($A$19:$A$205,$A14,G$19:G$205) -> 0 | H14: 0 | I14: 0 | J14: 0 | K14: 0 | L14: 0 | M14: 0 | N14: 0 | O14: 0 | P14: 0 | Q14: 0 | R14: 0 | S14: 0 | T14: 0 | U14: 0 | V14: =SUMIF($A$19:$A$205,$A14,V$19:V$205) -> 0 | W14: 0 | X14: 0 | Y14: 0 | Z14: 0 | AA14: 0 | AB14: 0 | AC14: 0 | AD14: 0 | AE14: 0 | AF14: 0 | AG14: 0 | AH14: 0 | AI14: 0 | AJ14: 0 | AK14: 0 | AL14: 0 | AM14: 0 | AN14: 0 | AO14: 0 | AP14: 0 | AQ14: 0 | AR14: 0 | AS14: 0 | AT14: 0 | AU14: 0 | AV14: 0 | AW14: 0 | AX14: 0 | AY14: 0 | AZ14: 0 | BA14: 0 | BB14: 0 | BC14: 0 | BD14: 0 | BE14: 0 | BF14: 0 | BG14: 0 | BH14: 0 | BI14: 0 | BJ14: 0 | BK14: 0 | BL14: 0 | BM14: 0 | BN14: 0 | BO14: 0 | BP14: 0 | BQ14: 0 | BR14: 0 | BS14: 0 | BT14: 0 | BU14: 0 | BV14: 0 | BW14: 0 | BX14: 0 | BY14: 0 | BZ14: 0 | CA14: 0 | CB14: 0 | CC14: 0 | CD14: 0 | CE14: 0 | CF14: 0 | CG14: 0 | CH14: 0 | CI14: 0 | CJ14: 0 | CK14: 0 | CL14: 0 | CM14: 0 | CN14: 0 | CO14: 0 | CP14: 0 | CQ14: 0 | CR14: 0 | CS14: 0 | CT14: 0 | CU14: 0 | CV14: 0 | CW14: 0 | CX14: 0 | CY14: 0 | CZ14: 0 | DA14: 0 | DB14: 0 | DC14: 0 | DD14: 0 | DE14: 0 | DF14: 0 | DG14: 0 | DH14: 0 | DI14: 0 | DJ14: 0 | DK14: 0 | DL14: 0 | DM14: 0 | DN14: 0 | DO14: 0 | DP14: 0 | DQ14: 0 | DR14: 0 | DS14: 0 | DT14: 0 | DU14: 0 | DV14: 0 | DW14: 0 | DX14: 0 | DY14: 0 | DZ14: 0 | EA14: 0 | EB14: 0 | EC14: 0 | ED14: 0 | EE14: 0 | EF14: 0 | EG14: 0 | EH14: 0 | EI14: 0 | EJ14: 0 | EK14: 0 | EL14: 0 | EM14: 0 | EN14: 0 | EO14: 0 | EP14: 0 | EQ14: 0 | ER14: 0 | ES14: 0 | ET14: 0 | EU14: 0 | EV14: 0 | EW14: 0 | EX14: 0 | EY14: 0 | EZ14: 0 | FA14: 0
A15: 10 | D15: =VLOOKUP(A15,IDtable,2) -> 0 | E15: 0 | F15: 0 | G15: 0 | H15: 0 | I15: 0 | J15: 0 | K15: 0 | L15: 0 | M15: 0 | N15: 0 | O15: 0 | P15: 0 | Q15: 0 | R15: 0 | S15: 0 | T15: 0 | U15: 0 | V15: 0 | W15: 0 | X15: 0 | Y15: 0 | Z15: 0 | AA15: 0 | AB15: 0 | AC15: 0 | AD15: 0 | AE15: 0 | AF15: 0 | AG15: 0 | AH15: 0 | AI15: 0 | AJ15: 0 | AK15: 0 | AL15: 0 | AM15: 0 | AN15: 0 | AO15: 0 | AP15: 0 | AQ15: 0 | AR15: 0 | AS15: 0 | AT15: 0 | AU15: 0 | AV15: 0 | AW15: 0 | AX15: 0 | AY15: 0 | AZ15: 0 | BA15: 0 | BB15: 0 | BC15: 0 | BD15: 0 | BE15: 0 | BF15: 0 | BG15: 0 | BH15: 0 | BI15: 0 | BJ15: 0 | BK15: 0 | BL15: 0 | BM15: 0 | BN15: 0 | BO15: 0 | BP15: 0 | BQ15: 0 | BR15: 0 | BS15: 0 | BT15: 0 | BU15: 0 | BV15: 0 | BW15: 0 | BX15: 0 | BY15: 0 | BZ15: 0 | CA15: 0 | CB15: 0 | CC15: 0 | CD15: 0 | CE15: 0 | CF15: 0 | CG15: 0 | CH15: 0 | CI15: 0 | CJ15: 0 | CK15: 0 | CL15: 0 | CM15: 0 | CN15: 0 | CO15: 0 | CP15: 0 | CQ15: 0 | CR15: 0 | CS15: 0 | CT15: 0 | CU15: 0 | CV15: 0 | CW15: 0 | CX15: 0 | CY15: 0 | CZ15: 0 | DA15: 0 | DB15: 0 | DC15: 0 | DD15: 0 | DE15: 0 | DF15: 0 | DG15: 0 | DH15: 0 | DI15: 0 | DJ15: 0 | DK15: 0 | DL15: 0 | DM15: 0 | DN15: 0 | DO15: 0 | DP15: 0 | DQ15: 0 | DR15: 0 | DS15: 0 | DT15: 0 | DU15: 0 | DV15: 0 | DW15: 0 | DX15: 0 | DY15: 0 | DZ15: 0 | EA15: 0 | EB15: 0 | EC15: 0 | ED15: 0 | EE15: 0 | EF15: 0 | EG15: 0 | EH15: 0 | EI15: 0 | EJ15: 0 | EK15: 0 | EL15: 0 | EM15: 0 | EN15: 0 | EO15: 0 | EP15: 0 | EQ15: 0 | ER15: 0 | ES15: 0 | ET15: 0 | EU15: 0 | EV15: 0 | EW15: 0 | EX15: 0 | EY15: 0 | EZ15: 0 | FA15: 0
A16: 11 | D16: =VLOOKUP(A16,IDtable,2) -> 0 | E16: 0 | F16: 0 | G16: 0 | H16: 0 | I16: 0 | J16: 0 | K16: 0 | L16: 0 | M16: 0 | N16: 0 | O16: 0 | P16: 0 | Q16: 0 | R16: 0 | S16: 0 | T16: 0 | U16: 0 | V16: 0 | W16: 0 | X16: 0 | Y16: 0 | Z16: 0 | AA16: 0 | AB16: 0 | AC16: 0 | AD16: 0 | AE16: 0 | AF16: 0 | AG16: 0 | AH16: 0 | AI16: 0 | AJ16: 0 | AK16: 0 | AL16: 0 | AM16: 0 | AN16: 0 | AO16: 0 | AP16: 0 | AQ16: 0 | AR16: 0 | AS16: 0 | AT16: 0 | AU16: 0 | AV16: 0 | AW16: 0 | AX16: 0 | AY16: 0 | AZ16: 0 | BA16: 0 | BB16: 0 | BC16: 0 | BD16: 0 | BE16: 0 | BF16: 0 | BG16: 0 | BH16: 0 | BI16: 0 | BJ16: 0 | BK16: 0 | BL16: 0 | BM16: 0 | BN16: 0 | BO16: 0 | BP16: 0 | BQ16: 0 | BR16: 0 | BS16: 0 | BT16: 0 | BU16: 0 | BV16: 0 | BW16: 0 | BX16: 0 | BY16: 0 | BZ16: 0 | CA16: 0 | CB16: 0 | CC16: 0 | CD16: 0 | CE16: 0 | CF16: 0 | CG16: 0 | CH16: 0 | CI16: 0 | CJ16: 0 | CK16: 0 | CL16: 0 | CM16: 0 | CN16: 0 | CO16: 0 | CP16: 0 | CQ16: 0 | CR16: 0 | CS16: 0 | CT16: 0 | CU16: 0 | CV16: 0 | CW16: 0 | CX16: 0 | CY16: 0 | CZ16: 0 | DA16: 0 | DB16: 0 | DC16: 0 | DD16: 0 | DE16: 0 | DF16: 0 | DG16: 0 | DH16: 0 | DI16: 0 | DJ16: 0 | DK16: 0 | DL16: 0 | DM16: 0 | DN16: 0 | DO16: 0 | DP16: 0 | DQ16: 0 | DR16: 0 | DS16: 0 | DT16: 0 | DU16: 0 | DV16: 0 | DW16: 0 | DX16: 0 | DY16: 0 | DZ16: 0 | EA16: 0 | EB16: 0 | EC16: 0 | ED16: 0 | EE16: 0 | EF16: 0 | EG16: 0 | EH16: 0 | EI16: 0 | EJ16: 0 | EK16: 0 | EL16: 0 | EM16: 0 | EN16: 0 | EO16: 0 | EP16: 0 | EQ16: 0 | ER16: 0 | ES16: 0 | ET16: 0 | EU16: 0 | EV16: 0 | EW16: 0 | EX16: 0 | EY16: 0 | EZ16: 0 | FA16: 0
A17: 12 | D17: =VLOOKUP(A17,IDtable,2) -> 0 | E17: 0 | F17: 0 | G17: 0 | H17: 0 | I17: 0 | J17: 0 | K17: 0 | L17: 0 | M17: 0 | N17: 0 | O17: 0 | P17: 0 | Q17: 0 | R17: 0 | S17: 0 | T17: 0 | U17: 0 | V17: 0 | W17: 0 | X17: 0 | Y17: 0 | Z17: 0 | AA17: 0 | AB17: 0 | AC17: 0 | AD17: 0 | AE17: 0 | AF17: 0 | AG17: 0 | AH17: 0 | AI17: 0 | AJ17: 0 | AK17: 0 | AL17: 0 | AM17: 0 | AN17: 0 | AO17: 0 | AP17: 0 | AQ17: 0 | AR17: 0 | AS17: 0 | AT17: 0 | AU17: 0 | AV17: 0 | AW17: 0 | AX17: 0 | AY17: 0 | AZ17: 0 | BA17: 0 | BB17: 0 | BC17: 0 | BD17: 0 | BE17: 0 | BF17: 0 | BG17: 0 | BH17: 0 | BI17: 0 | BJ17: 0 | BK17: 0 | BL17: 0 | BM17: 0 | BN17: 0 | BO17: 0 | BP17: 0 | BQ17: 0 | BR17: 0 | BS17: 0 | BT17: 0 | BU17: 0 | BV17: 0 | BW17: 0 | BX17: 0 | BY17: 0 | BZ17: 0 | CA17: 0 | CB17: 0 | CC17: 0 | CD17: 0 | CE17: 0 | CF17: 0 | CG17: 0 | CH17: 0 | CI17: 0 | CJ17: 0 | CK17: 0 | CL17: 0 | CM17: 0 | CN17: 0 | CO17: 0 | CP17: 0 | CQ17: 0 | CR17: 0 | CS17: 0 | CT17: 0 | CU17: 0 | CV17: 0 | CW17: 0 | CX17: 0 | CY17: 0 | CZ17: 0 | DA17: 0 | DB17: 0 | DC17: 0 | DD17: 0 | DE17: 0 | DF17: 0 | DG17: 0 | DH17: 0 | DI17: 0 | DJ17: 0 | DK17: =SUMIF($A$19:$A$205,$A17,DK$19:DK$205) -> 0 | DL17: 0 | DM17: 0 | DN17: 0 | DO17: 0 | DP17: 0 | DQ17: 0 | DR17: 0 | DS17: 0 | DT17: 0 | DU17: 0 | DV17: 0 | DW17: 0 | DX17: 0 | DY17: 0 | DZ17: 0 | EA17: 0 | EB17: 0 | EC17: 0 | ED17: 0 | EE17: 0 | EF17: 0 | EG17: 0 | EH17: 0 | EI17: 0 | EJ17: 0 | EK17: 0 | EL17: 0 | EM17: 0 | EN17: 0 | EO17: 0 | EP17: 0 | EQ17: 0 | ER17: 0 | ES17: 0 | ET17: 0 | EU17: 0 | EV17: 0 | EW17: 0 | EX17: 0 | EY17: 0 | EZ17: 0 | FA17: 0
D18: Total | F18: =SUM(F6:F17) -> 4.787404829 | G18: 54.59858798 | H18: 4.787404829 | I18: 44.87052462 | J18: 24.13787645 | K18: 143.4285597 | L18: 4.787404829 | M18: 53.75594526 | N18: 41.68740483 | O18: 13.9499536 | P18: 4.787404829 | Q18: 31.72079489 | R18: 20.93444848 | S18: 20.78116199 | T18: 23.83649961 | U18: 10.76298011 | V18: 24.020097 | W18: 16.25981656 | X18: 137.4018749 | Y18: 125.7753107 | Z18: 73.75020994 | AA18: 161.02392 | AB18: 20.90793787 | AC18: 80.53898308 | AD18: 38.08641778 | AE18: 210.2245552 | AF18: 151.5253534 | AG18: 20.90793787 | AH18: 151.0299868 | AI18: 182.7869652 | AJ18: 137.2616349 | AK18: 30.07048665 | AL18: 57.50793787 | AM18: 131.0693333 | AN18: 365.2287683 | AO18: 484.8162027 | AP18: 152.158418 | AQ18: 46.93234767 | AR18: 139.4101685 | AS18: 324.791056 | AT18: 172.3929065 | AU18: 164.4238441 | AV18: 114.5843779 | AW18: 175.7255736 | AX18: 199.0507554 | AY18: 329.572415 | AZ18: 218.6768529 | BA18: 86.14217375 | BB18: 114.9141357 | BC18: 47.70450223 | BD18: 70.62195929 | BE18: 72.85387996 | BF18: 344.8812928 | BG18: 190.0328329 | BH18: 172.528944 | BI18: 228.9808733 | BJ18: 257.5373542 | BK18: 360.3505053 | BL18: 140.7026402 | BM18: 180.6113425 | BN18: 95.10095196 | BO18: 152.2901666 | BP18: 262.1510879 | BQ18: 206.4103355 | BR18: =SUM(BR6:BR17) -> 193.9529021 | BS18: 265.1623605 | BT18: 419.2223319 | BU18: 427.3246821 | BV18: 226.9163923 | BW18: 502.8414737 | BX18: 170.0563167 | BY18: 207.4828501 | BZ18: 178.4351125 | CA18: 304.2919747 | CB18: 397.7765519 | CC18: 226.9498012 | CD18: 240.252179 | CE18: 587.1191108 | CF18: 314.9054741 | CG18: 381.9186858 | CH18: 385.9864784 | CI18: 482.3507201 | CJ18: 83.73827921 | CK18: 302.1079456 | CL18: 226.9487433 | CM18: 280.2729342 | CN18: 123.4923094 | CO18: 408.7190748 | CP18: 109.8218451 | CQ18: 193.5529851 | CR18: =SUM(CR6:CR17) -> 141.0585874 | CS18: 295.0683963 | CT18: 110.4187899 | CU18: 70.67955908 | CV18: 343.7157911 | CW18: 292.3951531 | CX18: 122.4391443 | CY18: 34.86673362 | CZ18: 46.47337929 | DA18: 90.52827464 | DB18: 25.28759491 | DC18: 54.21717352 | DD18: 34.50297123 | DE18: 35.68769398 | DF18: 45.70481955 | DG18: 34.85890767 | DH18: 23.24810508 | DI18: 161.5073287 | DJ18: 36.67496294 | DK18: 45.50354644 | DL18: 31.44243745 | DM18: 15.3499534 | DN18: 23.44555887 | DO18: 23.51657296 | DP18: 15.3499534 | DQ18: 15.3499534 | DR18: 42.5985767 | DS18: 26.80227334 | DT18: 41.64248466 | DU18: 94.22754718 | DV18: 7.40693791 | DW18: 42.20693791 | DX18: 7.40693791 | DY18: 7.40693791 | DZ18: 7.40693791 | EA18: 7.40693791 | EB18: 7.40693791 | EC18: 7.40693791 | ED18: 7.40693791 | EE18: 80.5064102 | EF18: 7.40693791 | EG18: 7.40693791 | EH18: 7.40693791 | EI18: 7.40693791 | EJ18: 7.40693791 | EK18: =SUM(EK6:EK17) -> 86.28453169 | EL18: 7.40693791 | EM18: 27.41212474 | EN18: 86.28453169 | EO18: 86.28453169 | EP18: 4.278861442 | EQ18: 4.278861442 | ER18: 4.278861442 | ES18: 4.278861442 | ET18: 24.67886144 | EU18: 4.278861442 | EV18: 4.278861442 | EW18: 4.278861442 | EX18: 4.278861442 | EY18: 4.278861442 | EZ18: 4.278861442 | FA18: 232.2251793
D20: EDB categories
A21: ='Asset data'!A21 -> 0 | B21: ='Asset data'!B21 -> 0 | C21: ='Asset data'!C21 -> 0 | D21: ='Asset data'!E21 -> 0 | E21: ='Asset data'!I21 -> 0 | F21: ='Asset data'!L21 -> 0 | G21: ='Asset data'!M21 -> 0 | H21: ='Asset data'!N21 -> 0 | I21: ='Asset data'!O21 -> 0 | J21: ='Asset data'!P21 -> 0 | K21: ='Asset data'!Q21 -> 0 | L21: ='Asset data'!R21 -> 0 | M21: ='Asset data'!S21 -> 0 | N21: ='Asset data'!T21 -> 0 | O21: ='Asset data'!U21 -> 0 | P21: ='Asset data'!V21 -> 0 | Q21: ='Asset data'!W21 -> 0 | R21: ='Asset data'!X21 -> 0 | S21: ='Asset data'!Y21 -> 0 | T21: ='Asset data'!Z21 -> 0 | U21: ='Asset data'!AA21 -> 0 | V21: ='Asset data'!AB21 -> 0 | W21: ='Asset data'!AC21 -> 0 | X21: ='Asset data'!AD21 -> 0 | Y21: ='Asset data'!AE21 -> 0 | Z21: ='Asset data'!AF21 -> 0 | AA21: ='Asset data'!AG21 -> 0 | AB21: ='Asset data'!AH21 -> 0 | AC21: ='Asset data'!AI21 -> 0 | AD21: ='Asset data'!AJ21 -> 0 | AE21: ='Asset data'!AK21 -> 0 | AF21: ='Asset data'!AL21 -> 0 | AG21: ='Asset data'!AM21 -> 0 | AH21: ='Asset data'!AN21 -> 0 | AI21: ='Asset data'!AO21 -> 0 | AJ21: ='Asset data'!AP21 -> 0 | AK21: ='Asset data'!AQ21 -> 0 | AL21: ='Asset data'!AR21 -> 0 | AM21: ='Asset data'!AS21 -> 0 | AN21: ='Asset data'!AT21 -> 0 | AO21: ='Asset data'!AU21 -> 0 | AP21: ='Asset data'!AV21 -> 0 | AQ21: ='Asset data'!AW21 -> 0 | AR21: ='Asset data'!AX21 -> 0 | AS21: ='Asset data'!AY21 -> 0 | AT21: ='Asset data'!AZ21 -> 0 | AU21: ='Asset data'!BA21 -> 0 | AV21: ='Asset data'!BB21 -> 0 | AW21: ='Asset data'!BC21 -> 0 | AX21: ='Asset data'!BD21 -> 0 | AY21: ='Asset data'!BE21 -> 0 | AZ21: ='Asset data'!BF21 -> 0 | BA21: ='Asset data'!BG21 -> 0 | BB21: ='Asset data'!BH21 -> 0 | BC21: ='Asset data'!BI21 -> 0 | BD21: ='Asset data'!BJ21 -> 0 | BE21: ='Asset data'!BK21 -> 0 | BF21: ='Asset data'!BL21 -> 0 | BG21: ='Asset data'!BM21 -> 0 | BH21: ='Asset data'!BN21 -> 0 | BI21: ='Asset data'!BO21 -> 0 | BJ21: ='Asset data'!BP21 -> 0 | BK21: ='Asset data'!BQ21 -> 0 | BL21: ='Asset data'!BR21 -> 0 | BM21: ='Asset data'!BS21 -> 0 | BN21: ='Asset data'!BT21 -> 0 | BO21: ='Asset data'!BU21 -> 0 | BP21: ='Asset data'!BV21 -> 0 | BQ21: ='Asset data'!BW21 -> 0 | BR21: ='Asset data'!BX21 -> 0 | BS21: ='Asset data'!BY21 -> 0 | BT21: ='Asset data'!BZ21 -> 0 | BU21: ='Asset data'!CA21 -> 0 | BV21: ='Asset data'!CB21 -> 0 | BW21: ='Asset data'!CC21 -> 0 | BX21: ='Asset data'!CD21 -> 0 | BY21: ='Asset data'!CE21 -> 0 | BZ21: ='Asset data'!CF21 -> 0 | CA21: ='Asset data'!CG21 -> 0 | CB21: ='Asset data'!CH21 -> 0 | CC21: ='Asset data'!CI21 -> 0 | CD21: ='Asset data'!CJ21 -> 0 | CE21: ='Asset data'!CK21 -> 0 | CF21: ='Asset data'!CL21 -> 0 | CG21: ='Asset data'!CM21 -> 0 | CH21: ='Asset data'!CN21 -> 0 | CI21: ='Asset data'!CO21 -> 0 | CJ21: ='Asset data'!CP21 -> 0 | CK21: ='Asset data'!CQ21 -> 0 | CL21: ='Asset data'!CR21 -> 0 | CM21: ='Asset data'!CS21 -> 0 | CN21: ='Asset data'!CT21 -> 0 | CO21: ='Asset data'!CU21 -> 0 | CP21: ='Asset data'!CV21 -> 0 | CQ21: ='Asset data'!CW21 -> 0 | CR21: ='Asset data'!CX21 -> 0 | CS21: ='Asset data'!CY21 -> 0 | CT21: ='Asset data'!CZ21 -> 0 | CU21: ='Asset data'!DA21 -> 0 | CV21: ='Asset data'!DB21 -> 0 | CW21: ='Asset data'!DC21 -> 0 | CX21: ='Asset data'!DD21 -> 0 | CY21: ='Asset data'!DE21 -> 0 | CZ21: ='Asset data'!DF21 -> 0 | DA21: ='Asset data'!DG21 -> 0 | DB21: ='Asset data'!DH21 -> 0 | DC21: ='Asset data'!DI21 -> 0 | DD21: ='Asset data'!DJ21 -> 0 | DE21: ='Asset data'!DK21 -> 0 | DF21: ='Asset data'!DL21 -> 0 | DG21: ='Asset data'!DM21 -> 0 | DH21: ='Asset data'!DN21 -> 0 | DI21: ='Asset data'!DO21 -> 0 | DJ21: ='Asset data'!DP21 -> 0 | DK21: ='Asset data'!DQ21 -> 0 | DL21: ='Asset data'!DR21 -> 0 | DM21: ='Asset data'!DS21 -> 0 | DN21: ='Asset data'!DT21 -> 0 | DO21: ='Asset data'!DU21 -> 0 | DP21: ='Asset data'!DV21 -> 0 | DQ21: ='Asset data'!DW21 -> 0 | DR21: ='Asset data'!DX21 -> 0 | DS21: ='Asset data'!DY21 -> 0 | DT21: ='Asset data'!DZ21 -> 0 | DU21: ='Asset data'!EA21 -> 0 | DV21: ='Asset data'!EB21 -> 0 | DW21: ='Asset data'!EC21 -> 0 | DX21: ='Asset data'!ED21 -> 0 | DY21: ='Asset data'!EE21 -> 0 | DZ21: ='Asset data'!EF21 -> 0 | EA21: ='Asset data'!EG21 -> 0 | EB21: ='Asset data'!EH21 -> 0 | EC21: ='Asset data'!EI21 -> 0 | ED21: ='Asset data'!EJ21 -> 0 | EE21: ='Asset data'!EK21 -> 0 | EF21: ='Asset data'!EL21 -> 0 | EG21: ='Asset data'!EM21 -> 0 | EH21: ='Asset data'!EN21 -> 0 | EI21: ='Asset data'!EO21 -> 0 | EJ21: ='Asset data'!EP21 -> 0 | EK21: ='Asset data'!EQ21 -> 0 | EL21: ='Asset data'!ER21 -> 0 | EM21: ='Asset data'!ES21 -> 0 | EN21: ='Asset data'!ET21 -> 0 | EO21: ='Asset data'!EU21 -> 0 | EP21: ='Asset data'!EV21 -> 0 | EQ21: ='Asset data'!EW21 -> 0 | ER21: ='Asset data'!EX21 -> 0 | ES21: ='Asset data'!EY21 -> 0 | ET21: ='Asset data'!EZ21 -> 0 | EU21: ='Asset data'!FA21 -> 0 | EV21: ='Asset data'!FB21 -> 0 | EW21: ='Asset data'!FC21 -> 0 | EX21: ='Asset data'!FD21 -> 0 | EY21: ='Asset data'!FE21 -> 0 | EZ21: ='Asset data'!FF21 -> 0 | FA21: ='Asset data'!FG21 -> 0
A22: ='Asset data'!A22 -> 1 | B22: ='Asset data'!B22 -> 0 | C22: ='Asset data'!C22 -> 0 | D22: ='Asset data'!E22 -> Subtrans <0% Growth | E22: ='Asset data'!I22 -> 113.4064225 | F22: ='Asset data'!L22 -> 0 | G22: ='Asset data'!M22 -> 0 | H22: ='Asset data'!N22 -> 0 | I22: ='Asset data'!O22 -> 0 | J22: ='Asset data'!P22 -> 0 | K22: ='Asset data'!Q22 -> 85.73651497 | L22: ='Asset data'!R22 -> 0 | M22: ='Asset data'!S22 -> 0 | N22: ='Asset data'!T22 -> 0 | O22: ='Asset data'!U22 -> 0 | P22: ='Asset data'!V22 -> 0 | Q22: ='Asset data'!W22 -> 0 | R22: ='Asset data'!X22 -> 0 | S22: ='Asset data'!Y22 -> 0 | T22: ='Asset data'!Z22 -> 0 | U22: ='Asset data'!AA22 -> 0 | V22: ='Asset data'!AB22 -> 0 | W22: ='Asset data'!AC22 -> 0 | X22: ='Asset data'!AD22 -> 0 | Y22: ='Asset data'!AE22 -> 0 | Z22: ='Asset data'!AF22 -> 0 | AA22: ='Asset data'!AG22 -> 0 | AB22: ='Asset data'!AH22 -> 0 | AC22: ='Asset data'!AI22 -> 0 | AD22: ='Asset data'!AJ22 -> 0 | AE22: ='Asset data'!AK22 -> 0 | AF22: ='Asset data'!AL22 -> 104.0269715 | AG22: ='Asset data'!AM22 -> 0 | AH22: ='Asset data'!AN22 -> 119.4595442 | AI22: ='Asset data'!AO22 -> 0 | AJ22: ='Asset data'!AP22 -> 0 | AK22: ='Asset data'!AQ22 -> 0 | AL22: ='Asset data'!AR22 -> 0 | AM22: ='Asset data'!AS22 -> 0 | AN22: ='Asset data'!AT22 -> 0 | AO22: ='Asset data'!AU22 -> 102.883818 | AP22: ='Asset data'!AV22 -> 0 | AQ22: ='Asset data'!AW22 -> 0 | AR22: ='Asset data'!AX22 -> 0 | AS22: ='Asset data'!AY22 -> 164.6141088 | AT22: ='Asset data'!AZ22 -> 0 | AU22: ='Asset data'!BA22 -> 0 | AV22: ='Asset data'!BB22 -> 0 | AW22: ='Asset data'!BC22 -> 135.4636937 | AX22: ='Asset data'!BD22 -> 0 | AY22: ='Asset data'!BE22 -> 104.5985483 | AZ22: ='Asset data'!BF22 -> 0 | BA22: ='Asset data'!BG22 -> 0 | BB22: ='Asset data'!BH22 -> 0 | BC22: ='Asset data'!BI22 -> 0 | BD22: ='Asset data'!BJ22 -> 0 | BE22: ='Asset data'!BK22 -> 0 | BF22: ='Asset data'!BL22 -> 102.883818 | BG22: ='Asset data'!BM22 -> 31.43672216 | BH22: ='Asset data'!BN22 -> 0 | BI22: ='Asset data'!BO22 -> 0 | BJ22: ='Asset data'!BP22 -> 74.30497964 | BK22: ='Asset data'!BQ22 -> 29.72199186 | BL22: ='Asset data'!BR22 -> 0 | BM22: ='Asset data'!BS22 -> 0 | BN22: ='Asset data'!BT22 -> 0 | BO22: ='Asset data'!BU22 -> 0 | BP22: ='Asset data'!BV22 -> 0 | BQ22: ='Asset data'!BW22 -> 0 | BR22: ='Asset data'!BX22 -> 0 | BS22: ='Asset data'!BY22 -> 0 | BT22: ='Asset data'!BZ22 -> 0 | BU22: ='Asset data'!CA22 -> 0 | BV22: ='Asset data'!CB22 -> 0 | BW22: ='Asset data'!CC22 -> 0 | BX22: ='Asset data'!CD22 -> 0 | BY22: ='Asset data'!CE22 -> 0 | BZ22: ='Asset data'!CF22 -> 0 | CA22: ='Asset data'!CG22 -> 0 | CB22: ='Asset data'!CH22 -> 98.31120384 | CC22: ='Asset data'!CI22 -> 35.43775952 | CD22: ='Asset data'!CJ22 -> 17.71887976 | CE22: ='Asset data'!CK22 -> 104.5985483 | CF22: ='Asset data'!CL22 -> 91.45228264 | CG22: ='Asset data'!CM22 -> 0 | CH22: ='Asset data'!CN22 -> 101.7406644 | CI22: ='Asset data'!CO22 -> 0 | CJ22: ='Asset data'!CP22 -> 0 | CK22: ='Asset data'!CQ22 -> 0 | CL22: ='Asset data'!CR22 -> 0 | CM22: ='Asset data'!CS22 -> 0 | CN22: ='Asset data'!CT22 -> 0 | CO22: ='Asset data'!CU22 -> 0 | CP22: ='Asset data'!CV22 -> 0 | CQ22: ='Asset data'!CW22 -> 0 | CR22: ='Asset data'!CX22 -> 0 | CS22: ='Asset data'!CY22 -> 0 | CT22: ='Asset data'!CZ22 -> 0 | CU22: ='Asset data'!DA22 -> 0 | CV22: ='Asset data'!DB22 -> 0 | CW22: ='Asset data'!DC22 -> 0 | CX22: ='Asset data'!DD22 -> 0 | CY22: ='Asset data'!DE22 -> 0 | CZ22: ='Asset data'!DF22 -> 0 | DA22: ='Asset data'!DG22 -> 0 | DB22: ='Asset data'!DH22 -> 0 | DC22: ='Asset data'!DI22 -> 0 | DD22: ='Asset data'!DJ22 -> 0 | DE22: ='Asset data'!DK22 -> 0 | DF22: ='Asset data'!DL22 -> 0 | DG22: ='Asset data'!DM22 -> 0 | DH22: ='Asset data'!DN22 -> 0 | DI22: ='Asset data'!DO22 -> 0 | DJ22: ='Asset data'!DP22 -> 0 | DK22: ='Asset data'!DQ22 -> 0 | DL22: ='Asset data'!DR22 -> 0 | DM22: ='Asset data'!DS22 -> 0 | DN22: ='Asset data'!DT22 -> 0 | DO22: ='Asset data'!DU22 -> 0 | DP22: ='Asset data'!DV22 -> 0 | DQ22: ='Asset data'!DW22 -> 0 | DR22: ='Asset data'!DX22 -> 0 | DS22: ='Asset data'!DY22 -> 0 | DT22: ='Asset data'!DZ22 -> 0 | DU22: ='Asset data'!EA22 -> 0 | DV22: ='Asset data'!EB22 -> 0 | DW22: ='Asset data'!EC22 -> 0 | DX22: ='Asset data'!ED22 -> 0 | DY22: ='Asset data'!EE22 -> 0 | DZ22: ='Asset data'!EF22 -> 0 | EA22: ='Asset data'!EG22 -> 0 | EB22: ='Asset data'!EH22 -> 0 | EC22: ='Asset data'!EI22 -> 0 | ED22: ='Asset data'!EJ22 -> 0 | EE22: ='Asset data'!EK22 -> 0 | EF22: ='Asset data'!EL22 -> 0 | EG22: ='Asset data'!EM22 -> 0 | EH22: ='Asset data'!EN22 -> 0 | EI22: ='Asset data'!EO22 -> 0 | EJ22: ='Asset data'!EP22 -> 0 | EK22: ='Asset data'!EQ22 -> 0 | EL22: ='Asset data'!ER22 -> 0 | EM22: ='Asset data'!ES22 -> 0 | EN22: ='Asset data'!ET22 -> 0 | EO22: ='Asset data'!EU22 -> 0 | EP22: ='Asset data'!EV22 -> 0 | EQ22: ='Asset data'!EW22 -> 0 | ER22: ='Asset data'!EX22 -> 0 | ES22: ='Asset data'!EY22 -> 0 | ET22: ='Asset data'!EZ22 -> 0 | EU22: ='Asset data'!FA22 -> 0 | EV22: ='Asset data'!FB22 -> 0 | EW22: ='Asset data'!FC22 -> 0 | EX22: ='Asset data'!FD22 -> 0 | EY22: ='Asset data'!FE22 -> 0 | EZ22: ='Asset data'!FF22 -> 0 | FA22: ='Asset data'!FG22 -> 0
A23: ='Asset data'!A23 -> 1 | B23: ='Asset data'!B23 -> 0 | C23: ='Asset data'!C23 -> 0 | D23: ='Asset data'!E23 -> Subtrans 0-2% Growth | E23: ='Asset data'!I23 -> 113.4064225 | F23: ='Asset data'!L23 -> 0 | G23: ='Asset data'!M23 -> 0 | H23: ='Asset data'!N23 -> 0 | I23: ='Asset data'!O23 -> 0 | J23: ='Asset data'!P23 -> 0 | K23: ='Asset data'!Q23 -> 0 | L23: ='Asset data'!R23 -> 0 | M23: ='Asset data'!S23 -> 0 | N23: ='Asset data'!T23 -> 0 | O23: ='Asset data'!U23 -> 0 | P23: ='Asset data'!V23 -> 0 | Q23: ='Asset data'!W23 -> 0 | R23: ='Asset data'!X23 -> 0 | S23: ='Asset data'!Y23 -> 0 | T23: ='Asset data'!Z23 -> 0 | U23: ='Asset data'!AA23 -> 0 | V23: ='Asset data'!AB23 -> 0 | W23: ='Asset data'!AC23 -> 0 | X23: ='Asset data'!AD23 -> 0 | Y23: ='Asset data'!AE23 -> 104.5985483 | Z23: ='Asset data'!AF23 -> 0 | AA23: ='Asset data'!AG23 -> 109.7427392 | AB23: ='Asset data'!AH23 -> 0 | AC23: ='Asset data'!AI23 -> 0 | AD23: ='Asset data'!AJ23 -> 0 | AE23: ='Asset data'!AK23 -> 174.9024905 | AF23: ='Asset data'!AL23 -> 0 | AG23: ='Asset data'!AM23 -> 0 | AH23: ='Asset data'!AN23 -> 0 | AI23: ='Asset data'!AO23 -> 0 | AJ23: ='Asset data'!AP23 -> 0 | AK23: ='Asset data'!AQ23 -> 0 | AL23: ='Asset data'!AR23 -> 0 | AM23: ='Asset data'!AS23 -> 0 | AN23: ='Asset data'!AT23 -> 158.8983411 | AO23: ='Asset data'!AU23 -> 101.7406644 | AP23: ='Asset data'!AV23 -> 0 | AQ23: ='Asset data'!AW23 -> 0 | AR23: ='Asset data'!AX23 -> 0 | AS23: ='Asset data'!AY23 -> 116.6016604 | AT23: ='Asset data'!AZ23 -> 0 | AU23: ='Asset data'!BA23 -> 0 | AV23: ='Asset data'!BB23 -> 32.57987569 | AW23: ='Asset data'!BC23 -> 0 | AX23: ='Asset data'!BD23 -> 0 | AY23: ='Asset data'!BE23 -> 0 | AZ23: ='Asset data'!BF23 -> 0 | BA23: ='Asset data'!BG23 -> 0 | BB23: ='Asset data'!BH23 -> 0 | BC23: ='Asset data'!BI23 -> 0 | BD23: ='Asset data'!BJ23 -> 0 | BE23: ='Asset data'!BK23 -> 0 | BF23: ='Asset data'!BL23 -> 135.4636937 | BG23: ='Asset data'!BM23 -> 48.58402515 | BH23: ='Asset data'!BN23 -> 0 | BI23: ='Asset data'!BO23 -> 0 | BJ23: ='Asset data'!BP23 -> 49.15560192 | BK23: ='Asset data'!BQ23 -> 216.6275945 | BL23: ='Asset data'!BR23 -> 31.43672216 | BM23: ='Asset data'!BS23 -> 0 | BN23: ='Asset data'!BT23 -> 0 | BO23: ='Asset data'!BU23 -> 0 | BP23: ='Asset data'!BV23 -> 160.0414946 | BQ23: ='Asset data'!BW23 -> 0 | BR23: ='Asset data'!BX23 -> 64.01659785 | BS23: ='Asset data'!BY23 -> 0 | BT23: ='Asset data'!BZ23 -> 104.0269715 | BU23: ='Asset data'!CA23 -> 0 | BV23: ='Asset data'!CB23 -> 0 | BW23: ='Asset data'!CC23 -> 109.7427392 | BX23: ='Asset data'!CD23 -> 0 | BY23: ='Asset data'!CE23 -> 0 | BZ23: ='Asset data'!CF23 -> 62.87344431 | CA23: ='Asset data'!CG23 -> 0 | CB23: ='Asset data'!CH23 -> 0 | CC23: ='Asset data'!CI23 -> 57.15767665 | CD23: ='Asset data'!CJ23 -> 0 | CE23: ='Asset data'!CK23 -> 310.9377609 | CF23: ='Asset data'!CL23 -> 114.8869301 | CG23: ='Asset data'!CM23 -> 0 | CH23: ='Asset data'!CN23 -> 0 | CI23: ='Asset data'!CO23 -> 0 | CJ23: ='Asset data'!CP23 -> 0 | CK23: ='Asset data'!CQ23 -> 0 | CL23: ='Asset data'!CR23 -> 0 | CM23: ='Asset data'!CS23 -> 0 | CN23: ='Asset data'!CT23 -> 49.72717869 | CO23: ='Asset data'!CU23 -> 91.45228264 | CP23: ='Asset data'!CV23 -> 0 | CQ23: ='Asset data'!CW23 -> 0 | CR23: ='Asset data'!CX23 -> 0 | CS23: ='Asset data'!CY23 -> 56.58609988 | CT23: ='Asset data'!CZ23 -> 83.45020791 | CU23: ='Asset data'!DA23 -> 0 | CV23: ='Asset data'!DB23 -> 0 | CW23: ='Asset data'!DC23 -> 80.0207473 | CX23: ='Asset data'!DD23 -> 0 | CY23: ='Asset data'!DE23 -> 0 | CZ23: ='Asset data'!DF23 -> 0 | DA23: ='Asset data'!DG23 -> 0 | DB23: ='Asset data'!DH23 -> 0 | DC23: ='Asset data'!DI23 -> 0 | DD23: ='Asset data'!DJ23 -> 0 | DE23: ='Asset data'!DK23 -> 0 | DF23: ='Asset data'!DL23 -> 0 | DG23: ='Asset data'!DM23 -> 0 | DH23: ='Asset data'!DN23 -> 0 | DI23: ='Asset data'!DO23 -> 0 | DJ23: ='Asset data'!DP23 -> 0 | DK23: ='Asset data'!DQ23 -> 0 | DL23: ='Asset data'!DR23 -> 0 | DM23: ='Asset data'!DS23 -> 0 | DN23: ='Asset data'!DT23 -> 0 | DO23: ='Asset data'!DU23 -> 0 | DP23: ='Asset data'!DV23 -> 0 | DQ23: ='Asset data'!DW23 -> 0 | DR23: ='Asset data'!DX23 -> 0 | DS23: ='Asset data'!DY23 -> 0 | DT23: ='Asset data'!DZ23 -> 0 | DU23: ='Asset data'!EA23 -> 0 | DV23: ='Asset data'!EB23 -> 0 | DW23: ='Asset data'!EC23 -> 0 | DX23: ='Asset data'!ED23 -> 0 | DY23: ='Asset data'!EE23 -> 0 | DZ23: ='Asset data'!EF23 -> 0 | EA23: ='Asset data'!EG23 -> 0 | EB23: ='Asset data'!EH23 -> 0 | EC23: ='Asset data'!EI23 -> 0 | ED23: ='Asset data'!EJ23 -> 0 | EE23: ='Asset data'!EK23 -> 64.01659785 | EF23: ='Asset data'!EL23 -> 0 | EG23: ='Asset data'!EM23 -> 0 | EH23: ='Asset data'!EN23 -> 0 | EI23: ='Asset data'!EO23 -> 0 | EJ23: ='Asset data'!EP23 -> 0 | EK23: ='Asset data'!EQ23 -> 0 | EL23: ='Asset data'!ER23 -> 0 | EM23: ='Asset data'!ES23 -> 20.00518683 | EN23: ='Asset data'!ET23 -> 0 | EO23: ='Asset data'!EU23 -> 0 | EP23: ='Asset data'!EV23 -> 0 | EQ23: ='Asset data'!EW23 -> 0 | ER23: ='Asset data'!EX23 -> 0 | ES23: ='Asset data'!EY23 -> 0 | ET23: ='Asset data'!EZ23 -> 0 | EU23: ='Asset data'!FA23 -> 0 | EV23: ='Asset data'!FB23 -> 0 | EW23: ='Asset data'!FC23 -> 0 | EX23: ='Asset data'!FD23 -> 0 | EY23: ='Asset data'!FE23 -> 0 | EZ23: ='Asset data'!FF23 -> 0 | FA23: ='Asset data'!FG23 -> 28.00726156
